{"text_format":"1","workbook":"xlsx","n_sheets":4,"sheets":["Accueil","Liste de choix","BD articles budgétaires","BD Crédits budgétaires"],"not_rendered":{"charts":0,"images":0,"macros":1,"external_links":0,"defined_names":3,"comments":0,"pivot_tables":0},"unopened":[],"bounds":{"document_bytes":16777216,"sheet_cells":100000,"rows_first":2000,"rows_last":500,"rows_between":2000,"halvings":0,"cell_chars":16384,"cell_head_chars":4096},"cells_cut":0,"cells_raw":0,"read":"whole","date_system":"1900"}

{"sheet":"Accueil","index":0,"n_rows":391,"n_cols":10,"rows_kept":391,"cut":false,"hidden":false,"merged":[]}
[null,null,null,null,null,null,2024,null,"Open","Save"]
[null,null,null,null,null,null,null,null,"2024-05-02T15:49:05","2024-05-02T15:48:09"]
[null,null,null,null,null,null,null,null,"2024-05-02T19:41:10","2024-05-02T15:48:48"]
[null,null,null,null,null,null,null,null,"2024-05-03T09:26:10","2024-05-02T15:52:21"]
[null,null,null,null,null,null,null,null,"2024-05-03T09:27:22","2024-05-02T15:53:10"]
[null,null,null,null,null,null,null,null,"2024-05-03T19:22:33","2024-05-02T22:18:09"]
[null,null,null,null,null,null,null,null,"2024-05-03T22:05:06","2024-05-03T09:27:09"]
[null,null,null,null,null,null,null,null,"2024-05-04T10:20:35","2024-05-03T10:33:52"]
[null,null,null,null,null,null,null,null,"2024-05-04T17:39:14","2024-05-03T11:09:11"]
[null,null,null,null,null,null,null,null,"2024-05-04T19:59:42","2024-05-03T11:49:58"]
[null,null,null,null,null,null,null,null,"2024-05-05T11:33:45","2024-05-03T21:11:12"]
[null,null,null,null,null,null,null,null,"2024-05-05T16:32:48","2024-05-03T21:31:24"]
[null,null,null,null,null,null,null,null,"2024-05-05T20:23:10","2024-05-03T22:08:37"]
[null,null,null,null,null,null,null,null,"2024-05-06T11:23:06","2024-05-04T11:19:30"]
[null,null,null,null,null,null,null,null,"2024-05-06T12:25:00","2024-05-04T11:31:50"]
[null,null,null,null,null,null,null,null,"2024-05-06T15:48:14","2024-05-04T12:03:41"]
[null,null,null,null,null,null,null,null,"2024-05-06T16:44:52","2024-05-04T12:04:10"]
[null,null,null,null,null,null,null,null,"2024-05-06T18:32:17","2024-05-04T12:11:10"]
[null,null,null,null,null,null,null,null,"2024-05-06T21:43:38","2024-05-04T12:19:15"]
[null,null,null,null,null,null,null,null,"2024-05-07T12:13:01","2024-05-04T17:48:32"]
[null,null,null,null,null,null,null,null,"2024-05-08T10:52:06","2024-05-04T18:17:20"]
[null,null,null,null,null,null,null,null,"2024-05-08T15:33:09","2024-05-04T19:21:19"]
[null,null,null,null,null,null,null,null,"2024-05-09T08:47:04","2024-05-04T19:43:19"]
[null,null,null,null,null,null,null,null,"2024-05-10T10:54:58","2024-05-04T19:46:10"]
[null,null,null,null,null,null,null,null,"2024-05-10T14:29:39","2024-05-04T21:00:18"]
[null,null,null,null,null,null,null,null,"2024-05-10T14:58:01","2024-05-05T12:58:35"]
[null,null,null,null,null,null,null,null,"2024-05-10T15:42:18","2024-05-05T16:36:04"]
[null,null,null,null,null,null,null,null,"2024-05-10T19:15:47","2024-05-05T20:30:12"]
[null,null,null,null,null,null,null,null,"2024-05-10T21:20:30","2024-05-05T20:46:05"]
[null,null,null,null,null,null,null,null,"2024-05-11T10:15:43","2024-05-06T11:58:07"]
[null,null,null,null,null,null,null,null,"2024-05-11T16:23:30","2024-05-06T13:29:48"]
[null,null,null,null,null,null,null,null,"2024-05-12T11:40:24","2024-05-06T13:36:28"]
[null,null,null,null,null,null,null,null,"2024-05-12T11:51:01","2024-05-06T16:12:26"]
[null,null,null,null,null,null,null,null,"2024-05-12T12:25:16","2024-05-06T17:08:23"]
[null,null,null,null,null,null,null,null,"2024-05-12T15:38:10","2024-05-06T17:22:53"]
[null,null,null,null,null,null,null,null,"2024-05-12T15:58:39","2024-05-06T17:31:26"]
[null,null,null,null,null,null,null,null,"2024-05-12T19:04:16","2024-05-06T18:34:41"]
[null,null,null,null,null,null,null,null,"2024-05-13T11:30:49","2024-05-06T21:49:38"]
[null,null,null,null,null,null,null,null,"2024-05-13T11:41:54","2024-05-07T12:22:05"]
[null,null,null,null,null,null,null,null,"2024-05-13T12:51:08","2024-05-07T12:41:18"]
[null,null,null,null,null,null,null,null,"2024-05-13T18:17:30","2024-05-07T12:53:16"]
[null,null,null,null,null,null,null,null,"2024-05-13T19:14:17","2024-05-07T13:24:29"]
[null,null,null,null,null,null,null,null,"2024-05-14T09:31:52","2024-05-08T11:24:22"]
[null,null,null,null,null,null,null,null,"2024-05-14T15:59:09","2024-05-08T11:36:28"]
[null,null,null,null,null,null,null,null,"2024-05-14T16:55:55","2024-05-08T13:21:38"]
[null,null,null,null,null,null,null,null,"2024-05-14T18:42:31","2024-05-08T15:45:18"]
[null,null,null,null,null,null,null,null,"2024-05-14T19:05:19","2024-05-08T17:33:51"]
[null,null,null,null,null,null,null,null,"2024-05-15T10:26:59","2024-05-08T19:17:00"]
[null,null,null,null,null,null,null,null,"2024-05-15T11:12:41","2024-05-08T19:33:37"]
[null,null,null,null,null,null,null,null,"2024-05-15T15:12:11","2024-05-08T19:50:49"]
[null,null,null,null,null,null,null,null,"2024-05-16T14:38:08","2024-05-08T21:24:49"]
[null,null,null,null,null,null,null,null,"2024-05-16T15:42:36","2024-05-09T11:16:36"]
[null,null,null,null,null,null,null,null,"2024-05-17T14:41:33","2024-05-10T13:20:18"]
[null,null,null,null,null,null,null,null,"2024-05-17T15:08:07","2024-05-10T14:55:06"]
[null,null,null,null,null,null,null,null,"2024-05-17T18:53:19","2024-05-10T15:10:42"]
[null,null,null,null,null,null,null,null,"2024-05-18T10:14:36","2024-05-10T15:28:46"]
[null,null,null,null,null,null,null,null,"2024-05-18T16:36:43","2024-05-10T15:37:29"]
[null,null,null,null,null,null,null,null,"2024-05-18T17:20:34","2024-05-10T16:30:38"]
[null,null,null,null,null,null,null,null,"2024-05-18T17:25:56","2024-05-10T19:58:07"]
[null,null,null,null,null,null,null,null,"2024-05-18T19:25:50","2024-05-10T21:32:35"]
[null,null,null,null,null,null,null,null,"2024-05-18T21:41:57","2024-05-11T11:45:06"]
[null,null,null,null,null,null,null,null,"2024-05-19T12:15:53","2024-05-11T17:58:37"]
[null,null,null,null,null,null,null,null,"2024-05-19T19:12:00","2024-05-11T19:02:42"]
[null,null,null,null,null,null,null,null,"2024-05-19T19:21:43","2024-05-11T19:05:30"]
[null,null,null,null,null,null,null,null,"2024-05-19T21:22:37","2024-05-12T11:50:20"]
[null,null,null,null,null,null,null,null,"2024-05-20T10:50:24","2024-05-12T12:06:16"]
[null,null,null,null,null,null,null,null,"2024-05-20T11:19:48","2024-05-12T12:22:30"]
[null,null,null,null,null,null,null,null,"2024-05-20T15:43:42","2024-05-12T13:05:37"]
[null,null,null,null,null,null,null,null,"2024-05-20T16:59:11","2024-05-12T15:49:28"]
[null,null,null,null,null,null,null,null,"2024-05-21T10:52:26","2024-05-12T15:56:13"]
[null,null,null,null,null,null,null,null,"2024-05-22T11:19:00","2024-05-12T16:15:27"]
[null,null,null,null,null,null,null,null,"2024-05-23T10:24:51","2024-05-12T16:20:03"]
[null,null,null,null,null,null,null,null,"2024-05-23T13:23:21","2024-05-12T16:22:08"]
[null,null,null,null,null,null,null,null,"2024-05-23T15:41:01","2024-05-12T16:22:52"]
[null,null,null,null,null,null,null,null,"2024-05-23T16:10:31","2024-05-12T16:59:25"]
[null,null,null,null,null,null,null,null,"2024-05-23T18:48:09","2024-05-12T19:20:34"]
[null,null,null,null,null,null,null,null,"2024-05-23T18:58:16","2024-05-12T19:41:01"]
[null,null,null,null,null,null,null,null,"2024-05-24T10:48:48","2024-05-12T19:44:58"]
[null,null,null,null,null,null,null,null,"2024-05-24T17:05:45","2024-05-12T20:02:07"]
[null,null,null,null,null,null,null,null,"2024-05-25T10:42:51","2024-05-13T11:39:55"]
[null,null,null,null,null,null,null,null,"2024-05-25T17:56:29","2024-05-13T12:28:07"]
[null,null,null,null,null,null,null,null,"2024-05-26T11:12:30","2024-05-13T12:53:32"]
[null,null,null,null,null,null,null,null,"2024-05-26T15:24:47","2024-05-13T19:13:31"]
[null,null,null,null,null,null,null,null,"2024-05-27T10:49:56","2024-05-13T22:06:35"]
[null,null,null,null,null,null,null,null,"2024-05-27T12:34:45","2024-05-13T22:24:23"]
[null,null,null,null,null,null,null,null,"2024-05-27T12:51:13","2024-05-14T09:34:00"]
[null,null,null,null,null,null,null,null,"2024-05-27T15:50:57","2024-05-14T09:41:26"]
[null,null,null,null,null,null,null,null,"2024-05-27T19:35:20","2024-05-14T09:47:02"]
[null,null,null,null,null,null,null,null,"2024-05-27T21:21:52","2024-05-14T16:00:04"]
[null,null,null,null,null,null,null,null,"2024-05-27T21:42:21","2024-05-14T16:26:04"]
[null,null,null,null,null,null,null,null,"2024-05-28T11:08:30","2024-05-14T17:07:14"]
[null,null,null,null,null,null,null,null,"2024-05-29T11:13:07","2024-05-14T17:09:01"]
[null,null,null,null,null,null,null,null,"2024-05-29T12:28:01","2024-05-14T17:09:51"]
[null,null,null,null,null,null,null,null,"2024-05-29T18:32:55","2024-05-14T17:13:46"]
[null,null,null,null,null,null,null,null,"2024-05-30T11:45:43","2024-05-14T17:15:55"]
[null,null,null,null,null,null,null,null,"2024-05-30T19:36:40","2024-05-14T17:21:02"]
[null,null,null,null,null,null,null,null,"2024-05-31T09:59:19","2024-05-14T17:26:01"]
[null,null,null,null,null,null,null,null,"2024-05-31T21:01:35","2024-05-14T17:30:45"]
[null,null,null,null,null,null,null,null,"2024-06-02T11:46:58","2024-05-14T18:44:55"]
[null,null,null,null,null,null,null,null,"2024-06-02T18:49:30","2024-05-14T18:46:18"]
[null,null,null,null,null,null,null,null,"2024-06-03T15:42:41","2024-05-14T18:49:24"]
[null,null,null,null,null,null,null,null,"2024-06-03T16:06:01","2024-05-14T19:07:46"]
[null,null,null,null,null,null,null,null,"2024-06-03T16:17:34","2024-05-14T19:08:48"]
[null,null,null,null,null,null,null,null,"2024-06-03T19:15:26","2024-05-14T19:11:59"]
[null,null,null,null,null,null,null,null,"2024-06-03T19:34:38","2024-05-14T20:00:38"]
[null,null,null,null,null,null,null,null,"2024-06-04T10:42:07","2024-05-15T11:07:42"]
[null,null,null,null,null,null,null,null,"2024-06-04T18:08:23","2024-05-15T11:27:29"]
[null,null,null,null,null,null,null,null,"2024-06-05T10:19:01","2024-05-15T11:36:52"]
[null,null,null,null,null,null,null,null,"2024-06-05T15:30:18","2024-05-15T15:30:08"]
[null,null,null,null,null,null,null,null,"2024-06-05T15:41:38","2024-05-15T15:47:11"]
[null,null,null,null,null,null,null,null,"2024-06-05T16:10:35","2024-05-15T15:49:35"]
[null,null,null,null,null,null,null,null,"2024-06-05T16:38:45","2024-05-15T15:49:45"]
[null,null,null,null,null,null,null,null,"2024-06-05T17:09:28","2024-05-15T16:20:33"]
[null,null,null,null,null,null,null,null,"2024-06-05T19:10:40","2024-05-15T16:38:31"]
[null,null,null,null,null,null,null,null,"2024-06-07T11:38:55","2024-05-16T14:50:34"]
[null,null,null,null,null,null,null,null,"2024-06-07T15:11:32","2024-05-16T14:56:04"]
[null,null,null,null,null,null,null,null,"2024-06-07T15:24:00","2024-05-16T15:31:33"]
[null,null,null,null,null,null,null,null,"2024-06-07T15:56:50","2024-05-16T15:48:30"]
[null,null,null,null,null,null,null,null,"2024-06-07T16:02:28","2024-05-16T16:02:11"]
[null,null,null,null,null,null,null,null,"2024-06-07T17:43:18","2024-05-16T16:09:35"]
[null,null,null,null,null,null,null,null,"2024-06-07T17:47:32","2024-05-16T16:26:19"]
[null,null,null,null,null,null,null,null,"2024-06-08T10:38:50","2024-05-17T14:45:47"]
[null,null,null,null,null,null,null,null,"2024-06-08T16:45:59","2024-05-17T15:04:37"]
[null,null,null,null,null,null,null,null,"2024-06-08T19:29:47","2024-05-17T15:14:28"]
[null,null,null,null,null,null,null,null,"2024-06-08T20:28:42","2024-05-17T15:16:00"]
[null,null,null,null,null,null,null,null,"2024-06-09T15:48:24","2024-05-17T15:19:37"]
[null,null,null,null,null,null,null,null,"2024-06-10T10:16:07","2024-05-17T15:23:45"]
[null,null,null,null,null,null,null,null,"2024-06-10T22:07:39","2024-05-17T15:34:06"]
[null,null,null,null,null,null,null,null,"2024-06-11T10:53:32","2024-05-17T16:02:58"]
[null,null,null,null,null,null,null,null,"2024-06-11T21:11:58","2024-05-17T16:05:55"]
[null,null,null,null,null,null,null,null,"2024-06-11T21:49:51","2024-05-17T16:08:53"]
[null,null,null,null,null,null,null,null,"2024-06-12T10:59:29","2024-05-17T16:12:26"]
[null,null,null,null,null,null,null,null,"2024-06-12T15:50:53","2024-05-17T16:14:25"]
[null,null,null,null,null,null,null,null,"2024-06-12T19:36:16","2024-05-17T16:25:33"]
[null,null,null,null,null,null,null,null,"2024-06-12T19:59:30","2024-05-17T16:32:58"]
[null,null,null,null,null,null,null,null,"2024-06-13T11:36:07","2024-05-17T16:37:37"]
[null,null,null,null,null,null,null,null,"2024-06-13T16:02:41","2024-05-17T18:56:13"]
[null,null,null,null,null,null,null,null,"2024-06-14T09:51:32","2024-05-17T19:22:42"]
[null,null,null,null,null,null,null,null,"2024-06-14T10:02:55","2024-05-17T19:40:13"]
[null,null,null,null,null,null,null,null,"2024-06-14T10:12:44","2024-05-17T19:46:57"]
[null,null,null,null,null,null,null,null,"2024-06-14T10:39:02","2024-05-17T21:15:24"]
[null,null,null,null,null,null,null,null,"2024-06-14T10:47:44","2024-05-17T21:35:00"]
[null,null,null,null,null,null,null,null,"2024-06-14T11:00:33","2024-05-18T11:08:36"]
[null,null,null,null,null,null,null,null,"2024-06-14T11:48:26","2024-05-18T11:37:58"]
[null,null,null,null,null,null,null,null,"2024-06-14T12:08:19","2024-05-18T12:11:04"]
[null,null,null,null,null,null,null,null,"2024-06-14T18:09:32","2024-05-18T16:44:35"]
[null,null,null,null,null,null,null,null,"2024-06-14T18:35:06","2024-05-18T16:48:26"]
[null,null,null,null,null,null,null,null,"2024-06-14T18:48:18","2024-05-18T17:13:44"]
[null,null,null,null,null,null,null,null,"2024-06-14T19:22:11","2024-05-18T17:23:13"]
[null,null,null,null,null,null,null,null,"2024-06-14T19:25:40","2024-05-18T19:04:35"]
[null,null,null,null,null,null,null,null,"2024-06-19T16:23:04","2024-05-18T20:03:02"]
[null,null,null,null,null,null,null,null,"2024-06-19T18:35:53","2024-05-18T21:50:18"]
[null,null,null,null,null,null,null,null,"2024-06-20T10:37:55","2024-05-18T21:54:20"]
[null,null,null,null,null,null,null,null,"2024-06-20T11:26:16","2024-05-19T12:29:25"]
[null,null,null,null,null,null,null,null,"2024-06-20T11:59:25","2024-05-19T19:16:44"]
[null,null,null,null,null,null,null,null,"2024-06-21T16:32:52","2024-05-19T19:43:13"]
[null,null,null,null,null,null,null,null,"2024-06-21T16:43:18","2024-05-19T22:05:29"]
[null,null,null,null,null,null,null,null,"2024-06-21T18:53:57","2024-05-20T11:02:27"]
[null,null,null,null,null,null,null,null,"2024-06-22T09:59:53","2024-05-20T11:31:02"]
[null,null,null,null,null,null,null,null,"2024-06-22T16:44:39","2024-05-20T12:00:06"]
[null,null,null,null,null,null,null,null,"2024-06-22T19:49:00","2024-05-20T14:01:44"]
[null,null,null,null,null,null,null,null,"2024-06-23T11:49:34","2024-05-20T15:45:40"]
[null,null,null,null,null,null,null,null,"2024-06-23T12:14:27","2024-05-20T16:58:06"]
[null,null,null,null,null,null,null,null,"2024-06-23T16:14:02","2024-05-20T17:02:23"]
[null,null,null,null,null,null,null,null,"2024-06-23T21:44:44","2024-05-21T11:37:29"]
[null,null,null,null,null,null,null,null,"2024-06-24T12:56:28","2024-05-22T11:25:06"]
[null,null,null,null,null,null,null,null,"2024-06-24T16:56:40","2024-05-22T11:27:50"]
[null,null,null,null,null,null,null,null,"2024-06-24T17:32:11","2024-05-22T11:30:31"]
[null,null,null,null,null,null,null,null,"2024-06-25T08:49:07","2024-05-23T12:01:02"]
[null,null,null,null,null,null,null,null,"2024-06-25T09:33:52","2024-05-23T12:26:28"]
[null,null,null,null,null,null,null,null,"2024-06-25T21:00:55","2024-05-23T12:49:07"]
[null,null,null,null,null,null,null,null,"2024-06-26T10:19:24","2024-05-23T13:02:57"]
[null,null,null,null,null,null,null,null,"2024-06-26T12:13:40","2024-05-23T13:33:34"]
[null,null,null,null,null,null,null,null,"2024-06-26T16:52:54","2024-05-23T13:53:23"]
[null,null,null,null,null,null,null,null,"2024-06-26T20:22:35","2024-05-23T13:58:11"]
[null,null,null,null,null,null,null,null,"2024-06-27T12:08:44","2024-05-23T14:15:44"]
[null,null,null,null,null,null,null,null,"2024-06-27T16:57:13","2024-05-23T15:48:38"]
[null,null,null,null,null,null,null,null,"2024-06-28T09:37:07","2024-05-23T15:49:47"]
[null,null,null,null,null,null,null,null,"2024-06-28T10:04:02","2024-05-23T16:05:46"]
[null,null,null,null,null,null,null,null,"2024-06-29T11:53:32","2024-05-23T16:25:55"]
[null,null,null,null,null,null,null,null,"2024-06-30T11:14:25","2024-05-23T16:35:00"]
[null,null,null,null,null,null,null,null,"2024-06-30T11:43:32","2024-05-23T18:53:27"]
[null,null,null,null,null,null,null,null,"2024-07-04T10:45:32","2024-05-23T19:43:39"]
[null,null,null,null,null,null,null,null,"2024-07-04T11:41:36","2024-05-23T19:52:26"]
[null,null,null,null,null,null,null,null,"2024-07-04T11:51:28","2024-05-23T21:11:03"]
[null,null,null,null,null,null,null,null,"2024-07-04T12:36:46","2024-05-24T11:34:20"]
[null,null,null,null,null,null,null,null,"2024-07-04T15:38:41","2024-05-24T13:42:12"]
[null,null,null,null,null,null,null,null,"2024-07-04T16:08:19","2024-05-24T17:58:56"]
[null,null,null,null,null,null,null,null,"2024-07-04T16:44:26","2024-05-24T21:40:29"]
[null,null,null,null,null,null,null,null,"2024-07-04T17:50:53","2024-05-24T21:42:16"]
[null,null,null,null,null,null,null,null,"2024-07-04T17:54:43","2024-05-25T11:18:58"]
[null,null,null,null,null,null,null,null,"2024-07-04T18:59:06","2024-05-25T11:22:17"]
[null,null,null,null,null,null,null,null,"2024-07-05T10:26:07","2024-05-25T12:02:16"]
[null,null,null,null,null,null,null,null,"2024-07-05T11:27:13","2024-05-25T17:57:41"]
[null,null,null,null,null,null,null,null,"2024-07-05T11:53:00","2024-05-26T13:28:33"]
[null,null,null,null,null,null,null,null,"2024-07-06T10:05:21","2024-05-26T16:01:15"]
[null,null,null,null,null,null,null,null,"2024-07-06T11:41:25","2024-05-27T12:28:55"]
[null,null,null,null,null,null,null,null,"2024-07-06T13:28:53","2024-05-27T12:46:55"]
[null,null,null,null,null,null,null,null,null,"2024-05-27T13:06:09"]
[null,null,null,null,null,null,null,null,null,"2024-05-27T16:46:47"]
[null,null,null,null,null,null,null,null,null,"2024-05-27T16:51:25"]
[null,null,null,null,null,null,null,null,null,"2024-05-27T17:07:39"]
[null,null,null,null,null,null,null,null,null,"2024-05-27T17:41:47"]
[null,null,null,null,null,null,null,null,null,"2024-05-27T19:54:21"]
[null,null,null,null,null,null,null,null,null,"2024-05-27T21:30:01"]
[null,null,null,null,null,null,null,null,null,"2024-05-27T21:44:51"]
[null,null,null,null,null,null,null,null,null,"2024-05-27T22:10:02"]
[null,null,null,null,null,null,null,null,null,"2024-05-28T11:35:51"]
[null,null,null,null,null,null,null,null,null,"2024-05-28T12:15:08"]
[null,null,null,null,null,null,null,null,null,"2024-05-28T12:35:58"]
[null,null,null,null,null,null,null,null,null,"2024-05-28T12:54:59"]
[null,null,null,null,null,null,null,null,null,"2024-05-29T11:50:51"]
[null,null,null,null,null,null,null,null,null,"2024-05-29T12:05:09"]
[null,null,null,null,null,null,null,null,null,"2024-05-29T12:55:09"]
[null,null,null,null,null,null,null,null,null,"2024-05-29T13:47:35"]
[null,null,null,null,null,null,null,null,null,"2024-05-29T18:34:10"]
[null,null,null,null,null,null,null,null,null,"2024-05-29T18:35:24"]
[null,null,null,null,null,null,null,null,null,"2024-05-29T19:45:56"]
[null,null,null,null,null,null,null,null,null,"2024-05-29T20:01:19"]
[null,null,null,null,null,null,null,null,null,"2024-05-30T11:51:44"]
[null,null,null,null,null,null,null,null,null,"2024-05-30T11:57:45"]
[null,null,null,null,null,null,null,null,null,"2024-05-30T12:02:54"]
[null,null,null,null,null,null,null,null,null,"2024-05-30T12:22:01"]
[null,null,null,null,null,null,null,null,null,"2024-05-30T12:24:51"]
[null,null,null,null,null,null,null,null,null,"2024-05-30T12:34:26"]
[null,null,null,null,null,null,null,null,null,"2024-05-30T13:54:28"]
[null,null,null,null,null,null,null,null,null,"2024-05-30T13:57:49"]
[null,null,null,null,null,null,null,null,null,"2024-05-30T22:00:40"]
[null,null,null,null,null,null,null,null,null,"2024-05-31T10:38:50"]
[null,null,null,null,null,null,null,null,null,"2024-05-31T21:05:28"]
[null,null,null,null,null,null,null,null,null,"2024-06-02T12:29:23"]
[null,null,null,null,null,null,null,null,null,"2024-06-02T20:38:26"]
[null,null,null,null,null,null,null,null,null,"2024-06-03T15:48:36"]
[null,null,null,null,null,null,null,null,null,"2024-06-03T16:05:09"]
[null,null,null,null,null,null,null,null,null,"2024-06-03T16:13:51"]
[null,null,null,null,null,null,null,null,null,"2024-06-03T17:47:13"]
[null,null,null,null,null,null,null,null,null,"2024-06-03T19:29:30"]
[null,null,null,null,null,null,null,null,null,"2024-06-03T19:35:47"]
[null,null,null,null,null,null,null,null,null,"2024-06-03T19:51:44"]
[null,null,null,null,null,null,null,null,null,"2024-06-03T21:17:46"]
[null,null,null,null,null,null,null,null,null,"2024-06-03T21:36:25"]
[null,null,null,null,null,null,null,null,null,"2024-06-03T21:36:58"]
[null,null,null,null,null,null,null,null,null,"2024-06-04T11:05:55"]
[null,null,null,null,null,null,null,null,null,"2024-06-04T11:21:02"]
[null,null,null,null,null,null,null,null,null,"2024-06-04T18:26:22"]
[null,null,null,null,null,null,null,null,null,"2024-06-04T21:43:35"]
[null,null,null,null,null,null,null,null,null,"2024-06-05T10:37:13"]
[null,null,null,null,null,null,null,null,null,"2024-06-05T11:31:29"]
[null,null,null,null,null,null,null,null,null,"2024-06-05T12:39:00"]
[null,null,null,null,null,null,null,null,null,"2024-06-05T15:40:24"]
[null,null,null,null,null,null,null,null,null,"2024-06-05T16:00:17"]
[null,null,null,null,null,null,null,null,null,"2024-06-05T16:12:40"]
[null,null,null,null,null,null,null,null,null,"2024-06-05T16:42:10"]
[null,null,null,null,null,null,null,null,null,"2024-06-05T17:15:42"]
[null,null,null,null,null,null,null,null,null,"2024-06-07T11:51:31"]
[null,null,null,null,null,null,null,null,null,"2024-06-07T15:22:55"]
[null,null,null,null,null,null,null,null,null,"2024-06-07T15:51:13"]
[null,null,null,null,null,null,null,null,null,"2024-06-07T15:59:55"]
[null,null,null,null,null,null,null,null,null,"2024-06-07T16:02:33"]
[null,null,null,null,null,null,null,null,null,"2024-06-07T16:08:02"]
[null,null,null,null,null,null,null,null,null,"2024-06-07T17:43:40"]
[null,null,null,null,null,null,null,null,null,"2024-06-07T19:16:53"]
[null,null,null,null,null,null,null,null,null,"2024-06-07T21:01:27"]
[null,null,null,null,null,null,null,null,null,"2024-06-08T11:07:46"]
[null,null,null,null,null,null,null,null,null,"2024-06-08T11:16:00"]
[null,null,null,null,null,null,null,null,null,"2024-06-08T18:54:42"]
[null,null,null,null,null,null,null,null,null,"2024-06-08T19:29:24"]
[null,null,null,null,null,null,null,null,null,"2024-06-08T20:22:03"]
[null,null,null,null,null,null,null,null,null,"2024-06-08T21:51:01"]
[null,null,null,null,null,null,null,null,null,"2024-06-09T17:44:33"]
[null,null,null,null,null,null,null,null,null,"2024-06-09T22:13:57"]
[null,null,null,null,null,null,null,null,null,"2024-06-10T12:06:58"]
[null,null,null,null,null,null,null,null,null,"2024-06-10T13:33:48"]
[null,null,null,null,null,null,null,null,null,"2024-06-10T22:09:23"]
[null,null,null,null,null,null,null,null,null,"2024-06-10T22:17:22"]
[null,null,null,null,null,null,null,null,null,"2024-06-11T12:00:07"]
[null,null,null,null,null,null,null,null,null,"2024-06-11T12:18:34"]
[null,null,null,null,null,null,null,null,null,"2024-06-11T21:13:01"]
[null,null,null,null,null,null,null,null,null,"2024-06-11T21:29:16"]
[null,null,null,null,null,null,null,null,null,"2024-06-11T22:01:23"]
[null,null,null,null,null,null,null,null,null,"2024-06-12T12:42:24"]
[null,null,null,null,null,null,null,null,null,"2024-06-12T16:15:57"]
[null,null,null,null,null,null,null,null,null,"2024-06-12T17:31:00"]
[null,null,null,null,null,null,null,null,null,"2024-06-12T17:57:10"]
[null,null,null,null,null,null,null,null,null,"2024-06-12T19:55:05"]
[null,null,null,null,null,null,null,null,null,"2024-06-12T19:59:15"]
[null,null,null,null,null,null,null,null,null,"2024-06-12T20:00:47"]
[null,null,null,null,null,null,null,null,null,"2024-06-13T13:02:58"]
[null,null,null,null,null,null,null,null,null,"2024-06-13T17:09:07"]
[null,null,null,null,null,null,null,null,null,"2024-06-13T17:24:02"]
[null,null,null,null,null,null,null,null,null,"2024-06-14T10:02:23"]
[null,null,null,null,null,null,null,null,null,"2024-06-14T10:10:14"]
[null,null,null,null,null,null,null,null,null,"2024-06-14T10:33:42"]
[null,null,null,null,null,null,null,null,null,"2024-06-14T10:44:57"]
[null,null,null,null,null,null,null,null,null,"2024-06-14T10:52:03"]
[null,null,null,null,null,null,null,null,null,"2024-06-14T11:06:45"]
[null,null,null,null,null,null,null,null,null,"2024-06-14T11:09:51"]
[null,null,null,null,null,null,null,null,null,"2024-06-14T11:43:40"]
[null,null,null,null,null,null,null,null,null,"2024-06-14T12:01:01"]
[null,null,null,null,null,null,null,null,null,"2024-06-14T12:43:11"]
[null,null,null,null,null,null,null,null,null,"2024-06-14T13:02:54"]
[null,null,null,null,null,null,null,null,null,"2024-06-14T13:09:07"]
[null,null,null,null,null,null,null,null,null,"2024-06-14T18:20:04"]
[null,null,null,null,null,null,null,null,null,"2024-06-14T18:34:49"]
[null,null,null,null,null,null,null,null,null,"2024-06-14T18:47:03"]
[null,null,null,null,null,null,null,null,null,"2024-06-14T18:54:31"]
[null,null,null,null,null,null,null,null,null,"2024-06-14T18:59:52"]
[null,null,null,null,null,null,null,null,null,"2024-06-14T19:13:05"]
[null,null,null,null,null,null,null,null,null,"2024-06-14T19:24:29"]
[null,null,null,null,null,null,null,null,null,"2024-06-14T19:28:00"]
[null,null,null,null,null,null,null,null,null,"2024-06-14T19:35:25"]
[null,null,null,null,null,null,null,null,null,"2024-06-19T16:23:26"]
[null,null,null,null,null,null,null,null,null,"2024-06-19T16:25:56"]
[null,null,null,null,null,null,null,null,null,"2024-06-19T17:02:28"]
[null,null,null,null,null,null,null,null,null,"2024-06-19T17:02:43"]
[null,null,null,null,null,null,null,null,null,"2024-06-19T18:43:58"]
[null,null,null,null,null,null,null,null,null,"2024-06-19T19:21:51"]
[null,null,null,null,null,null,null,null,null,"2024-06-20T10:42:17"]
[null,null,null,null,null,null,null,null,null,"2024-06-20T11:28:13"]
[null,null,null,null,null,null,null,null,null,"2024-06-20T12:40:05"]
[null,null,null,null,null,null,null,null,null,"2024-06-21T16:40:51"]
[null,null,null,null,null,null,null,null,null,"2024-06-21T16:48:34"]
[null,null,null,null,null,null,null,null,null,"2024-06-21T20:58:54"]
[null,null,null,null,null,null,null,null,null,"2024-06-22T10:15:07"]
[null,null,null,null,null,null,null,null,null,"2024-06-22T10:28:11"]
[null,null,null,null,null,null,null,null,null,"2024-06-22T10:34:57"]
[null,null,null,null,null,null,null,null,null,"2024-06-22T12:09:24"]
[null,null,null,null,null,null,null,null,null,"2024-06-22T17:47:55"]
[null,null,null,null,null,null,null,null,null,"2024-06-22T18:59:59"]
[null,null,null,null,null,null,null,null,null,"2024-06-22T19:16:46"]
[null,null,null,null,null,null,null,null,null,"2024-06-22T19:46:01"]
[null,null,null,null,null,null,null,null,null,"2024-06-22T21:59:01"]
[null,null,null,null,null,null,null,null,null,"2024-06-23T12:06:19"]
[null,null,null,null,null,null,null,null,null,"2024-06-23T12:46:54"]
[null,null,null,null,null,null,null,null,null,"2024-06-23T13:13:05"]
[null,null,null,null,null,null,null,null,null,"2024-06-23T17:14:45"]
[null,null,null,null,null,null,null,null,null,"2024-06-23T17:16:53"]
[null,null,null,null,null,null,null,null,null,"2024-06-23T17:47:50"]
[null,null,null,null,null,null,null,null,null,"2024-06-23T22:17:02"]
[null,null,null,null,null,null,null,null,null,"2024-06-24T13:13:35"]
[null,null,null,null,null,null,null,null,null,"2024-06-24T16:57:22"]
[null,null,null,null,null,null,null,null,null,"2024-06-24T17:05:07"]
[null,null,null,null,null,null,null,null,null,"2024-06-24T17:16:09"]
[null,null,null,null,null,null,null,null,null,"2024-06-24T17:17:32"]
[null,null,null,null,null,null,null,null,null,"2024-06-24T17:27:16"]
[null,null,null,null,null,null,null,null,null,"2024-06-24T17:33:22"]
[null,null,null,null,null,null,null,null,null,"2024-06-25T08:50:40"]
[null,null,null,null,null,null,null,null,null,"2024-06-25T09:41:46"]
[null,null,null,null,null,null,null,null,null,"2024-06-25T21:40:48"]
[null,null,null,null,null,null,null,null,null,"2024-06-26T10:29:56"]
[null,null,null,null,null,null,null,null,null,"2024-06-26T13:47:46"]
[null,null,null,null,null,null,null,null,null,"2024-06-26T17:00:19"]
[null,null,null,null,null,null,null,null,null,"2024-06-26T22:05:45"]
[null,null,null,null,null,null,null,null,null,"2024-06-27T12:12:45"]
[null,null,null,null,null,null,null,null,null,"2024-06-27T18:01:20"]
[null,null,null,null,null,null,null,null,null,"2024-06-28T09:41:11"]
[null,null,null,null,null,null,null,null,null,"2024-06-28T10:14:56"]
[null,null,null,null,null,null,null,null,null,"2024-06-29T13:11:58"]
[null,null,null,null,null,null,null,null,null,"2024-06-30T11:34:12"]
[null,null,null,null,null,null,null,null,null,"2024-06-30T11:49:25"]
[null,null,null,null,null,null,null,null,null,"2024-07-04T10:49:47"]
[null,null,null,null,null,null,null,null,null,"2024-07-04T11:42:52"]
[null,null,null,null,null,null,null,null,null,"2024-07-04T11:50:59"]
[null,null,null,null,null,null,null,null,null,"2024-07-04T11:55:41"]
[null,null,null,null,null,null,null,null,null,"2024-07-04T12:03:23"]
[null,null,null,null,null,null,null,null,null,"2024-07-04T12:07:42"]
[null,null,null,null,null,null,null,null,null,"2024-07-04T12:39:00"]
[null,null,null,null,null,null,null,null,null,"2024-07-04T12:42:39"]
[null,null,null,null,null,null,null,null,null,"2024-07-04T13:09:56"]
[null,null,null,null,null,null,null,null,null,"2024-07-04T16:04:53"]
[null,null,null,null,null,null,null,null,null,"2024-07-04T16:13:35"]
[null,null,null,null,null,null,null,null,null,"2024-07-04T16:54:41"]
[null,null,null,null,null,null,null,null,null,"2024-07-04T17:13:43"]
[null,null,null,null,null,null,null,null,null,"2024-07-04T17:52:50"]
[null,null,null,null,null,null,null,null,null,"2024-07-04T18:58:18"]
[null,null,null,null,null,null,null,null,null,"2024-07-04T19:03:10"]
[null,null,null,null,null,null,null,null,null,"2024-07-04T19:03:48"]
[null,null,null,null,null,null,null,null,null,"2024-07-04T19:28:40"]
[null,null,null,null,null,null,null,null,null,"2024-07-04T19:51:50"]
[null,null,null,null,null,null,null,null,null,"2024-07-04T19:55:55"]
[null,null,null,null,null,null,null,null,null,"2024-07-05T10:35:19"]
[null,null,null,null,null,null,null,null,null,"2024-07-05T11:20:51"]
[null,null,null,null,null,null,null,null,null,"2024-07-05T11:51:23"]
[null,null,null,null,null,null,null,null,null,"2024-07-05T12:01:30"]
[null,null,null,null,null,null,null,null,null,"2024-07-05T12:27:18"]
[null,null,null,null,null,null,null,null,null,"2024-07-06T11:36:16"]
[null,null,null,null,null,null,null,null,null,"2024-07-06T11:51:45"]
[null,null,null,null,null,null,null,null,null,"2024-07-06T12:09:45"]
[null,null,null,null,null,null,null,null,null,"2024-07-06T12:25:10"]
[null,null,null,null,null,null,null,null,null,"2024-07-06T12:25:19"]
[null,null,null,null,null,null,null,null,null,"2024-07-06T13:31:14"]

{"sheet":"Liste de choix","index":1,"n_rows":446,"n_cols":48,"rows_kept":446,"cut":false,"hidden":false,"merged":[]}
["Liste de choix por remplir les formulaires.",null,2023]
[null,null,null,null,null,null,null,null,null,null,null,null,null,null,null,null,null,null,null,null,null,null,null,null,null,null,null,null,null,null,null,null,null,null,null,null,null,null,null,null,null,"Liste nom conditionnement articles budgets. BUDGETS.xltm"]
["Nom type","Code type",null,"Nom catégorie","Code catégorie",null,"Nom catégorie recette","Code catégorie recette",null,"Nom article","Code article",null,"Nom article","Code article",null,"Nom article","Code article",null,"Nom article","Code article",null,"Nom article","Code article",null,"Nom article","Code article",null,"Nom article","Code article",null,"Nom article","Code article",null,"Nom mois",null,"Catégorie","Code catégorie",null,"Nom période","Code période",null,"Nom conditionnement","Code conditionnement",null,"Nom produit","Code produit","Libellé produit","Clé produit"]
["Article dépense budgétaire","ADB",null,"Dépenses alimentaires","DA",null,"Recettes bancaires","RB",null,"Agneau","DA01",null,"Abonnement Canal Plus","DB01",null,"Autres dépenses horticoles","DH01",null,"Analyses","DM01",null,"Agrafes","DNA01",null,"Argent emprunté","RB01",null,"Mutuelle analyses","RM01",null,"Argent emprunté","RN01",null,{"$f":"\"Janvier\" & \" \" &$C$1","v":"Janvier 2023"},null,"Budget primitif dépenses alimentaires","BPDA",null,"Annuelle","PAB01",null,"1 aller et retour (Billets de train)","CAB01",null,"Agneau","DA01","Dépenses alimentaires",{"$f":"TabProduits[[#This Row],[Nom produit]]& TabProduits[[#This Row],[Libellé produit]]","v":"AgneauDépenses alimentaires"}]
["Article recette budgétaire","ARB",null,"Dépenses bancaires","DB",null,"Recettes médicales","RM",null,"Ananas","DA02",null,"Abonnement Canal Satellite","DB02",null,"Cache-pots","DH02",null,"Autres dépenses médicales","DM02",null,"Agrafeuses","DNA02",null,"Autres recettes bancaires","RB02",null,"Mutuelle autres recettes médicales","RM02",null,"Argent trouvé","RN02",null,{"$f":"\"Février\" & \" \" &$C$1","v":"Février 2023"},null,"Budget primitif dépenses bancaires","BPDB",null,"Bimensuelle","PAB02",null,"1 baguette pour 4 jours (Pain)","CAB02",null,"Ananas","DA02","Dépenses alimentaires",{"$f":"TabProduits[[#This Row],[Nom produit]]& TabProduits[[#This Row],[Libellé produit]]","v":"AnanasDépenses alimentaires"}]
[null,null,null,"Dépenses horticoles","DH",null,"Recettes numéraires","RN",null,"Apéritif","DA03",null,"Abonnement Coopanet (Banque française de crédit coopératif)","DB03",null,"Engrais","DH03",null,"Dentiste","DM03",null,"Ajax","DNA03",null,"Mutuelle bancaire","RB03",null,"Mutuelle dentiste","RM03",null,"Autres recettes numéraires","RN03",null,{"$f":"\"Mars\" & \" \" &$C$1","v":"Mars 2023"},null,"Budget primitif dépenses horticoles","BPDH",null,"Bimestrielle","PAB03",null,"1 bloc de 100 feuilles (papier à lettres)","CAB03",null,"Apéritif","DA03","Dépenses alimentaires",{"$f":"TabProduits[[#This Row],[Nom produit]]& TabProduits[[#This Row],[Libellé produit]]","v":"ApéritifDépenses alimentaires"}]
[null,null,null,"Dépenses médicales","DM",null,null,null,null,"Asperges","DA04",null,"Actions Caisse épargne","DB04",null,"Fleurs","DH04",null,"Docteur dermatologue","DM04",null,"Allume-gaz","DNA04",null,"Pension caisse nationale d'assurance vieillesse (CNAV)","RB04",null,"Mutuelle docteur dermatologue","RM04",null,"Déconsignation bouteille liquide cigarette éectronique NHOSS","RN04",null,{"$f":"\"Avril\" & \" \" & $C$1","v":"Avril 2023"},null,"Budget primitif dépenses médicales","BPDM",null,"Du 01 au 16 inclus de chaque mois","PAB04",null,"1 bocal ou 1 boîte pour 1 repas (Asperges)","CAB04",null,"Asperges","DA04","Dépenses alimentaires",{"$f":"TabProduits[[#This Row],[Nom produit]]& TabProduits[[#This Row],[Libellé produit]]","v":"AspergesDépenses alimentaires"}]
[null,null,null,"Dépenses non alimentaires","DNA",null,null,null,null,"Autres dépenses alimentaires","DA05",null,"Aspirateur","DB05",null,"Muguet","DH05",null,"Docteur généraliste","DM05",null,"Ampoules électriques","DNA05",null,"Pension caisse nationale des retraites des agents des collectivités locales (CNRACL)","RB05",null,"Mutuelle docteur généraliste","RM05",null,"Fidélité Carrefour","RN05",null,{"$f":"\"Mai\"& \" \" & $C$1","v":"Mai 2023"},null,"Budget primitif dépenses non alimentaires","BPDNA",null,"Du 17 au 24 inclus de chaque mois","PAB05",null,"1 boîte de 100 de 30 mm ou de 32 mm (Trombones)","CAB05",null,"Autres dépenses alimentaires","DA05","Dépenses alimentaires",{"$f":"TabProduits[[#This Row],[Nom produit]]& TabProduits[[#This Row],[Libellé produit]]","v":"Autres dépenses alimentairesDépenses alimentaires"}]
[null,null,null,"Recettes bancaires","RB",null,null,null,null,"Autres fruits","DA06",null,"Assurance accidents de la vie (Caisse épargne)","DB06",null,"Plantes","DH06",null,"Docteur ophtalmologiste","DM06",null,"Ampoules halogènes","DNA06",null,"Sécurité sociale","RB06",null,"Mutuelle docteur ophtalmologiste","RM06",null,"Fidélité FNAC","RN06",null,{"$f":"\"Juin\" & \" \"&$C$1","v":"Juin 2023"},null,"Budget primitif recettes bancaires","BPRB",null,"Du 25 au 31 inclus de chaque mois","PAB06",null,"1 boîte de 100 grammes (Élastiques)","CAB06",null,"Autres fruits","DA06","Dépenses alimentaires",{"$f":"TabProduits[[#This Row],[Nom produit]]& TabProduits[[#This Row],[Libellé produit]]","v":"Autres fruitsDépenses alimentaires"}]
[null,null,null,"Recettes médicales","RM",null,null,null,null,"Avocat légume","DA07",null,"Assurance incendie (Caisse épargne)","DB07",null,"Pots à fleurs","DH07",null,"Monture des lunettes","DM07",null,"Argent perdu","DNA07",null,null,null,null,"Mutuelle forfait monture des lunettes","RM07",null,"Fidélité Géant casino","RN07",null,{"$f":"\"Juillet\"&\" \"&$C$1","v":"Juillet 2023"},null,"Budget primitif recettes médicales","BPRM",null,"Hebdomadaire","PAB07",null,"1 boîte de 100 grammes ou de 200 grammes (50 ou 100 sachets). 3 sachets par jour (Thé)","CAB07",null,"Avocat légume","DA07","Dépenses alimentaires",{"$f":"TabProduits[[#This Row],[Nom produit]]& TabProduits[[#This Row],[Libellé produit]]","v":"Avocat légumeDépenses alimentaires"}]
[null,null,null,"Recettes numéraires","RN",null,null,null,null,"Avocats desserts","DA08",null,"Assurance protection juridique (Caisse épargne)","DB08",null,"Pots à plantes","DH08",null,"Pharmacie vignette blanche","DM08",null,"Argent perdu sur monnaie rendue","DNA08",null,null,null,null,"Mutuelle forfait verres des lunettes","RM08",null,"Fidélité GEMO","RN08",null,{"$f":"\"Août\"&\" \"&$C$1","v":"Août 2023"},null,"Budget primitif recettes numéraires","BPRN",null,"Journalière","PAB08",null,"1 boîte de 1000 agrafes 26/6 Esquisse Leclerc","CAB08",null,"Avocats desserts","DA08","Dépenses alimentaires",{"$f":"TabProduits[[#This Row],[Nom produit]]& TabProduits[[#This Row],[Libellé produit]]","v":"Avocats dessertsDépenses alimentaires"}]
[null,null,null,null,null,null,null,null,null,"Bananes desserts","DA09",null,"Autre matériel informatique","DB09",null,"Soucoupes","DH09",null,"Pharmacie vignette bleue","DM09",null,"Aspirateur","DNA09",null,null,null,null,"Mutuelle monture des lunettes","RM09",null,"Fidélité InterMarché","RN09",null,{"$f":"\"Septembre\"&\" \"&$C$1","v":"Septembre 2023"},null,"Budget décision modificative numéro une dépenses alimentaires","BDM1DA",null,"Mensuelle","PAB09",null,"1 boîte de 1000 grammes pour une durée indéterminée (Gros sel)","CAB09",null,"Bananes desserts","DA09","Dépenses alimentaires",{"$f":"TabProduits[[#This Row],[Nom produit]]& TabProduits[[#This Row],[Libellé produit]]","v":"Bananes dessertsDépenses alimentaires"}]
[null,null,null,null,null,null,null,null,null,"Bananes matin","DA10",null,"Autres dépenses bancaires","DB10",null,"Terre","DH10",null,"Pharmacie vignette orange","DM10",null,"Assouplissant pour le linge","DNA10",null,null,null,null,"Mutuelle pharmacie vignette blanche","RM10",null,"Fidélité Leclerc","RN10",null,{"$f":"\"Octobre\"&\" \"&$C$1","v":"Octobre 2023"},null,"Budget décision modificative numéro une dépenses bancaires","BDM1DB",null,"Selon les besoins","PAB10",null,"1 boîte de 1000 grammes. 336 pierres. 6 pierres par jour (Sucre petits morceaux)","CAB10",null,"Bananes matin","DA10","Dépenses alimentaires",{"$f":"TabProduits[[#This Row],[Nom produit]]& TabProduits[[#This Row],[Libellé produit]]","v":"Bananes matinDépenses alimentaires"}]
[null,null,null,null,null,null,null,null,null,"Betterave rouge","DA11",null,"Cadeaux","DB11",null,"Tuteurs","DH11",null,"Prélèvements","DM11",null,"Autre matériel informatique","DNA11",null,null,null,null,"Mutuelle pharmacie vignette bleue","RM11",null,"Remboursement argent prêté à des tiers","RN11",null,{"$f":"\"Novembre\"&\" \"&$C$1","v":"Novembre 2023"},null,"Budget décision modificative numéro une dépenses horticoles","BDM1DH",null,"Selon menu","PAB11",null,"1 boîte de 12, 24 ou 32 portions. 1 portion par soir. (Fromage soir)","CAB11",null,"Betterave rouge","DA11","Dépenses alimentaires",{"$f":"TabProduits[[#This Row],[Nom produit]]& TabProduits[[#This Row],[Libellé produit]]","v":"Betterave rougeDépenses alimentaires"}]
[null,null,null,null,null,null,null,null,null,"Beurre","DA12",null,"Carte amicale des locataires (Confédération nationale du logement)","DB12",null,null,null,null,"Radiographies","DM12",null,"Autres dépenses non alimentaires","DNA12",null,null,null,null,"Mutuelle pharmacie vignette orange","RM12",null,"Trop perçu sur monnaie rendue","RN12",null,{"$f":"\"Décembre\"&\" \"&$C$1","v":"Décembre 2023"},null,"Budget décision modificative numéro une dépenses médicales","BDM1DM",null,"Semestrielle","PAB12",null,"1 boîte de 2 capsules (Cigarettes électroniques Blu et Vype ePen 3)","CAB12",null,"Beurre","DA12","Dépenses alimentaires",{"$f":"TabProduits[[#This Row],[Nom produit]]& TabProduits[[#This Row],[Libellé produit]]","v":"BeurreDépenses alimentaires"}]
[null,null,null,null,null,null,null,null,null,"Bifteck haché de bœuf","DA13",null,"Cocotte minute","DB13",null,null,null,null,"Verres des lunettes","DM13",null,"Autres étrennes à répartir","DNA13",null,null,null,null,"Mutuelle prélèvements","RM13",null,"Virements de fonds","RN13",null,{"$f":"\"Année\" &\" \"&$C$1","v":"Année 2023"},null,"Budget décision modificative numéro une dépenses non alimentaires","BDM1DNA",null,"Tous les 4 jours","PAB13",null,"1 boîte de 3 pods (Cigarettes électroniques NHOSS)","CAB13",null,"Bifteck haché de bœuf","DA13","Dépenses alimentaires",{"$f":"TabProduits[[#This Row],[Nom produit]]& TabProduits[[#This Row],[Libellé produit]]","v":"Bifteck haché de bœufDépenses alimentaires"}]
[null,null,null,null,null,null,null,null,null,"Bifteck haché de cheval","DA14",null,"Congélateur","DB14",null,null,null,null,null,null,null,"Balais","DNA14",null,null,null,null,"Mutuelle radiographies","RM14",null,null,null,null,null,null,"Budget décision modificative numéro une recettes bancaires","BDM1RB",null,"Tous les 4 mois","PAB14",null,"1 boîte de 30 mètres x 29 cm (Papier aluminium)","CAB14",null,"Bifteck haché de cheval","DA14","Dépenses alimentaires",{"$f":"TabProduits[[#This Row],[Nom produit]]& TabProduits[[#This Row],[Libellé produit]]","v":"Bifteck haché de chevalDépenses alimentaires"}]
[null,null,null,null,null,null,null,null,null,"Bifteck haché de veau","DA15",null,"Cuisinière","DB15",null,null,null,null,null,null,null,"Balayette pour cuvette W.C. (y compris récipient)","DNA15",null,null,null,null,"Mutuelle verres des lunettes","RM15",null,null,null,null,null,null,"Budget décision modificative numéro une recettes médicales","BDM1RM",null,"Trimestrielle","PAB15",null,"1 boîte de 5 ou 10 carnets à 100 feuilles pour chaque carnet (Feuilles à cigarettes)","CAB15",null,"Bifteck haché de veau","DA15","Dépenses alimentaires",{"$f":"TabProduits[[#This Row],[Nom produit]]& TabProduits[[#This Row],[Libellé produit]]","v":"Bifteck haché de veauDépenses alimentaires"}]
[null,null,null,null,null,null,null,null,null,"Bœuf","DA16",null,"Électricité","DB16",null,null,null,null,null,null,null,"Billets de tombola","DNA16",null,null,null,null,"Sécurité sociale analyses","RM16",null,null,null,null,null,null,"Budget décision modificative numéro une recettes numéraires","BDM1RN",null,null,null,null,"1 boîte de 500 grammes pour une durée indéterminée (Sel fin)","CAB16",null,"Bœuf","DA16","Dépenses alimentaires",{"$f":"TabProduits[[#This Row],[Nom produit]]& TabProduits[[#This Row],[Libellé produit]]","v":"BœufDépenses alimentaires"}]
[null,null,null,null,null,null,null,null,null,"Bonbons","DA17",null,"Four à micro-ondes","DB17",null,null,null,null,null,null,null,"Billets de train","DNA17",null,null,null,null,"Sécurité sociale autres recettes médicales","RM17",null,null,null,null,null,null,"Budget décision modificative numéro deux dépenses alimentaires","BDM2DA",null,null,null,null,"1 boîte de 6 œufs. 3 œufs pour 1 repas","CAB17",null,"Bonbons","DA17","Dépenses alimentaires",{"$f":"TabProduits[[#This Row],[Nom produit]]& TabProduits[[#This Row],[Libellé produit]]","v":"BonbonsDépenses alimentaires"}]
[null,null,null,null,null,null,null,null,null,"Bouchée à la reine","DA18",null,"Friteuse électrique","DB18",null,null,null,null,null,null,null,"Blouses (maison et ménage)","DNA18",null,null,null,null,"Sécurité sociale dentiste","RM18",null,null,null,null,null,null,"Budget décision modificative numéro deux dépenses bancaires","BDM2DB",null,null,null,null,"1 boîte de 750 grammes pour une durée indéterminée (Lait en poudre écrémé)","CAB18",null,"Bouchée à la reine","DA18","Dépenses alimentaires",{"$f":"TabProduits[[#This Row],[Nom produit]]& TabProduits[[#This Row],[Libellé produit]]","v":"Bouchée à la reineDépenses alimentaires"}]
[null,null,null,null,null,null,null,null,null,"Boudin","DA19",null,"Friteuse gaz","DB19",null,null,null,null,null,null,null,"Bobines papier machine à calculer","DNA19",null,null,null,null,"Sécurité sociale docteur dermatologue","RM19",null,null,null,null,null,null,"Budget décision modificative numéro deux dépenses horticoles","BDM2DH",null,null,null,null,"1 boîte de 8 parts soit 800 grammes. 1 par repas. (Quiche lorraine)","CAB19",null,"Boudin","DA19","Dépenses alimentaires",{"$f":"TabProduits[[#This Row],[Nom produit]]& TabProduits[[#This Row],[Libellé produit]]","v":"BoudinDépenses alimentaires"}]
[null,null,null,null,null,null,null,null,null,"Café","DA20",null,"Gaz","DB20",null,null,null,null,null,null,null,"Bouchons évier","DNA20",null,null,null,null,"Sécurité sociale docteur généraliste","RM20",null,null,null,null,null,null,"Budget décision modificative numéro deux dépenses médicales","BDM2DM",null,null,null,null,"1 boîte ou 1 flacon pour 1 repas","CAB20",null,"Café","DA20","Dépenses alimentaires",{"$f":"TabProduits[[#This Row],[Nom produit]]& TabProduits[[#This Row],[Libellé produit]]","v":"CaféDépenses alimentaires"}]
[null,null,null,null,null,null,null,null,null,"Carottes","DA21",null,"Graveur compact-disc informatique","DB21",null,null,null,null,null,null,null,"Bouchons lavabo","DNA21",null,null,null,null,"Sécurité sociale docteur ophtalmologiste","RM21",null,null,null,null,null,null,"Budget décision modificative numéro deux dépenses non alimentaires","BDM2DNA",null,null,null,null,"1 boîte par dimanche midi et jours fériés. (Gâteaux apéritif)","CAB21",null,"Carottes","DA21","Dépenses alimentaires",{"$f":"TabProduits[[#This Row],[Nom produit]]& TabProduits[[#This Row],[Libellé produit]]","v":"CarottesDépenses alimentaires"}]
[null,null,null,null,null,null,null,null,null,"Cassoulet","DA22",null,"Graveur compact-disc vidéo","DB22",null,null,null,null,null,null,null,"Bougies","DNA22",null,null,null,null,"Sécurité sociale monture des lunettes","RM22",null,null,null,null,null,null,"Budget décision modificative numéro deux recettes bancaires","BDM2RB",null,null,null,null,"1 boîte pour 1 repas","CAB22",null,"Cassoulet","DA22","Dépenses alimentaires",{"$f":"TabProduits[[#This Row],[Nom produit]]& TabProduits[[#This Row],[Libellé produit]]","v":"CassouletDépenses alimentaires"}]
[null,null,null,null,null,null,null,null,null,"Céleri","DA23",null,"Impôts locaux","DB23",null,null,null,null,null,null,null,"Bouteilles thermos","DNA23",null,null,null,null,"Sécurité sociale pharmacie vignette blanche","RM23",null,null,null,null,null,null,"Budget décision modificative numéro deux recettes médicales","BDM2RM",null,null,null,null,"1 boîte pour 2 repas","CAB23",null,"Céleri","DA23","Dépenses alimentaires",{"$f":"TabProduits[[#This Row],[Nom produit]]& TabProduits[[#This Row],[Libellé produit]]","v":"CéleriDépenses alimentaires"}]
[null,null,null,null,null,null,null,null,null,"Cervelas","DA24",null,"Impôts sur le revenu des personnes physiques","DB24",null,null,null,null,null,null,null,"Boutons","DNA24",null,null,null,null,"Sécurité sociale pharmacie vignette bleue","RM24",null,null,null,null,null,null,"Budget décision modificative numéro deux recettes numéraires","BDM2RN",null,null,null,null,"1 botte ou 1 sachet pour deux repas (Radis LMR)","CAB24",null,"Cervelas","DA24","Dépenses alimentaires",{"$f":"TabProduits[[#This Row],[Nom produit]]& TabProduits[[#This Row],[Libellé produit]]","v":"CervelasDépenses alimentaires"}]
[null,null,null,null,null,null,null,null,null,"Champignons","DA25",null,"Imprimantes","DB25",null,null,null,null,null,null,null,"Briquets","DNA25",null,null,null,null,"Sécurité sociale pharmacie vignette orange","RM25",null,null,null,null,null,null,"Budget mensuel dépenses alimentaires","BMDA",null,null,null,null,"1 botte ou 1 sachet pour un repas (Radis LSV)","CAB25",null,"Champignons","DA25","Dépenses alimentaires",{"$f":"TabProduits[[#This Row],[Nom produit]]& TabProduits[[#This Row],[Libellé produit]]","v":"ChampignonsDépenses alimentaires"}]
[null,null,null,null,null,null,null,null,null,"Cheval","DA26",null,"Livres bibliophiles","DB26",null,null,null,null,null,null,null,"Brise-jets","DNA26",null,null,null,null,"Sécurité sociale prélèvements","RM26",null,null,null,null,null,null,"Budget mensuel dépenses bancaires","BMDB",null,null,null,null,"1 bouquet","CAB26",null,"Cheval","DA26","Dépenses alimentaires",{"$f":"TabProduits[[#This Row],[Nom produit]]& TabProduits[[#This Row],[Libellé produit]]","v":"ChevalDépenses alimentaires"}]
[null,null,null,null,null,null,null,null,null,"Chips","DA27",null,"Livres informatiques","DB27",null,null,null,null,null,null,null,"Brosses à dents","DNA27",null,null,null,null,"Sécurité sociale radiographies","RM27",null,null,null,null,null,null,"Budget mensuel dépenses horticoles","BMDH",null,null,null,null,"1 bouteille de 10 millilitres (Cigarettes électroniques NHOSS)","CAB27",null,"Chips","DA27","Dépenses alimentaires",{"$f":"TabProduits[[#This Row],[Nom produit]]& TabProduits[[#This Row],[Libellé produit]]","v":"ChipsDépenses alimentaires"}]
[null,null,null,null,null,null,null,null,null,"Chocolat","DA28",null,"Logiciels informatiques","DB28",null,null,null,null,null,null,null,"Câbles imprimantes","DNA28",null,null,null,null,"Sécurité sociale verres des lunettes","RM28",null,null,null,null,null,null,"Budget mensuel dépenses médicales","BMDM",null,null,null,null,"1 bouteille de 100 centilitres (Huile, Vinaigre assaisonnement)","CAB28",null,"Chocolat","DA28","Dépenses alimentaires",{"$f":"TabProduits[[#This Row],[Nom produit]]& TabProduits[[#This Row],[Libellé produit]]","v":"ChocolatDépenses alimentaires"}]
[null,null,null,null,null,null,null,null,null,"Choucroute","DA29",null,"Loyer et charges","DB29",null,null,null,null,null,null,null,"Câbles réseau","DNA29",null,null,null,null,null,null,null,null,null,null,null,null,"Budget mensuel dépenses non alimentaires","BMDNA",null,null,null,null,"1 bouteille de 100 centilitres (Savon noir, Vinaigre anticalcaire)","CAB29",null,"Choucroute","DA29","Dépenses alimentaires",{"$f":"TabProduits[[#This Row],[Nom produit]]& TabProduits[[#This Row],[Libellé produit]]","v":"ChoucrouteDépenses alimentaires"}]
[null,null,null,null,null,null,null,null,null,"Chou-fleur","DA30",null,"Machine à laver","DB30",null,null,null,null,null,null,null,"Cadeaux","DNA30",null,null,null,null,null,null,null,null,null,null,null,null,"Budget mensuel recettes bancaires","BMRB",null,null,null,null,"1 bouteille de 100 millilitres","CAB30",null,"Chou-fleur","DA30","Dépenses alimentaires",{"$f":"TabProduits[[#This Row],[Nom produit]]& TabProduits[[#This Row],[Libellé produit]]","v":"Chou-fleurDépenses alimentaires"}]
[null,null,null,null,null,null,null,null,null,"Choux de Bruxelles","DA31",null,"Magnétoscope","DB31",null,null,null,null,null,null,null,"Cahiers","DNA31",null,null,null,null,null,null,null,null,null,null,null,null,"Budget mensuel recettes médicales","BMRM",null,null,null,null,"1 bouteille de 150 centilitres (Coca-cola, Eau)","CAB31",null,"Choux de Bruxelles","DA31","Dépenses alimentaires",{"$f":"TabProduits[[#This Row],[Nom produit]]& TabProduits[[#This Row],[Libellé produit]]","v":"Choux de BruxellesDépenses alimentaires"}]
[null,null,null,null,null,null,null,null,null,"Clémentines","DA32",null,"Mutuelle","DB32",null,null,null,null,null,null,null,"Carte amicale des locataires (Confédération nationale du logement)","DNA32",null,null,null,null,null,null,null,null,null,null,null,null,"Budget mensuel recettes numéraires","BMRN",null,null,null,null,"1 bouteille de 75 centilitres (Apéritif)","CAB32",null,"Clémentines","DA32","Dépenses alimentaires",{"$f":"TabProduits[[#This Row],[Nom produit]]& TabProduits[[#This Row],[Libellé produit]]","v":"ClémentinesDépenses alimentaires"}]
[null,null,null,null,null,null,null,null,null,"Coca-cola","DA33",null,"Ordinateurs de bureau","DB33",null,null,null,null,null,null,null,"Cartes d'anniversaire","DNA33",null,null,null,null,null,null,null,null,null,null,null,null,"Budgets primitifs","BP",null,null,null,null,"1 branche pour 1 repas (Céleri)","CAB33",null,"Coca-cola","DA33","Dépenses alimentaires",{"$f":"TabProduits[[#This Row],[Nom produit]]& TabProduits[[#This Row],[Libellé produit]]","v":"Coca-colaDépenses alimentaires"}]
[null,null,null,null,null,null,null,null,null,"Cœur","DA34",null,"Ordinateurs portables","DB34",null,null,null,null,null,null,null,"Cartes de fête","DNA34",null,null,null,null,null,null,null,null,null,null,null,null,"Budgets mensuels","BM",null,null,null,null,"1 cahier de 100 feuilles (Cigarettes)","CAB34",null,"Cœur","DA34","Dépenses alimentaires",{"$f":"TabProduits[[#This Row],[Nom produit]]& TabProduits[[#This Row],[Libellé produit]]","v":"CœurDépenses alimentaires"}]
[null,null,null,null,null,null,null,null,null,"Concombre","DA35",null,"Protection de la maison (Protection 24)","DB35",null,null,null,null,null,null,null,"Cartes de vacances","DNA35",null,null,null,null,null,null,null,null,null,null,null,null,"Budgets DM1","BDM1",null,null,null,null,"1 carnet de 10 billets (Billets de tombola)","CAB35",null,"Concombre","DA35","Dépenses alimentaires",{"$f":"TabProduits[[#This Row],[Nom produit]]& TabProduits[[#This Row],[Libellé produit]]","v":"ConcombreDépenses alimentaires"}]
[null,null,null,null,null,null,null,null,null,"Confiture","DA36",null,"Rasoir électrique","DB36",null,null,null,null,null,null,null,"Cartes de vœux","DNA36",null,null,null,null,null,null,null,null,null,null,null,null,"Budgets dm2","BDM2",null,null,null,null,"1 carnet de 10 tickets : en plus ou en moins (Tickets de bus, de métro, de RER, tous transports, timbres poste)","CAB36",null,"Confiture","DA36","Dépenses alimentaires",{"$f":"TabProduits[[#This Row],[Nom produit]]& TabProduits[[#This Row],[Libellé produit]]","v":"ConfitureDépenses alimentaires"}]
[null,null,null,null,null,null,null,null,null,"Couscous","DA37",null,"Redevance télévision","DB37",null,null,null,null,null,null,null,"Cartouches imprimantes","DNA37",null,null,null,null,null,null,null,null,null,null,null,null,null,null,null,null,null,null,"1 cartouche de 10 paquets (maximum mensuel; tabac pour les cigarettes)","CAB37",null,"Couscous","DA37","Dépenses alimentaires",{"$f":"TabProduits[[#This Row],[Nom produit]]& TabProduits[[#This Row],[Libellé produit]]","v":"CouscousDépenses alimentaires"}]
[null,null,null,null,null,null,null,null,null,"Crème","DA38",null,"Réfrigérateur","DB38",null,null,null,null,null,null,null,"Cartouches stylos-plume","DNA38",null,null,null,null,null,null,null,null,null,null,null,null,null,null,null,null,null,null,"1 cornet à 2 boules pendant l'été (Glaces)","CAB38",null,"Crème","DA38","Dépenses alimentaires",{"$f":"TabProduits[[#This Row],[Nom produit]]& TabProduits[[#This Row],[Libellé produit]]","v":"CrèmeDépenses alimentaires"}]
[null,null,null,null,null,null,null,null,null,"Croque-monsieur","DA39",null,"Réparations","DB39",null,null,null,null,null,null,null,"Casseroles","DNA39",null,null,null,null,null,null,null,null,null,null,null,null,null,null,null,null,null,null,"1 flacon de ? (vitres)","CAB39",null,"Croque-monsieur","DA39","Dépenses alimentaires",{"$f":"TabProduits[[#This Row],[Nom produit]]& TabProduits[[#This Row],[Libellé produit]]","v":"Croque-monsieurDépenses alimentaires"}]
[null,null,null,null,null,null,null,null,null,"Dattes","DA40",null,"Restaurant","DB40",null,null,null,null,null,null,null,"Cassettes dictaphone","DNA40",null,null,null,null,null,null,null,null,null,null,null,null,null,null,null,null,null,null,"1 flacon de 10 millilitres (Vernis à ongles)","CAB40",null,"Dattes","DA40","Dépenses alimentaires",{"$f":"TabProduits[[#This Row],[Nom produit]]& TabProduits[[#This Row],[Libellé produit]]","v":"DattesDépenses alimentaires"}]
[null,null,null,null,null,null,null,null,null,"Dinde","DA41",null,"Téléphone fixe","DB41",null,null,null,null,null,null,null,"Cassettes vidéo","DNA41",null,null,null,null,null,null,null,null,null,null,null,null,null,null,null,null,null,null,"1 flacon de 100 centilitres","CAB41",null,"Dinde","DA41","Dépenses alimentaires",{"$f":"TabProduits[[#This Row],[Nom produit]]& TabProduits[[#This Row],[Libellé produit]]","v":"DindeDépenses alimentaires"}]
[null,null,null,null,null,null,null,null,null,"Eau","DA42",null,"Téléphone orange","DB42",null,null,null,null,null,null,null,"Cendriers","DNA42",null,null,null,null,null,null,null,null,null,null,null,null,null,null,null,null,null,null,"1 flacon de 100 millitres (Déodorant corporel : en plus ou en moins, Eau de toilette)","CAB42",null,"Eau","DA42","Dépenses alimentaires",{"$f":"TabProduits[[#This Row],[Nom produit]]& TabProduits[[#This Row],[Libellé produit]]","v":"EauDépenses alimentaires"}]
[null,null,null,null,null,null,null,null,null,"Endives","DA43",null,"Téléphone portable et Inernet","DB43",null,null,null,null,null,null,null,"Chaussettes","DNA43",null,null,null,null,null,null,null,null,null,null,null,null,null,null,null,null,null,null,"1 flacon de 125 millilitres (Essence briquets Zippo)","CAB43",null,"Endives","DA43","Dépenses alimentaires",{"$f":"TabProduits[[#This Row],[Nom produit]]& TabProduits[[#This Row],[Libellé produit]]","v":"EndivesDépenses alimentaires"}]
[null,null,null,null,null,null,null,null,null,"Figues","DA44",null,"Télévision","DB44",null,null,null,null,null,null,null,"Chaussons","DNA44",null,null,null,null,null,null,null,null,null,null,null,null,null,null,null,null,null,null,"1 flacon de 150 centilitres (Produit liquide plancher, Produit liquide vaisselle)","CAB44",null,"Figues","DA44","Dépenses alimentaires",{"$f":"TabProduits[[#This Row],[Nom produit]]& TabProduits[[#This Row],[Libellé produit]]","v":"FiguesDépenses alimentaires"}]
[null,null,null,null,null,null,null,null,null,"Foie","DA45",null,"Vacances","DB45",null,null,null,null,null,null,null,"Chaussures","DNA45",null,null,null,null,null,null,null,null,null,null,null,null,null,null,null,null,null,null,"1 flacon de 20 millilitres (Corrector liquide)","CAB45",null,"Foie","DA45","Dépenses alimentaires",{"$f":"TabProduits[[#This Row],[Nom produit]]& TabProduits[[#This Row],[Libellé produit]]","v":"FoieDépenses alimentaires"}]
[null,null,null,null,null,null,null,null,null,"Frites","DA46",null,"Virements de fonds","DB46",null,null,null,null,null,null,null,"Chiffon à épousseter","DNA46",null,null,null,null,null,null,null,null,null,null,null,null,null,null,null,null,null,null,"1 flacon de 200 centilitres","CAB46",null,"Frites","DA46","Dépenses alimentaires",{"$f":"TabProduits[[#This Row],[Nom produit]]& TabProduits[[#This Row],[Libellé produit]]","v":"FritesDépenses alimentaires"}]
[null,null,null,null,null,null,null,null,null,"Fromage blanc desserts","DA47",null,null,null,null,null,null,null,null,null,null,"Cigarettes déjà roulées","DNA47",null,null,null,null,null,null,null,null,null,null,null,null,null,null,null,null,null,null,"1 flacon de 200 millilitres","CAB47",null,"Fromage blanc desserts","DA47","Dépenses alimentaires",{"$f":"TabProduits[[#This Row],[Nom produit]]& TabProduits[[#This Row],[Libellé produit]]","v":"Fromage blanc dessertsDépenses alimentaires"}]
[null,null,null,null,null,null,null,null,null,"Fromage blanc matin","DA48",null,null,null,null,null,null,null,null,null,null,"Cigarettes électroniques","DNA48",null,null,null,null,null,null,null,null,null,null,null,null,null,null,null,null,null,null,"1 flacon de 2000 millilitres Hyperdou Leclerc (Assouplissant pour le linge)","CAB48",null,"Fromage blanc matin","DA48","Dépenses alimentaires",{"$f":"TabProduits[[#This Row],[Nom produit]]& TabProduits[[#This Row],[Libellé produit]]","v":"Fromage blanc matinDépenses alimentaires"}]
[null,null,null,null,null,null,null,null,null,"Fromage de tête","DA49",null,null,null,null,null,null,null,null,null,null,"Cinéma","DNA49",null,null,null,null,null,null,null,null,null,null,null,null,null,null,null,null,null,null,"1 flacon de 250 millilitres (Gaz briquets Laguiole et Dupont)","CAB49",null,"Fromage de tête","DA49","Dépenses alimentaires",{"$f":"TabProduits[[#This Row],[Nom produit]]& TabProduits[[#This Row],[Libellé produit]]","v":"Fromage de têteDépenses alimentaires"}]
[null,null,null,null,null,null,null,null,null,"Fromage râpé","DA50",null,null,null,null,null,null,null,null,null,null,"Cirage","DNA50",null,null,null,null,null,null,null,null,null,null,null,null,null,null,null,null,null,null,"1 flacon de 3 litres","CAB50",null,"Fromage râpé","DA50","Dépenses alimentaires",{"$f":"TabProduits[[#This Row],[Nom produit]]& TabProduits[[#This Row],[Libellé produit]]","v":"Fromage râpéDépenses alimentaires"}]
[null,null,null,null,null,null,null,null,null,"Fromage soir","DA51",null,null,null,null,null,null,null,null,null,null,"Cirque","DNA51",null,null,null,null,null,null,null,null,null,null,null,null,null,null,null,null,null,null,"1 flacon de 300 millilitres (Gaz allume-gaz, O'CÉDAR)","CAB51",null,"Fromage soir","DA51","Dépenses alimentaires",{"$f":"TabProduits[[#This Row],[Nom produit]]& TabProduits[[#This Row],[Libellé produit]]","v":"Fromage soirDépenses alimentaires"}]
[null,null,null,null,null,null,null,null,null,"Fruits au sirop","DA52",null,null,null,null,null,null,null,null,null,null,"Ciseaux","DNA52",null,null,null,null,null,null,null,null,null,null,null,null,null,null,null,null,null,null,"1 flacon de 400 millilitres (Insecticide, Pétrole Hahn, Shampooing)","CAB52",null,"Fruits au sirop","DA52","Dépenses alimentaires",{"$f":"TabProduits[[#This Row],[Nom produit]]& TabProduits[[#This Row],[Libellé produit]]","v":"Fruits au siropDépenses alimentaires"}]
[null,null,null,null,null,null,null,null,null,"Fruits de saison","DA53",null,null,null,null,null,null,null,null,null,null,"Claviers ordinateurs de bureau","DNA53",null,null,null,null,null,null,null,null,null,null,null,null,null,null,null,null,null,null,"1 flacon de 500 millilitres (Décap'four)","CAB53",null,"Fruits de saison","DA53","Dépenses alimentaires",{"$f":"TabProduits[[#This Row],[Nom produit]]& TabProduits[[#This Row],[Libellé produit]]","v":"Fruits de saisonDépenses alimentaires"}]
[null,null,null,null,null,null,null,null,null,"Gâteau de riz","DA54",null,null,null,null,null,null,null,null,null,null,"Clenches","DNA54",null,null,null,null,null,null,null,null,null,null,null,null,null,null,null,null,null,null,"1 flacon de 6 pierres (Pierres à briquets Zippo)","CAB54",null,"Gâteau de riz","DA54","Dépenses alimentaires",{"$f":"TabProduits[[#This Row],[Nom produit]]& TabProduits[[#This Row],[Libellé produit]]","v":"Gâteau de rizDépenses alimentaires"}]
[null,null,null,null,null,null,null,null,null,"Gâteau de semoule","DA55",null,null,null,null,null,null,null,null,null,null,"Cocotte minute","DNA55",null,null,null,null,null,null,null,null,null,null,null,null,null,null,null,null,null,null,"1 flacon de 750 grammes (Ajax)","CAB55",null,"Gâteau de semoule","DA55","Dépenses alimentaires",{"$f":"TabProduits[[#This Row],[Nom produit]]& TabProduits[[#This Row],[Libellé produit]]","v":"Gâteau de semouleDépenses alimentaires"}]
[null,null,null,null,null,null,null,null,null,"Gâteaux apéritif","DA56",null,null,null,null,null,null,null,null,null,null,"Coiffeur","DNA56",null,null,null,null,null,null,null,null,null,null,null,null,null,null,null,null,null,null,"1 flacon de 750 millilitres (Destop, Détartrant water-closets)","CAB56",null,"Gâteaux apéritif","DA56","Dépenses alimentaires",{"$f":"TabProduits[[#This Row],[Nom produit]]& TabProduits[[#This Row],[Libellé produit]]","v":"Gâteaux apéritifDépenses alimentaires"}]
[null,null,null,null,null,null,null,null,null,"Gâteaux samedi et dimanche","DA57",null,null,null,null,null,null,null,null,null,null,"Colle SUPERGLUE-3","DNA57",null,null,null,null,null,null,null,null,null,null,null,null,null,null,null,null,null,null,"1 flacon engrais universel KB d'1 litre","CAB57",null,"Gâteaux samedi et dimanche","DA57","Dépenses alimentaires",{"$f":"TabProduits[[#This Row],[Nom produit]]& TabProduits[[#This Row],[Libellé produit]]","v":"Gâteaux samedi et dimancheDépenses alimentaires"}]
[null,null,null,null,null,null,null,null,null,"Glaces","DA58",null,null,null,null,null,null,null,null,null,null,"Collectes","DNA58",null,null,null,null,null,null,null,null,null,null,null,null,null,null,null,null,null,null,"1 flacon Xéor de 2500 millilitres (Lessive pour le linge)","CAB58",null,"Glaces","DA58","Dépenses alimentaires",{"$f":"TabProduits[[#This Row],[Nom produit]]& TabProduits[[#This Row],[Libellé produit]]","v":"GlacesDépenses alimentaires"}]
[null,null,null,null,null,null,null,null,null,"Gros sel","DA59",null,null,null,null,null,null,null,null,null,null,"Compact disc rom informatique","DNA59",null,null,null,null,null,null,null,null,null,null,null,null,null,null,null,null,null,null,"1 morceau de 400 grammes ou 300 grammes pour 3 repas (Saucisson Leclerc)","CAB59",null,"Gros sel","DA59","Dépenses alimentaires",{"$f":"TabProduits[[#This Row],[Nom produit]]& TabProduits[[#This Row],[Libellé produit]]","v":"Gros selDépenses alimentaires"}]
[null,null,null,null,null,null,null,null,null,"Haricots verts","DA60",null,null,null,null,null,null,null,null,null,null,"Compact disc rom vidéo","DNA60",null,null,null,null,null,null,null,null,null,null,null,null,null,null,null,null,null,null,"1 morceau de 500 grammes pour 5 repas (les cinq rôtis)","CAB60",null,"Haricots verts","DA60","Dépenses alimentaires",{"$f":"TabProduits[[#This Row],[Nom produit]]& TabProduits[[#This Row],[Libellé produit]]","v":"Haricots vertsDépenses alimentaires"}]
[null,null,null,null,null,null,null,null,null,"Huile","DA61",null,null,null,null,null,null,null,null,null,null,"Congélateur","DNA61",null,null,null,null,null,null,null,null,null,null,null,null,null,null,null,null,null,null,"1 pack de 10 bobines 1 pli offset 60 grammes 57x60x12 (Calculette)","CAB61",null,"Huile","DA61","Dépenses alimentaires",{"$f":"TabProduits[[#This Row],[Nom produit]]& TabProduits[[#This Row],[Libellé produit]]","v":"HuileDépenses alimentaires"}]
[null,null,null,null,null,null,null,null,null,"Jambon","DA62",null,null,null,null,null,null,null,null,null,null,"Corrector liquide","DNA62",null,null,null,null,null,null,null,null,null,null,null,null,null,null,null,null,null,null,"1 pack de 10 enveloppes déjà timbrées ou de 100 enveloppes non timbrées","CAB62",null,"Jambon","DA62","Dépenses alimentaires",{"$f":"TabProduits[[#This Row],[Nom produit]]& TabProduits[[#This Row],[Libellé produit]]","v":"JambonDépenses alimentaires"}]
[null,null,null,null,null,null,null,null,null,"Jambonneau","DA63",null,null,null,null,null,null,null,null,null,null,"Couteau électrique","DNA63",null,null,null,null,null,null,null,null,null,null,null,null,null,null,null,null,null,null,"1 pack de 10 stylos à bille (encres noire et rouge; en plus ou en moins)","CAB63",null,"Jambonneau","DA63","Dépenses alimentaires",{"$f":"TabProduits[[#This Row],[Nom produit]]& TabProduits[[#This Row],[Libellé produit]]","v":"JambonneauDépenses alimentaires"}]
[null,null,null,null,null,null,null,null,null,"Lait","DA64",null,null,null,null,null,null,null,null,null,null,"Couvercles casseroles","DNA64",null,null,null,null,null,null,null,null,null,null,null,null,null,null,null,null,null,null,"1 pack de 100 cure-dents","CAB64",null,"Lait","DA64","Dépenses alimentaires",{"$f":"TabProduits[[#This Row],[Nom produit]]& TabProduits[[#This Row],[Libellé produit]]","v":"LaitDépenses alimentaires"}]
[null,null,null,null,null,null,null,null,null,"Légumes de couscous","DA65",null,null,null,null,null,null,null,null,null,null,"Crayons à papier","DNA65",null,null,null,null,null,null,null,null,null,null,null,null,null,null,null,null,null,null,"1 pack de 100 sacs (Sacs poubelle)","CAB65",null,"Légumes de couscous","DA65","Dépenses alimentaires",{"$f":"TabProduits[[#This Row],[Nom produit]]& TabProduits[[#This Row],[Libellé produit]]","v":"Légumes de couscousDépenses alimentaires"}]
[null,null,null,null,null,null,null,null,null,"Macédoine de légumes","DA66",null,null,null,null,null,null,null,null,null,null,"Crochets tringles","DNA66",null,null,null,null,null,null,null,null,null,null,null,null,null,null,null,null,null,null,"1 pack de 12 cartouches stylos-plume (en plus ou en moins)","CAB66",null,"Macédoine de légumes","DA66","Dépenses alimentaires",{"$f":"TabProduits[[#This Row],[Nom produit]]& TabProduits[[#This Row],[Libellé produit]]","v":"Macédoine de légumesDépenses alimentaires"}]
[null,null,null,null,null,null,null,null,null,"Maïs","DA67",null,null,null,null,null,null,null,null,null,null,"Cuisinière","DNA67",null,null,null,null,null,null,null,null,null,null,null,null,null,null,null,null,null,null,"1 pack de 12 pots. 1 pot par matin (yaourts matin)","CAB67",null,"Maïs","DA67","Dépenses alimentaires",{"$f":"TabProduits[[#This Row],[Nom produit]]& TabProduits[[#This Row],[Libellé produit]]","v":"MaïsDépenses alimentaires"}]
[null,null,null,null,null,null,null,null,null,"Mortadelle","DA68",null,null,null,null,null,null,null,null,null,null,"Cure-dents","DNA68",null,null,null,null,null,null,null,null,null,null,null,null,null,null,null,null,null,null,"1 pack de 12 rouleaux (Papier hygiénique. En plus ou en moins)","CAB68",null,"Mortadelle","DA68","Dépenses alimentaires",{"$f":"TabProduits[[#This Row],[Nom produit]]& TabProduits[[#This Row],[Libellé produit]]","v":"MortadelleDépenses alimentaires"}]
[null,null,null,null,null,null,null,null,null,"Mousse au chocolat","DA69",null,null,null,null,null,null,null,null,null,null,"Dateur","DNA69",null,null,null,null,null,null,null,null,null,null,null,null,null,null,null,null,null,null,"1 pack de 16 pots. 1 pot par matin (Yaourts matin)","CAB69",null,"Mousse au chocolat","DA69","Dépenses alimentaires",{"$f":"TabProduits[[#This Row],[Nom produit]]& TabProduits[[#This Row],[Libellé produit]]","v":"Mousse au chocolatDépenses alimentaires"}]
[null,null,null,null,null,null,null,null,null,"Œufs","DA70",null,null,null,null,null,null,null,null,null,null,"Décap'four","DNA70",null,null,null,null,null,null,null,null,null,null,null,null,null,null,null,null,null,null,"1 pack de 2 crochets (Crochets tringles)","CAB70",null,"Œufs","DA70","Dépenses alimentaires",{"$f":"TabProduits[[#This Row],[Nom produit]]& TabProduits[[#This Row],[Libellé produit]]","v":"ŒufsDépenses alimentaires"}]
[null,null,null,null,null,null,null,null,null,"Oranges","DA71",null,null,null,null,null,null,null,null,null,null,"Dentifrice","DNA71",null,null,null,null,null,null,null,null,null,null,null,null,null,null,null,null,null,null,"1 pack de 2 éponges","CAB71",null,"Oranges","DA71","Dépenses alimentaires",{"$f":"TabProduits[[#This Row],[Nom produit]]& TabProduits[[#This Row],[Libellé produit]]","v":"OrangesDépenses alimentaires"}]
[null,null,null,null,null,null,null,null,null,"Paella","DA72",null,null,null,null,null,null,null,null,null,null,"Déodorant corporel","DNA72",null,null,null,null,null,null,null,null,null,null,null,null,null,null,null,null,null,null,"1 pack de 2 loqueteaux","CAB72",null,"Paella","DA72","Dépenses alimentaires",{"$f":"TabProduits[[#This Row],[Nom produit]]& TabProduits[[#This Row],[Libellé produit]]","v":"PaellaDépenses alimentaires"}]
[null,null,null,null,null,null,null,null,null,"Pain","DA73",null,null,null,null,null,null,null,null,null,null,"Déodorant maison","DNA73",null,null,null,null,null,null,null,null,null,null,null,null,null,null,null,null,null,null,"1 pack de 2 paires (Lacets)","CAB73",null,"Pain","DA73","Dépenses alimentaires",{"$f":"TabProduits[[#This Row],[Nom produit]]& TabProduits[[#This Row],[Libellé produit]]","v":"PainDépenses alimentaires"}]
[null,null,null,null,null,null,null,null,null,"Pâtes à la sauce tomates","DA74",null,null,null,null,null,null,null,null,null,null,"Dessous de plats","DNA74",null,null,null,null,null,null,null,null,null,null,null,null,null,null,null,null,null,null,"1 pack de 2 savons de 400 grammes chacun (bas, cuisine et linge)","CAB74",null,"Pâtes à la sauce tomates","DA74","Dépenses alimentaires",{"$f":"TabProduits[[#This Row],[Nom produit]]& TabProduits[[#This Row],[Libellé produit]]","v":"Pâtes à la sauce tomatesDépenses alimentaires"}]
[null,null,null,null,null,null,null,null,null,"Pâtes au beurre","DA75",null,null,null,null,null,null,null,null,null,null,"Destop","DNA75",null,null,null,null,null,null,null,null,null,null,null,null,null,null,null,null,null,null,"1 pack de 2, 4, 8 piles (Piles AA. En plus ou en moins : Calculette, Lampe torche, Pendules, Télévision JVC, Transistors)","CAB75",null,"Pâtes au beurre","DA75","Dépenses alimentaires",{"$f":"TabProduits[[#This Row],[Nom produit]]& TabProduits[[#This Row],[Libellé produit]]","v":"Pâtes au beurreDépenses alimentaires"}]
[null,null,null,null,null,null,null,null,null,"Pâtes au fromage râpé","DA76",null,null,null,null,null,null,null,null,null,null,"Détartrant water-closets","DNA76",null,null,null,null,null,null,null,null,null,null,null,null,null,null,null,null,null,null,"1 pack de 2, 4, 8 piles (Piles AAA. En plus ou en moins : Claviers, Minuteurs)","CAB76",null,"Pâtes au fromage râpé","DA76","Dépenses alimentaires",{"$f":"TabProduits[[#This Row],[Nom produit]]& TabProduits[[#This Row],[Libellé produit]]","v":"Pâtes au fromage râpéDépenses alimentaires"}]
[null,null,null,null,null,null,null,null,null,"Petits pois","DA77",null,null,null,null,null,null,null,null,null,null,"Dévidoirs scotch","DNA77",null,null,null,null,null,null,null,null,null,null,null,null,null,null,null,null,null,null,"1 pack de 3 berlingots ou 1 flacon en gel de 750 millilitres (Eau de Javel)","CAB77",null,"Petits pois","DA77","Dépenses alimentaires",{"$f":"TabProduits[[#This Row],[Nom produit]]& TabProduits[[#This Row],[Libellé produit]]","v":"Petits poisDépenses alimentaires"}]
[null,null,null,null,null,null,null,null,null,"Petits pois et jeunes carottes","DA78",null,null,null,null,null,null,null,null,null,null,"Eau de Javel","DNA78",null,null,null,null,null,null,null,null,null,null,null,null,null,null,null,null,null,null,"1 pack de 3 boîtes (allumettes)","CAB78",null,"Petits pois et jeunes carottes","DA78","Dépenses alimentaires",{"$f":"TabProduits[[#This Row],[Nom produit]]& TabProduits[[#This Row],[Libellé produit]]","v":"Petits pois et jeunes carottesDépenses alimentaires"}]
[null,null,null,null,null,null,null,null,null,"Petits suisses","DA79",null,null,null,null,null,null,null,null,null,null,"Eau de toilette","DNA79",null,null,null,null,null,null,null,null,null,null,null,null,null,null,null,null,null,null,"1 pack de 3 cassettes","CAB79",null,"Petits suisses","DA79","Dépenses alimentaires",{"$f":"TabProduits[[#This Row],[Nom produit]]& TabProduits[[#This Row],[Libellé produit]]","v":"Petits suissesDépenses alimentaires"}]
[null,null,null,null,null,null,null,null,null,"Pizza","DA80",null,null,null,null,null,null,null,null,null,null,"Élastiques","DNA80",null,null,null,null,null,null,null,null,null,null,null,null,null,null,null,null,null,null,"1 pack de 3 sachets. 1 sachet par samedi d'utilisation. (Fromage râpé)","CAB80",null,"Pizza","DA80","Dépenses alimentaires",{"$f":"TabProduits[[#This Row],[Nom produit]]& TabProduits[[#This Row],[Libellé produit]]","v":"PizzaDépenses alimentaires"}]
[null,null,null,null,null,null,null,null,null,"Poireau","DA81",null,null,null,null,null,null,null,null,null,null,"Enrouleuses à cigarettes","DNA81",null,null,null,null,null,null,null,null,null,null,null,null,null,null,null,null,null,null,"1 pack de 3 scotch brite (Cuisine (ménage et vaisselle), Salle de bains et water-closets (ménage); en plus ou en moins)","CAB81",null,"Poireau","DA81","Dépenses alimentaires",{"$f":"TabProduits[[#This Row],[Nom produit]]& TabProduits[[#This Row],[Libellé produit]]","v":"PoireauDépenses alimentaires"}]
[null,null,null,null,null,null,null,null,null,"Poisson","DA82",null,null,null,null,null,null,null,null,null,null,"Enveloppes pré-timbrées ou enveloppes non pré-timbrées","DNA82",null,null,null,null,null,null,null,null,null,null,null,null,null,null,null,null,null,null,"1 pack de 3 tablettes (Chocolat)","CAB82",null,"Poisson","DA82","Dépenses alimentaires",{"$f":"TabProduits[[#This Row],[Nom produit]]& TabProduits[[#This Row],[Libellé produit]]","v":"PoissonDépenses alimentaires"}]
[null,null,null,null,null,null,null,null,null,"Poivre gris","DA83",null,null,null,null,null,null,null,null,null,null,"Envois recommandés avec accusé de réception","DNA83",null,null,null,null,null,null,null,null,null,null,null,null,null,null,null,null,null,null,"1 pack de 36 étiquettes scolaires","CAB83",null,"Poivre gris","DA83","Dépenses alimentaires",{"$f":"TabProduits[[#This Row],[Nom produit]]& TabProduits[[#This Row],[Libellé produit]]","v":"Poivre grisDépenses alimentaires"}]
[null,null,null,null,null,null,null,null,null,"Pomme","DA84",null,null,null,null,null,null,null,null,null,null,"Éphéméride","DNA84",null,null,null,null,null,null,null,null,null,null,null,null,null,null,null,null,null,null,"1 pack de 4 brosses à dents","CAB84",null,"Pomme","DA84","Dépenses alimentaires",{"$f":"TabProduits[[#This Row],[Nom produit]]& TabProduits[[#This Row],[Libellé produit]]","v":"PommeDépenses alimentaires"}]
[null,null,null,null,null,null,null,null,null,"Pomme de terre","DA85",null,null,null,null,null,null,null,null,null,null,"Épingles à linge","DNA85",null,null,null,null,null,null,null,null,null,null,null,null,null,null,null,null,null,null,"1 pack de 4 pots pour le weekend end. 1 pot pour 1 repas","CAB85",null,"Pomme de terre","DA85","Dépenses alimentaires",{"$f":"TabProduits[[#This Row],[Nom produit]]& TabProduits[[#This Row],[Libellé produit]]","v":"Pomme de terreDépenses alimentaires"}]
[null,null,null,null,null,null,null,null,null,"Porc","DA86",null,null,null,null,null,null,null,null,null,null,"Éponges pour la table","DNA86",null,null,null,null,null,null,null,null,null,null,null,null,null,null,null,null,null,null,"1 pack de 4 savonnettes de 100 grammes chacune (Figure, en plus ou en moins, Manava Leclerc)","CAB86",null,"Porc","DA86","Dépenses alimentaires",{"$f":"TabProduits[[#This Row],[Nom produit]]& TabProduits[[#This Row],[Libellé produit]]","v":"PorcDépenses alimentaires"}]
[null,null,null,null,null,null,null,null,null,"Pruneaux","DA87",null,null,null,null,null,null,null,null,null,null,"Éponges pour le ménage","DNA87",null,null,null,null,null,null,null,null,null,null,null,null,null,null,null,null,null,null,"1 pack de 4 savons de 200 grammes chacun (Cuisine, salle de bains (Bas et Linge), en plus ou en moins)","CAB87",null,"Pruneaux","DA87","Dépenses alimentaires",{"$f":"TabProduits[[#This Row],[Nom produit]]& TabProduits[[#This Row],[Libellé produit]]","v":"PruneauxDépenses alimentaires"}]
[null,null,null,null,null,null,null,null,null,"Purée","DA88",null,null,null,null,null,null,null,null,null,null,"Essence pour briquets Zippo","DNA88",null,null,null,null,null,null,null,null,null,null,null,null,null,null,null,null,null,null,"1 pack de 4 stylos à bille (encre bleue, noire, rouge et verte; en plus ou en moins)","CAB88",null,"Purée","DA88","Dépenses alimentaires",{"$f":"TabProduits[[#This Row],[Nom produit]]& TabProduits[[#This Row],[Libellé produit]]","v":"PuréeDépenses alimentaires"}]
[null,null,null,null,null,null,null,null,null,"Quenelles","DA89",null,null,null,null,null,null,null,null,null,null,"Essoreuse à salade","DNA89",null,null,null,null,null,null,null,null,null,null,null,null,null,null,null,null,null,null,"1 pack de 4, 8 piles (Piles transistor Crown. En plus ou en moins. Piles LR14/C )","CAB89",null,"Quenelles","DA89","Dépenses alimentaires",{"$f":"TabProduits[[#This Row],[Nom produit]]& TabProduits[[#This Row],[Libellé produit]]","v":"QuenellesDépenses alimentaires"}]
[null,null,null,null,null,null,null,null,null,"Quiche lorraine","DA90",null,null,null,null,null,null,null,null,null,null,"Étendoirs à linge (mural et sur pied)","DNA90",null,null,null,null,null,null,null,null,null,null,null,null,null,null,null,null,null,null,"1 pack de 5 cartouches (Canon série 700) 1 pack de 2 cartouches (Canon série 7400)","CAB90",null,"Quiche lorraine","DA90","Dépenses alimentaires",{"$f":"TabProduits[[#This Row],[Nom produit]]& TabProduits[[#This Row],[Libellé produit]]","v":"Quiche lorraineDépenses alimentaires"}]
[null,null,null,null,null,null,null,null,null,"Radis LMR","DA91",null,null,null,null,null,null,null,null,null,null,"Étiquettes","DNA91",null,null,null,null,null,null,null,null,null,null,null,null,null,null,null,null,null,null,"1 pack de 5 compact disc rom (Compact disc rom informatique et vidéo)","CAB91",null,"Radis LMR","DA91","Dépenses alimentaires",{"$f":"TabProduits[[#This Row],[Nom produit]]& TabProduits[[#This Row],[Libellé produit]]","v":"Radis LMRDépenses alimentaires"}]
[null,null,null,null,null,null,null,null,null,"Radis LSV","DA92",null,null,null,null,null,null,null,null,null,null,"Étrennes des éboueurs","DNA92",null,null,null,null,null,null,null,null,null,null,null,null,null,null,null,null,null,null,"1 pack de 6 pots ou 12 pots. 3 pots par repas (Petits suisses)","CAB92",null,"Radis LSV","DA92","Dépenses alimentaires",{"$f":"TabProduits[[#This Row],[Nom produit]]& TabProduits[[#This Row],[Libellé produit]]","v":"Radis LSVDépenses alimentaires"}]
[null,null,null,null,null,null,null,null,null,"Ratatouille","DA93",null,null,null,null,null,null,null,null,null,null,"Étrennes des pompiers","DNA93",null,null,null,null,null,null,null,null,null,null,null,null,null,null,null,null,null,null,"1 pack de 8 paquets (Papier hygiénique, en plus ou en moins)","CAB93",null,"Ratatouille","DA93","Dépenses alimentaires",{"$f":"TabProduits[[#This Row],[Nom produit]]& TabProduits[[#This Row],[Libellé produit]]","v":"RatatouilleDépenses alimentaires"}]
[null,null,null,null,null,null,null,null,null,"Raviolis","DA94",null,null,null,null,null,null,null,null,null,null,"Étrennes du facteur","DNA94",null,null,null,null,null,null,null,null,null,null,null,null,null,null,null,null,null,null,"1 pack de 8 pots. 1 pot par matin (Fromage blanc matin)","CAB94",null,"Raviolis","DA94","Dépenses alimentaires",{"$f":"TabProduits[[#This Row],[Nom produit]]& TabProduits[[#This Row],[Libellé produit]]","v":"RaviolisDépenses alimentaires"}]
[null,null,null,null,null,null,null,null,null,"Riz desserts","DA95",null,null,null,null,null,null,null,null,null,null,"Étrennes du gardien","DNA95",null,null,null,null,null,null,null,null,null,null,null,null,null,null,null,null,null,null,"1 pack de 8 rouleaux (Papier hygiénique; en plus ou en moins)","CAB95",null,"Riz desserts","DA95","Dépenses alimentaires",{"$f":"TabProduits[[#This Row],[Nom produit]]& TabProduits[[#This Row],[Libellé produit]]","v":"Riz dessertsDépenses alimentaires"}]
[null,null,null,null,null,null,null,null,null,"Riz légume","DA96",null,null,null,null,null,null,null,null,null,null,"Étuis à cigarettes","DNA96",null,null,null,null,null,null,null,null,null,null,null,null,null,null,null,null,null,null,"1 paire (Chaussettes, Chaussons, Chaussures)","CAB96",null,"Riz légume","DA96","Dépenses alimentaires",{"$f":"TabProduits[[#This Row],[Nom produit]]& TabProduits[[#This Row],[Libellé produit]]","v":"Riz légumeDépenses alimentaires"}]
[null,null,null,null,null,null,null,null,null,"Rôti d'agneau","DA97",null,null,null,null,null,null,null,null,null,null,"Fer électrique à repasser","DNA97",null,null,null,null,null,null,null,null,null,null,null,null,null,null,null,null,null,null,"1 paquet de ? (épingles à linge)","CAB97",null,"Rôti d'agneau","DA97","Dépenses alimentaires",{"$f":"TabProduits[[#This Row],[Nom produit]]& TabProduits[[#This Row],[Libellé produit]]","v":"Rôti d'agneauDépenses alimentaires"}]
[null,null,null,null,null,null,null,null,null,"Rôti de bœuf","DA98",null,null,null,null,null,null,null,null,null,null,"Feuilles à cigarettes","DNA98",null,null,null,null,null,null,null,null,null,null,null,null,null,null,null,null,null,null,"1 paquet de 20 cigarettes","CAB98",null,"Rôti de bœuf","DA98","Dépenses alimentaires",{"$f":"TabProduits[[#This Row],[Nom produit]]& TabProduits[[#This Row],[Libellé produit]]","v":"Rôti de bœufDépenses alimentaires"}]
[null,null,null,null,null,null,null,null,null,"Rôti de cheval","DA99",null,null,null,null,null,null,null,null,null,null,"Four à micro-ondes","DNA99",null,null,null,null,null,null,null,null,null,null,null,null,null,null,null,null,null,null,"1 paquet d'une ampoule éléctrique ou halogène (Ampoules électriques ou halogènes)","CAB99",null,"Rôti de cheval","DA99","Dépenses alimentaires",{"$f":"TabProduits[[#This Row],[Nom produit]]& TabProduits[[#This Row],[Libellé produit]]","v":"Rôti de chevalDépenses alimentaires"}]
[null,null,null,null,null,null,null,null,null,"Rôti de porc","DA100",null,null,null,null,null,null,null,null,null,null,"Frais d'essence","DNA100",null,null,null,null,null,null,null,null,null,null,null,null,null,null,null,null,null,null,"1 paquet pour 2 repas","CAB100",null,"Rôti de porc","DA100","Dépenses alimentaires",{"$f":"TabProduits[[#This Row],[Nom produit]]& TabProduits[[#This Row],[Libellé produit]]","v":"Rôti de porcDépenses alimentaires"}]
[null,null,null,null,null,null,null,null,null,"Rôti de veau","DA101",null,null,null,null,null,null,null,null,null,null,"Friteuse à gaz","DNA101",null,null,null,null,null,null,null,null,null,null,null,null,null,null,null,null,null,null,"1 paquet pour 2 repas (Fromage de tête, Salami)","CAB101",null,"Rôti de veau","DA101","Dépenses alimentaires",{"$f":"TabProduits[[#This Row],[Nom produit]]& TabProduits[[#This Row],[Libellé produit]]","v":"Rôti de veauDépenses alimentaires"}]
[null,null,null,null,null,null,null,null,null,"Roulade à la pistache","DA102",null,null,null,null,null,null,null,null,null,null,"Friteuse électrique","DNA102",null,null,null,null,null,null,null,null,null,null,null,null,null,null,null,null,null,null,"1 paquet pour 4 repas (Dattes, Figues, Pruneaux)","CAB102",null,"Roulade à la pistache","DA102","Dépenses alimentaires",{"$f":"TabProduits[[#This Row],[Nom produit]]& TabProduits[[#This Row],[Libellé produit]]","v":"Roulade à la pistacheDépenses alimentaires"}]
[null,null,null,null,null,null,null,null,null,"Roulés au fromage","DA103",null,null,null,null,null,null,null,null,null,null,"Gaz pour allume-gaz","DNA103",null,null,null,null,null,null,null,null,null,null,null,null,null,null,null,null,null,null,"1 paquet pour 5 repas (Betteraves rouges)","CAB103",null,"Roulés au fromage","DA103","Dépenses alimentaires",{"$f":"TabProduits[[#This Row],[Nom produit]]& TabProduits[[#This Row],[Libellé produit]]","v":"Roulés au fromageDépenses alimentaires"}]
[null,null,null,null,null,null,null,null,null,"Salade","DA104",null,null,null,null,null,null,null,null,null,null,"Gommes à effacer","DNA104",null,null,null,null,null,null,null,null,null,null,null,null,null,null,null,null,null,null,"1 plaquette de 250 grammes (Beurre : 2 mensuelles maximum)","CAB104",null,"Salade","DA104","Dépenses alimentaires",{"$f":"TabProduits[[#This Row],[Nom produit]]& TabProduits[[#This Row],[Libellé produit]]","v":"SaladeDépenses alimentaires"}]
[null,null,null,null,null,null,null,null,null,"Salami","DA105",null,null,null,null,null,null,null,null,null,null,"Graveur compact disc informatique","DNA105",null,null,null,null,null,null,null,null,null,null,null,null,null,null,null,null,null,null,"1 portion par soir (fromage soir)","CAB105",null,"Salami","DA105","Dépenses alimentaires",{"$f":"TabProduits[[#This Row],[Nom produit]]& TabProduits[[#This Row],[Libellé produit]]","v":"SalamiDépenses alimentaires"}]
[null,null,null,null,null,null,null,null,null,"Salsifis","DA106",null,null,null,null,null,null,null,null,null,null,"Graveur compact disc vidéo","DNA106",null,null,null,null,null,null,null,null,null,null,null,null,null,null,null,null,null,null,"1 pot de 100 grammes Nescafé Espresso (Café)","CAB106",null,"Salsifis","DA106","Dépenses alimentaires",{"$f":"TabProduits[[#This Row],[Nom produit]]& TabProduits[[#This Row],[Libellé produit]]","v":"SalsifisDépenses alimentaires"}]
[null,null,null,null,null,null,null,null,null,"Sauce tomates","DA107",null,null,null,null,null,null,null,null,null,null,"Imprimantes","DNA107",null,null,null,null,null,null,null,null,null,null,null,null,null,null,null,null,null,null,"1 pot de 36 grammes (Poivre gris)","CAB107",null,"Sauce tomates","DA107","Dépenses alimentaires",{"$f":"TabProduits[[#This Row],[Nom produit]]& TabProduits[[#This Row],[Libellé produit]]","v":"Sauce tomatesDépenses alimentaires"}]
[null,null,null,null,null,null,null,null,null,"Saucisses","DA108",null,null,null,null,null,null,null,null,null,null,"Insecticide","DNA108",null,null,null,null,null,null,null,null,null,null,null,null,null,null,null,null,null,null,"1 pot en verre de 370 grammes (Confiture)","CAB108",null,"Saucisses","DA108","Dépenses alimentaires",{"$f":"TabProduits[[#This Row],[Nom produit]]& TabProduits[[#This Row],[Libellé produit]]","v":"SaucissesDépenses alimentaires"}]
[null,null,null,null,null,null,null,null,null,"Saucisson","DA109",null,null,null,null,null,null,null,null,null,null,"Lacets","DNA109",null,null,null,null,null,null,null,null,null,null,null,null,null,null,null,null,null,null,"1 printy 4846 trodat (Numéroteur. Office Dépôt)","CAB109",null,"Saucisson","DA109","Dépenses alimentaires",{"$f":"TabProduits[[#This Row],[Nom produit]]& TabProduits[[#This Row],[Libellé produit]]","v":"SaucissonDépenses alimentaires"}]
[null,null,null,null,null,null,null,null,null,"Sel fin","DA110",null,null,null,null,null,null,null,null,null,null,"Lames rasoir électrique","DNA110",null,null,null,null,null,null,null,null,null,null,null,null,null,null,null,null,null,null,"1 ramette de 200 feuilles (Papier couleur imprimantes)","CAB110",null,"Sel fin","DA110","Dépenses alimentaires",{"$f":"TabProduits[[#This Row],[Nom produit]]& TabProduits[[#This Row],[Libellé produit]]","v":"Sel finDépenses alimentaires"}]
[null,null,null,null,null,null,null,null,null,"Sucre","DA111",null,null,null,null,null,null,null,null,null,null,"Lampadaires","DNA111",null,null,null,null,null,null,null,null,null,null,null,null,null,null,null,null,null,null,"1 ramette de 500 feuilles (Papier blanc imprimantes)","CAB111",null,"Sucre","DA111","Dépenses alimentaires",{"$f":"TabProduits[[#This Row],[Nom produit]]& TabProduits[[#This Row],[Libellé produit]]","v":"SucreDépenses alimentaires"}]
[null,null,null,null,null,null,null,null,null,"Tapioca","DA112",null,null,null,null,null,null,null,null,null,null,"Lampe torche","DNA112",null,null,null,null,null,null,null,null,null,null,null,null,null,null,null,null,null,null,"1 sac de 20 litres (terre)","CAB112",null,"Tapioca","DA112","Dépenses alimentaires",{"$f":"TabProduits[[#This Row],[Nom produit]]& TabProduits[[#This Row],[Libellé produit]]","v":"TapiocaDépenses alimentaires"}]
[null,null,null,null,null,null,null,null,null,"Tête persillée","DA113",null,null,null,null,null,null,null,null,null,null,"Lavage des draps","DNA113",null,null,null,null,null,null,null,null,null,null,null,null,null,null,null,null,null,null,"1 sachet de 2 kilogrammes. 1 pomme pour 1 repas","CAB113",null,"Tête persillée","DA113","Dépenses alimentaires",{"$f":"TabProduits[[#This Row],[Nom produit]]& TabProduits[[#This Row],[Libellé produit]]","v":"Tête persilléeDépenses alimentaires"}]
[null,null,null,null,null,null,null,null,null,"Tête roulée","DA114",null,null,null,null,null,null,null,null,null,null,"Lessive pour le linge","DNA114",null,null,null,null,null,null,null,null,null,null,null,null,null,null,null,null,null,null,"1 sachet grand modèle (Bonbons)","CAB114",null,"Tête roulée","DA114","Dépenses alimentaires",{"$f":"TabProduits[[#This Row],[Nom produit]]& TabProduits[[#This Row],[Libellé produit]]","v":"Tête rouléeDépenses alimentaires"}]
[null,null,null,null,null,null,null,null,null,"Thé","DA115",null,null,null,null,null,null,null,null,null,null,"Linge de lit (y compris pyjamas)","DNA115",null,null,null,null,null,null,null,null,null,null,null,null,null,null,null,null,null,null,"1 sachet pour 2 repas (Chips)","CAB115",null,"Thé","DA115","Dépenses alimentaires",{"$f":"TabProduits[[#This Row],[Nom produit]]& TabProduits[[#This Row],[Libellé produit]]","v":"ThéDépenses alimentaires"}]
[null,null,null,null,null,null,null,null,null,"Thon","DA116",null,null,null,null,null,null,null,null,null,null,"Linge de table","DNA116",null,null,null,null,null,null,null,null,null,null,null,null,null,null,null,null,null,null,"1 sachet pour 4 repas (crème)","CAB116",null,"Thon","DA116","Dépenses alimentaires",{"$f":"TabProduits[[#This Row],[Nom produit]]& TabProduits[[#This Row],[Libellé produit]]","v":"ThonDépenses alimentaires"}]
[null,null,null,null,null,null,null,null,null,"Tomates","DA117",null,null,null,null,null,null,null,null,null,null,"Linge de toilette","DNA117",null,null,null,null,null,null,null,null,null,null,null,null,null,null,null,null,null,null,"1 sachet pour 6 repas. 5 tranches pour 1 repas (Saucisson)","CAB117",null,"Tomates","DA117","Dépenses alimentaires",{"$f":"TabProduits[[#This Row],[Nom produit]]& TabProduits[[#This Row],[Libellé produit]]","v":"TomatesDépenses alimentaires"}]
[null,null,null,null,null,null,null,null,null,"Tomates pelées","DA118",null,null,null,null,null,null,null,null,null,null,"Linge de vaisselle","DNA118",null,null,null,null,null,null,null,null,null,null,null,null,null,null,null,null,null,null,"1 ticket unitaire","CAB118",null,"Tomates pelées","DA118","Dépenses alimentaires",{"$f":"TabProduits[[#This Row],[Nom produit]]& TabProduits[[#This Row],[Libellé produit]]","v":"Tomates peléesDépenses alimentaires"}]
[null,null,null,null,null,null,null,null,null,"Veau","DA119",null,null,null,null,null,null,null,null,null,null,"Linge pour les mains","DNA119",null,null,null,null,null,null,null,null,null,null,null,null,null,null,null,null,null,null,"1 timbre (Parti communiste français, Syndicat C.G.T.)","CAB119",null,"Veau","DA119","Dépenses alimentaires",{"$f":"TabProduits[[#This Row],[Nom produit]]& TabProduits[[#This Row],[Libellé produit]]","v":"VeauDépenses alimentaires"}]
[null,null,null,null,null,null,null,null,null,"Vinaigre assaisonnement","DA120",null,null,null,null,null,null,null,null,null,null,"Liquide cigarette électronique NHOSS","DNA120",null,null,null,null,null,null,null,null,null,null,null,null,null,null,null,null,null,null,"1 tranche pour 1 repas (viandes midi weekend)","CAB120",null,"Vinaigre assaisonnement","DA120","Dépenses alimentaires",{"$f":"TabProduits[[#This Row],[Nom produit]]& TabProduits[[#This Row],[Libellé produit]]","v":"Vinaigre assaisonnementDépenses alimentaires"}]
[null,null,null,null,null,null,null,null,null,"Yaourts desserts","DA121",null,null,null,null,null,null,null,null,null,null,"Livres bibliophiles","DNA121",null,null,null,null,null,null,null,null,null,null,null,null,null,null,null,null,null,null,"1 tube de 180 grammes (Sauce tomates)","CAB121",null,"Yaourts desserts","DA121","Dépenses alimentaires",{"$f":"TabProduits[[#This Row],[Nom produit]]& TabProduits[[#This Row],[Libellé produit]]","v":"Yaourts dessertsDépenses alimentaires"}]
[null,null,null,null,null,null,null,null,null,"Yaourts matin","DA122",null,null,null,null,null,null,null,null,null,null,"Livres informatiques","DNA122",null,null,null,null,null,null,null,null,null,null,null,null,null,null,null,null,null,null,"1 tube de 3 grammes (Colle SUPERGLUE-3)","CAB122",null,"Yaourts matin","DA122","Dépenses alimentaires",{"$f":"TabProduits[[#This Row],[Nom produit]]& TabProduits[[#This Row],[Libellé produit]]","v":"Yaourts matinDépenses alimentaires"}]
[null,null,null,null,null,null,null,null,null,null,null,null,null,null,null,null,null,null,null,null,null,"Logiciels informatiques","DNA123",null,null,null,null,null,null,null,null,null,null,null,null,null,null,null,null,null,null,"1 tube de 75 millilitres (Cirage liquide incolore applicateur, Dentifrice)","CAB123",null,"Abonnement Canal Plus","DB01","Dépenses bancaires",{"$f":"TabProduits[[#This Row],[Nom produit]]& TabProduits[[#This Row],[Libellé produit]]","v":"Abonnement Canal PlusDépenses bancaires"}]
[null,null,null,null,null,null,null,null,null,null,null,null,null,null,null,null,null,null,null,null,null,"Loisirs","DNA124",null,null,null,null,null,null,null,null,null,null,null,null,null,null,null,null,null,null,"1 tube unitaire de 75, 100 ou 125 millilitres (dentifrice)","CAB124",null,"Abonnement Canal Satellite","DB02","Dépenses bancaires",{"$f":"TabProduits[[#This Row],[Nom produit]]& TabProduits[[#This Row],[Libellé produit]]","v":"Abonnement Canal SatelliteDépenses bancaires"}]
[null,null,null,null,null,null,null,null,null,null,null,null,null,null,null,null,null,null,null,null,null,"Loqueteaux","DNA125",null,null,null,null,null,null,null,null,null,null,null,null,null,null,null,null,null,null,"125 grammes pour 1 repas (Bifteck haché de cheval)","CAB125",null,"Abonnement Coopanet (Banque française de crédit coopératif)","DB03","Dépenses bancaires",{"$f":"TabProduits[[#This Row],[Nom produit]]& TabProduits[[#This Row],[Libellé produit]]","v":"Abonnement Coopanet (Banque française de crédit coopératif)Dépenses bancaires"}]
[null,null,null,null,null,null,null,null,null,null,null,null,null,null,null,null,null,null,null,null,null,"Machine à laver","DNA126",null,null,null,null,null,null,null,null,null,null,null,null,null,null,null,null,null,null,"20 frites pour 1 repas","CAB126",null,"Actions Caisse épargne","DB04","Dépenses bancaires",{"$f":"TabProduits[[#This Row],[Nom produit]]& TabProduits[[#This Row],[Libellé produit]]","v":"Actions Caisse épargneDépenses bancaires"}]
[null,null,null,null,null,null,null,null,null,null,null,null,null,null,null,null,null,null,null,null,null,"Magnétoscope","DNA127",null,null,null,null,null,null,null,null,null,null,null,null,null,null,null,null,null,null,"25 grammes pour 1 repas (Couscous, Purée, Riz légume, Tapioca)","CAB127",null,"Aspirateur","DB05","Dépenses bancaires",{"$f":"TabProduits[[#This Row],[Nom produit]]& TabProduits[[#This Row],[Libellé produit]]","v":"AspirateurDépenses bancaires"}]
[null,null,null,null,null,null,null,null,null,null,null,null,null,null,null,null,null,null,null,null,null,"Matériel à couture","DNA128",null,null,null,null,null,null,null,null,null,null,null,null,null,null,null,null,null,null,"3 tranches pour 1 repas (Roulade à la pistache, Tête roulée)","CAB128",null,"Assurance accidents de la vie (Caisse épargne)","DB06","Dépenses bancaires",{"$f":"TabProduits[[#This Row],[Nom produit]]& TabProduits[[#This Row],[Libellé produit]]","v":"Assurance accidents de la vie (Caisse épargne)Dépenses bancaires"}]
[null,null,null,null,null,null,null,null,null,null,null,null,null,null,null,null,null,null,null,null,null,"Matériel de cuisine","DNA129",null,null,null,null,null,null,null,null,null,null,null,null,null,null,null,null,null,null,"5 cuillères pour 1 repas (Pâtes à la sauce tomates, Pâtes au beurre, Pâtes au fromage râpé)","CAB129",null,"Assurance incendie (Caisse épargne)","DB07","Dépenses bancaires",{"$f":"TabProduits[[#This Row],[Nom produit]]& TabProduits[[#This Row],[Libellé produit]]","v":"Assurance incendie (Caisse épargne)Dépenses bancaires"}]
[null,null,null,null,null,null,null,null,null,null,null,null,null,null,null,null,null,null,null,null,null,"Matériel informatique","DNA130",null,null,null,null,null,null,null,null,null,null,null,null,null,null,null,null,null,null,"La paire (Chaussettes, Chaussons, Chaussures)","CAB130",null,"Assurance protection juridique (Caisse épargne)","DB08","Dépenses bancaires",{"$f":"TabProduits[[#This Row],[Nom produit]]& TabProduits[[#This Row],[Libellé produit]]","v":"Assurance protection juridique (Caisse épargne)Dépenses bancaires"}]
[null,null,null,null,null,null,null,null,null,null,null,null,null,null,null,null,null,null,null,null,null,"Minuteurs","DNA131",null,null,null,null,null,null,null,null,null,null,null,null,null,null,null,null,null,null,"Pack de ?","CAB131",null,"Autre matériel informatique","DB09","Dépenses bancaires",{"$f":"TabProduits[[#This Row],[Nom produit]]& TabProduits[[#This Row],[Libellé produit]]","v":"Autre matériel informatiqueDépenses bancaires"}]
[null,null,null,null,null,null,null,null,null,null,null,null,null,null,null,null,null,null,null,null,null,"Nappes de tables","DNA132",null,null,null,null,null,null,null,null,null,null,null,null,null,null,null,null,null,null,"Pour 2 draps","CAB132",null,"Autres dépenses bancaires","DB10","Dépenses bancaires",{"$f":"TabProduits[[#This Row],[Nom produit]]& TabProduits[[#This Row],[Libellé produit]]","v":"Autres dépenses bancairesDépenses bancaires"}]
[null,null,null,null,null,null,null,null,null,null,null,null,null,null,null,null,null,null,null,null,null,"Nettoyage des vêtements","DNA133",null,null,null,null,null,null,null,null,null,null,null,null,null,null,null,null,null,null,"Unité","CAB133",null,"Cadeaux","DB11","Dépenses bancaires",{"$f":"TabProduits[[#This Row],[Nom produit]]& TabProduits[[#This Row],[Libellé produit]]","v":"CadeauxDépenses bancaires"}]
[null,null,null,null,null,null,null,null,null,null,null,null,null,null,null,null,null,null,null,null,null,"Numéroteur","DNA134",null,null,null,null,null,null,null,null,null,null,null,null,null,null,null,null,null,null,"Unité : 1 branche pour 1 repas (Céleri)","CAB134",null,"Carte amicale des locataires (Confédération nationale du logement)","DB12","Dépenses bancaires",{"$f":"TabProduits[[#This Row],[Nom produit]]& TabProduits[[#This Row],[Libellé produit]]","v":"Carte amicale des locataires (Confédération nationale du logement)Dépenses bancaires"}]
[null,null,null,null,null,null,null,null,null,null,null,null,null,null,null,null,null,null,null,null,null,"O'CÉDAR","DNA135",null,null,null,null,null,null,null,null,null,null,null,null,null,null,null,null,null,null,"Unité : 1 brin ou 1 pot (Muguet)","CAB135",null,"Cocotte minute","DB13","Dépenses bancaires",{"$f":"TabProduits[[#This Row],[Nom produit]]& TabProduits[[#This Row],[Libellé produit]]","v":"Cocotte minuteDépenses bancaires"}]
[null,null,null,null,null,null,null,null,null,null,null,null,null,null,null,null,null,null,null,null,null,"Ordinateurs de bureau","DNA136",null,null,null,null,null,null,null,null,null,null,null,null,null,null,null,null,null,null,"Unité : 1 par repas","CAB136",null,"Congélateur","DB14","Dépenses bancaires",{"$f":"TabProduits[[#This Row],[Nom produit]]& TabProduits[[#This Row],[Libellé produit]]","v":"CongélateurDépenses bancaires"}]
[null,null,null,null,null,null,null,null,null,null,null,null,null,null,null,null,null,null,null,null,null,"Ordinateurs portables","DNA137",null,null,null,null,null,null,null,null,null,null,null,null,null,null,null,null,null,null,"Unité : 1 pot (Plantes, Pots à fleurs, Pots à plantes)","CAB137",null,"Cuisinière","DB15","Dépenses bancaires",{"$f":"TabProduits[[#This Row],[Nom produit]]& TabProduits[[#This Row],[Libellé produit]]","v":"CuisinièreDépenses bancaires"}]
[null,null,null,null,null,null,null,null,null,null,null,null,null,null,null,null,null,null,null,null,null,"Ouvre-boîtes électrique","DNA138",null,null,null,null,null,null,null,null,null,null,null,null,null,null,null,null,null,null,"Unité : 1 pour 1 repas","CAB138",null,"Électricité","DB16","Dépenses bancaires",{"$f":"TabProduits[[#This Row],[Nom produit]]& TabProduits[[#This Row],[Libellé produit]]","v":"ÉlectricitéDépenses bancaires"}]
[null,null,null,null,null,null,null,null,null,null,null,null,null,null,null,null,null,null,null,null,null,"Papier à lettres","DNA139",null,null,null,null,null,null,null,null,null,null,null,null,null,null,null,null,null,null,"Unité : 1 pour 2 repas (Chou-fleur)","CAB139",null,"Four à micro-ondes","DB17","Dépenses bancaires",{"$f":"TabProduits[[#This Row],[Nom produit]]& TabProduits[[#This Row],[Libellé produit]]","v":"Four à micro-ondesDépenses bancaires"}]
[null,null,null,null,null,null,null,null,null,null,null,null,null,null,null,null,null,null,null,null,null,"Papier aluminium","DNA140",null,null,null,null,null,null,null,null,null,null,null,null,null,null,null,null,null,null,"Unité : 1 pour 4 repas (Ananas)","CAB140",null,"Friteuse électrique","DB18","Dépenses bancaires",{"$f":"TabProduits[[#This Row],[Nom produit]]& TabProduits[[#This Row],[Libellé produit]]","v":"Friteuse électriqueDépenses bancaires"}]
[null,null,null,null,null,null,null,null,null,null,null,null,null,null,null,null,null,null,null,null,null,"Papier blanc imprimantes","DNA141",null,null,null,null,null,null,null,null,null,null,null,null,null,null,null,null,null,null,"Unité : 1 tête pour 1 repas (Salade)","CAB141",null,"Friteuse gaz","DB19","Dépenses bancaires",{"$f":"TabProduits[[#This Row],[Nom produit]]& TabProduits[[#This Row],[Libellé produit]]","v":"Friteuse gazDépenses bancaires"}]
[null,null,null,null,null,null,null,null,null,null,null,null,null,null,null,null,null,null,null,null,null,"Papier couleur imprimantes","DNA142",null,null,null,null,null,null,null,null,null,null,null,null,null,null,null,null,null,null,"Unité : 2 à 4 pour 1 repas (Autres fruits, Clémentines, Fruits de saison)","CAB142",null,"Gaz","DB20","Dépenses bancaires",{"$f":"TabProduits[[#This Row],[Nom produit]]& TabProduits[[#This Row],[Libellé produit]]","v":"GazDépenses bancaires"}]
[null,null,null,null,null,null,null,null,null,null,null,null,null,null,null,null,null,null,null,null,null,"Papier hygiénique","DNA143",null,null,null,null,null,null,null,null,null,null,null,null,null,null,null,null,null,null,"Unité : 2 pour 1 repas (Carottes, Tomates)","CAB143",null,"Graveur compact-disc informatique","DB21","Dépenses bancaires",{"$f":"TabProduits[[#This Row],[Nom produit]]& TabProduits[[#This Row],[Libellé produit]]","v":"Graveur compact-disc informatiqueDépenses bancaires"}]
[null,null,null,null,null,null,null,null,null,null,null,null,null,null,null,null,null,null,null,null,null,"Parapluies","DNA144",null,null,null,null,null,null,null,null,null,null,null,null,null,null,null,null,null,null,"Unité : sans conditionnement","CAB144",null,"Graveur compact-disc vidéo","DB22","Dépenses bancaires",{"$f":"TabProduits[[#This Row],[Nom produit]]& TabProduits[[#This Row],[Libellé produit]]","v":"Graveur compact-disc vidéoDépenses bancaires"}]
[null,null,null,null,null,null,null,null,null,null,null,null,null,null,null,null,null,null,null,null,null,"Parti communiste français","DNA145",null,null,null,null,null,null,null,null,null,null,null,null,null,null,null,null,null,null,"Unité : spéciales (piles montre et décodeur orange)","CAB145",null,"Impôts locaux","DB23","Dépenses bancaires",{"$f":"TabProduits[[#This Row],[Nom produit]]& TabProduits[[#This Row],[Libellé produit]]","v":"Impôts locauxDépenses bancaires"}]
[null,null,null,null,null,null,null,null,null,null,null,null,null,null,null,null,null,null,null,null,null,"Pelles","DNA146",null,null,null,null,null,null,null,null,null,null,null,null,null,null,null,null,null,null,null,null,null,"Impôts sur le revenu des personnes physiques","DB24","Dépenses bancaires",{"$f":"TabProduits[[#This Row],[Nom produit]]& TabProduits[[#This Row],[Libellé produit]]","v":"Impôts sur le revenu des personnes physiquesDépenses bancaires"}]
[null,null,null,null,null,null,null,null,null,null,null,null,null,null,null,null,null,null,null,null,null,"Pétrole Hahn","DNA147",null,null,null,null,null,null,null,null,null,null,null,null,null,null,null,null,null,null,null,null,null,"Imprimantes","DB25","Dépenses bancaires",{"$f":"TabProduits[[#This Row],[Nom produit]]& TabProduits[[#This Row],[Libellé produit]]","v":"ImprimantesDépenses bancaires"}]
[null,null,null,null,null,null,null,null,null,null,null,null,null,null,null,null,null,null,null,null,null,"Pierres à briquets Zippo","DNA148",null,null,null,null,null,null,null,null,null,null,null,null,null,null,null,null,null,null,null,null,null,"Livres bibliophiles","DB26","Dépenses bancaires",{"$f":"TabProduits[[#This Row],[Nom produit]]& TabProduits[[#This Row],[Libellé produit]]","v":"Livres bibliophilesDépenses bancaires"}]
[null,null,null,null,null,null,null,null,null,null,null,null,null,null,null,null,null,null,null,null,null,"Piles AA","DNA149",null,null,null,null,null,null,null,null,null,null,null,null,null,null,null,null,null,null,null,null,null,"Livres informatiques","DB27","Dépenses bancaires",{"$f":"TabProduits[[#This Row],[Nom produit]]& TabProduits[[#This Row],[Libellé produit]]","v":"Livres informatiquesDépenses bancaires"}]
[null,null,null,null,null,null,null,null,null,null,null,null,null,null,null,null,null,null,null,null,null,"Piles AAA","DNA150",null,null,null,null,null,null,null,null,null,null,null,null,null,null,null,null,null,null,null,null,null,"Logiciels informatiques","DB28","Dépenses bancaires",{"$f":"TabProduits[[#This Row],[Nom produit]]& TabProduits[[#This Row],[Libellé produit]]","v":"Logiciels informatiquesDépenses bancaires"}]
[null,null,null,null,null,null,null,null,null,null,null,null,null,null,null,null,null,null,null,null,null,"Piles spéciales","DNA151",null,null,null,null,null,null,null,null,null,null,null,null,null,null,null,null,null,null,null,null,null,"Loyer et charges","DB29","Dépenses bancaires",{"$f":"TabProduits[[#This Row],[Nom produit]]& TabProduits[[#This Row],[Libellé produit]]","v":"Loyer et chargesDépenses bancaires"}]
[null,null,null,null,null,null,null,null,null,null,null,null,null,null,null,null,null,null,null,null,null,"Piles transistor Crown","DNA152",null,null,null,null,null,null,null,null,null,null,null,null,null,null,null,null,null,null,null,null,null,"Machine à laver","DB30","Dépenses bancaires",{"$f":"TabProduits[[#This Row],[Nom produit]]& TabProduits[[#This Row],[Libellé produit]]","v":"Machine à laverDépenses bancaires"}]
[null,null,null,null,null,null,null,null,null,null,null,null,null,null,null,null,null,null,null,null,null,"POD avec liquide cigarettes électroniques (ePen3 et Blu)","DNA153",null,null,null,null,null,null,null,null,null,null,null,null,null,null,null,null,null,null,null,null,null,"Magnétoscope","DB31","Dépenses bancaires",{"$f":"TabProduits[[#This Row],[Nom produit]]& TabProduits[[#This Row],[Libellé produit]]","v":"MagnétoscopeDépenses bancaires"}]
[null,null,null,null,null,null,null,null,null,null,null,null,null,null,null,null,null,null,null,null,null,"POD sans liquide cigarettes électroniques (NHOSS)","DNA154",null,null,null,null,null,null,null,null,null,null,null,null,null,null,null,null,null,null,null,null,null,"Mutuelle","DB32","Dépenses bancaires",{"$f":"TabProduits[[#This Row],[Nom produit]]& TabProduits[[#This Row],[Libellé produit]]","v":"MutuelleDépenses bancaires"}]
[null,null,null,null,null,null,null,null,null,null,null,null,null,null,null,null,null,null,null,null,null,"Pourboires","DNA155",null,null,null,null,null,null,null,null,null,null,null,null,null,null,null,null,null,null,null,null,null,"Ordinateurs de bureau","DB33","Dépenses bancaires",{"$f":"TabProduits[[#This Row],[Nom produit]]& TabProduits[[#This Row],[Libellé produit]]","v":"Ordinateurs de bureauDépenses bancaires"}]
[null,null,null,null,null,null,null,null,null,null,null,null,null,null,null,null,null,null,null,null,null,"Poussettes","DNA156",null,null,null,null,null,null,null,null,null,null,null,null,null,null,null,null,null,null,null,null,null,"Ordinateurs portables","DB34","Dépenses bancaires",{"$f":"TabProduits[[#This Row],[Nom produit]]& TabProduits[[#This Row],[Libellé produit]]","v":"Ordinateurs portablesDépenses bancaires"}]
[null,null,null,null,null,null,null,null,null,null,null,null,null,null,null,null,null,null,null,null,null,"Produit liquide plancher","DNA157",null,null,null,null,null,null,null,null,null,null,null,null,null,null,null,null,null,null,null,null,null,"Protection de la maison (Protection 24)","DB35","Dépenses bancaires",{"$f":"TabProduits[[#This Row],[Nom produit]]& TabProduits[[#This Row],[Libellé produit]]","v":"Protection de la maison (Protection 24)Dépenses bancaires"}]
[null,null,null,null,null,null,null,null,null,null,null,null,null,null,null,null,null,null,null,null,null,"Produit liquide vaisselle","DNA158",null,null,null,null,null,null,null,null,null,null,null,null,null,null,null,null,null,null,null,null,null,"Rasoir électrique","DB36","Dépenses bancaires",{"$f":"TabProduits[[#This Row],[Nom produit]]& TabProduits[[#This Row],[Libellé produit]]","v":"Rasoir électriqueDépenses bancaires"}]
[null,null,null,null,null,null,null,null,null,null,null,null,null,null,null,null,null,null,null,null,null,"Produit liquide vitres","DNA159",null,null,null,null,null,null,null,null,null,null,null,null,null,null,null,null,null,null,null,null,null,"Redevance télévision","DB37","Dépenses bancaires",{"$f":"TabProduits[[#This Row],[Nom produit]]& TabProduits[[#This Row],[Libellé produit]]","v":"Redevance télévisionDépenses bancaires"}]
[null,null,null,null,null,null,null,null,null,null,null,null,null,null,null,null,null,null,null,null,null,"Programme de télévision","DNA160",null,null,null,null,null,null,null,null,null,null,null,null,null,null,null,null,null,null,null,null,null,"Réfrigérateur","DB38","Dépenses bancaires",{"$f":"TabProduits[[#This Row],[Nom produit]]& TabProduits[[#This Row],[Libellé produit]]","v":"RéfrigérateurDépenses bancaires"}]
[null,null,null,null,null,null,null,null,null,null,null,null,null,null,null,null,null,null,null,null,null,"Radiateur électrique","DNA161",null,null,null,null,null,null,null,null,null,null,null,null,null,null,null,null,null,null,null,null,null,"Réparations","DB39","Dépenses bancaires",{"$f":"TabProduits[[#This Row],[Nom produit]]& TabProduits[[#This Row],[Libellé produit]]","v":"RéparationsDépenses bancaires"}]
[null,null,null,null,null,null,null,null,null,null,null,null,null,null,null,null,null,null,null,null,null,"Rasoir électrique","DNA162",null,null,null,null,null,null,null,null,null,null,null,null,null,null,null,null,null,null,null,null,null,"Restaurant","DB40","Dépenses bancaires",{"$f":"TabProduits[[#This Row],[Nom produit]]& TabProduits[[#This Row],[Libellé produit]]","v":"RestaurantDépenses bancaires"}]
[null,null,null,null,null,null,null,null,null,null,null,null,null,null,null,null,null,null,null,null,null,"Recharge bloc éphéméride","DNA163",null,null,null,null,null,null,null,null,null,null,null,null,null,null,null,null,null,null,null,null,null,"Téléphone fixe","DB41","Dépenses bancaires",{"$f":"TabProduits[[#This Row],[Nom produit]]& TabProduits[[#This Row],[Libellé produit]]","v":"Téléphone fixeDépenses bancaires"}]
[null,null,null,null,null,null,null,null,null,null,null,null,null,null,null,null,null,null,null,null,null,"Recharge cure-dents","DNA164",null,null,null,null,null,null,null,null,null,null,null,null,null,null,null,null,null,null,null,null,null,"Téléphone orange","DB42","Dépenses bancaires",{"$f":"TabProduits[[#This Row],[Nom produit]]& TabProduits[[#This Row],[Libellé produit]]","v":"Téléphone orangeDépenses bancaires"}]
[null,null,null,null,null,null,null,null,null,null,null,null,null,null,null,null,null,null,null,null,null,"Réfrigérateur","DNA165",null,null,null,null,null,null,null,null,null,null,null,null,null,null,null,null,null,null,null,null,null,"Téléphone portable et Inernet","DB43","Dépenses bancaires",{"$f":"TabProduits[[#This Row],[Nom produit]]& TabProduits[[#This Row],[Libellé produit]]","v":"Téléphone portable et InernetDépenses bancaires"}]
[null,null,null,null,null,null,null,null,null,null,null,null,null,null,null,null,null,null,null,null,null,"Remboursement argent emprunté","DNA166",null,null,null,null,null,null,null,null,null,null,null,null,null,null,null,null,null,null,null,null,null,"Télévision","DB44","Dépenses bancaires",{"$f":"TabProduits[[#This Row],[Nom produit]]& TabProduits[[#This Row],[Libellé produit]]","v":"TélévisionDépenses bancaires"}]
[null,null,null,null,null,null,null,null,null,null,null,null,null,null,null,null,null,null,null,null,null,"Réparations","DNA167",null,null,null,null,null,null,null,null,null,null,null,null,null,null,null,null,null,null,null,null,null,"Vacances","DB45","Dépenses bancaires",{"$f":"TabProduits[[#This Row],[Nom produit]]& TabProduits[[#This Row],[Libellé produit]]","v":"VacancesDépenses bancaires"}]
[null,null,null,null,null,null,null,null,null,null,null,null,null,null,null,null,null,null,null,null,null,"Restaurant","DNA168",null,null,null,null,null,null,null,null,null,null,null,null,null,null,null,null,null,null,null,null,null,"Virements de fonds","DB46","Dépenses bancaires",{"$f":"TabProduits[[#This Row],[Nom produit]]& TabProduits[[#This Row],[Libellé produit]]","v":"Virements de fondsDépenses bancaires"}]
[null,null,null,null,null,null,null,null,null,null,null,null,null,null,null,null,null,null,null,null,null,"Réveils","DNA169",null,null,null,null,null,null,null,null,null,null,null,null,null,null,null,null,null,null,null,null,null,"Autres dépenses horticoles","DH01","Dépenses horticoles",{"$f":"TabProduits[[#This Row],[Nom produit]]& TabProduits[[#This Row],[Libellé produit]]","v":"Autres dépenses horticolesDépenses horticoles"}]
[null,null,null,null,null,null,null,null,null,null,null,null,null,null,null,null,null,null,null,null,null,"Sacs à poubelle","DNA170",null,null,null,null,null,null,null,null,null,null,null,null,null,null,null,null,null,null,null,null,null,"Cache-pots","DH02","Dépenses horticoles",{"$f":"TabProduits[[#This Row],[Nom produit]]& TabProduits[[#This Row],[Libellé produit]]","v":"Cache-potsDépenses horticoles"}]
[null,null,null,null,null,null,null,null,null,null,null,null,null,null,null,null,null,null,null,null,null,"Savon noir","DNA171",null,null,null,null,null,null,null,null,null,null,null,null,null,null,null,null,null,null,null,null,null,"Engrais","DH03","Dépenses horticoles",{"$f":"TabProduits[[#This Row],[Nom produit]]& TabProduits[[#This Row],[Libellé produit]]","v":"EngraisDépenses horticoles"}]
[null,null,null,null,null,null,null,null,null,null,null,null,null,null,null,null,null,null,null,null,null,"Savonnette figure","DNA172",null,null,null,null,null,null,null,null,null,null,null,null,null,null,null,null,null,null,null,null,null,"Fleurs","DH04","Dépenses horticoles",{"$f":"TabProduits[[#This Row],[Nom produit]]& TabProduits[[#This Row],[Libellé produit]]","v":"FleursDépenses horticoles"}]
[null,null,null,null,null,null,null,null,null,null,null,null,null,null,null,null,null,null,null,null,null,"Savons","DNA173",null,null,null,null,null,null,null,null,null,null,null,null,null,null,null,null,null,null,null,null,null,"Muguet","DH05","Dépenses horticoles",{"$f":"TabProduits[[#This Row],[Nom produit]]& TabProduits[[#This Row],[Libellé produit]]","v":"MuguetDépenses horticoles"}]
[null,null,null,null,null,null,null,null,null,null,null,null,null,null,null,null,null,null,null,null,null,"Scotch","DNA174",null,null,null,null,null,null,null,null,null,null,null,null,null,null,null,null,null,null,null,null,null,"Plantes","DH06","Dépenses horticoles",{"$f":"TabProduits[[#This Row],[Nom produit]]& TabProduits[[#This Row],[Libellé produit]]","v":"PlantesDépenses horticoles"}]
[null,null,null,null,null,null,null,null,null,null,null,null,null,null,null,null,null,null,null,null,null,"Scotch Brite","DNA175",null,null,null,null,null,null,null,null,null,null,null,null,null,null,null,null,null,null,null,null,null,"Pots à fleurs","DH07","Dépenses horticoles",{"$f":"TabProduits[[#This Row],[Nom produit]]& TabProduits[[#This Row],[Libellé produit]]","v":"Pots à fleursDépenses horticoles"}]
[null,null,null,null,null,null,null,null,null,null,null,null,null,null,null,null,null,null,null,null,null,"Serpillières","DNA176",null,null,null,null,null,null,null,null,null,null,null,null,null,null,null,null,null,null,null,null,null,"Pots à plantes","DH08","Dépenses horticoles",{"$f":"TabProduits[[#This Row],[Nom produit]]& TabProduits[[#This Row],[Libellé produit]]","v":"Pots à plantesDépenses horticoles"}]
[null,null,null,null,null,null,null,null,null,null,null,null,null,null,null,null,null,null,null,null,null,"Shampooing","DNA177",null,null,null,null,null,null,null,null,null,null,null,null,null,null,null,null,null,null,null,null,null,"Soucoupes","DH09","Dépenses horticoles",{"$f":"TabProduits[[#This Row],[Nom produit]]& TabProduits[[#This Row],[Libellé produit]]","v":"SoucoupesDépenses horticoles"}]
[null,null,null,null,null,null,null,null,null,null,null,null,null,null,null,null,null,null,null,null,null,"Souris ordinateurs de bureau","DNA178",null,null,null,null,null,null,null,null,null,null,null,null,null,null,null,null,null,null,null,null,null,"Terre","DH10","Dépenses horticoles",{"$f":"TabProduits[[#This Row],[Nom produit]]& TabProduits[[#This Row],[Libellé produit]]","v":"TerreDépenses horticoles"}]
[null,null,null,null,null,null,null,null,null,null,null,null,null,null,null,null,null,null,null,null,null,"Souris ordinateurs portables","DNA179",null,null,null,null,null,null,null,null,null,null,null,null,null,null,null,null,null,null,null,null,null,"Tuteurs","DH11","Dépenses horticoles",{"$f":"TabProduits[[#This Row],[Nom produit]]& TabProduits[[#This Row],[Libellé produit]]","v":"TuteursDépenses horticoles"}]
[null,null,null,null,null,null,null,null,null,null,null,null,null,null,null,null,null,null,null,null,null,"Stylos à bille","DNA180",null,null,null,null,null,null,null,null,null,null,null,null,null,null,null,null,null,null,null,null,null,"Analyses","DM01","Dépenses médicales",{"$f":"TabProduits[[#This Row],[Nom produit]]& TabProduits[[#This Row],[Libellé produit]]","v":"AnalysesDépenses médicales"}]
[null,null,null,null,null,null,null,null,null,null,null,null,null,null,null,null,null,null,null,null,null,"Stylos-plume","DNA181",null,null,null,null,null,null,null,null,null,null,null,null,null,null,null,null,null,null,null,null,null,"Autres dépenses médicales","DM02","Dépenses médicales",{"$f":"TabProduits[[#This Row],[Nom produit]]& TabProduits[[#This Row],[Libellé produit]]","v":"Autres dépenses médicalesDépenses médicales"}]
[null,null,null,null,null,null,null,null,null,null,null,null,null,null,null,null,null,null,null,null,null,"Syndicat C.G.T.","DNA182",null,null,null,null,null,null,null,null,null,null,null,null,null,null,null,null,null,null,null,null,null,"Dentiste","DM03","Dépenses médicales",{"$f":"TabProduits[[#This Row],[Nom produit]]& TabProduits[[#This Row],[Libellé produit]]","v":"DentisteDépenses médicales"}]
[null,null,null,null,null,null,null,null,null,null,null,null,null,null,null,null,null,null,null,null,null,"Tabac pour les cigarettes","DNA183",null,null,null,null,null,null,null,null,null,null,null,null,null,null,null,null,null,null,null,null,null,"Docteur dermatologue","DM04","Dépenses médicales",{"$f":"TabProduits[[#This Row],[Nom produit]]& TabProduits[[#This Row],[Libellé produit]]","v":"Docteur dermatologueDépenses médicales"}]
[null,null,null,null,null,null,null,null,null,null,null,null,null,null,null,null,null,null,null,null,null,"Tapis pour souris ordinateurs","DNA184",null,null,null,null,null,null,null,null,null,null,null,null,null,null,null,null,null,null,null,null,null,"Docteur généraliste","DM05","Dépenses médicales",{"$f":"TabProduits[[#This Row],[Nom produit]]& TabProduits[[#This Row],[Libellé produit]]","v":"Docteur généralisteDépenses médicales"}]
[null,null,null,null,null,null,null,null,null,null,null,null,null,null,null,null,null,null,null,null,null,"Taxi","DNA185",null,null,null,null,null,null,null,null,null,null,null,null,null,null,null,null,null,null,null,null,null,"Docteur ophtalmologiste","DM06","Dépenses médicales",{"$f":"TabProduits[[#This Row],[Nom produit]]& TabProduits[[#This Row],[Libellé produit]]","v":"Docteur ophtalmologisteDépenses médicales"}]
[null,null,null,null,null,null,null,null,null,null,null,null,null,null,null,null,null,null,null,null,null,"Télécommandes","DNA186",null,null,null,null,null,null,null,null,null,null,null,null,null,null,null,null,null,null,null,null,null,"Monture des lunettes","DM07","Dépenses médicales",{"$f":"TabProduits[[#This Row],[Nom produit]]& TabProduits[[#This Row],[Libellé produit]]","v":"Monture des lunettesDépenses médicales"}]
[null,null,null,null,null,null,null,null,null,null,null,null,null,null,null,null,null,null,null,null,null,"Téléphone fixe","DNA187",null,null,null,null,null,null,null,null,null,null,null,null,null,null,null,null,null,null,null,null,null,"Pharmacie vignette blanche","DM08","Dépenses médicales",{"$f":"TabProduits[[#This Row],[Nom produit]]& TabProduits[[#This Row],[Libellé produit]]","v":"Pharmacie vignette blancheDépenses médicales"}]
[null,null,null,null,null,null,null,null,null,null,null,null,null,null,null,null,null,null,null,null,null,"Téléphone portable","DNA188",null,null,null,null,null,null,null,null,null,null,null,null,null,null,null,null,null,null,null,null,null,"Pharmacie vignette bleue","DM09","Dépenses médicales",{"$f":"TabProduits[[#This Row],[Nom produit]]& TabProduits[[#This Row],[Libellé produit]]","v":"Pharmacie vignette bleueDépenses médicales"}]
[null,null,null,null,null,null,null,null,null,null,null,null,null,null,null,null,null,null,null,null,null,"Télévision","DNA189",null,null,null,null,null,null,null,null,null,null,null,null,null,null,null,null,null,null,null,null,null,"Pharmacie vignette orange","DM10","Dépenses médicales",{"$f":"TabProduits[[#This Row],[Nom produit]]& TabProduits[[#This Row],[Libellé produit]]","v":"Pharmacie vignette orangeDépenses médicales"}]
[null,null,null,null,null,null,null,null,null,null,null,null,null,null,null,null,null,null,null,null,null,"Théâtre","DNA190",null,null,null,null,null,null,null,null,null,null,null,null,null,null,null,null,null,null,null,null,null,"Prélèvements","DM11","Dépenses médicales",{"$f":"TabProduits[[#This Row],[Nom produit]]& TabProduits[[#This Row],[Libellé produit]]","v":"PrélèvementsDépenses médicales"}]
[null,null,null,null,null,null,null,null,null,null,null,null,null,null,null,null,null,null,null,null,null,"Tickets de bus","DNA191",null,null,null,null,null,null,null,null,null,null,null,null,null,null,null,null,null,null,null,null,null,"Radiographies","DM12","Dépenses médicales",{"$f":"TabProduits[[#This Row],[Nom produit]]& TabProduits[[#This Row],[Libellé produit]]","v":"RadiographiesDépenses médicales"}]
[null,null,null,null,null,null,null,null,null,null,null,null,null,null,null,null,null,null,null,null,null,"Tickets de métro","DNA192",null,null,null,null,null,null,null,null,null,null,null,null,null,null,null,null,null,null,null,null,null,"Verres des lunettes","DM13","Dépenses médicales",{"$f":"TabProduits[[#This Row],[Nom produit]]& TabProduits[[#This Row],[Libellé produit]]","v":"Verres des lunettesDépenses médicales"}]
[null,null,null,null,null,null,null,null,null,null,null,null,null,null,null,null,null,null,null,null,null,"Tickets de RER","DNA193",null,null,null,null,null,null,null,null,null,null,null,null,null,null,null,null,null,null,null,null,null,"Agrafes","DNA01","Dépenses non alimentaires",{"$f":"TabProduits[[#This Row],[Nom produit]]& TabProduits[[#This Row],[Libellé produit]]","v":"AgrafesDépenses non alimentaires"}]
[null,null,null,null,null,null,null,null,null,null,null,null,null,null,null,null,null,null,null,null,null,"Tickets tous transports","DNA194",null,null,null,null,null,null,null,null,null,null,null,null,null,null,null,null,null,null,null,null,null,"Agrafeuses","DNA02","Dépenses non alimentaires",{"$f":"TabProduits[[#This Row],[Nom produit]]& TabProduits[[#This Row],[Libellé produit]]","v":"AgrafeusesDépenses non alimentaires"}]
[null,null,null,null,null,null,null,null,null,null,null,null,null,null,null,null,null,null,null,null,null,"Timbres poste","DNA195",null,null,null,null,null,null,null,null,null,null,null,null,null,null,null,null,null,null,null,null,null,"Ajax","DNA03","Dépenses non alimentaires",{"$f":"TabProduits[[#This Row],[Nom produit]]& TabProduits[[#This Row],[Libellé produit]]","v":"AjaxDépenses non alimentaires"}]
[null,null,null,null,null,null,null,null,null,null,null,null,null,null,null,null,null,null,null,null,null,"Toners imprimantes","DNA196",null,null,null,null,null,null,null,null,null,null,null,null,null,null,null,null,null,null,null,null,null,"Allume-gaz","DNA04","Dépenses non alimentaires",{"$f":"TabProduits[[#This Row],[Nom produit]]& TabProduits[[#This Row],[Libellé produit]]","v":"Allume-gazDépenses non alimentaires"}]
[null,null,null,null,null,null,null,null,null,null,null,null,null,null,null,null,null,null,null,null,null,"Transistor noir chambre Kiki Crown","DNA197",null,null,null,null,null,null,null,null,null,null,null,null,null,null,null,null,null,null,null,null,null,"Ampoules électriques","DNA05","Dépenses non alimentaires",{"$f":"TabProduits[[#This Row],[Nom produit]]& TabProduits[[#This Row],[Libellé produit]]","v":"Ampoules électriquesDépenses non alimentaires"}]
[null,null,null,null,null,null,null,null,null,null,null,null,null,null,null,null,null,null,null,null,null,"Transistors","DNA198",null,null,null,null,null,null,null,null,null,null,null,null,null,null,null,null,null,null,null,null,null,"Ampoules halogènes","DNA06","Dépenses non alimentaires",{"$f":"TabProduits[[#This Row],[Nom produit]]& TabProduits[[#This Row],[Libellé produit]]","v":"Ampoules halogènesDépenses non alimentaires"}]
[null,null,null,null,null,null,null,null,null,null,null,null,null,null,null,null,null,null,null,null,null,"Trombones","DNA199",null,null,null,null,null,null,null,null,null,null,null,null,null,null,null,null,null,null,null,null,null,"Argent perdu","DNA07","Dépenses non alimentaires",{"$f":"TabProduits[[#This Row],[Nom produit]]& TabProduits[[#This Row],[Libellé produit]]","v":"Argent perduDépenses non alimentaires"}]
[null,null,null,null,null,null,null,null,null,null,null,null,null,null,null,null,null,null,null,null,null,"Tuyau gaz cuisinière","DNA200",null,null,null,null,null,null,null,null,null,null,null,null,null,null,null,null,null,null,null,null,null,"Argent perdu sur monnaie rendue","DNA08","Dépenses non alimentaires",{"$f":"TabProduits[[#This Row],[Nom produit]]& TabProduits[[#This Row],[Libellé produit]]","v":"Argent perdu sur monnaie rendueDépenses non alimentaires"}]
[null,null,null,null,null,null,null,null,null,null,null,null,null,null,null,null,null,null,null,null,null,"Vaisselle (Sauf casseroles et couvercles casseroles)","DNA201",null,null,null,null,null,null,null,null,null,null,null,null,null,null,null,null,null,null,null,null,null,"Aspirateur","DNA09","Dépenses non alimentaires",{"$f":"TabProduits[[#This Row],[Nom produit]]& TabProduits[[#This Row],[Libellé produit]]","v":"AspirateurDépenses non alimentaires"}]
[null,null,null,null,null,null,null,null,null,null,null,null,null,null,null,null,null,null,null,null,null,"Vernis à ongles","DNA202",null,null,null,null,null,null,null,null,null,null,null,null,null,null,null,null,null,null,null,null,null,"Assouplissant pour le linge","DNA10","Dépenses non alimentaires",{"$f":"TabProduits[[#This Row],[Nom produit]]& TabProduits[[#This Row],[Libellé produit]]","v":"Assouplissant pour le lingeDépenses non alimentaires"}]
[null,null,null,null,null,null,null,null,null,null,null,null,null,null,null,null,null,null,null,null,null,"Vêtements et sous-vêtements (sauf Blouses)","DNA203",null,null,null,null,null,null,null,null,null,null,null,null,null,null,null,null,null,null,null,null,null,"Autre matériel informatique","DNA11","Dépenses non alimentaires",{"$f":"TabProduits[[#This Row],[Nom produit]]& TabProduits[[#This Row],[Libellé produit]]","v":"Autre matériel informatiqueDépenses non alimentaires"}]
[null,null,null,null,null,null,null,null,null,null,null,null,null,null,null,null,null,null,null,null,null,"Vinaigre anticalcaire","DNA204",null,null,null,null,null,null,null,null,null,null,null,null,null,null,null,null,null,null,null,null,null,"Autres dépenses non alimentaires","DNA12","Dépenses non alimentaires",{"$f":"TabProduits[[#This Row],[Nom produit]]& TabProduits[[#This Row],[Libellé produit]]","v":"Autres dépenses non alimentairesDépenses non alimentaires"}]
[null,null,null,null,null,null,null,null,null,null,null,null,null,null,null,null,null,null,null,null,null,null,null,null,null,null,null,null,null,null,null,null,null,null,null,null,null,null,null,null,null,null,null,null,"Autres étrennes à répartir","DNA13","Dépenses non alimentaires",{"$f":"TabProduits[[#This Row],[Nom produit]]& TabProduits[[#This Row],[Libellé produit]]","v":"Autres étrennes à répartirDépenses non alimentaires"}]
[null,null,null,null,null,null,null,null,null,null,null,null,null,null,null,null,null,null,null,null,null,null,null,null,null,null,null,null,null,null,null,null,null,null,null,null,null,null,null,null,null,null,null,null,"Balais","DNA14","Dépenses non alimentaires",{"$f":"TabProduits[[#This Row],[Nom produit]]& TabProduits[[#This Row],[Libellé produit]]","v":"BalaisDépenses non alimentaires"}]
[null,null,null,null,null,null,null,null,null,null,null,null,null,null,null,null,null,null,null,null,null,null,null,null,null,null,null,null,null,null,null,null,null,null,null,null,null,null,null,null,null,null,null,null,"Balayette pour cuvette W.C. (y compris récipient)","DNA15","Dépenses non alimentaires",{"$f":"TabProduits[[#This Row],[Nom produit]]& TabProduits[[#This Row],[Libellé produit]]","v":"Balayette pour cuvette W.C. (y compris récipient)Dépenses non alimentaires"}]
[null,null,null,null,null,null,null,null,null,null,null,null,null,null,null,null,null,null,null,null,null,null,null,null,null,null,null,null,null,null,null,null,null,null,null,null,null,null,null,null,null,null,null,null,"Billets de tombola","DNA16","Dépenses non alimentaires",{"$f":"TabProduits[[#This Row],[Nom produit]]& TabProduits[[#This Row],[Libellé produit]]","v":"Billets de tombolaDépenses non alimentaires"}]
[null,null,null,null,null,null,null,null,null,null,null,null,null,null,null,null,null,null,null,null,null,null,null,null,null,null,null,null,null,null,null,null,null,null,null,null,null,null,null,null,null,null,null,null,"Billets de train","DNA17","Dépenses non alimentaires",{"$f":"TabProduits[[#This Row],[Nom produit]]& TabProduits[[#This Row],[Libellé produit]]","v":"Billets de trainDépenses non alimentaires"}]
[null,null,null,null,null,null,null,null,null,null,null,null,null,null,null,null,null,null,null,null,null,null,null,null,null,null,null,null,null,null,null,null,null,null,null,null,null,null,null,null,null,null,null,null,"Blouses (maison et ménage)","DNA18","Dépenses non alimentaires",{"$f":"TabProduits[[#This Row],[Nom produit]]& TabProduits[[#This Row],[Libellé produit]]","v":"Blouses (maison et ménage)Dépenses non alimentaires"}]
[null,null,null,null,null,null,null,null,null,null,null,null,null,null,null,null,null,null,null,null,null,null,null,null,null,null,null,null,null,null,null,null,null,null,null,null,null,null,null,null,null,null,null,null,"Bobines papier machine à calculer","DNA19","Dépenses non alimentaires",{"$f":"TabProduits[[#This Row],[Nom produit]]& TabProduits[[#This Row],[Libellé produit]]","v":"Bobines papier machine à calculerDépenses non alimentaires"}]
[null,null,null,null,null,null,null,null,null,null,null,null,null,null,null,null,null,null,null,null,null,null,null,null,null,null,null,null,null,null,null,null,null,null,null,null,null,null,null,null,null,null,null,null,"Bouchons évier","DNA20","Dépenses non alimentaires",{"$f":"TabProduits[[#This Row],[Nom produit]]& TabProduits[[#This Row],[Libellé produit]]","v":"Bouchons évierDépenses non alimentaires"}]
[null,null,null,null,null,null,null,null,null,null,null,null,null,null,null,null,null,null,null,null,null,null,null,null,null,null,null,null,null,null,null,null,null,null,null,null,null,null,null,null,null,null,null,null,"Bouchons lavabo","DNA21","Dépenses non alimentaires",{"$f":"TabProduits[[#This Row],[Nom produit]]& TabProduits[[#This Row],[Libellé produit]]","v":"Bouchons lavaboDépenses non alimentaires"}]
[null,null,null,null,null,null,null,null,null,null,null,null,null,null,null,null,null,null,null,null,null,null,null,null,null,null,null,null,null,null,null,null,null,null,null,null,null,null,null,null,null,null,null,null,"Bougies","DNA22","Dépenses non alimentaires",{"$f":"TabProduits[[#This Row],[Nom produit]]& TabProduits[[#This Row],[Libellé produit]]","v":"BougiesDépenses non alimentaires"}]
[null,null,null,null,null,null,null,null,null,null,null,null,null,null,null,null,null,null,null,null,null,null,null,null,null,null,null,null,null,null,null,null,null,null,null,null,null,null,null,null,null,null,null,null,"Bouteilles thermos","DNA23","Dépenses non alimentaires",{"$f":"TabProduits[[#This Row],[Nom produit]]& TabProduits[[#This Row],[Libellé produit]]","v":"Bouteilles thermosDépenses non alimentaires"}]
[null,null,null,null,null,null,null,null,null,null,null,null,null,null,null,null,null,null,null,null,null,null,null,null,null,null,null,null,null,null,null,null,null,null,null,null,null,null,null,null,null,null,null,null,"Boutons","DNA24","Dépenses non alimentaires",{"$f":"TabProduits[[#This Row],[Nom produit]]& TabProduits[[#This Row],[Libellé produit]]","v":"BoutonsDépenses non alimentaires"}]
[null,null,null,null,null,null,null,null,null,null,null,null,null,null,null,null,null,null,null,null,null,null,null,null,null,null,null,null,null,null,null,null,null,null,null,null,null,null,null,null,null,null,null,null,"Briquets","DNA25","Dépenses non alimentaires",{"$f":"TabProduits[[#This Row],[Nom produit]]& TabProduits[[#This Row],[Libellé produit]]","v":"BriquetsDépenses non alimentaires"}]
[null,null,null,null,null,null,null,null,null,null,null,null,null,null,null,null,null,null,null,null,null,null,null,null,null,null,null,null,null,null,null,null,null,null,null,null,null,null,null,null,null,null,null,null,"Brise-jets","DNA26","Dépenses non alimentaires",{"$f":"TabProduits[[#This Row],[Nom produit]]& TabProduits[[#This Row],[Libellé produit]]","v":"Brise-jetsDépenses non alimentaires"}]
[null,null,null,null,null,null,null,null,null,null,null,null,null,null,null,null,null,null,null,null,null,null,null,null,null,null,null,null,null,null,null,null,null,null,null,null,null,null,null,null,null,null,null,null,"Brosses à dents","DNA27","Dépenses non alimentaires",{"$f":"TabProduits[[#This Row],[Nom produit]]& TabProduits[[#This Row],[Libellé produit]]","v":"Brosses à dentsDépenses non alimentaires"}]
[null,null,null,null,null,null,null,null,null,null,null,null,null,null,null,null,null,null,null,null,null,null,null,null,null,null,null,null,null,null,null,null,null,null,null,null,null,null,null,null,null,null,null,null,"Câbles imprimantes","DNA28","Dépenses non alimentaires",{"$f":"TabProduits[[#This Row],[Nom produit]]& TabProduits[[#This Row],[Libellé produit]]","v":"Câbles imprimantesDépenses non alimentaires"}]
[null,null,null,null,null,null,null,null,null,null,null,null,null,null,null,null,null,null,null,null,null,null,null,null,null,null,null,null,null,null,null,null,null,null,null,null,null,null,null,null,null,null,null,null,"Câbles réseau","DNA29","Dépenses non alimentaires",{"$f":"TabProduits[[#This Row],[Nom produit]]& TabProduits[[#This Row],[Libellé produit]]","v":"Câbles réseauDépenses non alimentaires"}]
[null,null,null,null,null,null,null,null,null,null,null,null,null,null,null,null,null,null,null,null,null,null,null,null,null,null,null,null,null,null,null,null,null,null,null,null,null,null,null,null,null,null,null,null,"Cadeaux","DNA30","Dépenses non alimentaires",{"$f":"TabProduits[[#This Row],[Nom produit]]& TabProduits[[#This Row],[Libellé produit]]","v":"CadeauxDépenses non alimentaires"}]
[null,null,null,null,null,null,null,null,null,null,null,null,null,null,null,null,null,null,null,null,null,null,null,null,null,null,null,null,null,null,null,null,null,null,null,null,null,null,null,null,null,null,null,null,"Cahiers","DNA31","Dépenses non alimentaires",{"$f":"TabProduits[[#This Row],[Nom produit]]& TabProduits[[#This Row],[Libellé produit]]","v":"CahiersDépenses non alimentaires"}]
[null,null,null,null,null,null,null,null,null,null,null,null,null,null,null,null,null,null,null,null,null,null,null,null,null,null,null,null,null,null,null,null,null,null,null,null,null,null,null,null,null,null,null,null,"Carte amicale des locataires (Confédération nationale du logement)","DNA32","Dépenses non alimentaires",{"$f":"TabProduits[[#This Row],[Nom produit]]& TabProduits[[#This Row],[Libellé produit]]","v":"Carte amicale des locataires (Confédération nationale du logement)Dépenses non alimentaires"}]
[null,null,null,null,null,null,null,null,null,null,null,null,null,null,null,null,null,null,null,null,null,null,null,null,null,null,null,null,null,null,null,null,null,null,null,null,null,null,null,null,null,null,null,null,"Cartes d'anniversaire","DNA33","Dépenses non alimentaires",{"$f":"TabProduits[[#This Row],[Nom produit]]& TabProduits[[#This Row],[Libellé produit]]","v":"Cartes d'anniversaireDépenses non alimentaires"}]
[null,null,null,null,null,null,null,null,null,null,null,null,null,null,null,null,null,null,null,null,null,null,null,null,null,null,null,null,null,null,null,null,null,null,null,null,null,null,null,null,null,null,null,null,"Cartes de fête","DNA34","Dépenses non alimentaires",{"$f":"TabProduits[[#This Row],[Nom produit]]& TabProduits[[#This Row],[Libellé produit]]","v":"Cartes de fêteDépenses non alimentaires"}]
[null,null,null,null,null,null,null,null,null,null,null,null,null,null,null,null,null,null,null,null,null,null,null,null,null,null,null,null,null,null,null,null,null,null,null,null,null,null,null,null,null,null,null,null,"Cartes de vacances","DNA35","Dépenses non alimentaires",{"$f":"TabProduits[[#This Row],[Nom produit]]& TabProduits[[#This Row],[Libellé produit]]","v":"Cartes de vacancesDépenses non alimentaires"}]
[null,null,null,null,null,null,null,null,null,null,null,null,null,null,null,null,null,null,null,null,null,null,null,null,null,null,null,null,null,null,null,null,null,null,null,null,null,null,null,null,null,null,null,null,"Cartes de vœux","DNA36","Dépenses non alimentaires",{"$f":"TabProduits[[#This Row],[Nom produit]]& TabProduits[[#This Row],[Libellé produit]]","v":"Cartes de vœuxDépenses non alimentaires"}]
[null,null,null,null,null,null,null,null,null,null,null,null,null,null,null,null,null,null,null,null,null,null,null,null,null,null,null,null,null,null,null,null,null,null,null,null,null,null,null,null,null,null,null,null,"Cartouches imprimantes","DNA37","Dépenses non alimentaires",{"$f":"TabProduits[[#This Row],[Nom produit]]& TabProduits[[#This Row],[Libellé produit]]","v":"Cartouches imprimantesDépenses non alimentaires"}]
[null,null,null,null,null,null,null,null,null,null,null,null,null,null,null,null,null,null,null,null,null,null,null,null,null,null,null,null,null,null,null,null,null,null,null,null,null,null,null,null,null,null,null,null,"Cartouches stylos-plume","DNA38","Dépenses non alimentaires",{"$f":"TabProduits[[#This Row],[Nom produit]]& TabProduits[[#This Row],[Libellé produit]]","v":"Cartouches stylos-plumeDépenses non alimentaires"}]
[null,null,null,null,null,null,null,null,null,null,null,null,null,null,null,null,null,null,null,null,null,null,null,null,null,null,null,null,null,null,null,null,null,null,null,null,null,null,null,null,null,null,null,null,"Casseroles","DNA39","Dépenses non alimentaires",{"$f":"TabProduits[[#This Row],[Nom produit]]& TabProduits[[#This Row],[Libellé produit]]","v":"CasserolesDépenses non alimentaires"}]
[null,null,null,null,null,null,null,null,null,null,null,null,null,null,null,null,null,null,null,null,null,null,null,null,null,null,null,null,null,null,null,null,null,null,null,null,null,null,null,null,null,null,null,null,"Cassettes dictaphone","DNA40","Dépenses non alimentaires",{"$f":"TabProduits[[#This Row],[Nom produit]]& TabProduits[[#This Row],[Libellé produit]]","v":"Cassettes dictaphoneDépenses non alimentaires"}]
[null,null,null,null,null,null,null,null,null,null,null,null,null,null,null,null,null,null,null,null,null,null,null,null,null,null,null,null,null,null,null,null,null,null,null,null,null,null,null,null,null,null,null,null,"Cassettes vidéo","DNA41","Dépenses non alimentaires",{"$f":"TabProduits[[#This Row],[Nom produit]]& TabProduits[[#This Row],[Libellé produit]]","v":"Cassettes vidéoDépenses non alimentaires"}]
[null,null,null,null,null,null,null,null,null,null,null,null,null,null,null,null,null,null,null,null,null,null,null,null,null,null,null,null,null,null,null,null,null,null,null,null,null,null,null,null,null,null,null,null,"Cendriers","DNA42","Dépenses non alimentaires",{"$f":"TabProduits[[#This Row],[Nom produit]]& TabProduits[[#This Row],[Libellé produit]]","v":"CendriersDépenses non alimentaires"}]
[null,null,null,null,null,null,null,null,null,null,null,null,null,null,null,null,null,null,null,null,null,null,null,null,null,null,null,null,null,null,null,null,null,null,null,null,null,null,null,null,null,null,null,null,"Chaussettes","DNA43","Dépenses non alimentaires",{"$f":"TabProduits[[#This Row],[Nom produit]]& TabProduits[[#This Row],[Libellé produit]]","v":"ChaussettesDépenses non alimentaires"}]
[null,null,null,null,null,null,null,null,null,null,null,null,null,null,null,null,null,null,null,null,null,null,null,null,null,null,null,null,null,null,null,null,null,null,null,null,null,null,null,null,null,null,null,null,"Chaussons","DNA44","Dépenses non alimentaires",{"$f":"TabProduits[[#This Row],[Nom produit]]& TabProduits[[#This Row],[Libellé produit]]","v":"ChaussonsDépenses non alimentaires"}]
[null,null,null,null,null,null,null,null,null,null,null,null,null,null,null,null,null,null,null,null,null,null,null,null,null,null,null,null,null,null,null,null,null,null,null,null,null,null,null,null,null,null,null,null,"Chaussures","DNA45","Dépenses non alimentaires",{"$f":"TabProduits[[#This Row],[Nom produit]]& TabProduits[[#This Row],[Libellé produit]]","v":"ChaussuresDépenses non alimentaires"}]
[null,null,null,null,null,null,null,null,null,null,null,null,null,null,null,null,null,null,null,null,null,null,null,null,null,null,null,null,null,null,null,null,null,null,null,null,null,null,null,null,null,null,null,null,"Chiffon à épousseter","DNA46","Dépenses non alimentaires",{"$f":"TabProduits[[#This Row],[Nom produit]]& TabProduits[[#This Row],[Libellé produit]]","v":"Chiffon à épousseterDépenses non alimentaires"}]
[null,null,null,null,null,null,null,null,null,null,null,null,null,null,null,null,null,null,null,null,null,null,null,null,null,null,null,null,null,null,null,null,null,null,null,null,null,null,null,null,null,null,null,null,"Cigarettes déjà roulées","DNA47","Dépenses non alimentaires",{"$f":"TabProduits[[#This Row],[Nom produit]]& TabProduits[[#This Row],[Libellé produit]]","v":"Cigarettes déjà rouléesDépenses non alimentaires"}]
[null,null,null,null,null,null,null,null,null,null,null,null,null,null,null,null,null,null,null,null,null,null,null,null,null,null,null,null,null,null,null,null,null,null,null,null,null,null,null,null,null,null,null,null,"Cigarettes électroniques","DNA48","Dépenses non alimentaires",{"$f":"TabProduits[[#This Row],[Nom produit]]& TabProduits[[#This Row],[Libellé produit]]","v":"Cigarettes électroniquesDépenses non alimentaires"}]
[null,null,null,null,null,null,null,null,null,null,null,null,null,null,null,null,null,null,null,null,null,null,null,null,null,null,null,null,null,null,null,null,null,null,null,null,null,null,null,null,null,null,null,null,"Cinéma","DNA49","Dépenses non alimentaires",{"$f":"TabProduits[[#This Row],[Nom produit]]& TabProduits[[#This Row],[Libellé produit]]","v":"CinémaDépenses non alimentaires"}]
[null,null,null,null,null,null,null,null,null,null,null,null,null,null,null,null,null,null,null,null,null,null,null,null,null,null,null,null,null,null,null,null,null,null,null,null,null,null,null,null,null,null,null,null,"Cirage","DNA50","Dépenses non alimentaires",{"$f":"TabProduits[[#This Row],[Nom produit]]& TabProduits[[#This Row],[Libellé produit]]","v":"CirageDépenses non alimentaires"}]
[null,null,null,null,null,null,null,null,null,null,null,null,null,null,null,null,null,null,null,null,null,null,null,null,null,null,null,null,null,null,null,null,null,null,null,null,null,null,null,null,null,null,null,null,"Cirque","DNA51","Dépenses non alimentaires",{"$f":"TabProduits[[#This Row],[Nom produit]]& TabProduits[[#This Row],[Libellé produit]]","v":"CirqueDépenses non alimentaires"}]
[null,null,null,null,null,null,null,null,null,null,null,null,null,null,null,null,null,null,null,null,null,null,null,null,null,null,null,null,null,null,null,null,null,null,null,null,null,null,null,null,null,null,null,null,"Ciseaux","DNA52","Dépenses non alimentaires",{"$f":"TabProduits[[#This Row],[Nom produit]]& TabProduits[[#This Row],[Libellé produit]]","v":"CiseauxDépenses non alimentaires"}]
[null,null,null,null,null,null,null,null,null,null,null,null,null,null,null,null,null,null,null,null,null,null,null,null,null,null,null,null,null,null,null,null,null,null,null,null,null,null,null,null,null,null,null,null,"Claviers ordinateurs de bureau","DNA53","Dépenses non alimentaires",{"$f":"TabProduits[[#This Row],[Nom produit]]& TabProduits[[#This Row],[Libellé produit]]","v":"Claviers ordinateurs de bureauDépenses non alimentaires"}]
[null,null,null,null,null,null,null,null,null,null,null,null,null,null,null,null,null,null,null,null,null,null,null,null,null,null,null,null,null,null,null,null,null,null,null,null,null,null,null,null,null,null,null,null,"Clenches","DNA54","Dépenses non alimentaires",{"$f":"TabProduits[[#This Row],[Nom produit]]& TabProduits[[#This Row],[Libellé produit]]","v":"ClenchesDépenses non alimentaires"}]
[null,null,null,null,null,null,null,null,null,null,null,null,null,null,null,null,null,null,null,null,null,null,null,null,null,null,null,null,null,null,null,null,null,null,null,null,null,null,null,null,null,null,null,null,"Cocotte minute","DNA55","Dépenses non alimentaires",{"$f":"TabProduits[[#This Row],[Nom produit]]& TabProduits[[#This Row],[Libellé produit]]","v":"Cocotte minuteDépenses non alimentaires"}]
[null,null,null,null,null,null,null,null,null,null,null,null,null,null,null,null,null,null,null,null,null,null,null,null,null,null,null,null,null,null,null,null,null,null,null,null,null,null,null,null,null,null,null,null,"Coiffeur","DNA56","Dépenses non alimentaires",{"$f":"TabProduits[[#This Row],[Nom produit]]& TabProduits[[#This Row],[Libellé produit]]","v":"CoiffeurDépenses non alimentaires"}]
[null,null,null,null,null,null,null,null,null,null,null,null,null,null,null,null,null,null,null,null,null,null,null,null,null,null,null,null,null,null,null,null,null,null,null,null,null,null,null,null,null,null,null,null,"Colle SUPERGLUE-3","DNA57","Dépenses non alimentaires",{"$f":"TabProduits[[#This Row],[Nom produit]]& TabProduits[[#This Row],[Libellé produit]]","v":"Colle SUPERGLUE-3Dépenses non alimentaires"}]
[null,null,null,null,null,null,null,null,null,null,null,null,null,null,null,null,null,null,null,null,null,null,null,null,null,null,null,null,null,null,null,null,null,null,null,null,null,null,null,null,null,null,null,null,"Collectes","DNA58","Dépenses non alimentaires",{"$f":"TabProduits[[#This Row],[Nom produit]]& TabProduits[[#This Row],[Libellé produit]]","v":"CollectesDépenses non alimentaires"}]
[null,null,null,null,null,null,null,null,null,null,null,null,null,null,null,null,null,null,null,null,null,null,null,null,null,null,null,null,null,null,null,null,null,null,null,null,null,null,null,null,null,null,null,null,"Compact disc rom informatique","DNA59","Dépenses non alimentaires",{"$f":"TabProduits[[#This Row],[Nom produit]]& TabProduits[[#This Row],[Libellé produit]]","v":"Compact disc rom informatiqueDépenses non alimentaires"}]
[null,null,null,null,null,null,null,null,null,null,null,null,null,null,null,null,null,null,null,null,null,null,null,null,null,null,null,null,null,null,null,null,null,null,null,null,null,null,null,null,null,null,null,null,"Compact disc rom vidéo","DNA60","Dépenses non alimentaires",{"$f":"TabProduits[[#This Row],[Nom produit]]& TabProduits[[#This Row],[Libellé produit]]","v":"Compact disc rom vidéoDépenses non alimentaires"}]
[null,null,null,null,null,null,null,null,null,null,null,null,null,null,null,null,null,null,null,null,null,null,null,null,null,null,null,null,null,null,null,null,null,null,null,null,null,null,null,null,null,null,null,null,"Congélateur","DNA61","Dépenses non alimentaires",{"$f":"TabProduits[[#This Row],[Nom produit]]& TabProduits[[#This Row],[Libellé produit]]","v":"CongélateurDépenses non alimentaires"}]
[null,null,null,null,null,null,null,null,null,null,null,null,null,null,null,null,null,null,null,null,null,null,null,null,null,null,null,null,null,null,null,null,null,null,null,null,null,null,null,null,null,null,null,null,"Corrector liquide","DNA62","Dépenses non alimentaires",{"$f":"TabProduits[[#This Row],[Nom produit]]& TabProduits[[#This Row],[Libellé produit]]","v":"Corrector liquideDépenses non alimentaires"}]
[null,null,null,null,null,null,null,null,null,null,null,null,null,null,null,null,null,null,null,null,null,null,null,null,null,null,null,null,null,null,null,null,null,null,null,null,null,null,null,null,null,null,null,null,"Couteau électrique","DNA63","Dépenses non alimentaires",{"$f":"TabProduits[[#This Row],[Nom produit]]& TabProduits[[#This Row],[Libellé produit]]","v":"Couteau électriqueDépenses non alimentaires"}]
[null,null,null,null,null,null,null,null,null,null,null,null,null,null,null,null,null,null,null,null,null,null,null,null,null,null,null,null,null,null,null,null,null,null,null,null,null,null,null,null,null,null,null,null,"Couvercles casseroles","DNA64","Dépenses non alimentaires",{"$f":"TabProduits[[#This Row],[Nom produit]]& TabProduits[[#This Row],[Libellé produit]]","v":"Couvercles casserolesDépenses non alimentaires"}]
[null,null,null,null,null,null,null,null,null,null,null,null,null,null,null,null,null,null,null,null,null,null,null,null,null,null,null,null,null,null,null,null,null,null,null,null,null,null,null,null,null,null,null,null,"Crayons à papier","DNA65","Dépenses non alimentaires",{"$f":"TabProduits[[#This Row],[Nom produit]]& TabProduits[[#This Row],[Libellé produit]]","v":"Crayons à papierDépenses non alimentaires"}]
[null,null,null,null,null,null,null,null,null,null,null,null,null,null,null,null,null,null,null,null,null,null,null,null,null,null,null,null,null,null,null,null,null,null,null,null,null,null,null,null,null,null,null,null,"Crochets tringles","DNA66","Dépenses non alimentaires",{"$f":"TabProduits[[#This Row],[Nom produit]]& TabProduits[[#This Row],[Libellé produit]]","v":"Crochets tringlesDépenses non alimentaires"}]
[null,null,null,null,null,null,null,null,null,null,null,null,null,null,null,null,null,null,null,null,null,null,null,null,null,null,null,null,null,null,null,null,null,null,null,null,null,null,null,null,null,null,null,null,"Cuisinière","DNA67","Dépenses non alimentaires",{"$f":"TabProduits[[#This Row],[Nom produit]]& TabProduits[[#This Row],[Libellé produit]]","v":"CuisinièreDépenses non alimentaires"}]
[null,null,null,null,null,null,null,null,null,null,null,null,null,null,null,null,null,null,null,null,null,null,null,null,null,null,null,null,null,null,null,null,null,null,null,null,null,null,null,null,null,null,null,null,"Cure-dents","DNA68","Dépenses non alimentaires",{"$f":"TabProduits[[#This Row],[Nom produit]]& TabProduits[[#This Row],[Libellé produit]]","v":"Cure-dentsDépenses non alimentaires"}]
[null,null,null,null,null,null,null,null,null,null,null,null,null,null,null,null,null,null,null,null,null,null,null,null,null,null,null,null,null,null,null,null,null,null,null,null,null,null,null,null,null,null,null,null,"Dateur","DNA69","Dépenses non alimentaires",{"$f":"TabProduits[[#This Row],[Nom produit]]& TabProduits[[#This Row],[Libellé produit]]","v":"DateurDépenses non alimentaires"}]
[null,null,null,null,null,null,null,null,null,null,null,null,null,null,null,null,null,null,null,null,null,null,null,null,null,null,null,null,null,null,null,null,null,null,null,null,null,null,null,null,null,null,null,null,"Décap'four","DNA70","Dépenses non alimentaires",{"$f":"TabProduits[[#This Row],[Nom produit]]& TabProduits[[#This Row],[Libellé produit]]","v":"Décap'fourDépenses non alimentaires"}]
[null,null,null,null,null,null,null,null,null,null,null,null,null,null,null,null,null,null,null,null,null,null,null,null,null,null,null,null,null,null,null,null,null,null,null,null,null,null,null,null,null,null,null,null,"Dentifrice","DNA71","Dépenses non alimentaires",{"$f":"TabProduits[[#This Row],[Nom produit]]& TabProduits[[#This Row],[Libellé produit]]","v":"DentifriceDépenses non alimentaires"}]
[null,null,null,null,null,null,null,null,null,null,null,null,null,null,null,null,null,null,null,null,null,null,null,null,null,null,null,null,null,null,null,null,null,null,null,null,null,null,null,null,null,null,null,null,"Déodorant corporel","DNA72","Dépenses non alimentaires",{"$f":"TabProduits[[#This Row],[Nom produit]]& TabProduits[[#This Row],[Libellé produit]]","v":"Déodorant corporelDépenses non alimentaires"}]
[null,null,null,null,null,null,null,null,null,null,null,null,null,null,null,null,null,null,null,null,null,null,null,null,null,null,null,null,null,null,null,null,null,null,null,null,null,null,null,null,null,null,null,null,"Déodorant maison","DNA73","Dépenses non alimentaires",{"$f":"TabProduits[[#This Row],[Nom produit]]& TabProduits[[#This Row],[Libellé produit]]","v":"Déodorant maisonDépenses non alimentaires"}]
[null,null,null,null,null,null,null,null,null,null,null,null,null,null,null,null,null,null,null,null,null,null,null,null,null,null,null,null,null,null,null,null,null,null,null,null,null,null,null,null,null,null,null,null,"Dessous de plats","DNA74","Dépenses non alimentaires",{"$f":"TabProduits[[#This Row],[Nom produit]]& TabProduits[[#This Row],[Libellé produit]]","v":"Dessous de platsDépenses non alimentaires"}]
[null,null,null,null,null,null,null,null,null,null,null,null,null,null,null,null,null,null,null,null,null,null,null,null,null,null,null,null,null,null,null,null,null,null,null,null,null,null,null,null,null,null,null,null,"Destop","DNA75","Dépenses non alimentaires",{"$f":"TabProduits[[#This Row],[Nom produit]]& TabProduits[[#This Row],[Libellé produit]]","v":"DestopDépenses non alimentaires"}]
[null,null,null,null,null,null,null,null,null,null,null,null,null,null,null,null,null,null,null,null,null,null,null,null,null,null,null,null,null,null,null,null,null,null,null,null,null,null,null,null,null,null,null,null,"Détartrant water-closets","DNA76","Dépenses non alimentaires",{"$f":"TabProduits[[#This Row],[Nom produit]]& TabProduits[[#This Row],[Libellé produit]]","v":"Détartrant water-closetsDépenses non alimentaires"}]
[null,null,null,null,null,null,null,null,null,null,null,null,null,null,null,null,null,null,null,null,null,null,null,null,null,null,null,null,null,null,null,null,null,null,null,null,null,null,null,null,null,null,null,null,"Dévidoirs scotch","DNA77","Dépenses non alimentaires",{"$f":"TabProduits[[#This Row],[Nom produit]]& TabProduits[[#This Row],[Libellé produit]]","v":"Dévidoirs scotchDépenses non alimentaires"}]
[null,null,null,null,null,null,null,null,null,null,null,null,null,null,null,null,null,null,null,null,null,null,null,null,null,null,null,null,null,null,null,null,null,null,null,null,null,null,null,null,null,null,null,null,"Eau de Javel","DNA78","Dépenses non alimentaires",{"$f":"TabProduits[[#This Row],[Nom produit]]& TabProduits[[#This Row],[Libellé produit]]","v":"Eau de JavelDépenses non alimentaires"}]
[null,null,null,null,null,null,null,null,null,null,null,null,null,null,null,null,null,null,null,null,null,null,null,null,null,null,null,null,null,null,null,null,null,null,null,null,null,null,null,null,null,null,null,null,"Eau de toilette","DNA79","Dépenses non alimentaires",{"$f":"TabProduits[[#This Row],[Nom produit]]& TabProduits[[#This Row],[Libellé produit]]","v":"Eau de toiletteDépenses non alimentaires"}]
[null,null,null,null,null,null,null,null,null,null,null,null,null,null,null,null,null,null,null,null,null,null,null,null,null,null,null,null,null,null,null,null,null,null,null,null,null,null,null,null,null,null,null,null,"Élastiques","DNA80","Dépenses non alimentaires",{"$f":"TabProduits[[#This Row],[Nom produit]]& TabProduits[[#This Row],[Libellé produit]]","v":"ÉlastiquesDépenses non alimentaires"}]
[null,null,null,null,null,null,null,null,null,null,null,null,null,null,null,null,null,null,null,null,null,null,null,null,null,null,null,null,null,null,null,null,null,null,null,null,null,null,null,null,null,null,null,null,"Enrouleuses à cigarettes","DNA81","Dépenses non alimentaires",{"$f":"TabProduits[[#This Row],[Nom produit]]& TabProduits[[#This Row],[Libellé produit]]","v":"Enrouleuses à cigarettesDépenses non alimentaires"}]
[null,null,null,null,null,null,null,null,null,null,null,null,null,null,null,null,null,null,null,null,null,null,null,null,null,null,null,null,null,null,null,null,null,null,null,null,null,null,null,null,null,null,null,null,"Enveloppes pré-timbrées ou enveloppes non pré-timbrées","DNA82","Dépenses non alimentaires",{"$f":"TabProduits[[#This Row],[Nom produit]]& TabProduits[[#This Row],[Libellé produit]]","v":"Enveloppes pré-timbrées ou enveloppes non pré-timbréesDépenses non alimentaires"}]
[null,null,null,null,null,null,null,null,null,null,null,null,null,null,null,null,null,null,null,null,null,null,null,null,null,null,null,null,null,null,null,null,null,null,null,null,null,null,null,null,null,null,null,null,"Envois recommandés avec accusé de réception","DNA83","Dépenses non alimentaires",{"$f":"TabProduits[[#This Row],[Nom produit]]& TabProduits[[#This Row],[Libellé produit]]","v":"Envois recommandés avec accusé de réceptionDépenses non alimentaires"}]
[null,null,null,null,null,null,null,null,null,null,null,null,null,null,null,null,null,null,null,null,null,null,null,null,null,null,null,null,null,null,null,null,null,null,null,null,null,null,null,null,null,null,null,null,"Éphéméride","DNA84","Dépenses non alimentaires",{"$f":"TabProduits[[#This Row],[Nom produit]]& TabProduits[[#This Row],[Libellé produit]]","v":"ÉphémérideDépenses non alimentaires"}]
[null,null,null,null,null,null,null,null,null,null,null,null,null,null,null,null,null,null,null,null,null,null,null,null,null,null,null,null,null,null,null,null,null,null,null,null,null,null,null,null,null,null,null,null,"Épingles à linge","DNA85","Dépenses non alimentaires",{"$f":"TabProduits[[#This Row],[Nom produit]]& TabProduits[[#This Row],[Libellé produit]]","v":"Épingles à lingeDépenses non alimentaires"}]
[null,null,null,null,null,null,null,null,null,null,null,null,null,null,null,null,null,null,null,null,null,null,null,null,null,null,null,null,null,null,null,null,null,null,null,null,null,null,null,null,null,null,null,null,"Éponges pour la table","DNA86","Dépenses non alimentaires",{"$f":"TabProduits[[#This Row],[Nom produit]]& TabProduits[[#This Row],[Libellé produit]]","v":"Éponges pour la tableDépenses non alimentaires"}]
[null,null,null,null,null,null,null,null,null,null,null,null,null,null,null,null,null,null,null,null,null,null,null,null,null,null,null,null,null,null,null,null,null,null,null,null,null,null,null,null,null,null,null,null,"Éponges pour le ménage","DNA87","Dépenses non alimentaires",{"$f":"TabProduits[[#This Row],[Nom produit]]& TabProduits[[#This Row],[Libellé produit]]","v":"Éponges pour le ménageDépenses non alimentaires"}]
[null,null,null,null,null,null,null,null,null,null,null,null,null,null,null,null,null,null,null,null,null,null,null,null,null,null,null,null,null,null,null,null,null,null,null,null,null,null,null,null,null,null,null,null,"Essence pour briquets Zippo","DNA88","Dépenses non alimentaires",{"$f":"TabProduits[[#This Row],[Nom produit]]& TabProduits[[#This Row],[Libellé produit]]","v":"Essence pour briquets ZippoDépenses non alimentaires"}]
[null,null,null,null,null,null,null,null,null,null,null,null,null,null,null,null,null,null,null,null,null,null,null,null,null,null,null,null,null,null,null,null,null,null,null,null,null,null,null,null,null,null,null,null,"Essoreuse à salade","DNA89","Dépenses non alimentaires",{"$f":"TabProduits[[#This Row],[Nom produit]]& TabProduits[[#This Row],[Libellé produit]]","v":"Essoreuse à saladeDépenses non alimentaires"}]
[null,null,null,null,null,null,null,null,null,null,null,null,null,null,null,null,null,null,null,null,null,null,null,null,null,null,null,null,null,null,null,null,null,null,null,null,null,null,null,null,null,null,null,null,"Étendoirs à linge (mural et sur pied)","DNA90","Dépenses non alimentaires",{"$f":"TabProduits[[#This Row],[Nom produit]]& TabProduits[[#This Row],[Libellé produit]]","v":"Étendoirs à linge (mural et sur pied)Dépenses non alimentaires"}]
[null,null,null,null,null,null,null,null,null,null,null,null,null,null,null,null,null,null,null,null,null,null,null,null,null,null,null,null,null,null,null,null,null,null,null,null,null,null,null,null,null,null,null,null,"Étiquettes","DNA91","Dépenses non alimentaires",{"$f":"TabProduits[[#This Row],[Nom produit]]& TabProduits[[#This Row],[Libellé produit]]","v":"ÉtiquettesDépenses non alimentaires"}]
[null,null,null,null,null,null,null,null,null,null,null,null,null,null,null,null,null,null,null,null,null,null,null,null,null,null,null,null,null,null,null,null,null,null,null,null,null,null,null,null,null,null,null,null,"Étrennes des éboueurs","DNA92","Dépenses non alimentaires",{"$f":"TabProduits[[#This Row],[Nom produit]]& TabProduits[[#This Row],[Libellé produit]]","v":"Étrennes des éboueursDépenses non alimentaires"}]
[null,null,null,null,null,null,null,null,null,null,null,null,null,null,null,null,null,null,null,null,null,null,null,null,null,null,null,null,null,null,null,null,null,null,null,null,null,null,null,null,null,null,null,null,"Étrennes des pompiers","DNA93","Dépenses non alimentaires",{"$f":"TabProduits[[#This Row],[Nom produit]]& TabProduits[[#This Row],[Libellé produit]]","v":"Étrennes des pompiersDépenses non alimentaires"}]
[null,null,null,null,null,null,null,null,null,null,null,null,null,null,null,null,null,null,null,null,null,null,null,null,null,null,null,null,null,null,null,null,null,null,null,null,null,null,null,null,null,null,null,null,"Étrennes du facteur","DNA94","Dépenses non alimentaires",{"$f":"TabProduits[[#This Row],[Nom produit]]& TabProduits[[#This Row],[Libellé produit]]","v":"Étrennes du facteurDépenses non alimentaires"}]
[null,null,null,null,null,null,null,null,null,null,null,null,null,null,null,null,null,null,null,null,null,null,null,null,null,null,null,null,null,null,null,null,null,null,null,null,null,null,null,null,null,null,null,null,"Étrennes du gardien","DNA95","Dépenses non alimentaires",{"$f":"TabProduits[[#This Row],[Nom produit]]& TabProduits[[#This Row],[Libellé produit]]","v":"Étrennes du gardienDépenses non alimentaires"}]
[null,null,null,null,null,null,null,null,null,null,null,null,null,null,null,null,null,null,null,null,null,null,null,null,null,null,null,null,null,null,null,null,null,null,null,null,null,null,null,null,null,null,null,null,"Étuis à cigarettes","DNA96","Dépenses non alimentaires",{"$f":"TabProduits[[#This Row],[Nom produit]]& TabProduits[[#This Row],[Libellé produit]]","v":"Étuis à cigarettesDépenses non alimentaires"}]
[null,null,null,null,null,null,null,null,null,null,null,null,null,null,null,null,null,null,null,null,null,null,null,null,null,null,null,null,null,null,null,null,null,null,null,null,null,null,null,null,null,null,null,null,"Fer électrique à repasser","DNA97","Dépenses non alimentaires",{"$f":"TabProduits[[#This Row],[Nom produit]]& TabProduits[[#This Row],[Libellé produit]]","v":"Fer électrique à repasserDépenses non alimentaires"}]
[null,null,null,null,null,null,null,null,null,null,null,null,null,null,null,null,null,null,null,null,null,null,null,null,null,null,null,null,null,null,null,null,null,null,null,null,null,null,null,null,null,null,null,null,"Feuilles à cigarettes","DNA98","Dépenses non alimentaires",{"$f":"TabProduits[[#This Row],[Nom produit]]& TabProduits[[#This Row],[Libellé produit]]","v":"Feuilles à cigarettesDépenses non alimentaires"}]
[null,null,null,null,null,null,null,null,null,null,null,null,null,null,null,null,null,null,null,null,null,null,null,null,null,null,null,null,null,null,null,null,null,null,null,null,null,null,null,null,null,null,null,null,"Four à micro-ondes","DNA99","Dépenses non alimentaires",{"$f":"TabProduits[[#This Row],[Nom produit]]& TabProduits[[#This Row],[Libellé produit]]","v":"Four à micro-ondesDépenses non alimentaires"}]
[null,null,null,null,null,null,null,null,null,null,null,null,null,null,null,null,null,null,null,null,null,null,null,null,null,null,null,null,null,null,null,null,null,null,null,null,null,null,null,null,null,null,null,null,"Frais d'essence","DNA100","Dépenses non alimentaires",{"$f":"TabProduits[[#This Row],[Nom produit]]& TabProduits[[#This Row],[Libellé produit]]","v":"Frais d'essenceDépenses non alimentaires"}]
[null,null,null,null,null,null,null,null,null,null,null,null,null,null,null,null,null,null,null,null,null,null,null,null,null,null,null,null,null,null,null,null,null,null,null,null,null,null,null,null,null,null,null,null,"Friteuse à gaz","DNA101","Dépenses non alimentaires",{"$f":"TabProduits[[#This Row],[Nom produit]]& TabProduits[[#This Row],[Libellé produit]]","v":"Friteuse à gazDépenses non alimentaires"}]
[null,null,null,null,null,null,null,null,null,null,null,null,null,null,null,null,null,null,null,null,null,null,null,null,null,null,null,null,null,null,null,null,null,null,null,null,null,null,null,null,null,null,null,null,"Friteuse électrique","DNA102","Dépenses non alimentaires",{"$f":"TabProduits[[#This Row],[Nom produit]]& TabProduits[[#This Row],[Libellé produit]]","v":"Friteuse électriqueDépenses non alimentaires"}]
[null,null,null,null,null,null,null,null,null,null,null,null,null,null,null,null,null,null,null,null,null,null,null,null,null,null,null,null,null,null,null,null,null,null,null,null,null,null,null,null,null,null,null,null,"Gaz pour allume-gaz","DNA103","Dépenses non alimentaires",{"$f":"TabProduits[[#This Row],[Nom produit]]& TabProduits[[#This Row],[Libellé produit]]","v":"Gaz pour allume-gazDépenses non alimentaires"}]
[null,null,null,null,null,null,null,null,null,null,null,null,null,null,null,null,null,null,null,null,null,null,null,null,null,null,null,null,null,null,null,null,null,null,null,null,null,null,null,null,null,null,null,null,"Gommes à effacer","DNA104","Dépenses non alimentaires",{"$f":"TabProduits[[#This Row],[Nom produit]]& TabProduits[[#This Row],[Libellé produit]]","v":"Gommes à effacerDépenses non alimentaires"}]
[null,null,null,null,null,null,null,null,null,null,null,null,null,null,null,null,null,null,null,null,null,null,null,null,null,null,null,null,null,null,null,null,null,null,null,null,null,null,null,null,null,null,null,null,"Graveur compact disc informatique","DNA105","Dépenses non alimentaires",{"$f":"TabProduits[[#This Row],[Nom produit]]& TabProduits[[#This Row],[Libellé produit]]","v":"Graveur compact disc informatiqueDépenses non alimentaires"}]
[null,null,null,null,null,null,null,null,null,null,null,null,null,null,null,null,null,null,null,null,null,null,null,null,null,null,null,null,null,null,null,null,null,null,null,null,null,null,null,null,null,null,null,null,"Graveur compact disc vidéo","DNA106","Dépenses non alimentaires",{"$f":"TabProduits[[#This Row],[Nom produit]]& TabProduits[[#This Row],[Libellé produit]]","v":"Graveur compact disc vidéoDépenses non alimentaires"}]
[null,null,null,null,null,null,null,null,null,null,null,null,null,null,null,null,null,null,null,null,null,null,null,null,null,null,null,null,null,null,null,null,null,null,null,null,null,null,null,null,null,null,null,null,"Imprimantes","DNA107","Dépenses non alimentaires",{"$f":"TabProduits[[#This Row],[Nom produit]]& TabProduits[[#This Row],[Libellé produit]]","v":"ImprimantesDépenses non alimentaires"}]
[null,null,null,null,null,null,null,null,null,null,null,null,null,null,null,null,null,null,null,null,null,null,null,null,null,null,null,null,null,null,null,null,null,null,null,null,null,null,null,null,null,null,null,null,"Insecticide","DNA108","Dépenses non alimentaires",{"$f":"TabProduits[[#This Row],[Nom produit]]& TabProduits[[#This Row],[Libellé produit]]","v":"InsecticideDépenses non alimentaires"}]
[null,null,null,null,null,null,null,null,null,null,null,null,null,null,null,null,null,null,null,null,null,null,null,null,null,null,null,null,null,null,null,null,null,null,null,null,null,null,null,null,null,null,null,null,"Lacets","DNA109","Dépenses non alimentaires",{"$f":"TabProduits[[#This Row],[Nom produit]]& TabProduits[[#This Row],[Libellé produit]]","v":"LacetsDépenses non alimentaires"}]
[null,null,null,null,null,null,null,null,null,null,null,null,null,null,null,null,null,null,null,null,null,null,null,null,null,null,null,null,null,null,null,null,null,null,null,null,null,null,null,null,null,null,null,null,"Lames rasoir électrique","DNA110","Dépenses non alimentaires",{"$f":"TabProduits[[#This Row],[Nom produit]]& TabProduits[[#This Row],[Libellé produit]]","v":"Lames rasoir électriqueDépenses non alimentaires"}]
[null,null,null,null,null,null,null,null,null,null,null,null,null,null,null,null,null,null,null,null,null,null,null,null,null,null,null,null,null,null,null,null,null,null,null,null,null,null,null,null,null,null,null,null,"Lampadaires","DNA111","Dépenses non alimentaires",{"$f":"TabProduits[[#This Row],[Nom produit]]& TabProduits[[#This Row],[Libellé produit]]","v":"LampadairesDépenses non alimentaires"}]
[null,null,null,null,null,null,null,null,null,null,null,null,null,null,null,null,null,null,null,null,null,null,null,null,null,null,null,null,null,null,null,null,null,null,null,null,null,null,null,null,null,null,null,null,"Lampe torche","DNA112","Dépenses non alimentaires",{"$f":"TabProduits[[#This Row],[Nom produit]]& TabProduits[[#This Row],[Libellé produit]]","v":"Lampe torcheDépenses non alimentaires"}]
[null,null,null,null,null,null,null,null,null,null,null,null,null,null,null,null,null,null,null,null,null,null,null,null,null,null,null,null,null,null,null,null,null,null,null,null,null,null,null,null,null,null,null,null,"Lavage des draps","DNA113","Dépenses non alimentaires",{"$f":"TabProduits[[#This Row],[Nom produit]]& TabProduits[[#This Row],[Libellé produit]]","v":"Lavage des drapsDépenses non alimentaires"}]
[null,null,null,null,null,null,null,null,null,null,null,null,null,null,null,null,null,null,null,null,null,null,null,null,null,null,null,null,null,null,null,null,null,null,null,null,null,null,null,null,null,null,null,null,"Lessive pour le linge","DNA114","Dépenses non alimentaires",{"$f":"TabProduits[[#This Row],[Nom produit]]& TabProduits[[#This Row],[Libellé produit]]","v":"Lessive pour le lingeDépenses non alimentaires"}]
[null,null,null,null,null,null,null,null,null,null,null,null,null,null,null,null,null,null,null,null,null,null,null,null,null,null,null,null,null,null,null,null,null,null,null,null,null,null,null,null,null,null,null,null,"Linge de lit (y compris pyjamas)","DNA115","Dépenses non alimentaires",{"$f":"TabProduits[[#This Row],[Nom produit]]& TabProduits[[#This Row],[Libellé produit]]","v":"Linge de lit (y compris pyjamas)Dépenses non alimentaires"}]
[null,null,null,null,null,null,null,null,null,null,null,null,null,null,null,null,null,null,null,null,null,null,null,null,null,null,null,null,null,null,null,null,null,null,null,null,null,null,null,null,null,null,null,null,"Linge de table","DNA116","Dépenses non alimentaires",{"$f":"TabProduits[[#This Row],[Nom produit]]& TabProduits[[#This Row],[Libellé produit]]","v":"Linge de tableDépenses non alimentaires"}]
[null,null,null,null,null,null,null,null,null,null,null,null,null,null,null,null,null,null,null,null,null,null,null,null,null,null,null,null,null,null,null,null,null,null,null,null,null,null,null,null,null,null,null,null,"Linge de toilette","DNA117","Dépenses non alimentaires",{"$f":"TabProduits[[#This Row],[Nom produit]]& TabProduits[[#This Row],[Libellé produit]]","v":"Linge de toiletteDépenses non alimentaires"}]
[null,null,null,null,null,null,null,null,null,null,null,null,null,null,null,null,null,null,null,null,null,null,null,null,null,null,null,null,null,null,null,null,null,null,null,null,null,null,null,null,null,null,null,null,"Linge de vaisselle","DNA118","Dépenses non alimentaires",{"$f":"TabProduits[[#This Row],[Nom produit]]& TabProduits[[#This Row],[Libellé produit]]","v":"Linge de vaisselleDépenses non alimentaires"}]
[null,null,null,null,null,null,null,null,null,null,null,null,null,null,null,null,null,null,null,null,null,null,null,null,null,null,null,null,null,null,null,null,null,null,null,null,null,null,null,null,null,null,null,null,"Linge pour les mains","DNA119","Dépenses non alimentaires",{"$f":"TabProduits[[#This Row],[Nom produit]]& TabProduits[[#This Row],[Libellé produit]]","v":"Linge pour les mainsDépenses non alimentaires"}]
[null,null,null,null,null,null,null,null,null,null,null,null,null,null,null,null,null,null,null,null,null,null,null,null,null,null,null,null,null,null,null,null,null,null,null,null,null,null,null,null,null,null,null,null,"Liquide cigarette électronique NHOSS","DNA120","Dépenses non alimentaires",{"$f":"TabProduits[[#This Row],[Nom produit]]& TabProduits[[#This Row],[Libellé produit]]","v":"Liquide cigarette électronique NHOSSDépenses non alimentaires"}]
[null,null,null,null,null,null,null,null,null,null,null,null,null,null,null,null,null,null,null,null,null,null,null,null,null,null,null,null,null,null,null,null,null,null,null,null,null,null,null,null,null,null,null,null,"Livres bibliophiles","DNA121","Dépenses non alimentaires",{"$f":"TabProduits[[#This Row],[Nom produit]]& TabProduits[[#This Row],[Libellé produit]]","v":"Livres bibliophilesDépenses non alimentaires"}]
[null,null,null,null,null,null,null,null,null,null,null,null,null,null,null,null,null,null,null,null,null,null,null,null,null,null,null,null,null,null,null,null,null,null,null,null,null,null,null,null,null,null,null,null,"Livres informatiques","DNA122","Dépenses non alimentaires",{"$f":"TabProduits[[#This Row],[Nom produit]]& TabProduits[[#This Row],[Libellé produit]]","v":"Livres informatiquesDépenses non alimentaires"}]
[null,null,null,null,null,null,null,null,null,null,null,null,null,null,null,null,null,null,null,null,null,null,null,null,null,null,null,null,null,null,null,null,null,null,null,null,null,null,null,null,null,null,null,null,"Logiciels informatiques","DNA123","Dépenses non alimentaires",{"$f":"TabProduits[[#This Row],[Nom produit]]& TabProduits[[#This Row],[Libellé produit]]","v":"Logiciels informatiquesDépenses non alimentaires"}]
[null,null,null,null,null,null,null,null,null,null,null,null,null,null,null,null,null,null,null,null,null,null,null,null,null,null,null,null,null,null,null,null,null,null,null,null,null,null,null,null,null,null,null,null,"Loisirs","DNA124","Dépenses non alimentaires",{"$f":"TabProduits[[#This Row],[Nom produit]]& TabProduits[[#This Row],[Libellé produit]]","v":"LoisirsDépenses non alimentaires"}]
[null,null,null,null,null,null,null,null,null,null,null,null,null,null,null,null,null,null,null,null,null,null,null,null,null,null,null,null,null,null,null,null,null,null,null,null,null,null,null,null,null,null,null,null,"Loqueteaux","DNA125","Dépenses non alimentaires",{"$f":"TabProduits[[#This Row],[Nom produit]]& TabProduits[[#This Row],[Libellé produit]]","v":"LoqueteauxDépenses non alimentaires"}]
[null,null,null,null,null,null,null,null,null,null,null,null,null,null,null,null,null,null,null,null,null,null,null,null,null,null,null,null,null,null,null,null,null,null,null,null,null,null,null,null,null,null,null,null,"Machine à laver","DNA126","Dépenses non alimentaires",{"$f":"TabProduits[[#This Row],[Nom produit]]& TabProduits[[#This Row],[Libellé produit]]","v":"Machine à laverDépenses non alimentaires"}]
[null,null,null,null,null,null,null,null,null,null,null,null,null,null,null,null,null,null,null,null,null,null,null,null,null,null,null,null,null,null,null,null,null,null,null,null,null,null,null,null,null,null,null,null,"Magnétoscope","DNA127","Dépenses non alimentaires",{"$f":"TabProduits[[#This Row],[Nom produit]]& TabProduits[[#This Row],[Libellé produit]]","v":"MagnétoscopeDépenses non alimentaires"}]
[null,null,null,null,null,null,null,null,null,null,null,null,null,null,null,null,null,null,null,null,null,null,null,null,null,null,null,null,null,null,null,null,null,null,null,null,null,null,null,null,null,null,null,null,"Matériel à couture","DNA128","Dépenses non alimentaires",{"$f":"TabProduits[[#This Row],[Nom produit]]& TabProduits[[#This Row],[Libellé produit]]","v":"Matériel à coutureDépenses non alimentaires"}]
[null,null,null,null,null,null,null,null,null,null,null,null,null,null,null,null,null,null,null,null,null,null,null,null,null,null,null,null,null,null,null,null,null,null,null,null,null,null,null,null,null,null,null,null,"Matériel de cuisine","DNA129","Dépenses non alimentaires",{"$f":"TabProduits[[#This Row],[Nom produit]]& TabProduits[[#This Row],[Libellé produit]]","v":"Matériel de cuisineDépenses non alimentaires"}]
[null,null,null,null,null,null,null,null,null,null,null,null,null,null,null,null,null,null,null,null,null,null,null,null,null,null,null,null,null,null,null,null,null,null,null,null,null,null,null,null,null,null,null,null,"Matériel informatique","DNA130","Dépenses non alimentaires",{"$f":"TabProduits[[#This Row],[Nom produit]]& TabProduits[[#This Row],[Libellé produit]]","v":"Matériel informatiqueDépenses non alimentaires"}]
[null,null,null,null,null,null,null,null,null,null,null,null,null,null,null,null,null,null,null,null,null,null,null,null,null,null,null,null,null,null,null,null,null,null,null,null,null,null,null,null,null,null,null,null,"Minuteurs","DNA131","Dépenses non alimentaires",{"$f":"TabProduits[[#This Row],[Nom produit]]& TabProduits[[#This Row],[Libellé produit]]","v":"MinuteursDépenses non alimentaires"}]
[null,null,null,null,null,null,null,null,null,null,null,null,null,null,null,null,null,null,null,null,null,null,null,null,null,null,null,null,null,null,null,null,null,null,null,null,null,null,null,null,null,null,null,null,"Nappes de tables","DNA132","Dépenses non alimentaires",{"$f":"TabProduits[[#This Row],[Nom produit]]& TabProduits[[#This Row],[Libellé produit]]","v":"Nappes de tablesDépenses non alimentaires"}]
[null,null,null,null,null,null,null,null,null,null,null,null,null,null,null,null,null,null,null,null,null,null,null,null,null,null,null,null,null,null,null,null,null,null,null,null,null,null,null,null,null,null,null,null,"Nettoyage des vêtements","DNA133","Dépenses non alimentaires",{"$f":"TabProduits[[#This Row],[Nom produit]]& TabProduits[[#This Row],[Libellé produit]]","v":"Nettoyage des vêtementsDépenses non alimentaires"}]
[null,null,null,null,null,null,null,null,null,null,null,null,null,null,null,null,null,null,null,null,null,null,null,null,null,null,null,null,null,null,null,null,null,null,null,null,null,null,null,null,null,null,null,null,"Numéroteur","DNA134","Dépenses non alimentaires",{"$f":"TabProduits[[#This Row],[Nom produit]]& TabProduits[[#This Row],[Libellé produit]]","v":"NuméroteurDépenses non alimentaires"}]
[null,null,null,null,null,null,null,null,null,null,null,null,null,null,null,null,null,null,null,null,null,null,null,null,null,null,null,null,null,null,null,null,null,null,null,null,null,null,null,null,null,null,null,null,"O'CÉDAR","DNA135","Dépenses non alimentaires",{"$f":"TabProduits[[#This Row],[Nom produit]]& TabProduits[[#This Row],[Libellé produit]]","v":"O'CÉDARDépenses non alimentaires"}]
[null,null,null,null,null,null,null,null,null,null,null,null,null,null,null,null,null,null,null,null,null,null,null,null,null,null,null,null,null,null,null,null,null,null,null,null,null,null,null,null,null,null,null,null,"Ordinateurs de bureau","DNA136","Dépenses non alimentaires",{"$f":"TabProduits[[#This Row],[Nom produit]]& TabProduits[[#This Row],[Libellé produit]]","v":"Ordinateurs de bureauDépenses non alimentaires"}]
[null,null,null,null,null,null,null,null,null,null,null,null,null,null,null,null,null,null,null,null,null,null,null,null,null,null,null,null,null,null,null,null,null,null,null,null,null,null,null,null,null,null,null,null,"Ordinateurs portables","DNA137","Dépenses non alimentaires",{"$f":"TabProduits[[#This Row],[Nom produit]]& TabProduits[[#This Row],[Libellé produit]]","v":"Ordinateurs portablesDépenses non alimentaires"}]
[null,null,null,null,null,null,null,null,null,null,null,null,null,null,null,null,null,null,null,null,null,null,null,null,null,null,null,null,null,null,null,null,null,null,null,null,null,null,null,null,null,null,null,null,"Ouvre-boîtes électrique","DNA138","Dépenses non alimentaires",{"$f":"TabProduits[[#This Row],[Nom produit]]& TabProduits[[#This Row],[Libellé produit]]","v":"Ouvre-boîtes électriqueDépenses non alimentaires"}]
[null,null,null,null,null,null,null,null,null,null,null,null,null,null,null,null,null,null,null,null,null,null,null,null,null,null,null,null,null,null,null,null,null,null,null,null,null,null,null,null,null,null,null,null,"Papier à lettres","DNA139","Dépenses non alimentaires",{"$f":"TabProduits[[#This Row],[Nom produit]]& TabProduits[[#This Row],[Libellé produit]]","v":"Papier à lettresDépenses non alimentaires"}]
[null,null,null,null,null,null,null,null,null,null,null,null,null,null,null,null,null,null,null,null,null,null,null,null,null,null,null,null,null,null,null,null,null,null,null,null,null,null,null,null,null,null,null,null,"Papier aluminium","DNA140","Dépenses non alimentaires",{"$f":"TabProduits[[#This Row],[Nom produit]]& TabProduits[[#This Row],[Libellé produit]]","v":"Papier aluminiumDépenses non alimentaires"}]
[null,null,null,null,null,null,null,null,null,null,null,null,null,null,null,null,null,null,null,null,null,null,null,null,null,null,null,null,null,null,null,null,null,null,null,null,null,null,null,null,null,null,null,null,"Papier blanc imprimantes","DNA141","Dépenses non alimentaires",{"$f":"TabProduits[[#This Row],[Nom produit]]& TabProduits[[#This Row],[Libellé produit]]","v":"Papier blanc imprimantesDépenses non alimentaires"}]
[null,null,null,null,null,null,null,null,null,null,null,null,null,null,null,null,null,null,null,null,null,null,null,null,null,null,null,null,null,null,null,null,null,null,null,null,null,null,null,null,null,null,null,null,"Papier couleur imprimantes","DNA142","Dépenses non alimentaires",{"$f":"TabProduits[[#This Row],[Nom produit]]& TabProduits[[#This Row],[Libellé produit]]","v":"Papier couleur imprimantesDépenses non alimentaires"}]
[null,null,null,null,null,null,null,null,null,null,null,null,null,null,null,null,null,null,null,null,null,null,null,null,null,null,null,null,null,null,null,null,null,null,null,null,null,null,null,null,null,null,null,null,"Papier hygiénique","DNA143","Dépenses non alimentaires",{"$f":"TabProduits[[#This Row],[Nom produit]]& TabProduits[[#This Row],[Libellé produit]]","v":"Papier hygiéniqueDépenses non alimentaires"}]
[null,null,null,null,null,null,null,null,null,null,null,null,null,null,null,null,null,null,null,null,null,null,null,null,null,null,null,null,null,null,null,null,null,null,null,null,null,null,null,null,null,null,null,null,"Parapluies","DNA144","Dépenses non alimentaires",{"$f":"TabProduits[[#This Row],[Nom produit]]& TabProduits[[#This Row],[Libellé produit]]","v":"ParapluiesDépenses non alimentaires"}]
[null,null,null,null,null,null,null,null,null,null,null,null,null,null,null,null,null,null,null,null,null,null,null,null,null,null,null,null,null,null,null,null,null,null,null,null,null,null,null,null,null,null,null,null,"Parti communiste français","DNA145","Dépenses non alimentaires",{"$f":"TabProduits[[#This Row],[Nom produit]]& TabProduits[[#This Row],[Libellé produit]]","v":"Parti communiste françaisDépenses non alimentaires"}]
[null,null,null,null,null,null,null,null,null,null,null,null,null,null,null,null,null,null,null,null,null,null,null,null,null,null,null,null,null,null,null,null,null,null,null,null,null,null,null,null,null,null,null,null,"Pelles","DNA146","Dépenses non alimentaires",{"$f":"TabProduits[[#This Row],[Nom produit]]& TabProduits[[#This Row],[Libellé produit]]","v":"PellesDépenses non alimentaires"}]
[null,null,null,null,null,null,null,null,null,null,null,null,null,null,null,null,null,null,null,null,null,null,null,null,null,null,null,null,null,null,null,null,null,null,null,null,null,null,null,null,null,null,null,null,"Pétrole Hahn","DNA147","Dépenses non alimentaires",{"$f":"TabProduits[[#This Row],[Nom produit]]& TabProduits[[#This Row],[Libellé produit]]","v":"Pétrole HahnDépenses non alimentaires"}]
[null,null,null,null,null,null,null,null,null,null,null,null,null,null,null,null,null,null,null,null,null,null,null,null,null,null,null,null,null,null,null,null,null,null,null,null,null,null,null,null,null,null,null,null,"Pierres à briquets Zippo","DNA148","Dépenses non alimentaires",{"$f":"TabProduits[[#This Row],[Nom produit]]& TabProduits[[#This Row],[Libellé produit]]","v":"Pierres à briquets ZippoDépenses non alimentaires"}]
[null,null,null,null,null,null,null,null,null,null,null,null,null,null,null,null,null,null,null,null,null,null,null,null,null,null,null,null,null,null,null,null,null,null,null,null,null,null,null,null,null,null,null,null,"Piles AA","DNA149","Dépenses non alimentaires",{"$f":"TabProduits[[#This Row],[Nom produit]]& TabProduits[[#This Row],[Libellé produit]]","v":"Piles AADépenses non alimentaires"}]
[null,null,null,null,null,null,null,null,null,null,null,null,null,null,null,null,null,null,null,null,null,null,null,null,null,null,null,null,null,null,null,null,null,null,null,null,null,null,null,null,null,null,null,null,"Piles AAA","DNA150","Dépenses non alimentaires",{"$f":"TabProduits[[#This Row],[Nom produit]]& TabProduits[[#This Row],[Libellé produit]]","v":"Piles AAADépenses non alimentaires"}]
[null,null,null,null,null,null,null,null,null,null,null,null,null,null,null,null,null,null,null,null,null,null,null,null,null,null,null,null,null,null,null,null,null,null,null,null,null,null,null,null,null,null,null,null,"Piles spéciales","DNA151","Dépenses non alimentaires",{"$f":"TabProduits[[#This Row],[Nom produit]]& TabProduits[[#This Row],[Libellé produit]]","v":"Piles spécialesDépenses non alimentaires"}]
[null,null,null,null,null,null,null,null,null,null,null,null,null,null,null,null,null,null,null,null,null,null,null,null,null,null,null,null,null,null,null,null,null,null,null,null,null,null,null,null,null,null,null,null,"Piles transistor Crown","DNA152","Dépenses non alimentaires",{"$f":"TabProduits[[#This Row],[Nom produit]]& TabProduits[[#This Row],[Libellé produit]]","v":"Piles transistor CrownDépenses non alimentaires"}]
[null,null,null,null,null,null,null,null,null,null,null,null,null,null,null,null,null,null,null,null,null,null,null,null,null,null,null,null,null,null,null,null,null,null,null,null,null,null,null,null,null,null,null,null,"POD avec liquide cigarettes électroniques (ePen3 et Blu)","DNA153","Dépenses non alimentaires",{"$f":"TabProduits[[#This Row],[Nom produit]]& TabProduits[[#This Row],[Libellé produit]]","v":"POD avec liquide cigarettes électroniques (ePen3 et Blu)Dépenses non alimentaires"}]
[null,null,null,null,null,null,null,null,null,null,null,null,null,null,null,null,null,null,null,null,null,null,null,null,null,null,null,null,null,null,null,null,null,null,null,null,null,null,null,null,null,null,null,null,"POD sans liquide cigarettes électroniques (NHOSS)","DNA154","Dépenses non alimentaires",{"$f":"TabProduits[[#This Row],[Nom produit]]& TabProduits[[#This Row],[Libellé produit]]","v":"POD sans liquide cigarettes électroniques (NHOSS)Dépenses non alimentaires"}]
[null,null,null,null,null,null,null,null,null,null,null,null,null,null,null,null,null,null,null,null,null,null,null,null,null,null,null,null,null,null,null,null,null,null,null,null,null,null,null,null,null,null,null,null,"Pourboires","DNA155","Dépenses non alimentaires",{"$f":"TabProduits[[#This Row],[Nom produit]]& TabProduits[[#This Row],[Libellé produit]]","v":"PourboiresDépenses non alimentaires"}]
[null,null,null,null,null,null,null,null,null,null,null,null,null,null,null,null,null,null,null,null,null,null,null,null,null,null,null,null,null,null,null,null,null,null,null,null,null,null,null,null,null,null,null,null,"Poussettes","DNA156","Dépenses non alimentaires",{"$f":"TabProduits[[#This Row],[Nom produit]]& TabProduits[[#This Row],[Libellé produit]]","v":"PoussettesDépenses non alimentaires"}]
[null,null,null,null,null,null,null,null,null,null,null,null,null,null,null,null,null,null,null,null,null,null,null,null,null,null,null,null,null,null,null,null,null,null,null,null,null,null,null,null,null,null,null,null,"Produit liquide plancher","DNA157","Dépenses non alimentaires",{"$f":"TabProduits[[#This Row],[Nom produit]]& TabProduits[[#This Row],[Libellé produit]]","v":"Produit liquide plancherDépenses non alimentaires"}]
[null,null,null,null,null,null,null,null,null,null,null,null,null,null,null,null,null,null,null,null,null,null,null,null,null,null,null,null,null,null,null,null,null,null,null,null,null,null,null,null,null,null,null,null,"Produit liquide vaisselle","DNA158","Dépenses non alimentaires",{"$f":"TabProduits[[#This Row],[Nom produit]]& TabProduits[[#This Row],[Libellé produit]]","v":"Produit liquide vaisselleDépenses non alimentaires"}]
[null,null,null,null,null,null,null,null,null,null,null,null,null,null,null,null,null,null,null,null,null,null,null,null,null,null,null,null,null,null,null,null,null,null,null,null,null,null,null,null,null,null,null,null,"Produit liquide vitres","DNA159","Dépenses non alimentaires",{"$f":"TabProduits[[#This Row],[Nom produit]]& TabProduits[[#This Row],[Libellé produit]]","v":"Produit liquide vitresDépenses non alimentaires"}]
[null,null,null,null,null,null,null,null,null,null,null,null,null,null,null,null,null,null,null,null,null,null,null,null,null,null,null,null,null,null,null,null,null,null,null,null,null,null,null,null,null,null,null,null,"Programme de télévision","DNA160","Dépenses non alimentaires",{"$f":"TabProduits[[#This Row],[Nom produit]]& TabProduits[[#This Row],[Libellé produit]]","v":"Programme de télévisionDépenses non alimentaires"}]
[null,null,null,null,null,null,null,null,null,null,null,null,null,null,null,null,null,null,null,null,null,null,null,null,null,null,null,null,null,null,null,null,null,null,null,null,null,null,null,null,null,null,null,null,"Radiateur électrique","DNA161","Dépenses non alimentaires",{"$f":"TabProduits[[#This Row],[Nom produit]]& TabProduits[[#This Row],[Libellé produit]]","v":"Radiateur électriqueDépenses non alimentaires"}]
[null,null,null,null,null,null,null,null,null,null,null,null,null,null,null,null,null,null,null,null,null,null,null,null,null,null,null,null,null,null,null,null,null,null,null,null,null,null,null,null,null,null,null,null,"Rasoir électrique","DNA162","Dépenses non alimentaires",{"$f":"TabProduits[[#This Row],[Nom produit]]& TabProduits[[#This Row],[Libellé produit]]","v":"Rasoir électriqueDépenses non alimentaires"}]
[null,null,null,null,null,null,null,null,null,null,null,null,null,null,null,null,null,null,null,null,null,null,null,null,null,null,null,null,null,null,null,null,null,null,null,null,null,null,null,null,null,null,null,null,"Recharge bloc éphéméride","DNA163","Dépenses non alimentaires",{"$f":"TabProduits[[#This Row],[Nom produit]]& TabProduits[[#This Row],[Libellé produit]]","v":"Recharge bloc éphémérideDépenses non alimentaires"}]
[null,null,null,null,null,null,null,null,null,null,null,null,null,null,null,null,null,null,null,null,null,null,null,null,null,null,null,null,null,null,null,null,null,null,null,null,null,null,null,null,null,null,null,null,"Recharge cure-dents","DNA164","Dépenses non alimentaires",{"$f":"TabProduits[[#This Row],[Nom produit]]& TabProduits[[#This Row],[Libellé produit]]","v":"Recharge cure-dentsDépenses non alimentaires"}]
[null,null,null,null,null,null,null,null,null,null,null,null,null,null,null,null,null,null,null,null,null,null,null,null,null,null,null,null,null,null,null,null,null,null,null,null,null,null,null,null,null,null,null,null,"Réfrigérateur","DNA165","Dépenses non alimentaires",{"$f":"TabProduits[[#This Row],[Nom produit]]& TabProduits[[#This Row],[Libellé produit]]","v":"RéfrigérateurDépenses non alimentaires"}]
[null,null,null,null,null,null,null,null,null,null,null,null,null,null,null,null,null,null,null,null,null,null,null,null,null,null,null,null,null,null,null,null,null,null,null,null,null,null,null,null,null,null,null,null,"Remboursement argent emprunté","DNA166","Dépenses non alimentaires",{"$f":"TabProduits[[#This Row],[Nom produit]]& TabProduits[[#This Row],[Libellé produit]]","v":"Remboursement argent empruntéDépenses non alimentaires"}]
[null,null,null,null,null,null,null,null,null,null,null,null,null,null,null,null,null,null,null,null,null,null,null,null,null,null,null,null,null,null,null,null,null,null,null,null,null,null,null,null,null,null,null,null,"Réparations","DNA167","Dépenses non alimentaires",{"$f":"TabProduits[[#This Row],[Nom produit]]& TabProduits[[#This Row],[Libellé produit]]","v":"RéparationsDépenses non alimentaires"}]
[null,null,null,null,null,null,null,null,null,null,null,null,null,null,null,null,null,null,null,null,null,null,null,null,null,null,null,null,null,null,null,null,null,null,null,null,null,null,null,null,null,null,null,null,"Restaurant","DNA168","Dépenses non alimentaires",{"$f":"TabProduits[[#This Row],[Nom produit]]& TabProduits[[#This Row],[Libellé produit]]","v":"RestaurantDépenses non alimentaires"}]
[null,null,null,null,null,null,null,null,null,null,null,null,null,null,null,null,null,null,null,null,null,null,null,null,null,null,null,null,null,null,null,null,null,null,null,null,null,null,null,null,null,null,null,null,"Réveils","DNA169","Dépenses non alimentaires",{"$f":"TabProduits[[#This Row],[Nom produit]]& TabProduits[[#This Row],[Libellé produit]]","v":"RéveilsDépenses non alimentaires"}]
[null,null,null,null,null,null,null,null,null,null,null,null,null,null,null,null,null,null,null,null,null,null,null,null,null,null,null,null,null,null,null,null,null,null,null,null,null,null,null,null,null,null,null,null,"Sacs à poubelle","DNA170","Dépenses non alimentaires",{"$f":"TabProduits[[#This Row],[Nom produit]]& TabProduits[[#This Row],[Libellé produit]]","v":"Sacs à poubelleDépenses non alimentaires"}]
[null,null,null,null,null,null,null,null,null,null,null,null,null,null,null,null,null,null,null,null,null,null,null,null,null,null,null,null,null,null,null,null,null,null,null,null,null,null,null,null,null,null,null,null,"Savon noir","DNA171","Dépenses non alimentaires",{"$f":"TabProduits[[#This Row],[Nom produit]]& TabProduits[[#This Row],[Libellé produit]]","v":"Savon noirDépenses non alimentaires"}]
[null,null,null,null,null,null,null,null,null,null,null,null,null,null,null,null,null,null,null,null,null,null,null,null,null,null,null,null,null,null,null,null,null,null,null,null,null,null,null,null,null,null,null,null,"Savonnette figure","DNA172","Dépenses non alimentaires",{"$f":"TabProduits[[#This Row],[Nom produit]]& TabProduits[[#This Row],[Libellé produit]]","v":"Savonnette figureDépenses non alimentaires"}]
[null,null,null,null,null,null,null,null,null,null,null,null,null,null,null,null,null,null,null,null,null,null,null,null,null,null,null,null,null,null,null,null,null,null,null,null,null,null,null,null,null,null,null,null,"Savons","DNA173","Dépenses non alimentaires",{"$f":"TabProduits[[#This Row],[Nom produit]]& TabProduits[[#This Row],[Libellé produit]]","v":"SavonsDépenses non alimentaires"}]
[null,null,null,null,null,null,null,null,null,null,null,null,null,null,null,null,null,null,null,null,null,null,null,null,null,null,null,null,null,null,null,null,null,null,null,null,null,null,null,null,null,null,null,null,"Scotch","DNA174","Dépenses non alimentaires",{"$f":"TabProduits[[#This Row],[Nom produit]]& TabProduits[[#This Row],[Libellé produit]]","v":"ScotchDépenses non alimentaires"}]
[null,null,null,null,null,null,null,null,null,null,null,null,null,null,null,null,null,null,null,null,null,null,null,null,null,null,null,null,null,null,null,null,null,null,null,null,null,null,null,null,null,null,null,null,"Scotch Brite","DNA175","Dépenses non alimentaires",{"$f":"TabProduits[[#This Row],[Nom produit]]& TabProduits[[#This Row],[Libellé produit]]","v":"Scotch BriteDépenses non alimentaires"}]
[null,null,null,null,null,null,null,null,null,null,null,null,null,null,null,null,null,null,null,null,null,null,null,null,null,null,null,null,null,null,null,null,null,null,null,null,null,null,null,null,null,null,null,null,"Serpillières","DNA176","Dépenses non alimentaires",{"$f":"TabProduits[[#This Row],[Nom produit]]& TabProduits[[#This Row],[Libellé produit]]","v":"SerpillièresDépenses non alimentaires"}]
[null,null,null,null,null,null,null,null,null,null,null,null,null,null,null,null,null,null,null,null,null,null,null,null,null,null,null,null,null,null,null,null,null,null,null,null,null,null,null,null,null,null,null,null,"Shampooing","DNA177","Dépenses non alimentaires",{"$f":"TabProduits[[#This Row],[Nom produit]]& TabProduits[[#This Row],[Libellé produit]]","v":"ShampooingDépenses non alimentaires"}]
[null,null,null,null,null,null,null,null,null,null,null,null,null,null,null,null,null,null,null,null,null,null,null,null,null,null,null,null,null,null,null,null,null,null,null,null,null,null,null,null,null,null,null,null,"Souris ordinateurs de bureau","DNA178","Dépenses non alimentaires",{"$f":"TabProduits[[#This Row],[Nom produit]]& TabProduits[[#This Row],[Libellé produit]]","v":"Souris ordinateurs de bureauDépenses non alimentaires"}]
[null,null,null,null,null,null,null,null,null,null,null,null,null,null,null,null,null,null,null,null,null,null,null,null,null,null,null,null,null,null,null,null,null,null,null,null,null,null,null,null,null,null,null,null,"Souris ordinateurs portables","DNA179","Dépenses non alimentaires",{"$f":"TabProduits[[#This Row],[Nom produit]]& TabProduits[[#This Row],[Libellé produit]]","v":"Souris ordinateurs portablesDépenses non alimentaires"}]
[null,null,null,null,null,null,null,null,null,null,null,null,null,null,null,null,null,null,null,null,null,null,null,null,null,null,null,null,null,null,null,null,null,null,null,null,null,null,null,null,null,null,null,null,"Stylos à bille","DNA180","Dépenses non alimentaires",{"$f":"TabProduits[[#This Row],[Nom produit]]& TabProduits[[#This Row],[Libellé produit]]","v":"Stylos à billeDépenses non alimentaires"}]
[null,null,null,null,null,null,null,null,null,null,null,null,null,null,null,null,null,null,null,null,null,null,null,null,null,null,null,null,null,null,null,null,null,null,null,null,null,null,null,null,null,null,null,null,"Stylos-plume","DNA181","Dépenses non alimentaires",{"$f":"TabProduits[[#This Row],[Nom produit]]& TabProduits[[#This Row],[Libellé produit]]","v":"Stylos-plumeDépenses non alimentaires"}]
[null,null,null,null,null,null,null,null,null,null,null,null,null,null,null,null,null,null,null,null,null,null,null,null,null,null,null,null,null,null,null,null,null,null,null,null,null,null,null,null,null,null,null,null,"Syndicat C.G.T.","DNA182","Dépenses non alimentaires",{"$f":"TabProduits[[#This Row],[Nom produit]]& TabProduits[[#This Row],[Libellé produit]]","v":"Syndicat C.G.T.Dépenses non alimentaires"}]
[null,null,null,null,null,null,null,null,null,null,null,null,null,null,null,null,null,null,null,null,null,null,null,null,null,null,null,null,null,null,null,null,null,null,null,null,null,null,null,null,null,null,null,null,"Tabac pour les cigarettes","DNA183","Dépenses non alimentaires",{"$f":"TabProduits[[#This Row],[Nom produit]]& TabProduits[[#This Row],[Libellé produit]]","v":"Tabac pour les cigarettesDépenses non alimentaires"}]
[null,null,null,null,null,null,null,null,null,null,null,null,null,null,null,null,null,null,null,null,null,null,null,null,null,null,null,null,null,null,null,null,null,null,null,null,null,null,null,null,null,null,null,null,"Tapis pour souris ordinateurs","DNA184","Dépenses non alimentaires",{"$f":"TabProduits[[#This Row],[Nom produit]]& TabProduits[[#This Row],[Libellé produit]]","v":"Tapis pour souris ordinateursDépenses non alimentaires"}]
[null,null,null,null,null,null,null,null,null,null,null,null,null,null,null,null,null,null,null,null,null,null,null,null,null,null,null,null,null,null,null,null,null,null,null,null,null,null,null,null,null,null,null,null,"Taxi","DNA185","Dépenses non alimentaires",{"$f":"TabProduits[[#This Row],[Nom produit]]& TabProduits[[#This Row],[Libellé produit]]","v":"TaxiDépenses non alimentaires"}]
[null,null,null,null,null,null,null,null,null,null,null,null,null,null,null,null,null,null,null,null,null,null,null,null,null,null,null,null,null,null,null,null,null,null,null,null,null,null,null,null,null,null,null,null,"Télécommandes","DNA186","Dépenses non alimentaires",{"$f":"TabProduits[[#This Row],[Nom produit]]& TabProduits[[#This Row],[Libellé produit]]","v":"TélécommandesDépenses non alimentaires"}]
[null,null,null,null,null,null,null,null,null,null,null,null,null,null,null,null,null,null,null,null,null,null,null,null,null,null,null,null,null,null,null,null,null,null,null,null,null,null,null,null,null,null,null,null,"Téléphone fixe","DNA187","Dépenses non alimentaires",{"$f":"TabProduits[[#This Row],[Nom produit]]& TabProduits[[#This Row],[Libellé produit]]","v":"Téléphone fixeDépenses non alimentaires"}]
[null,null,null,null,null,null,null,null,null,null,null,null,null,null,null,null,null,null,null,null,null,null,null,null,null,null,null,null,null,null,null,null,null,null,null,null,null,null,null,null,null,null,null,null,"Téléphone portable","DNA188","Dépenses non alimentaires",{"$f":"TabProduits[[#This Row],[Nom produit]]& TabProduits[[#This Row],[Libellé produit]]","v":"Téléphone portableDépenses non alimentaires"}]
[null,null,null,null,null,null,null,null,null,null,null,null,null,null,null,null,null,null,null,null,null,null,null,null,null,null,null,null,null,null,null,null,null,null,null,null,null,null,null,null,null,null,null,null,"Télévision","DNA189","Dépenses non alimentaires",{"$f":"TabProduits[[#This Row],[Nom produit]]& TabProduits[[#This Row],[Libellé produit]]","v":"TélévisionDépenses non alimentaires"}]
[null,null,null,null,null,null,null,null,null,null,null,null,null,null,null,null,null,null,null,null,null,null,null,null,null,null,null,null,null,null,null,null,null,null,null,null,null,null,null,null,null,null,null,null,"Théâtre","DNA190","Dépenses non alimentaires",{"$f":"TabProduits[[#This Row],[Nom produit]]& TabProduits[[#This Row],[Libellé produit]]","v":"ThéâtreDépenses non alimentaires"}]
[null,null,null,null,null,null,null,null,null,null,null,null,null,null,null,null,null,null,null,null,null,null,null,null,null,null,null,null,null,null,null,null,null,null,null,null,null,null,null,null,null,null,null,null,"Tickets de bus","DNA191","Dépenses non alimentaires",{"$f":"TabProduits[[#This Row],[Nom produit]]& TabProduits[[#This Row],[Libellé produit]]","v":"Tickets de busDépenses non alimentaires"}]
[null,null,null,null,null,null,null,null,null,null,null,null,null,null,null,null,null,null,null,null,null,null,null,null,null,null,null,null,null,null,null,null,null,null,null,null,null,null,null,null,null,null,null,null,"Tickets de métro","DNA192","Dépenses non alimentaires",{"$f":"TabProduits[[#This Row],[Nom produit]]& TabProduits[[#This Row],[Libellé produit]]","v":"Tickets de métroDépenses non alimentaires"}]
[null,null,null,null,null,null,null,null,null,null,null,null,null,null,null,null,null,null,null,null,null,null,null,null,null,null,null,null,null,null,null,null,null,null,null,null,null,null,null,null,null,null,null,null,"Tickets de RER","DNA193","Dépenses non alimentaires",{"$f":"TabProduits[[#This Row],[Nom produit]]& TabProduits[[#This Row],[Libellé produit]]","v":"Tickets de RERDépenses non alimentaires"}]
[null,null,null,null,null,null,null,null,null,null,null,null,null,null,null,null,null,null,null,null,null,null,null,null,null,null,null,null,null,null,null,null,null,null,null,null,null,null,null,null,null,null,null,null,"Tickets tous transports","DNA194","Dépenses non alimentaires",{"$f":"TabProduits[[#This Row],[Nom produit]]& TabProduits[[#This Row],[Libellé produit]]","v":"Tickets tous transportsDépenses non alimentaires"}]
[null,null,null,null,null,null,null,null,null,null,null,null,null,null,null,null,null,null,null,null,null,null,null,null,null,null,null,null,null,null,null,null,null,null,null,null,null,null,null,null,null,null,null,null,"Timbres poste","DNA195","Dépenses non alimentaires",{"$f":"TabProduits[[#This Row],[Nom produit]]& TabProduits[[#This Row],[Libellé produit]]","v":"Timbres posteDépenses non alimentaires"}]
[null,null,null,null,null,null,null,null,null,null,null,null,null,null,null,null,null,null,null,null,null,null,null,null,null,null,null,null,null,null,null,null,null,null,null,null,null,null,null,null,null,null,null,null,"Toners imprimantes","DNA196","Dépenses non alimentaires",{"$f":"TabProduits[[#This Row],[Nom produit]]& TabProduits[[#This Row],[Libellé produit]]","v":"Toners imprimantesDépenses non alimentaires"}]
[null,null,null,null,null,null,null,null,null,null,null,null,null,null,null,null,null,null,null,null,null,null,null,null,null,null,null,null,null,null,null,null,null,null,null,null,null,null,null,null,null,null,null,null,"Transistor noir chambre Kiki Crown","DNA197","Dépenses non alimentaires",{"$f":"TabProduits[[#This Row],[Nom produit]]& TabProduits[[#This Row],[Libellé produit]]","v":"Transistor noir chambre Kiki CrownDépenses non alimentaires"}]
[null,null,null,null,null,null,null,null,null,null,null,null,null,null,null,null,null,null,null,null,null,null,null,null,null,null,null,null,null,null,null,null,null,null,null,null,null,null,null,null,null,null,null,null,"Transistors","DNA198","Dépenses non alimentaires",{"$f":"TabProduits[[#This Row],[Nom produit]]& TabProduits[[#This Row],[Libellé produit]]","v":"TransistorsDépenses non alimentaires"}]
[null,null,null,null,null,null,null,null,null,null,null,null,null,null,null,null,null,null,null,null,null,null,null,null,null,null,null,null,null,null,null,null,null,null,null,null,null,null,null,null,null,null,null,null,"Trombones","DNA199","Dépenses non alimentaires",{"$f":"TabProduits[[#This Row],[Nom produit]]& TabProduits[[#This Row],[Libellé produit]]","v":"TrombonesDépenses non alimentaires"}]
[null,null,null,null,null,null,null,null,null,null,null,null,null,null,null,null,null,null,null,null,null,null,null,null,null,null,null,null,null,null,null,null,null,null,null,null,null,null,null,null,null,null,null,null,"Tuyau gaz cuisinière","DNA200","Dépenses non alimentaires",{"$f":"TabProduits[[#This Row],[Nom produit]]& TabProduits[[#This Row],[Libellé produit]]","v":"Tuyau gaz cuisinièreDépenses non alimentaires"}]
[null,null,null,null,null,null,null,null,null,null,null,null,null,null,null,null,null,null,null,null,null,null,null,null,null,null,null,null,null,null,null,null,null,null,null,null,null,null,null,null,null,null,null,null,"Vaisselle (Sauf casseroles et couvercles casseroles)","DNA201","Dépenses non alimentaires",{"$f":"TabProduits[[#This Row],[Nom produit]]& TabProduits[[#This Row],[Libellé produit]]","v":"Vaisselle (Sauf casseroles et couvercles casseroles)Dépenses non alimentaires"}]
[null,null,null,null,null,null,null,null,null,null,null,null,null,null,null,null,null,null,null,null,null,null,null,null,null,null,null,null,null,null,null,null,null,null,null,null,null,null,null,null,null,null,null,null,"Vernis à ongles","DNA202","Dépenses non alimentaires",{"$f":"TabProduits[[#This Row],[Nom produit]]& TabProduits[[#This Row],[Libellé produit]]","v":"Vernis à onglesDépenses non alimentaires"}]
[null,null,null,null,null,null,null,null,null,null,null,null,null,null,null,null,null,null,null,null,null,null,null,null,null,null,null,null,null,null,null,null,null,null,null,null,null,null,null,null,null,null,null,null,"Vêtements et sous-vêtements (sauf Blouses)","DNA203","Dépenses non alimentaires",{"$f":"TabProduits[[#This Row],[Nom produit]]& TabProduits[[#This Row],[Libellé produit]]","v":"Vêtements et sous-vêtements (sauf Blouses)Dépenses non alimentaires"}]
[null,null,null,null,null,null,null,null,null,null,null,null,null,null,null,null,null,null,null,null,null,null,null,null,null,null,null,null,null,null,null,null,null,null,null,null,null,null,null,null,null,null,null,null,"Vinaigre anticalcaire","DNA204","Dépenses non alimentaires",{"$f":"TabProduits[[#This Row],[Nom produit]]& TabProduits[[#This Row],[Libellé produit]]","v":"Vinaigre anticalcaireDépenses non alimentaires"}]
[null,null,null,null,null,null,null,null,null,null,null,null,null,null,null,null,null,null,null,null,null,null,null,null,null,null,null,null,null,null,null,null,null,null,null,null,null,null,null,null,null,null,null,null,"Argent emprunté","RB01","Recettes bancaires",{"$f":"TabProduits[[#This Row],[Nom produit]]& TabProduits[[#This Row],[Libellé produit]]","v":"Argent empruntéRecettes bancaires"}]
[null,null,null,null,null,null,null,null,null,null,null,null,null,null,null,null,null,null,null,null,null,null,null,null,null,null,null,null,null,null,null,null,null,null,null,null,null,null,null,null,null,null,null,null,"Autres recettes bancaires","RB02","Recettes bancaires",{"$f":"TabProduits[[#This Row],[Nom produit]]& TabProduits[[#This Row],[Libellé produit]]","v":"Autres recettes bancairesRecettes bancaires"}]
[null,null,null,null,null,null,null,null,null,null,null,null,null,null,null,null,null,null,null,null,null,null,null,null,null,null,null,null,null,null,null,null,null,null,null,null,null,null,null,null,null,null,null,null,"Mutuelle","RB03","Recettes bancaires",{"$f":"TabProduits[[#This Row],[Nom produit]]& TabProduits[[#This Row],[Libellé produit]]","v":"MutuelleRecettes bancaires"}]
[null,null,null,null,null,null,null,null,null,null,null,null,null,null,null,null,null,null,null,null,null,null,null,null,null,null,null,null,null,null,null,null,null,null,null,null,null,null,null,null,null,null,null,null,"Pension caisse nationale d'assurance vieillesse (CNAV)","RB04","Recettes bancaires",{"$f":"TabProduits[[#This Row],[Nom produit]]& TabProduits[[#This Row],[Libellé produit]]","v":"Pension caisse nationale d'assurance vieillesse (CNAV)Recettes bancaires"}]
[null,null,null,null,null,null,null,null,null,null,null,null,null,null,null,null,null,null,null,null,null,null,null,null,null,null,null,null,null,null,null,null,null,null,null,null,null,null,null,null,null,null,null,null,"Pension caisse nationale des retraites des agents des collectivités locales (CNRACL)","RB05","Recettes bancaires",{"$f":"TabProduits[[#This Row],[Nom produit]]& TabProduits[[#This Row],[Libellé produit]]","v":"Pension caisse nationale des retraites des agents des collectivités locales (CNRACL)Recettes bancaires"}]
[null,null,null,null,null,null,null,null,null,null,null,null,null,null,null,null,null,null,null,null,null,null,null,null,null,null,null,null,null,null,null,null,null,null,null,null,null,null,null,null,null,null,null,null,"Sécurité sociale","RB06","Recettes bancaires",{"$f":"TabProduits[[#This Row],[Nom produit]]& TabProduits[[#This Row],[Libellé produit]]","v":"Sécurité socialeRecettes bancaires"}]
[null,null,null,null,null,null,null,null,null,null,null,null,null,null,null,null,null,null,null,null,null,null,null,null,null,null,null,null,null,null,null,null,null,null,null,null,null,null,null,null,null,null,null,null,"Mutuelle analyses","RM01","Recettes médicales",{"$f":"TabProduits[[#This Row],[Nom produit]]& TabProduits[[#This Row],[Libellé produit]]","v":"Mutuelle analysesRecettes médicales"}]
[null,null,null,null,null,null,null,null,null,null,null,null,null,null,null,null,null,null,null,null,null,null,null,null,null,null,null,null,null,null,null,null,null,null,null,null,null,null,null,null,null,null,null,null,"Mutuelle autres recettes médicales","RM02","Recettes médicales",{"$f":"TabProduits[[#This Row],[Nom produit]]& TabProduits[[#This Row],[Libellé produit]]","v":"Mutuelle autres recettes médicalesRecettes médicales"}]
[null,null,null,null,null,null,null,null,null,null,null,null,null,null,null,null,null,null,null,null,null,null,null,null,null,null,null,null,null,null,null,null,null,null,null,null,null,null,null,null,null,null,null,null,"Mutuelle dentiste","RM03","Recettes médicales",{"$f":"TabProduits[[#This Row],[Nom produit]]& TabProduits[[#This Row],[Libellé produit]]","v":"Mutuelle dentisteRecettes médicales"}]
[null,null,null,null,null,null,null,null,null,null,null,null,null,null,null,null,null,null,null,null,null,null,null,null,null,null,null,null,null,null,null,null,null,null,null,null,null,null,null,null,null,null,null,null,"Mutuelle docteur dermatologue","RM04","Recettes médicales",{"$f":"TabProduits[[#This Row],[Nom produit]]& TabProduits[[#This Row],[Libellé produit]]","v":"Mutuelle docteur dermatologueRecettes médicales"}]
[null,null,null,null,null,null,null,null,null,null,null,null,null,null,null,null,null,null,null,null,null,null,null,null,null,null,null,null,null,null,null,null,null,null,null,null,null,null,null,null,null,null,null,null,"Mutuelle docteur généraliste","RM05","Recettes médicales",{"$f":"TabProduits[[#This Row],[Nom produit]]& TabProduits[[#This Row],[Libellé produit]]","v":"Mutuelle docteur généralisteRecettes médicales"}]
[null,null,null,null,null,null,null,null,null,null,null,null,null,null,null,null,null,null,null,null,null,null,null,null,null,null,null,null,null,null,null,null,null,null,null,null,null,null,null,null,null,null,null,null,"Mutuelle docteur ophtalmologiste","RM06","Recettes médicales",{"$f":"TabProduits[[#This Row],[Nom produit]]& TabProduits[[#This Row],[Libellé produit]]","v":"Mutuelle docteur ophtalmologisteRecettes médicales"}]
[null,null,null,null,null,null,null,null,null,null,null,null,null,null,null,null,null,null,null,null,null,null,null,null,null,null,null,null,null,null,null,null,null,null,null,null,null,null,null,null,null,null,null,null,"Mutuelle forfait monture des lunettes","RM07","Recettes médicales",{"$f":"TabProduits[[#This Row],[Nom produit]]& TabProduits[[#This Row],[Libellé produit]]","v":"Mutuelle forfait monture des lunettesRecettes médicales"}]
[null,null,null,null,null,null,null,null,null,null,null,null,null,null,null,null,null,null,null,null,null,null,null,null,null,null,null,null,null,null,null,null,null,null,null,null,null,null,null,null,null,null,null,null,"Mutuelle forfait verres des lunettes","RM08","Recettes médicales",{"$f":"TabProduits[[#This Row],[Nom produit]]& TabProduits[[#This Row],[Libellé produit]]","v":"Mutuelle forfait verres des lunettesRecettes médicales"}]
[null,null,null,null,null,null,null,null,null,null,null,null,null,null,null,null,null,null,null,null,null,null,null,null,null,null,null,null,null,null,null,null,null,null,null,null,null,null,null,null,null,null,null,null,"Mutuelle monture des lunettes","RM09","Recettes médicales",{"$f":"TabProduits[[#This Row],[Nom produit]]& TabProduits[[#This Row],[Libellé produit]]","v":"Mutuelle monture des lunettesRecettes médicales"}]
[null,null,null,null,null,null,null,null,null,null,null,null,null,null,null,null,null,null,null,null,null,null,null,null,null,null,null,null,null,null,null,null,null,null,null,null,null,null,null,null,null,null,null,null,"Mutuelle pharmacie vignette blanche","RM10","Recettes médicales",{"$f":"TabProduits[[#This Row],[Nom produit]]& TabProduits[[#This Row],[Libellé produit]]","v":"Mutuelle pharmacie vignette blancheRecettes médicales"}]
[null,null,null,null,null,null,null,null,null,null,null,null,null,null,null,null,null,null,null,null,null,null,null,null,null,null,null,null,null,null,null,null,null,null,null,null,null,null,null,null,null,null,null,null,"Mutuelle pharmacie vignette bleue","RM11","Recettes médicales",{"$f":"TabProduits[[#This Row],[Nom produit]]& TabProduits[[#This Row],[Libellé produit]]","v":"Mutuelle pharmacie vignette bleueRecettes médicales"}]
[null,null,null,null,null,null,null,null,null,null,null,null,null,null,null,null,null,null,null,null,null,null,null,null,null,null,null,null,null,null,null,null,null,null,null,null,null,null,null,null,null,null,null,null,"Mutuelle pharmacie vignette orange","RM12","Recettes médicales",{"$f":"TabProduits[[#This Row],[Nom produit]]& TabProduits[[#This Row],[Libellé produit]]","v":"Mutuelle pharmacie vignette orangeRecettes médicales"}]
[null,null,null,null,null,null,null,null,null,null,null,null,null,null,null,null,null,null,null,null,null,null,null,null,null,null,null,null,null,null,null,null,null,null,null,null,null,null,null,null,null,null,null,null,"Mutuelle prélèvements","RM13","Recettes médicales",{"$f":"TabProduits[[#This Row],[Nom produit]]& TabProduits[[#This Row],[Libellé produit]]","v":"Mutuelle prélèvementsRecettes médicales"}]
[null,null,null,null,null,null,null,null,null,null,null,null,null,null,null,null,null,null,null,null,null,null,null,null,null,null,null,null,null,null,null,null,null,null,null,null,null,null,null,null,null,null,null,null,"Mutuelle radiographies","RM14","Recettes médicales",{"$f":"TabProduits[[#This Row],[Nom produit]]& TabProduits[[#This Row],[Libellé produit]]","v":"Mutuelle radiographiesRecettes médicales"}]
[null,null,null,null,null,null,null,null,null,null,null,null,null,null,null,null,null,null,null,null,null,null,null,null,null,null,null,null,null,null,null,null,null,null,null,null,null,null,null,null,null,null,null,null,"Mutuelle verres des lunettes","RM15","Recettes médicales",{"$f":"TabProduits[[#This Row],[Nom produit]]& TabProduits[[#This Row],[Libellé produit]]","v":"Mutuelle verres des lunettesRecettes médicales"}]
[null,null,null,null,null,null,null,null,null,null,null,null,null,null,null,null,null,null,null,null,null,null,null,null,null,null,null,null,null,null,null,null,null,null,null,null,null,null,null,null,null,null,null,null,"Sécurité sociale analyses","RM16","Recettes médicales",{"$f":"TabProduits[[#This Row],[Nom produit]]& TabProduits[[#This Row],[Libellé produit]]","v":"Sécurité sociale analysesRecettes médicales"}]
[null,null,null,null,null,null,null,null,null,null,null,null,null,null,null,null,null,null,null,null,null,null,null,null,null,null,null,null,null,null,null,null,null,null,null,null,null,null,null,null,null,null,null,null,"Sécurité sociale autres recettes médicales","RM17","Recettes médicales",{"$f":"TabProduits[[#This Row],[Nom produit]]& TabProduits[[#This Row],[Libellé produit]]","v":"Sécurité sociale autres recettes médicalesRecettes médicales"}]
[null,null,null,null,null,null,null,null,null,null,null,null,null,null,null,null,null,null,null,null,null,null,null,null,null,null,null,null,null,null,null,null,null,null,null,null,null,null,null,null,null,null,null,null,"Sécurité sociale dentiste","RM18","Recettes médicales",{"$f":"TabProduits[[#This Row],[Nom produit]]& TabProduits[[#This Row],[Libellé produit]]","v":"Sécurité sociale dentisteRecettes médicales"}]
[null,null,null,null,null,null,null,null,null,null,null,null,null,null,null,null,null,null,null,null,null,null,null,null,null,null,null,null,null,null,null,null,null,null,null,null,null,null,null,null,null,null,null,null,"Sécurité sociale docteur dermatologue","RM19","Recettes médicales",{"$f":"TabProduits[[#This Row],[Nom produit]]& TabProduits[[#This Row],[Libellé produit]]","v":"Sécurité sociale docteur dermatologueRecettes médicales"}]
[null,null,null,null,null,null,null,null,null,null,null,null,null,null,null,null,null,null,null,null,null,null,null,null,null,null,null,null,null,null,null,null,null,null,null,null,null,null,null,null,null,null,null,null,"Sécurité sociale docteur généraliste","RM20","Recettes médicales",{"$f":"TabProduits[[#This Row],[Nom produit]]& TabProduits[[#This Row],[Libellé produit]]","v":"Sécurité sociale docteur généralisteRecettes médicales"}]
[null,null,null,null,null,null,null,null,null,null,null,null,null,null,null,null,null,null,null,null,null,null,null,null,null,null,null,null,null,null,null,null,null,null,null,null,null,null,null,null,null,null,null,null,"Sécurité sociale docteur ophtalmologiste","RM21","Recettes médicales",{"$f":"TabProduits[[#This Row],[Nom produit]]& TabProduits[[#This Row],[Libellé produit]]","v":"Sécurité sociale docteur ophtalmologisteRecettes médicales"}]
[null,null,null,null,null,null,null,null,null,null,null,null,null,null,null,null,null,null,null,null,null,null,null,null,null,null,null,null,null,null,null,null,null,null,null,null,null,null,null,null,null,null,null,null,"Sécurité sociale monture des lunettes","RM22","Recettes médicales",{"$f":"TabProduits[[#This Row],[Nom produit]]& TabProduits[[#This Row],[Libellé produit]]","v":"Sécurité sociale monture des lunettesRecettes médicales"}]
[null,null,null,null,null,null,null,null,null,null,null,null,null,null,null,null,null,null,null,null,null,null,null,null,null,null,null,null,null,null,null,null,null,null,null,null,null,null,null,null,null,null,null,null,"Sécurité sociale pharmacie vignette blanche","RM23","Recettes médicales",{"$f":"TabProduits[[#This Row],[Nom produit]]& TabProduits[[#This Row],[Libellé produit]]","v":"Sécurité sociale pharmacie vignette blancheRecettes médicales"}]
[null,null,null,null,null,null,null,null,null,null,null,null,null,null,null,null,null,null,null,null,null,null,null,null,null,null,null,null,null,null,null,null,null,null,null,null,null,null,null,null,null,null,null,null,"Sécurité sociale pharmacie vignette bleue","RM24","Recettes médicales",{"$f":"TabProduits[[#This Row],[Nom produit]]& TabProduits[[#This Row],[Libellé produit]]","v":"Sécurité sociale pharmacie vignette bleueRecettes médicales"}]
[null,null,null,null,null,null,null,null,null,null,null,null,null,null,null,null,null,null,null,null,null,null,null,null,null,null,null,null,null,null,null,null,null,null,null,null,null,null,null,null,null,null,null,null,"Sécurité sociale pharmacie vignette orange","RM25","Recettes médicales",{"$f":"TabProduits[[#This Row],[Nom produit]]& TabProduits[[#This Row],[Libellé produit]]","v":"Sécurité sociale pharmacie vignette orangeRecettes médicales"}]
[null,null,null,null,null,null,null,null,null,null,null,null,null,null,null,null,null,null,null,null,null,null,null,null,null,null,null,null,null,null,null,null,null,null,null,null,null,null,null,null,null,null,null,null,"Sécurité sociale prélèvements","RM26","Recettes médicales",{"$f":"TabProduits[[#This Row],[Nom produit]]& TabProduits[[#This Row],[Libellé produit]]","v":"Sécurité sociale prélèvementsRecettes médicales"}]
[null,null,null,null,null,null,null,null,null,null,null,null,null,null,null,null,null,null,null,null,null,null,null,null,null,null,null,null,null,null,null,null,null,null,null,null,null,null,null,null,null,null,null,null,"Sécurité sociale radiographies","RM27","Recettes médicales",{"$f":"TabProduits[[#This Row],[Nom produit]]& TabProduits[[#This Row],[Libellé produit]]","v":"Sécurité sociale radiographiesRecettes médicales"}]
[null,null,null,null,null,null,null,null,null,null,null,null,null,null,null,null,null,null,null,null,null,null,null,null,null,null,null,null,null,null,null,null,null,null,null,null,null,null,null,null,null,null,null,null,"Sécurité sociale verres des lunettes","RM28","Recettes médicales",{"$f":"TabProduits[[#This Row],[Nom produit]]& TabProduits[[#This Row],[Libellé produit]]","v":"Sécurité sociale verres des lunettesRecettes médicales"}]
[null,null,null,null,null,null,null,null,null,null,null,null,null,null,null,null,null,null,null,null,null,null,null,null,null,null,null,null,null,null,null,null,null,null,null,null,null,null,null,null,null,null,null,null,"Argent emprunté","RN01","Recettes numéraires",{"$f":"TabProduits[[#This Row],[Nom produit]]& TabProduits[[#This Row],[Libellé produit]]","v":"Argent empruntéRecettes numéraires"}]
[null,null,null,null,null,null,null,null,null,null,null,null,null,null,null,null,null,null,null,null,null,null,null,null,null,null,null,null,null,null,null,null,null,null,null,null,null,null,null,null,null,null,null,null,"Argent trouvé","RN02","Recettes numéraires",{"$f":"TabProduits[[#This Row],[Nom produit]]& TabProduits[[#This Row],[Libellé produit]]","v":"Argent trouvéRecettes numéraires"}]
[null,null,null,null,null,null,null,null,null,null,null,null,null,null,null,null,null,null,null,null,null,null,null,null,null,null,null,null,null,null,null,null,null,null,null,null,null,null,null,null,null,null,null,null,"Autres recettes numéraires","RN03","Recettes numéraires",{"$f":"TabProduits[[#This Row],[Nom produit]]& TabProduits[[#This Row],[Libellé produit]]","v":"Autres recettes numérairesRecettes numéraires"}]
[null,null,null,null,null,null,null,null,null,null,null,null,null,null,null,null,null,null,null,null,null,null,null,null,null,null,null,null,null,null,null,null,null,null,null,null,null,null,null,null,null,null,null,null,"Déconsignation bouteille liquide cigarette éectronique NHOSS","RN04","Recettes numéraires",{"$f":"TabProduits[[#This Row],[Nom produit]]& TabProduits[[#This Row],[Libellé produit]]","v":"Déconsignation bouteille liquide cigarette éectronique NHOSSRecettes numéraires"}]
[null,null,null,null,null,null,null,null,null,null,null,null,null,null,null,null,null,null,null,null,null,null,null,null,null,null,null,null,null,null,null,null,null,null,null,null,null,null,null,null,null,null,null,null,"Fidélité Carrefour","RN05","Recettes numéraires",{"$f":"TabProduits[[#This Row],[Nom produit]]& TabProduits[[#This Row],[Libellé produit]]","v":"Fidélité CarrefourRecettes numéraires"}]
[null,null,null,null,null,null,null,null,null,null,null,null,null,null,null,null,null,null,null,null,null,null,null,null,null,null,null,null,null,null,null,null,null,null,null,null,null,null,null,null,null,null,null,null,"Fidélité FNAC","RN06","Recettes numéraires",{"$f":"TabProduits[[#This Row],[Nom produit]]& TabProduits[[#This Row],[Libellé produit]]","v":"Fidélité FNACRecettes numéraires"}]
[null,null,null,null,null,null,null,null,null,null,null,null,null,null,null,null,null,null,null,null,null,null,null,null,null,null,null,null,null,null,null,null,null,null,null,null,null,null,null,null,null,null,null,null,"Fidélité Géant casino","RN07","Recettes numéraires",{"$f":"TabProduits[[#This Row],[Nom produit]]& TabProduits[[#This Row],[Libellé produit]]","v":"Fidélité Géant casinoRecettes numéraires"}]
[null,null,null,null,null,null,null,null,null,null,null,null,null,null,null,null,null,null,null,null,null,null,null,null,null,null,null,null,null,null,null,null,null,null,null,null,null,null,null,null,null,null,null,null,"Fidélité GEMO","RN08","Recettes numéraires",{"$f":"TabProduits[[#This Row],[Nom produit]]& TabProduits[[#This Row],[Libellé produit]]","v":"Fidélité GEMORecettes numéraires"}]
[null,null,null,null,null,null,null,null,null,null,null,null,null,null,null,null,null,null,null,null,null,null,null,null,null,null,null,null,null,null,null,null,null,null,null,null,null,null,null,null,null,null,null,null,"Fidélité InterMarché","RN09","Recettes numéraires",{"$f":"TabProduits[[#This Row],[Nom produit]]& TabProduits[[#This Row],[Libellé produit]]","v":"Fidélité InterMarchéRecettes numéraires"}]
[null,null,null,null,null,null,null,null,null,null,null,null,null,null,null,null,null,null,null,null,null,null,null,null,null,null,null,null,null,null,null,null,null,null,null,null,null,null,null,null,null,null,null,null,"Fidélité Leclerc","RN10","Recettes numéraires",{"$f":"TabProduits[[#This Row],[Nom produit]]& TabProduits[[#This Row],[Libellé produit]]","v":"Fidélité LeclercRecettes numéraires"}]
[null,null,null,null,null,null,null,null,null,null,null,null,null,null,null,null,null,null,null,null,null,null,null,null,null,null,null,null,null,null,null,null,null,null,null,null,null,null,null,null,null,null,null,null,"Remboursement argent prêté à des tiers","RN11","Recettes numéraires",{"$f":"TabProduits[[#This Row],[Nom produit]]& TabProduits[[#This Row],[Libellé produit]]","v":"Remboursement argent prêté à des tiersRecettes numéraires"}]
[null,null,null,null,null,null,null,null,null,null,null,null,null,null,null,null,null,null,null,null,null,null,null,null,null,null,null,null,null,null,null,null,null,null,null,null,null,null,null,null,null,null,null,null,"Trop perçu sur monnaie rendue","RN12","Recettes numéraires",{"$f":"TabProduits[[#This Row],[Nom produit]]& TabProduits[[#This Row],[Libellé produit]]","v":"Trop perçu sur monnaie rendueRecettes numéraires"}]
[null,null,null,null,null,null,null,null,null,null,null,null,null,null,null,null,null,null,null,null,null,null,null,null,null,null,null,null,null,null,null,null,null,null,null,null,null,null,null,null,null,null,null,null,"Virements de fonds","RN13","Recettes numéraires",{"$f":"TabProduits[[#This Row],[Nom produit]]& TabProduits[[#This Row],[Libellé produit]]","v":"Virements de fondsRecettes numéraires"}]

{"sheet":"BD articles budgétaires","index":2,"n_rows":446,"n_cols":12,"rows_kept":446,"cut":false,"hidden":false,"merged":[[0,0,0,11]]}
["Base de données articles budgétaires."]
[]
["Type","Code type","Catégorie","Code catégorie","Article","Code article","Période","Code période","Conditionnement","Code conditionnement","Date création","Numéro création"]
["Article dépense budgétaire","ADB","Dépenses alimentaires","DA","Agneau","DA01","Selon menu","PAB11","1 tranche pour 1 repas (viandes midi weekend)","CAB120","jeudi 16 mai 2024","DA-01"]
["Article dépense budgétaire","ADB","Dépenses alimentaires","DA","Ananas","DA02","Selon menu","PAB11","Unité : 1 pour 4 repas (Ananas)","CAB140","jeudi 16 mai 2024","DA-02"]
["Article dépense budgétaire","ADB","Dépenses alimentaires","DA","Apéritif","DA03","Mensuelle","PAB09","1 bouteille de 75 centilitres (Apéritif)","CAB32","jeudi 16 mai 2024","DA-03"]
["Article dépense budgétaire","ADB","Dépenses alimentaires","DA","Asperges","DA04","Selon menu","PAB11","1 bocal ou 1 boîte pour 1 repas (Asperges)","CAB04","jeudi 16 mai 2024","DA-04"]
["Article dépense budgétaire","ADB","Dépenses alimentaires","DA","Autres dépenses alimentaires","DA05","Mensuelle","PAB09","Unité : sans conditionnement","CAB144","jeudi 16 mai 2024","DA-05"]
["Article dépense budgétaire","ADB","Dépenses alimentaires","DA","Autres fruits","DA06","Selon menu","PAB11","Unité : 2 à 4 pour 1 repas (Autres fruits, Clémentines, Fruits de saison)","CAB142","jeudi 16 mai 2024","DA-06"]
["Article dépense budgétaire","ADB","Dépenses alimentaires","DA","Avocat légume","DA07","Selon menu","PAB11","Unité : 1 pour 1 repas","CAB138","jeudi 16 mai 2024","DA-07"]
["Article dépense budgétaire","ADB","Dépenses alimentaires","DA","Avocats desserts","DA08","Selon menu","PAB11","Unité : 1 pour 1 repas","CAB138","jeudi 16 mai 2024","DA-08"]
["Article dépense budgétaire","ADB","Dépenses alimentaires","DA","Bananes desserts","DA09","Selon menu","PAB11","Unité : 1 pour 1 repas","CAB138","jeudi 16 mai 2024","DA-09"]
["Article dépense budgétaire","ADB","Dépenses alimentaires","DA","Bananes matin","DA10","Du 25 au 31 inclus de chaque mois","PAB06","Unité : 1 pour 1 repas","CAB138","jeudi 16 mai 2024","DA-10"]
["Article dépense budgétaire","ADB","Dépenses alimentaires","DA","Betterave rouge","DA11","Selon menu","PAB11","1 paquet pour 5 repas (Betteraves rouges)","CAB103","jeudi 16 mai 2024","DA-11"]
["Article dépense budgétaire","ADB","Dépenses alimentaires","DA","Beurre","DA12","Bimensuelle","PAB02","1 plaquette de 250 grammes (Beurre : 2 mensuelles maximum)","CAB104","jeudi 16 mai 2024","DA-12"]
["Article dépense budgétaire","ADB","Dépenses alimentaires","DA","Bifteck haché de bœuf","DA13","Selon menu","PAB11","1 paquet pour 2 repas","CAB100","jeudi 16 mai 2024","DA-13"]
["Article dépense budgétaire","ADB","Dépenses alimentaires","DA","Bifteck haché de cheval","DA14","Selon menu","PAB11","125 grammes pour 1 repas (Bifteck haché de cheval)","CAB125","jeudi 16 mai 2024","DA-14"]
["Article dépense budgétaire","ADB","Dépenses alimentaires","DA","Bifteck haché de veau","DA15","Selon menu","PAB11","1 paquet pour 2 repas","CAB100","jeudi 16 mai 2024","DA-15"]
["Article dépense budgétaire","ADB","Dépenses alimentaires","DA","Bœuf","DA16","Selon menu","PAB11","1 tranche pour 1 repas (viandes midi weekend)","CAB120","jeudi 16 mai 2024","DA-16"]
["Article dépense budgétaire","ADB","Dépenses alimentaires","DA","Bonbons","DA17","Selon les besoins","PAB10","1 sachet grand modèle (Bonbons)","CAB114","jeudi 16 mai 2024","DA-17"]
["Article dépense budgétaire","ADB","Dépenses alimentaires","DA","Bouchée à la reine","DA18","Selon menu","PAB11","1 boîte pour 2 repas","CAB23","jeudi 16 mai 2024","DA-18"]
["Article dépense budgétaire","ADB","Dépenses alimentaires","DA","Boudin","DA19","Selon menu","PAB11","1 paquet pour 2 repas","CAB100","jeudi 16 mai 2024","DA-19"]
["Article dépense budgétaire","ADB","Dépenses alimentaires","DA","Café","DA20","Selon les besoins","PAB10","1 pot de 100 grammes Nescafé Espresso (Café)","CAB106","jeudi 16 mai 2024","DA-20"]
["Article dépense budgétaire","ADB","Dépenses alimentaires","DA","Carottes","DA21","Selon menu","PAB11","Unité : 2 pour 1 repas (Carottes, Tomates)","CAB143","jeudi 16 mai 2024","DA-21"]
["Article dépense budgétaire","ADB","Dépenses alimentaires","DA","Cassoulet","DA22","Selon menu","PAB11","1 boîte pour 2 repas","CAB23","jeudi 16 mai 2024","DA-22"]
["Article dépense budgétaire","ADB","Dépenses alimentaires","DA","Céleri","DA23","Selon menu","PAB11","Unité : 1 branche pour 1 repas (Céleri)","CAB134","jeudi 16 mai 2024","DA-23"]
["Article dépense budgétaire","ADB","Dépenses alimentaires","DA","Cervelas","DA24","Selon menu","PAB11","1 paquet pour 2 repas","CAB100","jeudi 16 mai 2024","DA-24"]
["Article dépense budgétaire","ADB","Dépenses alimentaires","DA","Champignons","DA25","Selon menu","PAB11","1 boîte pour 1 repas","CAB22","jeudi 16 mai 2024","DA-25"]
["Article dépense budgétaire","ADB","Dépenses alimentaires","DA","Cheval","DA26","Selon menu","PAB11","1 tranche pour 1 repas (viandes midi weekend)","CAB120","jeudi 16 mai 2024","DA-26"]
["Article dépense budgétaire","ADB","Dépenses alimentaires","DA","Chips","DA27","Selon menu","PAB11","1 sachet pour 2 repas (Chips)","CAB115","jeudi 16 mai 2024","DA-27"]
["Article dépense budgétaire","ADB","Dépenses alimentaires","DA","Chocolat","DA28","Selon les besoins","PAB10","1 pack de 3 tablettes (Chocolat)","CAB82","jeudi 16 mai 2024","DA-28"]
["Article dépense budgétaire","ADB","Dépenses alimentaires","DA","Choucroute","DA29","Selon menu","PAB11","1 boîte pour 2 repas","CAB23","jeudi 16 mai 2024","DA-29"]
["Article dépense budgétaire","ADB","Dépenses alimentaires","DA","Chou-fleur","DA30","Selon menu","PAB11","Unité : 1 pour 2 repas (Chou-fleur)","CAB139","jeudi 16 mai 2024","DA-30"]
["Article dépense budgétaire","ADB","Dépenses alimentaires","DA","Choux de Bruxelles","DA31","Selon menu","PAB11","1 boîte pour 2 repas","CAB23","jeudi 16 mai 2024","DA-31"]
["Article dépense budgétaire","ADB","Dépenses alimentaires","DA","Clémentines","DA32","Selon menu","PAB11","Unité : 2 à 4 pour 1 repas (Autres fruits, Clémentines, Fruits de saison)","CAB142","jeudi 16 mai 2024","DA-32"]
["Article dépense budgétaire","ADB","Dépenses alimentaires","DA","Coca-cola","DA33","Journalière","PAB08","1 bouteille de 150 centilitres (Coca-cola, Eau)","CAB31","jeudi 16 mai 2024","DA-33"]
["Article dépense budgétaire","ADB","Dépenses alimentaires","DA","Cœur","DA34","Selon menu","PAB11","1 paquet pour 2 repas","CAB100","jeudi 16 mai 2024","DA-34"]
["Article dépense budgétaire","ADB","Dépenses alimentaires","DA","Concombre","DA35","Selon menu","PAB11","Unité : 1 pour 1 repas","CAB138","jeudi 16 mai 2024","DA-35"]
["Article dépense budgétaire","ADB","Dépenses alimentaires","DA","Confiture","DA36","Selon les besoins","PAB10","1 pot en verre de 370 grammes (Confiture)","CAB108","jeudi 16 mai 2024","DA-36"]
["Article dépense budgétaire","ADB","Dépenses alimentaires","DA","Couscous","DA37","Selon menu","PAB11","25 grammes pour 1 repas (Couscous, Purée, Riz légume, Tapioca)","CAB127","jeudi 16 mai 2024","DA-37"]
["Article dépense budgétaire","ADB","Dépenses alimentaires","DA","Crème","DA38","Selon menu","PAB11","1 pack de 4 pots pour le weekend end. 1 pot pour 1 repas","CAB85","jeudi 16 mai 2024","DA-38"]
["Article dépense budgétaire","ADB","Dépenses alimentaires","DA","Croque-monsieur","DA39","Selon menu","PAB11","1 paquet pour 2 repas","CAB100","jeudi 16 mai 2024","DA-39"]
["Article dépense budgétaire","ADB","Dépenses alimentaires","DA","Dattes","DA40","Selon menu","PAB11","1 paquet pour 4 repas (Dattes, Figues, Pruneaux)","CAB102","jeudi 16 mai 2024","DA-40"]
["Article dépense budgétaire","ADB","Dépenses alimentaires","DA","Dinde","DA41","Selon menu","PAB11","1 tranche pour 1 repas (viandes midi weekend)","CAB120","jeudi 16 mai 2024","DA-41"]
["Article dépense budgétaire","ADB","Dépenses alimentaires","DA","Eau","DA42","Selon les besoins","PAB10","1 bouteille de 150 centilitres (Coca-cola, Eau)","CAB31","jeudi 16 mai 2024","DA-42"]
["Article dépense budgétaire","ADB","Dépenses alimentaires","DA","Endives","DA43","Selon menu","PAB11","1 boîte pour 2 repas","CAB23","jeudi 16 mai 2024","DA-43"]
["Article dépense budgétaire","ADB","Dépenses alimentaires","DA","Figues","DA44","Selon menu","PAB11","1 paquet pour 4 repas (Dattes, Figues, Pruneaux)","CAB102","jeudi 16 mai 2024","DA-44"]
["Article dépense budgétaire","ADB","Dépenses alimentaires","DA","Foie","DA45","Selon menu","PAB11","1 paquet pour 2 repas","CAB100","jeudi 16 mai 2024","DA-45"]
["Article dépense budgétaire","ADB","Dépenses alimentaires","DA","Frites","DA46","Selon menu","PAB11","20 frites pour 1 repas","CAB126","jeudi 16 mai 2024","DA-46"]
["Article dépense budgétaire","ADB","Dépenses alimentaires","DA","Fromage blanc desserts","DA47","Selon menu","PAB11","1 pack de 4 pots pour le weekend end. 1 pot pour 1 repas","CAB85","jeudi 16 mai 2024","DA-47"]
["Article dépense budgétaire","ADB","Dépenses alimentaires","DA","Fromage blanc matin","DA48","Du 17 au 24 inclus de chaque mois","PAB05","1 pack de 8 pots. 1 pot par matin (Fromage blanc matin)","CAB94","jeudi 16 mai 2024","DA-48"]
["Article dépense budgétaire","ADB","Dépenses alimentaires","DA","Fromage de tête","DA49","Selon menu","PAB11","1 paquet pour 2 repas","CAB100","jeudi 16 mai 2024","DA-49"]
["Article dépense budgétaire","ADB","Dépenses alimentaires","DA","Fromage râpé","DA50","Selon menu","PAB11","1 pack de 3 sachets. 1 sachet par samedi d'utilisation. (Fromage râpé)","CAB80","jeudi 16 mai 2024","DA-50"]
["Article dépense budgétaire","ADB","Dépenses alimentaires","DA","Fromage soir","DA51","Journalière","PAB08","1 boîte de 12, 24 ou 32 portions. 1 portion par soir. (Fromage soir)","CAB11","jeudi 16 mai 2024","DA-51"]
["Article dépense budgétaire","ADB","Dépenses alimentaires","DA","Fruits au sirop","DA52","Selon menu","PAB11","1 boîte pour 2 repas","CAB23","jeudi 16 mai 2024","DA-52"]
["Article dépense budgétaire","ADB","Dépenses alimentaires","DA","Fruits de saison","DA53","Selon menu","PAB11","Unité : 2 à 4 pour 1 repas (Autres fruits, Clémentines, Fruits de saison)","CAB142","jeudi 16 mai 2024","DA-53"]
["Article dépense budgétaire","ADB","Dépenses alimentaires","DA","Gâteau de riz","DA54","Selon menu","PAB11","1 pack de 4 pots pour le weekend end. 1 pot pour 1 repas","CAB85","jeudi 16 mai 2024","DA-54"]
["Article dépense budgétaire","ADB","Dépenses alimentaires","DA","Gâteau de semoule","DA55","Selon menu","PAB11","1 pack de 4 pots pour le weekend end. 1 pot pour 1 repas","CAB85","jeudi 16 mai 2024","DA-55"]
["Article dépense budgétaire","ADB","Dépenses alimentaires","DA","Gâteaux apéritif","DA56","Hebdomadaire","PAB07","1 boîte par dimanche midi et jours fériés. (Gâteaux apéritif)","CAB21","jeudi 16 mai 2024","DA-56"]
["Article dépense budgétaire","ADB","Dépenses alimentaires","DA","Gâteaux samedi et dimanche","DA57","Selon menu","PAB11","1 boîte pour 2 repas","CAB23","jeudi 16 mai 2024","DA-57"]
["Article dépense budgétaire","ADB","Dépenses alimentaires","DA","Glaces","DA58","Hebdomadaire","PAB07","1 cornet à 2 boules pendant l'été (Glaces)","CAB38","jeudi 16 mai 2024","DA-58"]
["Article dépense budgétaire","ADB","Dépenses alimentaires","DA","Gros sel","DA59","Selon les besoins","PAB10","1 boîte de 1000 grammes pour une durée indéterminée (Gros sel)","CAB09","jeudi 16 mai 2024","DA-59"]
["Article dépense budgétaire","ADB","Dépenses alimentaires","DA","Haricots verts","DA60","Selon menu","PAB11","1 boîte pour 2 repas","CAB23","jeudi 16 mai 2024","DA-60"]
["Article dépense budgétaire","ADB","Dépenses alimentaires","DA","Huile","DA61","Trimestrielle","PAB15","1 bouteille de 100 centilitres (Huile, Vinaigre assaisonnement)","CAB28","jeudi 16 mai 2024","DA-61"]
["Article dépense budgétaire","ADB","Dépenses alimentaires","DA","Jambon","DA62","Selon menu","PAB11","1 paquet pour 2 repas","CAB100","jeudi 16 mai 2024","DA-62"]
["Article dépense budgétaire","ADB","Dépenses alimentaires","DA","Jambonneau","DA63","Selon menu","PAB11","1 paquet pour 2 repas","CAB100","jeudi 16 mai 2024","DA-63"]
["Article dépense budgétaire","ADB","Dépenses alimentaires","DA","Lait","DA64","Trimestrielle","PAB15","1 boîte de 750 grammes pour une durée indéterminée (Lait en poudre écrémé)","CAB18","jeudi 16 mai 2024","DA-64"]
["Article dépense budgétaire","ADB","Dépenses alimentaires","DA","Légumes de couscous","DA65","Selon menu","PAB11","1 boîte pour 2 repas","CAB23","jeudi 16 mai 2024","DA-65"]
["Article dépense budgétaire","ADB","Dépenses alimentaires","DA","Macédoine de légumes","DA66","Selon menu","PAB11","1 boîte pour 2 repas","CAB23","jeudi 16 mai 2024","DA-66"]
["Article dépense budgétaire","ADB","Dépenses alimentaires","DA","Maïs","DA67","Selon menu","PAB11","1 boîte pour 2 repas","CAB23","jeudi 16 mai 2024","DA-67"]
["Article dépense budgétaire","ADB","Dépenses alimentaires","DA","Mortadelle","DA68","Selon menu","PAB11","1 paquet pour 2 repas","CAB100","jeudi 16 mai 2024","DA-68"]
["Article dépense budgétaire","ADB","Dépenses alimentaires","DA","Mousse au chocolat","DA69","Selon menu","PAB11","1 pack de 4 pots pour le weekend end. 1 pot pour 1 repas","CAB85","jeudi 16 mai 2024","DA-69"]
["Article dépense budgétaire","ADB","Dépenses alimentaires","DA","Œufs","DA70","Selon menu","PAB11","1 boîte de 6 œufs. 3 œufs pour 1 repas","CAB17","jeudi 16 mai 2024","DA-70"]
["Article dépense budgétaire","ADB","Dépenses alimentaires","DA","Oranges","DA71","Selon menu","PAB11","Unité : 1 pour 1 repas","CAB138","jeudi 16 mai 2024","DA-71"]
["Article dépense budgétaire","ADB","Dépenses alimentaires","DA","Paella","DA72","Selon menu","PAB11","1 boîte pour 2 repas","CAB23","jeudi 16 mai 2024","DA-72"]
["Article dépense budgétaire","ADB","Dépenses alimentaires","DA","Pain","DA73","Journalière","PAB08","1 baguette pour 4 jours (Pain)","CAB02","jeudi 16 mai 2024","DA-73"]
["Article dépense budgétaire","ADB","Dépenses alimentaires","DA","Pâtes à la sauce tomates","DA74","Selon menu","PAB11","5 cuillères pour 1 repas (Pâtes à la sauce tomates, Pâtes au beurre, Pâtes au fromage râpé)","CAB129","jeudi 16 mai 2024","DA-74"]
["Article dépense budgétaire","ADB","Dépenses alimentaires","DA","Pâtes au beurre","DA75","Selon menu","PAB11","5 cuillères pour 1 repas (Pâtes à la sauce tomates, Pâtes au beurre, Pâtes au fromage râpé)","CAB129","jeudi 16 mai 2024","DA-75"]
["Article dépense budgétaire","ADB","Dépenses alimentaires","DA","Pâtes au fromage râpé","DA76","Selon menu","PAB11","5 cuillères pour 1 repas (Pâtes à la sauce tomates, Pâtes au beurre, Pâtes au fromage râpé)","CAB129","jeudi 16 mai 2024","DA-76"]
["Article dépense budgétaire","ADB","Dépenses alimentaires","DA","Petits pois","DA77","Selon menu","PAB11","1 boîte pour 2 repas","CAB23","jeudi 16 mai 2024","DA-77"]
["Article dépense budgétaire","ADB","Dépenses alimentaires","DA","Petits pois et jeunes carottes","DA78","Selon menu","PAB11","1 boîte pour 2 repas","CAB23","jeudi 16 mai 2024","DA-78"]
["Article dépense budgétaire","ADB","Dépenses alimentaires","DA","Petits suisses","DA79","Selon menu","PAB11","1 pack de 6 pots ou 12 pots. 3 pots par repas (Petits suisses)","CAB92","jeudi 16 mai 2024","DA-79"]
["Article dépense budgétaire","ADB","Dépenses alimentaires","DA","Pizza","DA80","Selon menu","PAB11","1 paquet pour 2 repas","CAB100","jeudi 16 mai 2024","DA-80"]
["Article dépense budgétaire","ADB","Dépenses alimentaires","DA","Poireau","DA81","Selon menu","PAB11","Unité : 1 pour 1 repas","CAB138","jeudi 16 mai 2024","DA-81"]
["Article dépense budgétaire","ADB","Dépenses alimentaires","DA","Poisson","DA82","Selon menu","PAB11","Unité : 1 pour 1 repas","CAB138","jeudi 16 mai 2024","DA-82"]
["Article dépense budgétaire","ADB","Dépenses alimentaires","DA","Poivre gris","DA83","Selon les besoins","PAB10","1 pot de 36 grammes (Poivre gris)","CAB107","jeudi 16 mai 2024","DA-83"]
["Article dépense budgétaire","ADB","Dépenses alimentaires","DA","Pomme","DA84","Selon menu","PAB11","1 sachet de 2 kilogrammes. 1 pomme pour 1 repas","CAB113","jeudi 16 mai 2024","DA-84"]
["Article dépense budgétaire","ADB","Dépenses alimentaires","DA","Pomme de terre","DA85","Selon menu","PAB11","Unité : 1 pour 1 repas","CAB138","jeudi 16 mai 2024","DA-85"]
["Article dépense budgétaire","ADB","Dépenses alimentaires","DA","Porc","DA86","Selon menu","PAB11","1 tranche pour 1 repas (viandes midi weekend)","CAB120","jeudi 16 mai 2024","DA-86"]
["Article dépense budgétaire","ADB","Dépenses alimentaires","DA","Pruneaux","DA87","Selon menu","PAB11","1 paquet pour 4 repas (Dattes, Figues, Pruneaux)","CAB102","jeudi 16 mai 2024","DA-87"]
["Article dépense budgétaire","ADB","Dépenses alimentaires","DA","Purée","DA88","Selon menu","PAB11","25 grammes pour 1 repas (Couscous, Purée, Riz légume, Tapioca)","CAB127","jeudi 16 mai 2024","DA-88"]
["Article dépense budgétaire","ADB","Dépenses alimentaires","DA","Quenelles","DA89","Selon menu","PAB11","1 boîte pour 2 repas","CAB23","jeudi 16 mai 2024","DA-89"]
["Article dépense budgétaire","ADB","Dépenses alimentaires","DA","Quiche lorraine","DA90","Selon menu","PAB11","1 boîte de 8 parts soit 800 grammes. 1 par repas. (Quiche lorraine)","CAB19","jeudi 16 mai 2024","DA-90"]
["Article dépense budgétaire","ADB","Dépenses alimentaires","DA","Radis LMR","DA91","Selon menu","PAB11","1 botte ou 1 sachet pour deux repas (Radis LMR)","CAB24","jeudi 16 mai 2024","DA-91"]
["Article dépense budgétaire","ADB","Dépenses alimentaires","DA","Radis LSV","DA92","Selon menu","PAB11","1 botte ou 1 sachet pour un repas (Radis LSV)","CAB25","jeudi 16 mai 2024","DA-92"]
["Article dépense budgétaire","ADB","Dépenses alimentaires","DA","Ratatouille","DA93","Selon menu","PAB11","1 boîte pour 2 repas","CAB23","jeudi 16 mai 2024","DA-93"]
["Article dépense budgétaire","ADB","Dépenses alimentaires","DA","Raviolis","DA94","Selon menu","PAB11","1 boîte pour 2 repas","CAB23","jeudi 16 mai 2024","DA-94"]
["Article dépense budgétaire","ADB","Dépenses alimentaires","DA","Riz desserts","DA95","Selon menu","PAB11","1 pack de 4 pots pour le weekend end. 1 pot pour 1 repas","CAB85","jeudi 16 mai 2024","DA-95"]
["Article dépense budgétaire","ADB","Dépenses alimentaires","DA","Riz légume","DA96","Selon menu","PAB11","25 grammes pour 1 repas (Couscous, Purée, Riz légume, Tapioca)","CAB127","jeudi 16 mai 2024","DA-96"]
["Article dépense budgétaire","ADB","Dépenses alimentaires","DA","Rôti d'agneau","DA97","Selon menu","PAB11","1 morceau de 500 grammes pour 5 repas (les cinq rôtis)","CAB60","jeudi 16 mai 2024","DA-97"]
["Article dépense budgétaire","ADB","Dépenses alimentaires","DA","Rôti de bœuf","DA98","Selon menu","PAB11","1 morceau de 500 grammes pour 5 repas (les cinq rôtis)","CAB60","jeudi 16 mai 2024","DA-98"]
["Article dépense budgétaire","ADB","Dépenses alimentaires","DA","Rôti de cheval","DA99","Selon menu","PAB11","1 morceau de 500 grammes pour 5 repas (les cinq rôtis)","CAB60","jeudi 16 mai 2024","DA-99"]
["Article dépense budgétaire","ADB","Dépenses alimentaires","DA","Rôti de porc","DA100","Selon menu","PAB11","1 morceau de 500 grammes pour 5 repas (les cinq rôtis)","CAB60","jeudi 16 mai 2024","DA-100"]
["Article dépense budgétaire","ADB","Dépenses alimentaires","DA","Rôti de veau","DA101","Selon menu","PAB11","1 morceau de 500 grammes pour 5 repas (les cinq rôtis)","CAB60","jeudi 16 mai 2024","DA-101"]
["Article dépense budgétaire","ADB","Dépenses alimentaires","DA","Roulade à la pistache","DA102","Selon menu","PAB11","3 tranches pour 1 repas (Roulade à la pistache, Tête roulée)","CAB128","jeudi 16 mai 2024","DA-102"]
["Article dépense budgétaire","ADB","Dépenses alimentaires","DA","Roulés au fromage","DA103","Selon menu","PAB11","1 boîte pour 2 repas","CAB23","jeudi 16 mai 2024","DA-103"]
["Article dépense budgétaire","ADB","Dépenses alimentaires","DA","Salade","DA104","Selon menu","PAB11","Unité : 1 tête pour 1 repas (Salade)","CAB141","jeudi 16 mai 2024","DA-104"]
["Article dépense budgétaire","ADB","Dépenses alimentaires","DA","Salami","DA105","Selon menu","PAB11","1 paquet pour 2 repas","CAB100","jeudi 16 mai 2024","DA-105"]
["Article dépense budgétaire","ADB","Dépenses alimentaires","DA","Salsifis","DA106","Selon menu","PAB11","1 boîte pour 1 repas","CAB22","jeudi 16 mai 2024","DA-106"]
["Article dépense budgétaire","ADB","Dépenses alimentaires","DA","Sauce tomates","DA107","Selon menu","PAB11","1 tube de 180 grammes (Sauce tomates)","CAB121","jeudi 16 mai 2024","DA-107"]
["Article dépense budgétaire","ADB","Dépenses alimentaires","DA","Saucisses","DA108","Selon menu","PAB11","1 paquet pour 2 repas","CAB100","jeudi 16 mai 2024","DA-108"]
["Article dépense budgétaire","ADB","Dépenses alimentaires","DA","Saucisson","DA109","Selon menu","PAB11","1 sachet pour 6 repas. 5 tranches pour 1 repas (Saucisson)","CAB117","jeudi 16 mai 2024","DA-109"]
["Article dépense budgétaire","ADB","Dépenses alimentaires","DA","Sel fin","DA110","Selon les besoins","PAB10","1 Boîte de 500 grammes pour une durée indéterminée (Sel fin)","CAB16","jeudi 16 mai 2024","DA-110"]
["Article dépense budgétaire","ADB","Dépenses alimentaires","DA","Sucre","DA111","Journalière","PAB08","1 boîte de 1000 grammes. 336 pierres. 6 pierres par jour (Sucre petits morceaux)","CAB10","jeudi 16 mai 2024","DA-111"]
["Article dépense budgétaire","ADB","Dépenses alimentaires","DA","Tapioca","DA112","Selon menu","PAB11","25 grammes pour 1 repas (Couscous, Purée, Riz légume, Tapioca)","CAB127","jeudi 16 mai 2024","DA-112"]
["Article dépense budgétaire","ADB","Dépenses alimentaires","DA","Tête persillée","DA113","Selon menu","PAB11","1 paquet pour 2 repas","CAB100","jeudi 16 mai 2024","DA-113"]
["Article dépense budgétaire","ADB","Dépenses alimentaires","DA","Tête roulée","DA114","Selon menu","PAB11","3 tranches pour 1 repas (Roulade à la pistache, Tête roulée)","CAB128","jeudi 16 mai 2024","DA-114"]
["Article dépense budgétaire","ADB","Dépenses alimentaires","DA","Thé","DA115","Journalière","PAB08","1 boîte de 100 grammes ou de 200 grammes (50 ou 100 sachets). 3 sachets par jour (Thé)","CAB07","jeudi 16 mai 2024","DA-115"]
["Article dépense budgétaire","ADB","Dépenses alimentaires","DA","Thon","DA116","Selon menu","PAB11","1 boîte pour 1 repas","CAB22","jeudi 16 mai 2024","DA-116"]
["Article dépense budgétaire","ADB","Dépenses alimentaires","DA","Tomates","DA117","Selon menu","PAB11","Unité : 2 pour 1 repas (Carottes, Tomates)","CAB143","jeudi 16 mai 2024","DA-117"]
["Article dépense budgétaire","ADB","Dépenses alimentaires","DA","Tomates pelées","DA118","Selon menu","PAB11","1 boîte pour 2 repas","CAB23","jeudi 16 mai 2024","DA-118"]
["Article dépense budgétaire","ADB","Dépenses alimentaires","DA","Veau","DA119","Selon menu","PAB11","1 tranche pour 1 repas (viandes midi weekend)","CAB120","jeudi 16 mai 2024","DA-119"]
["Article dépense budgétaire","ADB","Dépenses alimentaires","DA","Vinaigre assaisonnement","DA120","Trimestrielle","PAB15","1 bouteille de 100 centilitres (Huile, Vinaigre assaisonnement)","CAB28","jeudi 16 mai 2024","DA-120"]
["Article dépense budgétaire","ADB","Dépenses alimentaires","DA","Yaourts desserts","DA121","Selon menu","PAB11","1 pack de 4 pots pour le weekend end. 1 pot pour 1 repas","CAB85","jeudi 16 mai 2024","DA-121"]
["Article dépense budgétaire","ADB","Dépenses alimentaires","DA","Yaourts matin","DA122","Du 01 au 16 inclus de chaque mois","PAB04","1 pack de 16 pots. 1 pot par matin (Yaourts matin)","CAB69","jeudi 16 mai 2024","DA-122"]
["Article dépense budgétaire","ADB","Dépenses bancaires","DB","Abonnement Canal Plus","DB01","Mensuelle","PAB09","Unité : sans conditionnement","CAB144","jeudi 16 mai 2024","DB-01"]
["Article dépense budgétaire","ADB","Dépenses bancaires","DB","Abonnement Canal Satellite","DB02","Mensuelle","PAB09","Unité : sans conditionnement","CAB144","jeudi 16 mai 2024","DB-02"]
["Article dépense budgétaire","ADB","Dépenses bancaires","DB","Abonnement Coopanet (Banque française de crédit coopératif)","DB03","Mensuelle","PAB09","Unité : sans conditionnement","CAB144","jeudi 16 mai 2024","DB-03"]
["Article dépense budgétaire","ADB","Dépenses bancaires","DB","Actions Caisse épargne","DB04","Selon les besoins","PAB10","Unité : sans conditionnement","CAB144","jeudi 16 mai 2024","DB-04"]
["Article dépense budgétaire","ADB","Dépenses bancaires","DB","Aspirateur","DB05","Selon les besoins","PAB10","Unité","CAB133","jeudi 16 mai 2024","DB-05"]
["Article dépense budgétaire","ADB","Dépenses bancaires","DB","Assurance accidents de la vie (Caisse épargne)","DB06","Mensuelle","PAB09","Unité : sans conditionnement","CAB144","jeudi 16 mai 2024","DB-06"]
["Article dépense budgétaire","ADB","Dépenses bancaires","DB","Assurance incendie (Caisse épargne)","DB07","Mensuelle","PAB09","Unité : sans conditionnement","CAB144","jeudi 16 mai 2024","DB-07"]
["Article dépense budgétaire","ADB","Dépenses bancaires","DB","Assurance protection juridique (Caisse épargne)","DB08","Mensuelle","PAB09","Unité : sans conditionnement","CAB144","jeudi 16 mai 2024","DB-08"]
["Article dépense budgétaire","ADB","Dépenses bancaires","DB","Autre matériel informatique","DB09","Selon les besoins","PAB10","Unité","CAB133","jeudi 16 mai 2024","DB-09"]
["Article dépense budgétaire","ADB","Dépenses bancaires","DB","Autres dépenses bancaires","DB10","Mensuelle","PAB09","Unité : sans conditionnement","CAB144","jeudi 16 mai 2024","DB-10"]
["Article dépense budgétaire","ADB","Dépenses bancaires","DB","Cadeaux","DB11","Selon les besoins","PAB10","Unité : sans conditionnement","CAB144","jeudi 16 mai 2024","DB-11"]
["Article dépense budgétaire","ADB","Dépenses bancaires","DB","Carte amicale des locataires (Confédération nationale du logement)","DB12","Annuelle","PAB01","Unité : sans conditionnement","CAB144","jeudi 16 mai 2024","DB-12"]
["Article dépense budgétaire","ADB","Dépenses bancaires","DB","Cocotte minute","DB13","Selon les besoins","PAB10","Unité","CAB133","jeudi 16 mai 2024","DB-13"]
["Article dépense budgétaire","ADB","Dépenses bancaires","DB","Congélateur","DB14","Selon les besoins","PAB10","Unité","CAB133","jeudi 16 mai 2024","DB-14"]
["Article dépense budgétaire","ADB","Dépenses bancaires","DB","Cuisinière","DB15","Selon les besoins","PAB10","Unité","CAB133","jeudi 16 mai 2024","DB-15"]
["Article dépense budgétaire","ADB","Dépenses bancaires","DB","Électricité","DB16","Mensuelle","PAB09","Unité : sans conditionnement","CAB144","jeudi 16 mai 2024","DB-16"]
["Article dépense budgétaire","ADB","Dépenses bancaires","DB","Four à micro-ondes","DB17","Selon les besoins","PAB10","Unité","CAB133","jeudi 16 mai 2024","DB-17"]
["Article dépense budgétaire","ADB","Dépenses bancaires","DB","Friteuse électrique","DB18","Selon les besoins","PAB10","Unité","CAB133","jeudi 16 mai 2024","DB-18"]
["Article dépense budgétaire","ADB","Dépenses bancaires","DB","Friteuse gaz","DB19","Selon les besoins","PAB10","Unité","CAB133","jeudi 16 mai 2024","DB-19"]
["Article dépense budgétaire","ADB","Dépenses bancaires","DB","Gaz","DB20","Mensuelle","PAB09","Unité : sans conditionnement","CAB144","jeudi 16 mai 2024","DB-20"]
["Article dépense budgétaire","ADB","Dépenses bancaires","DB","Graveur compact-disc informatique","DB21","Selon les besoins","PAB10","Unité","CAB133","jeudi 16 mai 2024","DB-21"]
["Article dépense budgétaire","ADB","Dépenses bancaires","DB","Graveur compact-disc vidéo","DB22","Selon les besoins","PAB10","Unité","CAB133","jeudi 16 mai 2024","DB-22"]
["Article dépense budgétaire","ADB","Dépenses bancaires","DB","Impôts locaux","DB23","Annuelle","PAB01","Unité : sans conditionnement","CAB144","jeudi 16 mai 2024","DB-23"]
["Article dépense budgétaire","ADB","Dépenses bancaires","DB","Impôts sur le revenu des personnes physiques","DB24","Mensuelle","PAB09","Unité : sans conditionnement","CAB144","jeudi 16 mai 2024","DB-24"]
["Article dépense budgétaire","ADB","Dépenses bancaires","DB","Imprimantes","DB25","Selon les besoins","PAB10","Unité","CAB133","jeudi 16 mai 2024","DB-25"]
["Article dépense budgétaire","ADB","Dépenses bancaires","DB","Livres bibliophiles","DB26","Selon les besoins","PAB10","Unité","CAB133","jeudi 16 mai 2024","DB-26"]
["Article dépense budgétaire","ADB","Dépenses bancaires","DB","Livres informatiques","DB27","Selon les besoins","PAB10","Unité","CAB133","jeudi 16 mai 2024","DB-27"]
["Article dépense budgétaire","ADB","Dépenses bancaires","DB","Logiciels informatiques","DB28","Selon les besoins","PAB10","Unité","CAB133","jeudi 16 mai 2024","DB-28"]
["Article dépense budgétaire","ADB","Dépenses bancaires","DB","Loyer et charges","DB29","Mensuelle","PAB09","Unité : sans conditionnement","CAB144","jeudi 16 mai 2024","DB-29"]
["Article dépense budgétaire","ADB","Dépenses bancaires","DB","Machine à laver","DB30","Selon les besoins","PAB10","Unité","CAB133","jeudi 16 mai 2024","DB-30"]
["Article dépense budgétaire","ADB","Dépenses bancaires","DB","Magnétoscope","DB31","Selon les besoins","PAB10","Unité","CAB133","jeudi 16 mai 2024","DB-31"]
["Article dépense budgétaire","ADB","Dépenses bancaires","DB","Mutuelle","DB32","Mensuelle","PAB09","Unité : sans conditionnement","CAB144","jeudi 16 mai 2024","DB-32"]
["Article dépense budgétaire","ADB","Dépenses bancaires","DB","Ordinateurs de bureau","DB33","Selon les besoins","PAB10","Unité","CAB133","jeudi 16 mai 2024","DB-33"]
["Article dépense budgétaire","ADB","Dépenses bancaires","DB","Ordinateurs portables","DB34","Selon les besoins","PAB10","Unité","CAB133","jeudi 16 mai 2024","DB-34"]
["Article dépense budgétaire","ADB","Dépenses bancaires","DB","Protection de la maison (Protection 24)","DB35","Mensuelle","PAB09","Unité : sans conditionnement","CAB144","jeudi 16 mai 2024","DB-35"]
["Article dépense budgétaire","ADB","Dépenses bancaires","DB","Rasoir électrique","DB36","Selon les besoins","PAB10","Unité","CAB133","jeudi 16 mai 2024","DB-36"]
["Article dépense budgétaire","ADB","Dépenses bancaires","DB","Redevance télévision","DB37","Annuelle","PAB01","Unité : sans conditionnement","CAB144","jeudi 16 mai 2024","DB-37"]
["Article dépense budgétaire","ADB","Dépenses bancaires","DB","Réfrigérateur","DB38","Selon les besoins","PAB10","Unité","CAB133","jeudi 16 mai 2024","DB-38"]
["Article dépense budgétaire","ADB","Dépenses bancaires","DB","Réparations","DB39","Mensuelle","PAB09","Unité : sans conditionnement","CAB144","jeudi 16 mai 2024","DB-39"]
["Article dépense budgétaire","ADB","Dépenses bancaires","DB","Restaurant","DB40","Selon les besoins","PAB10","Unité : sans conditionnement","CAB144","jeudi 16 mai 2024","DB-40"]
["Article dépense budgétaire","ADB","Dépenses bancaires","DB","Téléphone fixe","DB41","Selon les besoins","PAB10","Unité : sans conditionnement","CAB144","jeudi 16 mai 2024","DB-41"]
["Article dépense budgétaire","ADB","Dépenses bancaires","DB","Téléphone orange","DB42","Selon les besoins","PAB10","Unité : sans conditionnement","CAB144","jeudi 16 mai 2024","DB-42"]
["Article dépense budgétaire","ADB","Dépenses bancaires","DB","Téléphone portable et Inernet","DB43","Selon les besoins","PAB10","Unité : sans conditionnement","CAB144","jeudi 16 mai 2024","DB-43"]
["Article dépense budgétaire","ADB","Dépenses bancaires","DB","Télévision","DB44","Selon les besoins","PAB10","Unité","CAB133","jeudi 16 mai 2024","DB-44"]
["Article dépense budgétaire","ADB","Dépenses bancaires","DB","Vacances","DB45","Mensuelle","PAB09","Unité : sans conditionnement","CAB144","jeudi 16 mai 2024","DB-45"]
["Article dépense budgétaire","ADB","Dépenses bancaires","DB","Virements de fonds","DB46","Mensuelle","PAB09","Unité : sans conditionnement","CAB144","jeudi 16 mai 2024","DB-46"]
["Article dépense budgétaire","ADB","Dépenses horticoles","DH","Autres dépenses horticoles","DH01","Mensuelle","PAB09","Unité : sans conditionnement","CAB144","jeudi 16 mai 2024","DH-01"]
["Article dépense budgétaire","ADB","Dépenses horticoles","DH","Cache-pots","DH02","Selon les besoins","PAB10","Unité","CAB133","jeudi 16 mai 2024","DH-02"]
["Article dépense budgétaire","ADB","Dépenses horticoles","DH","Engrais","DH03","Selon les besoins","PAB10","1 flacon engrais universel KB d'1 litre","CAB57","jeudi 16 mai 2024","DH-03"]
["Article dépense budgétaire","ADB","Dépenses horticoles","DH","Fleurs","DH04","Selon les besoins","PAB10","1 bouquet","CAB26","jeudi 16 mai 2024","DH-04"]
["Article dépense budgétaire","ADB","Dépenses horticoles","DH","Muguet","DH05","Annuelle","PAB01","Unité : 1 brin ou 1 pot (Muguet)","CAB135","jeudi 16 mai 2024","DH-05"]
["Article dépense budgétaire","ADB","Dépenses horticoles","DH","Plantes","DH06","Selon les besoins","PAB10","Unité : 1 pot (Plantes, Pots à fleurs, Pots à plantes)","CAB137","jeudi 16 mai 2024","DH-06"]
["Article dépense budgétaire","ADB","Dépenses horticoles","DH","Pots à fleurs","DH07","Selon les besoins","PAB10","Unité : 1 pot (Plantes, Pots à fleurs, Pots à plantes)","CAB137","jeudi 16 mai 2024","DH-07"]
["Article dépense budgétaire","ADB","Dépenses horticoles","DH","Pots à plantes","DH08","Selon les besoins","PAB10","Unité : 1 pot (Plantes, Pots à fleurs, Pots à plantes)","CAB137","jeudi 16 mai 2024","DH-08"]
["Article dépense budgétaire","ADB","Dépenses horticoles","DH","Soucoupes","DH09","Selon les besoins","PAB10","Unité","CAB133","jeudi 16 mai 2024","DH-09"]
["Article dépense budgétaire","ADB","Dépenses horticoles","DH","Terre","DH10","Selon les besoins","PAB10","1 sac de 20 litres (Terre)","CAB112","jeudi 16 mai 2024","DH-10"]
["Article dépense budgétaire","ADB","Dépenses horticoles","DH","Tuteurs","DH11","Selon les besoins","PAB10","Unité","CAB133","jeudi 16 mai 2024","DH-11"]
["Article dépense budgétaire","ADB","Dépenses médicales","DM","Analyses","DM01","Trimestrielle","PAB15","Unité : sans conditionnement","CAB144","vendredi 17 mai 2024","DM-01"]
["Article dépense budgétaire","ADB","Dépenses médicales","DM","Autres dépenses médicales","DM02","Mensuelle","PAB09","Unité : sans conditionnement","CAB144","vendredi 17 mai 2024","DM-02"]
["Article dépense budgétaire","ADB","Dépenses médicales","DM","Dentiste","DM03","Annuelle","PAB01","Unité : sans conditionnement","CAB144","vendredi 17 mai 2024","DM-03"]
["Article dépense budgétaire","ADB","Dépenses médicales","DM","Docteur dermatologue","DM04","Annuelle","PAB01","Unité : sans conditionnement","CAB144","vendredi 17 mai 2024","DM-04"]
["Article dépense budgétaire","ADB","Dépenses médicales","DM","Docteur généraliste","DM05","Trimestrielle","PAB15","Unité : sans conditionnement","CAB144","vendredi 17 mai 2024","DM-05"]
["Article dépense budgétaire","ADB","Dépenses médicales","DM","Docteur ophtalmologiste","DM06","Annuelle","PAB01","Unité : sans conditionnement","CAB144","vendredi 17 mai 2024","DM-06"]
["Article dépense budgétaire","ADB","Dépenses médicales","DM","Monture des lunettes","DM07","Annuelle","PAB01","Unité : sans conditionnement","CAB144","vendredi 17 mai 2024","DM-07"]
["Article dépense budgétaire","ADB","Dépenses médicales","DM","Pharmacie vignette blanche","DM08","Trimestrielle","PAB15","Unité : sans conditionnement","CAB144","vendredi 17 mai 2024","DM-08"]
["Article dépense budgétaire","ADB","Dépenses médicales","DM","Pharmacie vignette bleue","DM09","Trimestrielle","PAB15","Unité : sans conditionnement","CAB144","vendredi 17 mai 2024","DM-09"]
["Article dépense budgétaire","ADB","Dépenses médicales","DM","Pharmacie vignette orange","DM10","Trimestrielle","PAB15","Unité : sans conditionnement","CAB144","vendredi 17 mai 2024","DM-10"]
["Article dépense budgétaire","ADB","Dépenses médicales","DM","Prélèvements","DM11","Trimestrielle","PAB15","Unité : sans conditionnement","CAB144","vendredi 17 mai 2024","DM-11"]
["Article dépense budgétaire","ADB","Dépenses médicales","DM","Radiographies","DM12","Annuelle","PAB01","Unité : sans conditionnement","CAB144","vendredi 17 mai 2024","DM-12"]
["Article dépense budgétaire","ADB","Dépenses médicales","DM","Verres des lunettes","DM13","Annuelle","PAB01","Unité : sans conditionnement","CAB144","vendredi 17 mai 2024","DM-13"]
["Article dépense budgétaire","ADB","Dépenses non alimentaires","DNA","Agrafes","DNA01","Selon les besoins","PAB10","1 boîte de 1000 agrafes 26/6 Esquisse leclerc","CAB08","vendredi 17 mai 2024","DNA-01"]
["Article dépense budgétaire","ADB","Dépenses non alimentaires","DNA","Agrafeuses","DNA02","Selon les besoins","PAB10","Unité","CAB133","vendredi 17 mai 2024","DNA-02"]
["Article dépense budgétaire","ADB","Dépenses non alimentaires","DNA","Ajax","DNA03","Bimestrielle","PAB03","1 flacon de 750 grammes (Ajax)","CAB55","vendredi 17 mai 2024","DNA-03"]
["Article dépense budgétaire","ADB","Dépenses non alimentaires","DNA","Allume-gaz","DNA04","Selon les besoins","PAB10","Unité","CAB133","vendredi 17 mai 2024","DNA-04"]
["Article dépense budgétaire","ADB","Dépenses non alimentaires","DNA","Ampoules électriques","DNA05","Semestrielle","PAB12","1 paquet d'une ampoule éléctrique ou halogène (Ampoules électriques ou halogènes)","CAB99","vendredi 17 mai 2024","DNA-05"]
["Article dépense budgétaire","ADB","Dépenses non alimentaires","DNA","Ampoules halogènes","DNA06","Selon les besoins","PAB10","1 paquet d'une ampoule éléctrique ou halogène (Ampoules électriques ou halogènes)","CAB99","vendredi 17 mai 2024","DNA-06"]
["Article dépense budgétaire","ADB","Dépenses non alimentaires","DNA","Argent perdu","DNA07","Selon les besoins","PAB10","Unité : sans conditionnement","CAB144","vendredi 17 mai 2024","DNA-07"]
["Article dépense budgétaire","ADB","Dépenses non alimentaires","DNA","Argent perdu sur monnaie rendue","DNA08","Selon les besoins","PAB10","Unité : sans conditionnement","CAB144","vendredi 17 mai 2024","DNA-08"]
["Article dépense budgétaire","ADB","Dépenses non alimentaires","DNA","Aspirateur","DNA09","Selon les besoins","PAB10","Unité","CAB133","vendredi 17 mai 2024","DNA-09"]
["Article dépense budgétaire","ADB","Dépenses non alimentaires","DNA","Assouplissant pour le linge","DNA10","Semestrielle","PAB12","1 flacon de 2000 millilitres Hyperdou Leclerc (Assouplissant pour le linge)","CAB48","vendredi 17 mai 2024","DNA-10"]
["Article dépense budgétaire","ADB","Dépenses non alimentaires","DNA","Autre matériel informatique","DNA11","Selon les besoins","PAB10","Unité","CAB133","vendredi 17 mai 2024","DNA-11"]
["Article dépense budgétaire","ADB","Dépenses non alimentaires","DNA","Autres dépenses non alimentaires","DNA12","Mensuelle","PAB09","Unité : sans conditionnement","CAB144","vendredi 17 mai 2024","DNA-12"]
["Article dépense budgétaire","ADB","Dépenses non alimentaires","DNA","Autres étrennes à répartir","DNA13","Annuelle","PAB01","Unité : sans conditionnement","CAB144","vendredi 17 mai 2024","DNA-13"]
["Article dépense budgétaire","ADB","Dépenses non alimentaires","DNA","Balais","DNA14","Selon les besoins","PAB10","Unité","CAB133","vendredi 17 mai 2024","DNA-14"]
["Article dépense budgétaire","ADB","Dépenses non alimentaires","DNA","Balayette pour cuvette W.C. (y compris récipient)","DNA15","Selon les besoins","PAB10","Unité","CAB133","vendredi 17 mai 2024","DNA-15"]
["Article dépense budgétaire","ADB","Dépenses non alimentaires","DNA","Billets de tombola","DNA16","Trimestrielle","PAB15","1 carnet de 10 billets (Billets de tombola)","CAB35","vendredi 17 mai 2024","DNA-16"]
["Article dépense budgétaire","ADB","Dépenses non alimentaires","DNA","Billets de train","DNA17","Annuelle","PAB01","1 aller et retour (Billets de train)","CAB01","vendredi 17 mai 2024","DNA-17"]
["Article dépense budgétaire","ADB","Dépenses non alimentaires","DNA","Blouses (maison et ménage)","DNA18","Selon les besoins","PAB10","Unité","CAB133","vendredi 17 mai 2024","DNA-18"]
["Article dépense budgétaire","ADB","Dépenses non alimentaires","DNA","Bobines papier machine à calculer","DNA19","Selon les besoins","PAB10","1 pack de 10 bobines 1 pli offset 60 grammes 57X60X12 (Calculette)","CAB61","vendredi 17 mai 2024","DNA-19"]
["Article dépense budgétaire","ADB","Dépenses non alimentaires","DNA","Bouchons évier","DNA20","Selon les besoins","PAB10","Unité","CAB133","vendredi 17 mai 2024","DNA-20"]
["Article dépense budgétaire","ADB","Dépenses non alimentaires","DNA","Bouchons lavabo","DNA21","Selon les besoins","PAB10","Unité","CAB133","vendredi 17 mai 2024","DNA-21"]
["Article dépense budgétaire","ADB","Dépenses non alimentaires","DNA","Bougies","DNA22","Selon les besoins","PAB10","Unité","CAB133","vendredi 17 mai 2024","DNA-22"]
["Article dépense budgétaire","ADB","Dépenses non alimentaires","DNA","Bouteilles thermos","DNA23","Selon les besoins","PAB10","Unité","CAB133","vendredi 17 mai 2024","DNA-23"]
["Article dépense budgétaire","ADB","Dépenses non alimentaires","DNA","Boutons","DNA24","Selon les besoins","PAB10","Unité","CAB133","vendredi 17 mai 2024","DNA-24"]
["Article dépense budgétaire","ADB","Dépenses non alimentaires","DNA","Briquets","DNA25","Selon les besoins","PAB10","Unité","CAB133","vendredi 17 mai 2024","DNA-25"]
["Article dépense budgétaire","ADB","Dépenses non alimentaires","DNA","Brise-jets","DNA26","Selon les besoins","PAB10","Unité","CAB133","vendredi 17 mai 2024","DNA-26"]
["Article dépense budgétaire","ADB","Dépenses non alimentaires","DNA","Brosses à dents","DNA27","Annuelle","PAB01","1 pack de 4 brosses à dents","CAB84","vendredi 17 mai 2024","DNA-27"]
["Article dépense budgétaire","ADB","Dépenses non alimentaires","DNA","Câbles imprimantes","DNA28","Selon les besoins","PAB10","Unité","CAB133","vendredi 17 mai 2024","DNA-28"]
["Article dépense budgétaire","ADB","Dépenses non alimentaires","DNA","Câbles réseau","DNA29","Selon les besoins","PAB10","Unité","CAB133","vendredi 17 mai 2024","DNA-29"]
["Article dépense budgétaire","ADB","Dépenses non alimentaires","DNA","Cadeaux","DNA30","Selon les besoins","PAB10","Unité : sans conditionnement","CAB144","vendredi 17 mai 2024","DNA-30"]
["Article dépense budgétaire","ADB","Dépenses non alimentaires","DNA","Cahiers","DNA31","Selon les besoins","PAB10","Unité","CAB133","vendredi 17 mai 2024","DNA-31"]
["Article dépense budgétaire","ADB","Dépenses non alimentaires","DNA","Carte amicale des locataires (Confédération nationale du logement)","DNA32","Annuelle","PAB01","Unité","CAB133","vendredi 17 mai 2024","DNA-32"]
["Article dépense budgétaire","ADB","Dépenses non alimentaires","DNA","Cartes d'anniversaire","DNA33","Selon les besoins","PAB10","Unité","CAB133","vendredi 17 mai 2024","DNA-33"]
["Article dépense budgétaire","ADB","Dépenses non alimentaires","DNA","Cartes de fête","DNA34","Selon les besoins","PAB10","Unité","CAB133","vendredi 17 mai 2024","DNA-34"]
["Article dépense budgétaire","ADB","Dépenses non alimentaires","DNA","Cartes de vacances","DNA35","Annuelle","PAB01","Unité","CAB133","vendredi 17 mai 2024","DNA-35"]
["Article dépense budgétaire","ADB","Dépenses non alimentaires","DNA","Cartes de vœux","DNA36","Annuelle","PAB01","Unité","CAB133","vendredi 17 mai 2024","DNA-36"]
["Article dépense budgétaire","ADB","Dépenses non alimentaires","DNA","Cartouches imprimantes","DNA37","Selon les besoins","PAB10","1 pack de 5 cartouches (Canon série 700) 1 pack de 2 cartouches (Canon série 7400)","CAB90","vendredi 17 mai 2024","DNA-37"]
["Article dépense budgétaire","ADB","Dépenses non alimentaires","DNA","Cartouches stylos-plume","DNA38","Selon les besoins","PAB10","1 pack de 12 cartouches stylos-plume (en plus ou en moins)","CAB66","vendredi 17 mai 2024","DNA-38"]
["Article dépense budgétaire","ADB","Dépenses non alimentaires","DNA","Casseroles","DNA39","Selon les besoins","PAB10","Unité","CAB133","vendredi 17 mai 2024","DNA-39"]
["Article dépense budgétaire","ADB","Dépenses non alimentaires","DNA","Cassettes dictaphone","DNA40","Selon les besoins","PAB10","1 pack de 3 cassettes","CAB79","vendredi 17 mai 2024","DNA-40"]
["Article dépense budgétaire","ADB","Dépenses non alimentaires","DNA","Cassettes vidéo","DNA41","Selon les besoins","PAB10","1 pack de 3 cassettes","CAB79","vendredi 17 mai 2024","DNA-41"]
["Article dépense budgétaire","ADB","Dépenses non alimentaires","DNA","Cendriers","DNA42","Selon les besoins","PAB10","Unité","CAB133","vendredi 17 mai 2024","DNA-42"]
["Article dépense budgétaire","ADB","Dépenses non alimentaires","DNA","Chaussettes","DNA43","Selon les besoins","PAB10","1 paire (Chaussettes, Chaussons, Chaussures)","CAB96","vendredi 17 mai 2024","DNA-43"]
["Article dépense budgétaire","ADB","Dépenses non alimentaires","DNA","Chaussons","DNA44","Selon les besoins","PAB10","1 paire (Chaussettes, Chaussons, Chaussures)","CAB96","vendredi 17 mai 2024","DNA-44"]
["Article dépense budgétaire","ADB","Dépenses non alimentaires","DNA","Chaussures","DNA45","Selon les besoins","PAB10","1 paire (Chaussettes, Chaussons, Chaussures)","CAB96","vendredi 17 mai 2024","DNA-45"]
["Article dépense budgétaire","ADB","Dépenses non alimentaires","DNA","Chiffon à épousseter","DNA46","Selon les besoins","PAB10","Unité","CAB133","vendredi 17 mai 2024","DNA-46"]
["Article dépense budgétaire","ADB","Dépenses non alimentaires","DNA","Cigarettes déjà roulées","DNA47","Selon les besoins","PAB10","1 paquet de 20 cigarettes","CAB98","vendredi 17 mai 2024","DNA-47"]
["Article dépense budgétaire","ADB","Dépenses non alimentaires","DNA","Cigarettes électroniques","DNA48","Selon les besoins","PAB10","Unité","CAB133","vendredi 17 mai 2024","DNA-48"]
["Article dépense budgétaire","ADB","Dépenses non alimentaires","DNA","Cinéma","DNA49","Selon les besoins","PAB10","Unité","CAB133","vendredi 17 mai 2024","DNA-49"]
["Article dépense budgétaire","ADB","Dépenses non alimentaires","DNA","Cirage","DNA50","Semestrielle","PAB12","1 tube de 75 millilitres (Cirage liquide incolore applicateur, Dentifrice)","CAB123","vendredi 17 mai 2024","DNA-50"]
["Article dépense budgétaire","ADB","Dépenses non alimentaires","DNA","Cirque","DNA51","Selon les besoins","PAB10","Unité","CAB133","vendredi 17 mai 2024","DNA-51"]
["Article dépense budgétaire","ADB","Dépenses non alimentaires","DNA","Ciseaux","DNA52","Selon les besoins","PAB10","Unité","CAB133","vendredi 17 mai 2024","DNA-52"]
["Article dépense budgétaire","ADB","Dépenses non alimentaires","DNA","Claviers ordinateurs de bureau","DNA53","Selon les besoins","PAB10","Unité","CAB133","vendredi 17 mai 2024","DNA-53"]
["Article dépense budgétaire","ADB","Dépenses non alimentaires","DNA","Clenches","DNA54","Selon les besoins","PAB10","Unité","CAB133","vendredi 17 mai 2024","DNA-54"]
["Article dépense budgétaire","ADB","Dépenses non alimentaires","DNA","Cocotte minute","DNA55","Selon les besoins","PAB10","Unité","CAB133","vendredi 17 mai 2024","DNA-55"]
["Article dépense budgétaire","ADB","Dépenses non alimentaires","DNA","Coiffeur","DNA56","Tous les 4 mois","PAB14","Unité","CAB133","vendredi 17 mai 2024","DNA-56"]
["Article dépense budgétaire","ADB","Dépenses non alimentaires","DNA","Colle SUPERGLUE-3","DNA57","Selon les besoins","PAB10","1 tube de 3 grammes (Colle SUPERGLUE-3)","CAB122","vendredi 17 mai 2024","DNA-57"]
["Article dépense budgétaire","ADB","Dépenses non alimentaires","DNA","Collectes","DNA58","Mensuelle","PAB09","Unité : sans conditionnement","CAB144","vendredi 17 mai 2024","DNA-58"]
["Article dépense budgétaire","ADB","Dépenses non alimentaires","DNA","Compact disc rom informatique","DNA59","Selon les besoins","PAB10","1 pack de 5 compact disc rom (Compact disc rom informatique et vidéo)","CAB91","vendredi 17 mai 2024","DNA-59"]
["Article dépense budgétaire","ADB","Dépenses non alimentaires","DNA","Compact disc rom vidéo","DNA60","Selon les besoins","PAB10","1 pack de 5 compact disc rom (Compact disc rom informatique et vidéo)","CAB91","vendredi 17 mai 2024","DNA-60"]
["Article dépense budgétaire","ADB","Dépenses non alimentaires","DNA","Congélateur","DNA61","Selon les besoins","PAB10","Unité","CAB133","vendredi 17 mai 2024","DNA-61"]
["Article dépense budgétaire","ADB","Dépenses non alimentaires","DNA","Corrector liquide","DNA62","Selon les besoins","PAB10","1 flacon de 20 millilitres (Corrector liquide)","CAB45","vendredi 17 mai 2024","DNA-62"]
["Article dépense budgétaire","ADB","Dépenses non alimentaires","DNA","Couteau électrique","DNA63","Selon les besoins","PAB10","Unité","CAB133","vendredi 17 mai 2024","DNA-63"]
["Article dépense budgétaire","ADB","Dépenses non alimentaires","DNA","Couvercles casseroles","DNA64","Selon les besoins","PAB10","Unité","CAB133","vendredi 17 mai 2024","DNA-64"]
["Article dépense budgétaire","ADB","Dépenses non alimentaires","DNA","Crayons à papier","DNA65","Selon les besoins","PAB10","Unité","CAB133","vendredi 17 mai 2024","DNA-65"]
["Article dépense budgétaire","ADB","Dépenses non alimentaires","DNA","Crochets tringles","DNA66","Selon les besoins","PAB10","1 pack de 2 crochets (Crochets tringles)","CAB70","vendredi 17 mai 2024","DNA-66"]
["Article dépense budgétaire","ADB","Dépenses non alimentaires","DNA","Cuisinière","DNA67","Selon les besoins","PAB10","Unité","CAB133","vendredi 17 mai 2024","DNA-67"]
["Article dépense budgétaire","ADB","Dépenses non alimentaires","DNA","Cure-dents","DNA68","Selon les besoins","PAB10","1 pack de 100 cure-dents","CAB64","vendredi 17 mai 2024","DNA-68"]
["Article dépense budgétaire","ADB","Dépenses non alimentaires","DNA","Dateur","DNA69","Selon les besoins","PAB10","Unité","CAB133","vendredi 17 mai 2024","DNA-69"]
["Article dépense budgétaire","ADB","Dépenses non alimentaires","DNA","Décap'four","DNA70","Selon les besoins","PAB10","1 flacon de 500 millilitres (Décap'four)","CAB53","vendredi 17 mai 2024","DNA-70"]
["Article dépense budgétaire","ADB","Dépenses non alimentaires","DNA","Dentifrice","DNA71","Bimestrielle","PAB03","1 tube de 75 millilitres (Cirage liquide incolore applicateur, Dentifrice)","CAB123","vendredi 17 mai 2024","DNA-71"]
["Article dépense budgétaire","ADB","Dépenses non alimentaires","DNA","Déodorant corporel","DNA72","Bimestrielle","PAB03","1 flacon de 100 millitres (Déodorant corporel : en plus ou en moins, Eau de toilette)","CAB42","vendredi 17 mai 2024","DNA-72"]
["Article dépense budgétaire","ADB","Dépenses non alimentaires","DNA","Déodorant maison","DNA73","Selon les besoins","PAB10","Unité : sans conditionnement","CAB144","vendredi 17 mai 2024","DNA-73"]
["Article dépense budgétaire","ADB","Dépenses non alimentaires","DNA","Dessous de plats","DNA74","Selon les besoins","PAB10","Unité","CAB133","vendredi 17 mai 2024","DNA-74"]
["Article dépense budgétaire","ADB","Dépenses non alimentaires","DNA","Destop","DNA75","Selon les besoins","PAB10","1 flacon de 750 millilitres (Destop, Détartrant water-closets)","CAB56","vendredi 17 mai 2024","DNA-75"]
["Article dépense budgétaire","ADB","Dépenses non alimentaires","DNA","Détartrant water-closets","DNA76","Semestrielle","PAB12","1 flacon de 750 millilitres (Destop, Détartrant water-closets)","CAB56","vendredi 17 mai 2024","DNA-76"]
["Article dépense budgétaire","ADB","Dépenses non alimentaires","DNA","Dévidoirs scotch","DNA77","Selon les besoins","PAB10","Unité","CAB133","vendredi 17 mai 2024","DNA-77"]
["Article dépense budgétaire","ADB","Dépenses non alimentaires","DNA","Eau de Javel","DNA78","Trimestrielle","PAB15","1 pack de 3 berlingots ou 1 flacon en gel de 750 millilitres (Eau de Javel)","CAB77","vendredi 17 mai 2024","DNA-78"]
["Article dépense budgétaire","ADB","Dépenses non alimentaires","DNA","Eau de toilette","DNA79","Bimestrielle","PAB03","1 flacon de 100 millitres (Déodorant corporel : en plus ou en moins, Eau de toilette)","CAB42","vendredi 17 mai 2024","DNA-79"]
["Article dépense budgétaire","ADB","Dépenses non alimentaires","DNA","Élastiques","DNA80","Selon les besoins","PAB10","1 boîte de 100 grammes (Élastiques)","CAB06","vendredi 17 mai 2024","DNA-80"]
["Article dépense budgétaire","ADB","Dépenses non alimentaires","DNA","Enrouleuses à cigarettes","DNA81","Selon les besoins","PAB10","Unité","CAB133","vendredi 17 mai 2024","DNA-81"]
["Article dépense budgétaire","ADB","Dépenses non alimentaires","DNA","Enveloppes pré-timbrées ou enveloppes non pré-timbrées","DNA82","Selon les besoins","PAB10","1 pack de 10 enveloppes déjà timbrées ou de 100 enveloppes non timbrées","CAB62","vendredi 17 mai 2024","DNA-82"]
["Article dépense budgétaire","ADB","Dépenses non alimentaires","DNA","Envois recommandés avec accusé de réception","DNA83","Mensuelle","PAB09","Unité","CAB133","vendredi 17 mai 2024","DNA-83"]
["Article dépense budgétaire","ADB","Dépenses non alimentaires","DNA","Éphéméride","DNA84","Annuelle","PAB01","Unité","CAB133","vendredi 17 mai 2024","DNA-84"]
["Article dépense budgétaire","ADB","Dépenses non alimentaires","DNA","Épingles à linge","DNA85","Selon les besoins","PAB10","Unité","CAB133","vendredi 17 mai 2024","DNA-85"]
["Article dépense budgétaire","ADB","Dépenses non alimentaires","DNA","Éponges pour la table","DNA86","Annuelle","PAB01","1 pack de 2 éponges","CAB71","vendredi 17 mai 2024","DNA-86"]
["Article dépense budgétaire","ADB","Dépenses non alimentaires","DNA","Éponges pour le ménage","DNA87","Annuelle","PAB01","1 pack de 2 éponges","CAB71","vendredi 17 mai 2024","DNA-87"]
["Article dépense budgétaire","ADB","Dépenses non alimentaires","DNA","Essence pour briquets Zippo","DNA88","Selon les besoins","PAB10","1 flacon de 125 millilitres (Essence briquets Zippo)","CAB43","vendredi 17 mai 2024","DNA-88"]
["Article dépense budgétaire","ADB","Dépenses non alimentaires","DNA","Essoreuse à salade","DNA89","Selon les besoins","PAB10","Unité","CAB133","vendredi 17 mai 2024","DNA-89"]
["Article dépense budgétaire","ADB","Dépenses non alimentaires","DNA","Étendoirs à linge (mural et sur pied)","DNA90","Selon les besoins","PAB10","Unité","CAB133","vendredi 17 mai 2024","DNA-90"]
["Article dépense budgétaire","ADB","Dépenses non alimentaires","DNA","Étiquettes","DNA91","Selon les besoins","PAB10","1 pack de 36 étiquettes scolaires","CAB83","vendredi 17 mai 2024","DNA-91"]
["Article dépense budgétaire","ADB","Dépenses non alimentaires","DNA","Étrennes des éboueurs","DNA92","Annuelle","PAB01","Unité : sans conditionnement","CAB144","vendredi 17 mai 2024","DNA-92"]
["Article dépense budgétaire","ADB","Dépenses non alimentaires","DNA","Étrennes des pompiers","DNA93","Annuelle","PAB01","Unité : sans conditionnement","CAB144","vendredi 17 mai 2024","DNA-93"]
["Article dépense budgétaire","ADB","Dépenses non alimentaires","DNA","Étrennes du facteur","DNA94","Annuelle","PAB01","Unité : sans conditionnement","CAB144","vendredi 17 mai 2024","DNA-94"]
["Article dépense budgétaire","ADB","Dépenses non alimentaires","DNA","Étrennes du gardien","DNA95","Annuelle","PAB01","Unité : sans conditionnement","CAB144","vendredi 17 mai 2024","DNA-95"]
["Article dépense budgétaire","ADB","Dépenses non alimentaires","DNA","Étuis à cigarettes","DNA96","Selon les besoins","PAB10","Unité","CAB133","vendredi 17 mai 2024","DNA-96"]
["Article dépense budgétaire","ADB","Dépenses non alimentaires","DNA","Fer électrique à repasser","DNA97","Selon les besoins","PAB10","Unité","CAB133","vendredi 17 mai 2024","DNA-97"]
["Article dépense budgétaire","ADB","Dépenses non alimentaires","DNA","Feuilles à cigarettes","DNA98","Mensuelle","PAB09","1 boîte de 5 ou 10 carnets à 100 feuilles pour chaque carnet (Feuilles à cigarettes)","CAB15","vendredi 17 mai 2024","DNA-98"]
["Article dépense budgétaire","ADB","Dépenses non alimentaires","DNA","Four à micro-ondes","DNA99","Selon les besoins","PAB10","Unité","CAB133","vendredi 17 mai 2024","DNA-99"]
["Article dépense budgétaire","ADB","Dépenses non alimentaires","DNA","Frais d'essence","DNA100","Selon les besoins","PAB10","Unité : sans conditionnement","CAB144","vendredi 17 mai 2024","DNA-100"]
["Article dépense budgétaire","ADB","Dépenses non alimentaires","DNA","Friteuse à gaz","DNA101","Selon les besoins","PAB10","Unité","CAB133","vendredi 17 mai 2024","DNA-101"]
["Article dépense budgétaire","ADB","Dépenses non alimentaires","DNA","Friteuse électrique","DNA102","Selon les besoins","PAB10","Unité","CAB133","vendredi 17 mai 2024","DNA-102"]
["Article dépense budgétaire","ADB","Dépenses non alimentaires","DNA","Gaz pour allume-gaz","DNA103","Mensuelle","PAB09","1 flacon de 300 millilitres (Gaz allume-gaz, O'CÉDAR)","CAB51","vendredi 17 mai 2024","DNA-103"]
["Article dépense budgétaire","ADB","Dépenses non alimentaires","DNA","Gommes à effacer","DNA104","Selon les besoins","PAB10","Unité","CAB133","vendredi 17 mai 2024","DNA-104"]
["Article dépense budgétaire","ADB","Dépenses non alimentaires","DNA","Graveur compact disc informatique","DNA105","Selon les besoins","PAB10","Unité","CAB133","vendredi 17 mai 2024","DNA-105"]
["Article dépense budgétaire","ADB","Dépenses non alimentaires","DNA","Graveur compact disc vidéo","DNA106","Selon les besoins","PAB10","Unité","CAB133","vendredi 17 mai 2024","DNA-106"]
["Article dépense budgétaire","ADB","Dépenses non alimentaires","DNA","Imprimantes","DNA107","Selon les besoins","PAB10","Unité","CAB133","vendredi 17 mai 2024","DNA-107"]
["Article dépense budgétaire","ADB","Dépenses non alimentaires","DNA","Insecticide","DNA108","Trimestrielle","PAB15","1 flacon de 400 millilitres (Insecticide, Pétrole Hahn, Shampooing)","CAB52","vendredi 17 mai 2024","DNA-108"]
["Article dépense budgétaire","ADB","Dépenses non alimentaires","DNA","Lacets","DNA109","Selon les besoins","PAB10","1 pack de 2 paires (Lacets)","CAB73","vendredi 17 mai 2024","DNA-109"]
["Article dépense budgétaire","ADB","Dépenses non alimentaires","DNA","Lames rasoir électrique","DNA110","Selon les besoins","PAB10","Unité : sans conditionnement","CAB144","vendredi 17 mai 2024","DNA-110"]
["Article dépense budgétaire","ADB","Dépenses non alimentaires","DNA","Lampadaires","DNA111","Selon les besoins","PAB10","Unité","CAB133","vendredi 17 mai 2024","DNA-111"]
["Article dépense budgétaire","ADB","Dépenses non alimentaires","DNA","Lampe torche","DNA112","Selon les besoins","PAB10","Unité","CAB133","vendredi 17 mai 2024","DNA-112"]
["Article dépense budgétaire","ADB","Dépenses non alimentaires","DNA","Lavage des draps","DNA113","Bimestrielle","PAB03","Pour 2 draps","CAB132","vendredi 17 mai 2024","DNA-113"]
["Article dépense budgétaire","ADB","Dépenses non alimentaires","DNA","Lessive pour le linge","DNA114","Annuelle","PAB01","1 flacon Xéor de 2500 millilitres (Lessive pour le linge)","CAB58","vendredi 17 mai 2024","DNA-114"]
["Article dépense budgétaire","ADB","Dépenses non alimentaires","DNA","Linge de lit (y compris pyjamas)","DNA115","Selon les besoins","PAB10","Unité","CAB133","vendredi 17 mai 2024","DNA-115"]
["Article dépense budgétaire","ADB","Dépenses non alimentaires","DNA","Linge de table","DNA116","Selon les besoins","PAB10","Unité","CAB133","vendredi 17 mai 2024","DNA-116"]
["Article dépense budgétaire","ADB","Dépenses non alimentaires","DNA","Linge de toilette","DNA117","Selon les besoins","PAB10","Unité","CAB133","vendredi 17 mai 2024","DNA-117"]
["Article dépense budgétaire","ADB","Dépenses non alimentaires","DNA","Linge de vaisselle","DNA118","Selon les besoins","PAB10","Unité","CAB133","vendredi 17 mai 2024","DNA-118"]
["Article dépense budgétaire","ADB","Dépenses non alimentaires","DNA","Linge pour les mains","DNA119","Selon les besoins","PAB10","Unité","CAB133","vendredi 17 mai 2024","DNA-119"]
["Article dépense budgétaire","ADB","Dépenses non alimentaires","DNA","Liquide cigarette électronique NHOSS","DNA120","Selon les besoins","PAB10","1 bouteille de 10 millilitres (Cigarettes électroniques NHOSS)","CAB27","vendredi 17 mai 2024","DNA-120"]
["Article dépense budgétaire","ADB","Dépenses non alimentaires","DNA","Livres bibliophiles","DNA121","Trimestrielle","PAB15","Unité","CAB133","vendredi 17 mai 2024","DNA-121"]
["Article dépense budgétaire","ADB","Dépenses non alimentaires","DNA","Livres informatiques","DNA122","Trimestrielle","PAB15","Unité","CAB133","vendredi 17 mai 2024","DNA-122"]
["Article dépense budgétaire","ADB","Dépenses non alimentaires","DNA","Logiciels informatiques","DNA123","Selon les besoins","PAB10","Unité","CAB133","vendredi 17 mai 2024","DNA-123"]
["Article dépense budgétaire","ADB","Dépenses non alimentaires","DNA","Loisirs","DNA124","Selon les besoins","PAB10","Unité","CAB133","vendredi 17 mai 2024","DNA-124"]
["Article dépense budgétaire","ADB","Dépenses non alimentaires","DNA","Loqueteaux","DNA125","Selon les besoins","PAB10","1 pack de 2 loqueteaux","CAB72","vendredi 17 mai 2024","DNA-125"]
["Article dépense budgétaire","ADB","Dépenses non alimentaires","DNA","Machine à laver","DNA126","Selon les besoins","PAB10","Unité","CAB133","vendredi 17 mai 2024","DNA-126"]
["Article dépense budgétaire","ADB","Dépenses non alimentaires","DNA","Magnétoscope","DNA127","Selon les besoins","PAB10","Unité","CAB133","vendredi 17 mai 2024","DNA-127"]
["Article dépense budgétaire","ADB","Dépenses non alimentaires","DNA","Matériel à couture","DNA128","Selon les besoins","PAB10","Unité","CAB133","vendredi 17 mai 2024","DNA-128"]
["Article dépense budgétaire","ADB","Dépenses non alimentaires","DNA","Matériel de cuisine","DNA129","Selon les besoins","PAB10","Unité","CAB133","vendredi 17 mai 2024","DNA-129"]
["Article dépense budgétaire","ADB","Dépenses non alimentaires","DNA","Matériel informatique","DNA130","Selon les besoins","PAB10","Unité","CAB133","vendredi 17 mai 2024","DNA-130"]
["Article dépense budgétaire","ADB","Dépenses non alimentaires","DNA","Minuteurs","DNA131","Selon les besoins","PAB10","Unité","CAB133","vendredi 17 mai 2024","DNA-131"]
["Article dépense budgétaire","ADB","Dépenses non alimentaires","DNA","Nappes de tables","DNA132","Selon les besoins","PAB10","Unité","CAB133","vendredi 17 mai 2024","DNA-132"]
["Article dépense budgétaire","ADB","Dépenses non alimentaires","DNA","Nettoyage des vêtements","DNA133","Bimestrielle","PAB03","Unité","CAB133","vendredi 17 mai 2024","DNA-133"]
["Article dépense budgétaire","ADB","Dépenses non alimentaires","DNA","Numéroteur","DNA134","Selon les besoins","PAB10","1 printy 4846 trodat (Numéroteur. Office dépôt)","CAB109","vendredi 17 mai 2024","DNA-134"]
["Article dépense budgétaire","ADB","Dépenses non alimentaires","DNA","O'CÉDAR","DNA135","Selon les besoins","PAB10","Unité : sans conditionnement","CAB144","vendredi 17 mai 2024","DNA-135"]
["Article dépense budgétaire","ADB","Dépenses non alimentaires","DNA","Ordinateurs de bureau","DNA136","Selon les besoins","PAB10","Unité","CAB133","vendredi 17 mai 2024","DNA-136"]
["Article dépense budgétaire","ADB","Dépenses non alimentaires","DNA","Ordinateurs portables","DNA137","Selon les besoins","PAB10","Unité","CAB133","vendredi 17 mai 2024","DNA-137"]
["Article dépense budgétaire","ADB","Dépenses non alimentaires","DNA","Ouvre-boîtes électrique","DNA138","Selon les besoins","PAB10","Unité","CAB133","vendredi 17 mai 2024","DNA-138"]
["Article dépense budgétaire","ADB","Dépenses non alimentaires","DNA","Papier à lettres","DNA139","Selon les besoins","PAB10","1 bloc de 100 feuilles (Papier à lettres)","CAB03","vendredi 17 mai 2024","DNA-139"]
["Article dépense budgétaire","ADB","Dépenses non alimentaires","DNA","Papier aluminium","DNA140","Semestrielle","PAB12","1 boîte de 30 mètres X 29 cm (Papier aluminium)","CAB14","vendredi 17 mai 2024","DNA-140"]
["Article dépense budgétaire","ADB","Dépenses non alimentaires","DNA","Papier blanc imprimantes","DNA141","Selon les besoins","PAB10","1 ramette de 500 feuilles (Papier blanc imprimantes)","CAB111","vendredi 17 mai 2024","DNA-141"]
["Article dépense budgétaire","ADB","Dépenses non alimentaires","DNA","Papier couleur imprimantes","DNA142","Trimestrielle","PAB15","1 ramette de 200 feuilles (Papier couleur imprimantes)","CAB110","vendredi 17 mai 2024","DNA-142"]
["Article dépense budgétaire","ADB","Dépenses non alimentaires","DNA","Papier hygiénique","DNA143","Annuelle","PAB01","1 pack de 8 paquets (Papier hygiénique, en plus ou en moins)","CAB93","vendredi 17 mai 2024","DNA-143"]
["Article dépense budgétaire","ADB","Dépenses non alimentaires","DNA","Parapluies","DNA144","Selon les besoins","PAB10","Unité","CAB133","vendredi 17 mai 2024","DNA-144"]
["Article dépense budgétaire","ADB","Dépenses non alimentaires","DNA","Parti communiste français","DNA145","Mensuelle","PAB09","1 timbre (Parti communiste français, Syndicat C.G.T.)","CAB119","vendredi 17 mai 2024","DNA-145"]
["Article dépense budgétaire","ADB","Dépenses non alimentaires","DNA","Pelles","DNA146","Selon les besoins","PAB10","Unité","CAB133","vendredi 17 mai 2024","DNA-146"]
["Article dépense budgétaire","ADB","Dépenses non alimentaires","DNA","Pétrole Hahn","DNA147","Selon les besoins","PAB10","1 flacon de 400 millilitres (Insecticide, Pétrole Hahn, Shampooing)","CAB52","vendredi 17 mai 2024","DNA-147"]
["Article dépense budgétaire","ADB","Dépenses non alimentaires","DNA","Pierres à briquets Zippo","DNA148","Selon les besoins","PAB10","1 flacon de 6 pierres (Pierres à briquets Zippo)","CAB54","vendredi 17 mai 2024","DNA-148"]
["Article dépense budgétaire","ADB","Dépenses non alimentaires","DNA","Piles AA","DNA149","Selon les besoins","PAB10","1 pack de 2, 4, 8 piles (Piles AA. En plus ou en moins : Calculette, Lampe torche, Pendules, Télévision JVC, Transistors)","CAB75","vendredi 17 mai 2024","DNA-149"]
["Article dépense budgétaire","ADB","Dépenses non alimentaires","DNA","Piles AAA","DNA150","Selon les besoins","PAB10","1 pack de 2, 4, 8 piles (Piles AAA. En plus ou en moins : Claviers, Minuteurs)","CAB76","vendredi 17 mai 2024","DNA-150"]
["Article dépense budgétaire","ADB","Dépenses non alimentaires","DNA","Piles spéciales","DNA151","Selon les besoins","PAB10","Unité : spéciales (Piles montre et décodeur Orange)","CAB145","vendredi 17 mai 2024","DNA-151"]
["Article dépense budgétaire","ADB","Dépenses non alimentaires","DNA","Piles transistor Crown","DNA152","Selon les besoins","PAB10","1 pack de 4, 8 piles (Piles transistor Crown. En plus ou en moins. Piles LR14/C )","CAB89","vendredi 17 mai 2024","DNA-152"]
["Article dépense budgétaire","ADB","Dépenses non alimentaires","DNA","POD avec liquide cigarettes électroniques (ePen3 et Blu)","DNA153","Selon les besoins","PAB10","1 boîte de 2 capsules (Cigarettes électroniques Blu et Vype ePen 3)","CAB12","vendredi 17 mai 2024","DNA-153"]
["Article dépense budgétaire","ADB","Dépenses non alimentaires","DNA","POD sans liquide cigarettes électroniques (NHOSS)","DNA154","Selon les besoins","PAB10","1 boîte de 3 pods (Cigarettes électroniques NHOSS)","CAB13","vendredi 17 mai 2024","DNA-154"]
["Article dépense budgétaire","ADB","Dépenses non alimentaires","DNA","Pourboires","DNA155","Mensuelle","PAB09","Unité : sans conditionnement","CAB144","vendredi 17 mai 2024","DNA-155"]
["Article dépense budgétaire","ADB","Dépenses non alimentaires","DNA","Poussettes","DNA156","Selon les besoins","PAB10","Unité","CAB133","vendredi 17 mai 2024","DNA-156"]
["Article dépense budgétaire","ADB","Dépenses non alimentaires","DNA","Produit liquide plancher","DNA157","Semestrielle","PAB12","1 flacon de 150 centilitres (Produit liquide plancher, produit liquide vaisselle)","CAB44","vendredi 17 mai 2024","DNA-157"]
["Article dépense budgétaire","ADB","Dépenses non alimentaires","DNA","Produit liquide vaisselle","DNA158","Semestrielle","PAB12","1 flacon de 150 centilitres (Produit liquide plancher, produit liquide vaisselle)","CAB44","vendredi 17 mai 2024","DNA-158"]
["Article dépense budgétaire","ADB","Dépenses non alimentaires","DNA","Produit liquide vitres","DNA159","Semestrielle","PAB12","Unité","CAB133","vendredi 17 mai 2024","DNA-159"]
["Article dépense budgétaire","ADB","Dépenses non alimentaires","DNA","Programme de télévision","DNA160","Hebdomadaire","PAB07","Unité","CAB133","vendredi 17 mai 2024","DNA-160"]
["Article dépense budgétaire","ADB","Dépenses non alimentaires","DNA","Radiateur électrique","DNA161","Selon les besoins","PAB10","Unité","CAB133","vendredi 17 mai 2024","DNA-161"]
["Article dépense budgétaire","ADB","Dépenses non alimentaires","DNA","Rasoir électrique","DNA162","Selon les besoins","PAB10","Unité","CAB133","vendredi 17 mai 2024","DNA-162"]
["Article dépense budgétaire","ADB","Dépenses non alimentaires","DNA","Recharge bloc éphéméride","DNA163","Annuelle","PAB01","Unité","CAB133","vendredi 17 mai 2024","DNA-163"]
["Article dépense budgétaire","ADB","Dépenses non alimentaires","DNA","Recharge cure-dents","DNA164","Selon les besoins","PAB10","1 pack de 100 cure-dents","CAB64","vendredi 17 mai 2024","DNA-164"]
["Article dépense budgétaire","ADB","Dépenses non alimentaires","DNA","Réfrigérateur","DNA165","Selon les besoins","PAB10","Unité","CAB133","vendredi 17 mai 2024","DNA-165"]
["Article dépense budgétaire","ADB","Dépenses non alimentaires","DNA","Remboursement argent emprunté","DNA166","Mensuelle","PAB09","Unité : sans conditionnement","CAB144","vendredi 17 mai 2024","DNA-166"]
["Article dépense budgétaire","ADB","Dépenses non alimentaires","DNA","Réparations","DNA167","Mensuelle","PAB09","Unité","CAB133","vendredi 17 mai 2024","DNA-167"]
["Article dépense budgétaire","ADB","Dépenses non alimentaires","DNA","Restaurant","DNA168","Selon les besoins","PAB10","Unité : sans conditionnement","CAB144","vendredi 17 mai 2024","DNA-168"]
["Article dépense budgétaire","ADB","Dépenses non alimentaires","DNA","Réveils","DNA169","Selon les besoins","PAB10","Unité","CAB133","vendredi 17 mai 2024","DNA-169"]
["Article dépense budgétaire","ADB","Dépenses non alimentaires","DNA","Sacs à poubelle","DNA170","Selon les besoins","PAB10","1 pack de 100 sacs (Sacs poubelle)","CAB65","vendredi 17 mai 2024","DNA-170"]
["Article dépense budgétaire","ADB","Dépenses non alimentaires","DNA","Savon noir","DNA171","Selon les besoins","PAB10","1 bouteille de 100 centilitres (Savon noir, Vinaigre anticalcaire)","CAB29","vendredi 17 mai 2024","DNA-171"]
["Article dépense budgétaire","ADB","Dépenses non alimentaires","DNA","Savonnette figure","DNA172","Annuelle","PAB01","1 pack de 4 savonnettes de 100 grammes chacune (Figure, en plus ou en moins, Manava Leclerc)","CAB86","vendredi 17 mai 2024","DNA-172"]
["Article dépense budgétaire","ADB","Dépenses non alimentaires","DNA","Savons","DNA173","Bimestrielle","PAB03","1 pack de 4 savons de 200 grammes chacun (Cuisine, salle de bains (Bas et Linge), en plus ou en moins)","CAB87","vendredi 17 mai 2024","DNA-173"]
["Article dépense budgétaire","ADB","Dépenses non alimentaires","DNA","Scotch","DNA174","Selon les besoins","PAB10","Unité","CAB133","vendredi 17 mai 2024","DNA-174"]
["Article dépense budgétaire","ADB","Dépenses non alimentaires","DNA","Scotch Brite","DNA175","Selon les besoins","PAB10","1 pack de 3 scotch brite (Cuisine (ménage et vaisselle), Salle de bains et water-closets (ménage); en plus ou en moins)","CAB81","vendredi 17 mai 2024","DNA-175"]
["Article dépense budgétaire","ADB","Dépenses non alimentaires","DNA","Serpillières","DNA176","Selon les besoins","PAB10","Unité","CAB133","vendredi 17 mai 2024","DNA-176"]
["Article dépense budgétaire","ADB","Dépenses non alimentaires","DNA","Shampooing","DNA177","Semestrielle","PAB12","1 flacon de 400 millilitres (Insecticide, Pétrole Hahn, Shampooing)","CAB52","vendredi 17 mai 2024","DNA-177"]
["Article dépense budgétaire","ADB","Dépenses non alimentaires","DNA","Souris ordinateurs de bureau","DNA178","Selon les besoins","PAB10","Unité","CAB133","vendredi 17 mai 2024","DNA-178"]
["Article dépense budgétaire","ADB","Dépenses non alimentaires","DNA","Souris ordinateurs portables","DNA179","Selon les besoins","PAB10","Unité","CAB133","vendredi 17 mai 2024","DNA-179"]
["Article dépense budgétaire","ADB","Dépenses non alimentaires","DNA","Stylos à bille","DNA180","Selon les besoins","PAB10","1 pack de 4 stylos à bille (encre bleue, noire, rouge et verte; en plus ou en moins)","CAB88","vendredi 17 mai 2024","DNA-180"]
["Article dépense budgétaire","ADB","Dépenses non alimentaires","DNA","Stylos-plume","DNA181","Selon les besoins","PAB10","Unité","CAB133","vendredi 17 mai 2024","DNA-181"]
["Article dépense budgétaire","ADB","Dépenses non alimentaires","DNA","Syndicat C.G.T.","DNA182","Mensuelle","PAB09","1 timbre (Parti communiste français, Syndicat C.G.T.)","CAB119","vendredi 17 mai 2024","DNA-182"]
["Article dépense budgétaire","ADB","Dépenses non alimentaires","DNA","Tabac pour les cigarettes","DNA183","Mensuelle","PAB09","1 cartouche de 10 paquets (maximum mensuel; tabac pour les cigarettes)","CAB37","vendredi 17 mai 2024","DNA-183"]
["Article dépense budgétaire","ADB","Dépenses non alimentaires","DNA","Tapis pour souris ordinateurs","DNA184","Selon les besoins","PAB10","Unité","CAB133","vendredi 17 mai 2024","DNA-184"]
["Article dépense budgétaire","ADB","Dépenses non alimentaires","DNA","Taxi","DNA185","Selon les besoins","PAB10","Unité : sans conditionnement","CAB144","vendredi 17 mai 2024","DNA-185"]
["Article dépense budgétaire","ADB","Dépenses non alimentaires","DNA","Télécommandes","DNA186","Selon les besoins","PAB10","Unité","CAB133","vendredi 17 mai 2024","DNA-186"]
["Article dépense budgétaire","ADB","Dépenses non alimentaires","DNA","Téléphone fixe","DNA187","Selon les besoins","PAB10","Unité","CAB133","vendredi 17 mai 2024","DNA-187"]
["Article dépense budgétaire","ADB","Dépenses non alimentaires","DNA","Téléphone portable","DNA188","Selon les besoins","PAB10","Unité","CAB133","vendredi 17 mai 2024","DNA-188"]
["Article dépense budgétaire","ADB","Dépenses non alimentaires","DNA","Télévision","DNA189","Selon les besoins","PAB10","Unité","CAB133","vendredi 17 mai 2024","DNA-189"]
["Article dépense budgétaire","ADB","Dépenses non alimentaires","DNA","Théâtre","DNA190","Selon les besoins","PAB10","Unité","CAB133","vendredi 17 mai 2024","DNA-190"]
["Article dépense budgétaire","ADB","Dépenses non alimentaires","DNA","Tickets de bus","DNA191","Selon les besoins","PAB10","1 carnet de 10 tickets : en plus ou en moins (Tickets de bus, de métro, de RER, tous transports, timbres poste)","CAB36","vendredi 17 mai 2024","DNA-191"]
["Article dépense budgétaire","ADB","Dépenses non alimentaires","DNA","Tickets de métro","DNA192","Selon les besoins","PAB10","1 carnet de 10 tickets : en plus ou en moins (Tickets de bus, de métro, de RER, tous transports, timbres poste)","CAB36","vendredi 17 mai 2024","DNA-192"]
["Article dépense budgétaire","ADB","Dépenses non alimentaires","DNA","Tickets de RER","DNA193","Selon les besoins","PAB10","1 carnet de 10 tickets : en plus ou en moins (Tickets de bus, de métro, de RER, tous transports, timbres poste)","CAB36","vendredi 17 mai 2024","DNA-193"]
["Article dépense budgétaire","ADB","Dépenses non alimentaires","DNA","Tickets tous transports","DNA194","Selon les besoins","PAB10","1 carnet de 10 tickets : en plus ou en moins (Tickets de bus, de métro, de RER, tous transports, timbres poste)","CAB36","vendredi 17 mai 2024","DNA-194"]
["Article dépense budgétaire","ADB","Dépenses non alimentaires","DNA","Timbres poste","DNA195","Selon les besoins","PAB10","1 carnet de 10 tickets : en plus ou en moins (Tickets de bus, de métro, de RER, tous transports, timbres poste)","CAB36","vendredi 17 mai 2024","DNA-195"]
["Article dépense budgétaire","ADB","Dépenses non alimentaires","DNA","Toners imprimantes","DNA196","Selon les besoins","PAB10","Unité","CAB133","vendredi 17 mai 2024","DNA-196"]
["Article dépense budgétaire","ADB","Dépenses non alimentaires","DNA","Transistor noir chambre Kiki Crown","DNA197","Selon les besoins","PAB10","Unité","CAB133","vendredi 17 mai 2024","DNA-197"]
["Article dépense budgétaire","ADB","Dépenses non alimentaires","DNA","Transistors","DNA198","Selon les besoins","PAB10","Unité","CAB133","vendredi 17 mai 2024","DNA-198"]
["Article dépense budgétaire","ADB","Dépenses non alimentaires","DNA","Trombones","DNA199","Selon les besoins","PAB10","1 boîte de 100 de 30 mm ou de 32 mm (trombones)","CAB05","vendredi 17 mai 2024","DNA-199"]
["Article dépense budgétaire","ADB","Dépenses non alimentaires","DNA","Tuyau gaz cuisinière","DNA200","Selon les besoins","PAB10","Unité","CAB133","vendredi 17 mai 2024","DNA-200"]
["Article dépense budgétaire","ADB","Dépenses non alimentaires","DNA","Vaisselle (Sauf casseroles et couvercles casseroles)","DNA201","Selon les besoins","PAB10","Unité","CAB133","vendredi 17 mai 2024","DNA-201"]
["Article dépense budgétaire","ADB","Dépenses non alimentaires","DNA","Vernis à ongles","DNA202","Semestrielle","PAB12","1 flacon de 10 millilitres (Vernis à ongles)","CAB40","vendredi 17 mai 2024","DNA-202"]
["Article dépense budgétaire","ADB","Dépenses non alimentaires","DNA","Vêtements et sous-vêtements (sauf Blouses)","DNA203","Selon les besoins","PAB10","Unité","CAB133","vendredi 17 mai 2024","DNA-203"]
["Article dépense budgétaire","ADB","Dépenses non alimentaires","DNA","Vinaigre anticalcaire","DNA204","Semestrielle","PAB12","1 bouteille de 100 centilitres (Savon noir, Vinaigre anticalcaire)","CAB29","vendredi 17 mai 2024","DNA-204"]
["Article recette budgétaire","ARB","Recettes bancaires","RB","Argent emprunté","RB01","Mensuelle","PAB09","Unité : sans conditionnement","CAB144","vendredi 17 mai 2024","RB-01"]
["Article recette budgétaire","ARB","Recettes bancaires","RB","Autres recettes bancaires","RB02","Mensuelle","PAB09","Unité : sans conditionnement","CAB144","vendredi 17 mai 2024","RB-02"]
["Article recette budgétaire","ARB","Recettes bancaires","RB","Mutuelle bancaire","RB03","Mensuelle","PAB09","Unité : sans conditionnement","CAB144","vendredi 17 mai 2024","RB-03"]
["Article recette budgétaire","ARB","Recettes bancaires","RB","Pension caisse nationale d'assurance vieillesse (CNAV)","RB04","Mensuelle","PAB09","Unité : sans conditionnement","CAB144","vendredi 17 mai 2024","RB-04"]
["Article recette budgétaire","ARB","Recettes bancaires","RB","Pension caisse nationale des retraites des agents des collectivités locales (CNRACL)","RB05","Mensuelle","PAB09","Unité : sans conditionnement","CAB144","vendredi 17 mai 2024","RB-05"]
["Article recette budgétaire","ARB","Recettes bancaires","RB","Sécurité sociale","RB06","Mensuelle","PAB09","Unité : sans conditionnement","CAB144","vendredi 17 mai 2024","RB-06"]
["Article recette budgétaire","ARB","Recettes médicales","RM","Mutuelle analyses","RM01","Trimestrielle","PAB15","Unité : sans conditionnement","CAB144","vendredi 17 mai 2024","RM-01"]
["Article recette budgétaire","ARB","Recettes médicales","RM","Mutuelle autres recettes médicales","RM02","Mensuelle","PAB09","Unité : sans conditionnement","CAB144","vendredi 17 mai 2024","RM-02"]
["Article recette budgétaire","ARB","Recettes médicales","RM","Mutuelle dentiste","RM03","Annuelle","PAB01","Unité : sans conditionnement","CAB144","vendredi 17 mai 2024","RM-03"]
["Article recette budgétaire","ARB","Recettes médicales","RM","Mutuelle docteur dermatologue","RM04","Annuelle","PAB01","Unité : sans conditionnement","CAB144","vendredi 17 mai 2024","RM-04"]
["Article recette budgétaire","ARB","Recettes médicales","RM","Mutuelle docteur généraliste","RM05","Trimestrielle","PAB15","Unité : sans conditionnement","CAB144","vendredi 17 mai 2024","RM-05"]
["Article recette budgétaire","ARB","Recettes médicales","RM","Mutuelle docteur ophtalmologiste","RM06","Annuelle","PAB01","Unité : sans conditionnement","CAB144","vendredi 17 mai 2024","RM-06"]
["Article recette budgétaire","ARB","Recettes médicales","RM","Mutuelle forfait monture des lunettes","RM07","Annuelle","PAB01","Unité : sans conditionnement","CAB144","vendredi 17 mai 2024","RM-07"]
["Article recette budgétaire","ARB","Recettes médicales","RM","Mutuelle forfait verres des lunettes","RM08","Annuelle","PAB01","Unité : sans conditionnement","CAB144","vendredi 17 mai 2024","RM-08"]
["Article recette budgétaire","ARB","Recettes médicales","RM","Mutuelle monture des lunettes","RM09","Annuelle","PAB01","Unité : sans conditionnement","CAB144","vendredi 17 mai 2024","RM-09"]
["Article recette budgétaire","ARB","Recettes médicales","RM","Mutuelle pharmacie vignette blanche","RM10","Trimestrielle","PAB15","Unité : sans conditionnement","CAB144","vendredi 17 mai 2024","RM-10"]
["Article recette budgétaire","ARB","Recettes médicales","RM","Mutuelle pharmacie vignette bleue","RM11","Trimestrielle","PAB15","Unité : sans conditionnement","CAB144","vendredi 17 mai 2024","RM-11"]
["Article recette budgétaire","ARB","Recettes médicales","RM","Mutuelle pharmacie vignette orange","RM12","Trimestrielle","PAB15","Unité : sans conditionnement","CAB144","vendredi 17 mai 2024","RM-12"]
["Article recette budgétaire","ARB","Recettes médicales","RM","Mutuelle prélèvements","RM13","Trimestrielle","PAB15","Unité : sans conditionnement","CAB144","vendredi 17 mai 2024","RM-13"]
["Article recette budgétaire","ARB","Recettes médicales","RM","Mutuelle radiographies","RM14","Annuelle","PAB01","Unité : sans conditionnement","CAB144","vendredi 17 mai 2024","RM-14"]
["Article recette budgétaire","ARB","Recettes médicales","RM","Mutuelle verres des lunettes","RM15","Annuelle","PAB01","Unité : sans conditionnement","CAB144","vendredi 17 mai 2024","RM-15"]
["Article recette budgétaire","ARB","Recettes médicales","RM","Sécurité sociale analyses","RM16","Trimestrielle","PAB15","Unité : sans conditionnement","CAB144","vendredi 17 mai 2024","RM-16"]
["Article recette budgétaire","ARB","Recettes médicales","RM","Sécurité sociale autres recettes médicales","RM17","Mensuelle","PAB09","Unité : sans conditionnement","CAB144","vendredi 17 mai 2024","RM-17"]
["Article recette budgétaire","ARB","Recettes médicales","RM","Sécurité sociale dentiste","RM18","Annuelle","PAB01","Unité : sans conditionnement","CAB144","vendredi 17 mai 2024","RM-18"]
["Article recette budgétaire","ARB","Recettes médicales","RM","Sécurité sociale docteur dermatologue","RM19","Annuelle","PAB01","Unité : sans conditionnement","CAB144","vendredi 17 mai 2024","RM-19"]
["Article recette budgétaire","ARB","Recettes médicales","RM","Sécurité sociale docteur généraliste","RM20","Trimestrielle","PAB15","Unité : sans conditionnement","CAB144","vendredi 17 mai 2024","RM-20"]
["Article recette budgétaire","ARB","Recettes médicales","RM","Sécurité sociale docteur ophtalmologiste","RM21","Annuelle","PAB01","Unité : sans conditionnement","CAB144","vendredi 17 mai 2024","RM-21"]
["Article recette budgétaire","ARB","Recettes médicales","RM","Sécurité sociale monture des lunettes","RM22","Annuelle","PAB01","Unité : sans conditionnement","CAB144","vendredi 17 mai 2024","RM-22"]
["Article recette budgétaire","ARB","Recettes médicales","RM","Sécurité sociale pharmacie vignette blanche","RM23","Trimestrielle","PAB15","Unité : sans conditionnement","CAB144","vendredi 17 mai 2024","RM-23"]
["Article recette budgétaire","ARB","Recettes médicales","RM","Sécurité sociale pharmacie vignette bleue","RM24","Trimestrielle","PAB15","Unité : sans conditionnement","CAB144","vendredi 17 mai 2024","RM-24"]
["Article recette budgétaire","ARB","Recettes médicales","RM","Sécurité sociale pharmacie vignette orange","RM25","Trimestrielle","PAB15","Unité : sans conditionnement","CAB144","vendredi 17 mai 2024","RM-25"]
["Article recette budgétaire","ARB","Recettes médicales","RM","Sécurité sociale prélèvements","RM26","Trimestrielle","PAB15","Unité : sans conditionnement","CAB144","vendredi 17 mai 2024","RM-26"]
["Article recette budgétaire","ARB","Recettes médicales","RM","Sécurité sociale radiographies","RM27","Annuelle","PAB01","Unité : sans conditionnement","CAB144","vendredi 17 mai 2024","RM-27"]
["Article recette budgétaire","ARB","Recettes médicales","RM","Sécurité sociale verres des lunettes","RM28","Annuelle","PAB01","Unité : sans conditionnement","CAB144","vendredi 17 mai 2024","RM-28"]
["Article recette budgétaire","ARB","Recettes numéraires","RN","Argent emprunté","RN01","Mensuelle","PAB09","Unité : sans conditionnement","CAB144","vendredi 17 mai 2024","RN-01"]
["Article recette budgétaire","ARB","Recettes numéraires","RN","Argent trouvé","RN02","Mensuelle","PAB09","Unité : sans conditionnement","CAB144","vendredi 17 mai 2024","RN-02"]
["Article recette budgétaire","ARB","Recettes numéraires","RN","Autres recettes numéraires","RN03","Mensuelle","PAB09","Unité : sans conditionnement","CAB144","vendredi 17 mai 2024","RN-03"]
["Article recette budgétaire","ARB","Recettes numéraires","RN","Déconsignation bouteille liquide cigarette éectronique NHOSS","RN04","Mensuelle","PAB09","Unité : sans conditionnement","CAB144","vendredi 17 mai 2024","RN-04"]
["Article recette budgétaire","ARB","Recettes numéraires","RN","Fidélité Carrefour","RN05","Mensuelle","PAB09","Unité : sans conditionnement","CAB144","vendredi 17 mai 2024","RN-05"]
["Article recette budgétaire","ARB","Recettes numéraires","RN","Fidélité FNAC","RN06","Mensuelle","PAB09","Unité : sans conditionnement","CAB144","vendredi 17 mai 2024","RN-06"]
["Article recette budgétaire","ARB","Recettes numéraires","RN","Fidélité Géant casino","RN07","Mensuelle","PAB09","Unité : sans conditionnement","CAB144","vendredi 17 mai 2024","RN-07"]
["Article recette budgétaire","ARB","Recettes numéraires","RN","Fidélité GEMO","RN08","Mensuelle","PAB09","Unité : sans conditionnement","CAB144","vendredi 17 mai 2024","RN-08"]
["Article recette budgétaire","ARB","Recettes numéraires","RN","Fidélité InterMarché","RN09","Mensuelle","PAB09","Unité : sans conditionnement","CAB144","vendredi 17 mai 2024","RN-09"]
["Article recette budgétaire","ARB","Recettes numéraires","RN","Fidélité Leclerc","RN10","Mensuelle","PAB09","Unité : sans conditionnement","CAB144","vendredi 17 mai 2024","RN-10"]
["Article recette budgétaire","ARB","Recettes numéraires","RN","Remboursement argent prêté à des tiers","RN11","Mensuelle","PAB09","Unité : sans conditionnement","CAB144","vendredi 17 mai 2024","RN-11"]
["Article recette budgétaire","ARB","Recettes numéraires","RN","Trop perçu sur monnaie rendue","RN12","Mensuelle","PAB09","Unité : sans conditionnement","CAB144","vendredi 17 mai 2024","RN-12"]
["Article recette budgétaire","ARB","Recettes numéraires","RN","Virements de fonds","RN13","Mensuelle","PAB09","Unité : sans conditionnement","CAB144","vendredi 17 mai 2024","RN-13"]

{"sheet":"BD Crédits budgétaires","index":3,"n_rows":52,"n_cols":403,"rows_kept":52,"cut":false,"hidden":false,"merged":[[54,396,54,402],[35,396,35,402],[38,396,38,402],[39,396,39,402],[42,396,42,402],[43,396,43,402],[46,396,46,402],[47,396,47,402],[50,396,50,402],[51,396,51,402],[39,384,39,390],[42,384,42,390],[43,384,43,390],[46,384,46,390],[47,384,47,390],[50,384,50,390],[51,384,51,390],[54,384,54,390],[3,396,3,402],[6,396,6,402],[7,396,7,402],[10,396,10,402],[11,396,11,402],[14,396,14,402],[15,396,15,402],[18,396,18,402],[19,396,19,402],[22,396,22,402],[23,396,23,402],[26,396,26,402],[27,396,27,402],[30,396,30,402],[31,396,31,402],[34,396,34,402],[22,384,22,390],[23,384,23,390],[26,384,26,390],[27,384,27,390],[30,384,30,390],[31,384,31,390],[34,384,34,390],[35,384,35,390],[38,384,38,390],[3,384,3,390],[6,384,6,390],[7,384,7,390],[10,384,10,390],[11,384,11,390],[14,384,14,390],[15,384,15,390],[18,384,18,390],[19,384,19,390],[54,324,54,330],[43,324,43,330],[46,324,46,330],[47,324,47,330],[50,324,50,330],[51,324,51,330],[34,324,34,330],[35,324,35,330],[38,324,38,330],[39,324,39,330],[42,324,42,330],[12,312,12,318],[23,324,23,330],[26,324,26,330],[27,324,27,330],[30,324,30,330],[31,324,31,330],[14,324,14,330],[15,324,15,330],[18,324,18,330],[19,324,19,330],[22,324,22,330],[15,312,15,318],[16,312,16,318],[20,312,20,318],[24,312,24,318],[28,312,28,318],[3,324,3,330],[6,324,6,330],[7,324,7,330],[10,324,10,330],[11,324,11,330],[3,216,3,224],[3,228,3,236],[3,276,3,284],[3,288,3,296],[3,300,3,308],[8,312,8,318],[11,312,11,318],[3,192,3,200],[6,48,6,53],[6,120,6,128],[6,132,6,140],[6,144,6,152],[6,156,6,164],[6,60,6,65],[6,72,6,77],[6,84,6,89],[6,96,6,101],[6,108,6,113],[6,168,6,176],[6,180,6,188],[6,192,6,200],[3,168,3,176],[0,0,0,22],[1,0,1,22],[3,24,3,29],[3,36,3,41],[3,48,3,53],[8,24,8,29],[6,36,6,41],[3,180,3,188],[3,120,3,128],[3,132,3,140],[3,144,3,152],[3,156,3,164],[3,60,3,65],[3,108,3,113],[3,96,3,101],[3,72,3,77],[3,84,3,89],[6,204,6,212],[6,216,6,224],[6,288,6,296],[6,300,6,308],[3,312,3,318],[7,312,7,318],[6,228,6,236],[6,240,6,248],[6,252,6,260],[6,264,6,272],[6,276,6,284],[3,240,3,248],[3,252,3,260],[3,264,3,272],[3,204,3,212],[32,312,32,318],[19,312,19,318],[23,312,23,318],[27,312,27,318],[35,312,35,318],[36,312,36,318],[39,312,39,318],[40,312,40,318],[31,312,31,318],[52,312,52,318],[55,312,55,318],[43,312,43,318],[44,312,44,318],[47,312,47,318],[48,312,48,318],[51,312,51,318],[3,336,3,342],[6,336,6,342],[7,336,7,342],[10,336,10,342],[11,336,11,342],[14,336,14,342],[15,336,15,342],[18,336,18,342],[19,336,19,342],[39,336,39,342],[42,336,42,342],[43,336,43,342],[46,336,46,342],[47,336,47,342],[50,336,50,342],[51,336,51,342],[54,336,54,342],[22,336,22,342],[23,336,23,342],[26,336,26,342],[27,336,27,342],[30,336,30,342],[31,336,31,342],[34,336,34,342],[35,336,35,342],[38,336,38,342],[35,348,35,354],[38,348,38,354],[3,348,3,354],[6,348,6,354],[7,348,7,354],[10,348,10,354],[11,348,11,354],[14,348,14,354],[15,348,15,354],[18,348,18,354],[19,348,19,354],[54,348,54,354],[3,360,3,366],[6,360,6,366],[7,360,7,366],[10,360,10,366],[11,360,11,366],[14,360,14,366],[15,360,15,366],[18,360,18,366],[19,360,19,366],[22,360,22,366],[23,360,23,366],[26,360,26,366],[27,360,27,366],[30,360,30,366],[31,360,31,366],[34,360,34,366],[22,348,22,354],[23,348,23,354],[26,348,26,354],[27,348,27,354],[30,348,30,354],[31,348,31,354],[34,348,34,354],[50,360,50,366],[51,360,51,366],[39,348,39,354],[42,348,42,354],[43,348,43,354],[46,348,46,354],[47,348,47,354],[50,348,50,354],[51,348,51,354],[43,372,43,378],[46,372,46,378],[47,372,47,378],[35,360,35,366],[38,360,38,366],[39,360,39,366],[42,360,42,366],[43,360,43,366],[46,360,46,366],[47,360,47,366],[50,372,50,378],[51,372,51,378],[54,372,54,378],[54,360,54,366],[3,372,3,378],[6,372,6,378],[7,372,7,378],[10,372,10,378],[11,372,11,378],[14,372,14,378],[15,372,15,378],[18,372,18,378],[19,372,19,378],[22,372,22,378],[23,372,23,378],[26,372,26,378],[27,372,27,378],[30,372,30,378],[31,372,31,378],[34,372,34,378],[35,372,35,378],[38,372,38,378],[39,372,39,378],[42,372,42,378]]}
[{"$f":"\"BD crédits budgétaires des dépenses bancaires, des dépenses bancaires, des dépenses horticoles, des dépenses médicales, des dépenses non bancaires, des recettes bancaires, des recettes médicales, des recettes numéraires pour les budgets primitifs,\"","v":"BD crédits budgétaires des dépenses bancaires, des dépenses bancaires, des dépenses horticoles, des dépenses médicales, des dépenses non bancaires, des recettes bancaires, des recettes médicales, des recettes numéraires pour les budgets primitifs,"}]
[{"$f":"\"les décisions modificatives numéros 1 et 2 et les budgets mensuels de l'année \" & Accueil!$G$1&\".\"","v":"les décisions modificatives numéros 1 et 2 et les budgets mensuels de l'année 2024."}]
[]
["Catégorie","Code catégorie","Article","Code article","Période","Code période","Conditionnement","Code conditionnement","Prix unitaire","Quantité","Total BP","Date création","Numéro création","Total budget primitif","Plus DM1","Moins DM1","Total DM1","Total décision modificative 1","Plus DM2","Moins DM2","Total DM2","Total BM","Mois BM",null,{"$f":"\"Budget primitif des dépenses bancaires de l'année \" &Accueil!$G$1&\".\"","v":"Budget primitif des dépenses bancaires de l'année 2024."},null,null,null,null,null,null,null,null,null,null,null,{"$f":"\"Budget primitif des dépenses bancaires de l'année \" &Accueil!$G$1&\".\"","v":"Budget primitif des dépenses bancaires de l'année 2024."},null,null,null,null,null,null,null,null,null,null,null,{"$f":"\"Budget primitif des dépenses horticoles de l'année \" &Accueil!$G$1&\".\"","v":"Budget primitif des dépenses horticoles de l'année 2024."},null,null,null,null,null,null,null,null,null,null,null,{"$f":"\"Budget primitif des dépenses médicales de l'année \" &Accueil!$G$1&\".\"","v":"Budget primitif des dépenses médicales de l'année 2024."},null,null,null,null,null,null,null,null,null,null,null,{"$f":"\"Budget primitif des dépenses non bancaires de l'année \" &Accueil!$G$1&\".\"","v":"Budget primitif des dépenses non bancaires de l'année 2024."},null,null,null,null,null,null,null,null,null,null,null,{"$f":"\"Budget primitif des recettes bancaires de l'année \" &Accueil!$G$1&\".\"","v":"Budget primitif des recettes bancaires de l'année 2024."},null,null,null,null,null,null,null,null,null,null,null,{"$f":"\"Budget primitif des recettes médicales de l'année \" &Accueil!$G$1&\".\"","v":"Budget primitif des recettes médicales de l'année 2024."},null,null,null,null,null,null,null,null,null,null,null,{"$f":"\"Budget primitif des recettes numéraires de l'année \" &Accueil!$G$1&\".\"","v":"Budget primitif des recettes numéraires de l'année 2024."},null,null,null,null,null,null,null,null,null,null,null,{"$f":"\"Budget DM1 des dépenses alimentaires de l'année \" &Accueil!$G$1&\".\"","v":"Budget DM1 des dépenses alimentaires de l'année 2024."},null,null,null,null,null,null,null,null,null,null,null,{"$f":"\"Budget DM1 des dépenses bancaires de l'année \" &Accueil!$G$1&\".\"","v":"Budget DM1 des dépenses bancaires de l'année 2024."},null,null,null,null,null,null,null,null,null,null,null,{"$f":"\"Budget DM1 des dépenses horticoles de l'année \" &Accueil!$G$1&\".\"","v":"Budget DM1 des dépenses horticoles de l'année 2024."},null,null,null,null,null,null,null,null,null,null,null,{"$f":"\"Budget DM1 des dépenses médicales de l'année \" &Accueil!$G$1&\".\"","v":"Budget DM1 des dépenses médicales de l'année 2024."},null,null,null,null,null,null,null,null,null,null,null,{"$f":"\"Budget DM1 des dépenses non bancaires de l'année \" &Accueil!$G$1&\".\"","v":"Budget DM1 des dépenses non bancaires de l'année 2024."},null,null,null,null,null,null,null,null,null,null,null,{"$f":"\"Budget DM1 des recettes bancaires de l'année \" &Accueil!$G$1&\".\"","v":"Budget DM1 des recettes bancaires de l'année 2024."},null,null,null,null,null,null,null,null,null,null,null,{"$f":"\"Budget DM1 des recettes médicales de l'année \" &Accueil!$G$1&\".\"","v":"Budget DM1 des recettes médicales de l'année 2024."},null,null,null,null,null,null,null,null,null,null,null,{"$f":"\"Budget DM1 des recettes numéraires de l'année \" &Accueil!$G$1&\".\"","v":"Budget DM1 des recettes numéraires de l'année 2024."},null,null,null,null,null,null,null,null,null,null,null,{"$f":"\"Budget DM2 des dépenses bancaires de l'année \" &Accueil!$G$1&\".\"","v":"Budget DM2 des dépenses bancaires de l'année 2024."},null,null,null,null,null,null,null,null,null,null,null,{"$f":"\"Budget DM2 des dépenses bancaires de l'année \" &Accueil!$G$1&\".\"","v":"Budget DM2 des dépenses bancaires de l'année 2024."},null,null,null,null,null,null,null,null,null,null,null,{"$f":"\"Budget DM2 des dépenses horticoles de l'année \" &Accueil!$G$1&\".\"","v":"Budget DM2 des dépenses horticoles de l'année 2024."},null,null,null,null,null,null,null,null,null,null,null,{"$f":"\"Budget DM2 des dépenses médicales de l'année \" &Accueil!$G$1&\".\"","v":"Budget DM2 des dépenses médicales de l'année 2024."},null,null,null,null,null,null,null,null,null,null,null,{"$f":"\"Budget DM2 des dépenses non bancaires de l'année \" &Accueil!$G$1&\".\"","v":"Budget DM2 des dépenses non bancaires de l'année 2024."},null,null,null,null,null,null,null,null,null,null,null,{"$f":"\"Budget DM2 des recettes bancaires de l'année \" &Accueil!$G$1&\".\"","v":"Budget DM2 des recettes bancaires de l'année 2024."},null,null,null,null,null,null,null,null,null,null,null,{"$f":"\"Budget DM2 des recettes médicales de l'année \" &Accueil!$G$1&\".\"","v":"Budget DM2 des recettes médicales de l'année 2024."},null,null,null,null,null,null,null,null,null,null,null,{"$f":"\"Budget DM2 des recettes numéraires de l'année \" &Accueil!$G$1&\".\"","v":"Budget DM2 des recettes numéraires de l'année 2024."},null,null,null,null,null,null,null,null,null,null,null,{"$f":"\"Budget mensuel des dépenses alimentaires du mois de \" &TabBDCréditsBudgétairesBudgetMensuelDépensesAlimentaires1[[#This Row],[Mois BM]]&\".\"","v":{"$error":"#VALUE!"}},null,null,null,null,null,null,null,null,null,null,null,{"$f":"\"Budget mensuel des dépenses bancaires du mois de \" &TabBDCréditsBudgétairesBudgetMensuelDépensesBancaires1[Mois BM]&\".\"","v":"Budget mensuel des dépenses bancaires du mois de Janvier ."},null,null,null,null,null,null,null,null,null,null,null,{"$f":"\"Budget mensuel des dépenses horticoles du mois de \" &TabBDCréditsBudgétairesBudgetMensuelDépensesHorticoles1[Mois BM]&\".\"","v":"Budget mensuel des dépenses horticoles du mois de Janvier ."},null,null,null,null,null,null,null,null,null,null,null,{"$f":"\"Budget mensuel des dépenses médicales du mois de \" &TabBDCréditsBudgétairesBudgetMensuelDépensesMédicales1[Mois BM]&\".\"","v":"Budget mensuel des dépenses médicales du mois de Janvier ."},null,null,null,null,null,null,null,null,null,null,null,{"$f":"\"Budget mensuel des dépenses non alimentaires du mois de \" &TabBDCréditsBudgétairesBudgetMensuelDépensesNonAlimentaires1[Mois BM]&\".\"","v":"Budget mensuel des dépenses non alimentaires du mois de Janvier ."},null,null,null,null,null,null,null,null,null,null,null,{"$f":"\"Budget mensuel des recettes bancaires du mois de \" &TabBDCréditsBudgétairesBudgetMensuelRecettesBancaires1[Mois BM]&\".\"","v":"Budget mensuel des recettes bancaires du mois de ."},null,null,null,null,null,null,null,null,null,null,null,{"$f":"\"Budget mensuel des recettes médicales du mois de \" &TabBDCréditsBudgétairesBudgetMensuelRecettesMédicales1[Mois BM]&\".\"","v":"Budget mensuel des recettes médicales du mois de Janvier ."},null,null,null,null,null,null,null,null,null,null,null,{"$f":"\"Budget mensuel des recettes numéraires du mois de \" &TabBDCréditsBudgétairesBudgetMensuelRecettesNuméraires1[Mois BM]&\".\"","v":"Budget mensuel des recettes numéraires du mois de Janvier ."}]
["Budget primitif dépenses alimentaires","BPDA","Agneau","DA01","Selon menu","PAB11","1 tranche pour 1 repas (viandes midi weekend)","CAB120",3,12,36,"6 juillet 2024","BPDA-01",null,null,null,{"$f":"TabBDCréditsBudgétaires[[#This Row],[Total budget primitif]]+TabBDCréditsBudgétaires[[#This Row],[Plus DM1]]-TabBDCréditsBudgétaires[[#This Row],[Moins DM1]]","v":0},{"$f":"TabBDCréditsBudgétaires[[#This Row],[Total budget primitif]]+TabBDCréditsBudgétaires[[#This Row],[Plus DM1]]-TabBDCréditsBudgétaires[[#This Row],[Moins DM1]]","v":0},null,null,{"$f":"TabBDCréditsBudgétaires[[#This Row],[Total décision modificative 1]]+TabBDCréditsBudgétaires[[#This Row],[Plus DM2]]-TabBDCréditsBudgétaires[[#This Row],[Moins DM2]]","v":0},null,null,null,"Catégorie","Article","Code article","Total BP","Date création","Numéro création",null,null,null,null,null,null,"Catégorie","Article","Code article","Total BP","Date création","Numéro création",null,null,null,null,null,null,"Catégorie","Article","Code article","Total BP","Date création","Numéro création",null,null,null,null,null,null,"Catégorie","Article","Code article","Total BP","Date création","Numéro création",null,null,null,null,null,null,"Catégorie","Article","Code article","Total BP","Date création","Numéro création",null,null,null,null,null,null,"Catégorie","Article","Code article","Total BP","Date création","Numéro création",null,null,null,null,null,null,"Catégorie","Article","Code article","Total BP","Date création","Numéro création",null,null,null,null,null,null,"Catégorie","Article","Code article","Total BP","Date création","Numéro création",null,null,null,null,null,null,"Catégorie","Article","Code article","Total BP","Plus DM1","Moins DM1","Total DM1","Date création","Numéro création",null,null,null,"Catégorie","Article","Code article","Total BP","Plus DM1","Moins DM1","Total DM1","Date création","Numéro création",null,null,null,"Catégorie","Article","Code article","Total BP","Plus DM1","Moins DM1","Total DM1","Date création","Numéro création",null,null,null,"Catégorie","Article","Code article","Total BP","Plus DM1","Moins DM1","Total DM1","Date création","Numéro création",null,null,null,"Catégorie","Article","Code article","Total BP","Plus DM1","Moins DM1","Total DM1","Date création","Numéro création",null,null,null,"Catégorie","Article","Code article","Total BP","Plus DM1","Moins DM1","Total DM1","Date création","Numéro création",null,null,null,"Catégorie","Article","Code article","Total BP","Plus DM1","Moins DM1","Total DM1","Date création","Numéro création",null,null,null,"Catégorie","Article","Code article","Total BP","Plus DM1","Moins DM1","Total DM1","Date création","Numéro création",null,null,null,"Catégorie","Article","Code article","Total DM1","Plus DM2","Moins DM2","Total DM2","Date création","Numéro création",null,null,null,"Catégorie","Article","Code article","Total DM1","Plus DM2","Moins DM2","Total DM2","Date création","Numéro création",null,null,null,"Catégorie","Article","Code article","Total DM1","Plus DM2","Moins DM2","Total DM2","Date création","Numéro création",null,null,null,"Catégorie","Article","Code article","Total DM1","Plus DM2","Moins DM2","Total DM2","Date création","Numéro création",null,null,null,"Catégorie","Article","Code article","Total DM1","Plus DM2","Moins DM2","Total DM2","Date création","Numéro création",null,null,null,"Catégorie","Article","Code article","Total DM1","Plus DM2","Moins DM2","Total DM2","Date création","Numéro création",null,null,null,"Catégorie","Article","Code article","Total DM1","Plus DM2","Moins DM2","Total DM2","Date création","Numéro création",null,null,null,"Catégorie","Article","Code article","Total DM1","Plus DM2","Moins DM2","Total DM2","Date création","Numéro création",null,null,null,"Catégorie","Article","Code article","Total BM","Date création","Numéro création","Mois BM",null,null,null,null,null,"Catégorie","Article","Code article","Total BM","Date création","Numéro création","Mois BM",null,null,null,null,null,"Catégorie","Article","Code article","Total BM","Date création","Numéro création","Mois BM",null,null,null,null,null,"Catégorie","Article","Code article","Total BM","Date création","Numéro création","Mois BM",null,null,null,null,null,"Catégorie","Article","Code article","Total BM","Date création","Numéro création","Mois BM",null,null,null,null,null,"Catégorie","Article","Code article","Total BM","Date création","Numéro création","Mois BM",null,null,null,null,null,"Catégorie","Article","Code article","Total BM","Date création","Numéro création","Mois BM",null,null,null,null,null,"Catégorie","Article","Code article","Total BM","Date création","Numéro création","Mois BM"]
["Budget primitif dépenses alimentaires","BPDA","Avocats desserts","DA08","Selon menu","PAB11","Unité : 1 pour 1 repas","CAB138",2.5,6,15,"6 juillet 2024","BPDA-02",null,null,null,{"$f":"TabBDCréditsBudgétaires[[#This Row],[Total budget primitif]]+TabBDCréditsBudgétaires[[#This Row],[Plus DM1]]-TabBDCréditsBudgétaires[[#This Row],[Moins DM1]]","v":0},{"$f":"TabBDCréditsBudgétaires[[#This Row],[Total budget primitif]]+TabBDCréditsBudgétaires[[#This Row],[Plus DM1]]-TabBDCréditsBudgétaires[[#This Row],[Moins DM1]]","v":0},null,null,{"$f":"TabBDCréditsBudgétaires[[#This Row],[Total décision modificative 1]]+TabBDCréditsBudgétaires[[#This Row],[Plus DM2]]-TabBDCréditsBudgétaires[[#This Row],[Moins DM2]]","v":0},null,null,null,"Budget primitif dépenses alimentaires","Agneau","DA01",36,"6 juillet 2024","BPDA-01",null,null,null,null,null,null,"Budget primitif dépenses bancaires","Virements de fonds","DB46",4800,"25 juin 2024","BPDB-01",null,null,null,null,null,null,"Budget primitif dépenses horticoles","Tuteurs","DH11",18,"25 juin 2024","BPDH-01",null,null,null,null,null,null,"Budget primitif dépenses médicales","Verres des lunettes","DM13",800,"26 juin 2024","BPDM-01",null,null,null,null,null,null,null,null,null,null,null,null,null,null,null,null,null,null,null,null,null,null,null,null,null,null,null,null,null,null,null,null,null,null,null,null,null,null,null,null,null,null,null,null,null,null,null,null,null,null,null,null,null,null,"Budget décision modificative numéro une dépenses alimentaires","Agneau","DA01",36,0,3,33,"03 juin 2024","BDM1DA-01",null,null,null,"Budget décision modificative numéro une dépenses bancaires","Abonnement Canal Satellite","DB02",0,20,0,20,"03 juin 2024","BDM1DB-02",null,null,null,"Budget décision modificative numéro une dépenses horticoles","Engrais","DH03",26.5,0,0,26.5,"03 juin 2024","BDM1DH-03",null,null,null,"Budget décision modificative numéro une dépenses médicales","Docteur dermatologue","DM04",30,15,0,45,"03 juin 2024","BDM1DM-04",null,null,null,"Budget décision modificative numéro une dépenses non alimentaires","Ampoules électriques","DNA05",67.900000000000006,0,7.9,60.000000000000007,"03 juin 2024","BDM1DNA-05",null,null,null,"Budget décision modificative numéro une recettes bancaires","Sécurité sociale","RB06",1200,500,0,1700,"03 juin 2024","BDM1RB-06",null,null,null,"Budget décision modificative numéro une recettes médicales","Mutuelle forfait monture des lunettes","RM07",25,0,0,25,"03 juin 2024","BDM1RM-07",null,null,null,"Budget décision modificative numéro une recettes numéraires","Fidélité GEMO","RN08",15,5,0,20,"03 juin 2024","BDM1RN-08",null,null,null,"Budget décision modificative numéro deux dépenses alimentaires","Agneau","DA01",33,0,5,28,"03 juin 2024","BDM2DA-01",null,null,null,"Budget décision modificative numéro deux dépenses bancaires","Abonnement Canal Satellite","DB02",20,0,7,13,"03 juin 2024","BDM2DB-02",null,null,null,"Budget décision modificative numéro deux dépenses horticoles","Engrais","DH03",26,13,0,39,"03 juin 2024","BDM2DH-03",null,null,null,"Budget décision modificative numéro deux dépenses médicales","Docteur dermatologue","DM04",45,25,0,70,"03 juin 2024","BDM2DM-04",null,null,null,"Budget décision modificative numéro deux dépenses non alimentaires","Ampoules électriques","DNA05",60,0,35,25,"03 juin 2024","BDM2DNA-05",null,null,null,"Budget décision modificative numéro deux recettes bancaires","Sécurité sociale","RB06",1700,900,0,2600,"03 juin 2024","BDM2RB-06",null,null,null,"Budget décision modificative numéro deux recettes médicales","Mutuelle forfait monture des lunettes","RM07",25,3,0,28,"03 juin 2024","BDM2RM-07",null,null,null,"Budget décision modificative numéro deux recettes numéraires","Fidélité GEMO","RN08",20,1,0,21,"03 juin 2024","BDM2RN-08",null,null,null,"Budget mensuel dépenses alimentaires","Agneau","DA01",36,"03 juin 2024","BMDA-01","Janvier ",null,null,null,null,null,"Budget mensuel dépenses bancaires","Abonnement Canal Satellite","DB02",60,"03 juin 2024","BMDB-02","Janvier ",null,null,null,null,null,"Budget mensuel dépenses horticoles","Engrais","DH03",26.5,"03 juin 2024","BMDH-03","Janvier ",null,null,null,null,null,"Budget mensuel dépenses médicales","Docteur dermatologue","DM04",30,"03 juin 2024","BMDM-04","Janvier ",null,null,null,null,null,"Budget mensuel dépenses non alimentaires","Ampoules électriques","DNA05",67.900000000000006,"03 juin 2024","BMDNA-05","Janvier ",null,null,null,null,null,null,null,null,null,null,null,null,null,null,null,null,null,"Budget mensuel recettes médicales","Mutuelle forfait monture des lunettes","RM07",25,"03 juin 2024","BMRM-07","Janvier ",null,null,null,null,null,"Budget mensuel recettes numéraires","Fidélité GEMO","RN08",15,"03 juin 2024","BMRN-08","Janvier "]
["Budget primitif dépenses alimentaires","BPDA","Yaourts matin","DA122","Du 01 au 16 inclus de chaque mois","PAB04","1 pack de 16 pots. 1 pot par matin (Yaourts matin)","CAB69",2.5,12,30,"6 juillet 2024","BPDA-03",null,null,null,{"$f":"TabBDCréditsBudgétaires[[#This Row],[Total budget primitif]]+TabBDCréditsBudgétaires[[#This Row],[Plus DM1]]-TabBDCréditsBudgétaires[[#This Row],[Moins DM1]]","v":0},{"$f":"TabBDCréditsBudgétaires[[#This Row],[Total budget primitif]]+TabBDCréditsBudgétaires[[#This Row],[Plus DM1]]-TabBDCréditsBudgétaires[[#This Row],[Moins DM1]]","v":0},null,null,{"$f":"TabBDCréditsBudgétaires[[#This Row],[Total décision modificative 1]]+TabBDCréditsBudgétaires[[#This Row],[Plus DM2]]-TabBDCréditsBudgétaires[[#This Row],[Moins DM2]]","v":0},null,null,null,"Budget primitif dépenses alimentaires","Avocats desserts","DA08",15,"6 juillet 2024","BPDA-02",null,null,null,null,null,null,{"$f":"\"Imprimé à Limeil-Brévannes, le \"&TEXT(TODAY(),\"jjjj j mmmm aaaa\")&\".\"","v":"Imprimé à Limeil-Brévannes, le samedi 6 juillet 2024."},null,null,null,null,null,null,null,null,null,null,null,{"$f":"\"Imprimé à Limeil-Brévannes, le \"&TEXT(TODAY(),\"jjjj j mmmm aaaa\")&\".\"","v":"Imprimé à Limeil-Brévannes, le samedi 6 juillet 2024."},null,null,null,null,null,null,null,null,null,null,null,{"$f":"\"Imprimé à Limeil-Brévannes, le \"&TEXT(TODAY(),\"jjjj j mmmm aaaa\")&\".\"","v":"Imprimé à Limeil-Brévannes, le samedi 6 juillet 2024."},null,null,null,null,null,null,null,null,null,null,null,{"$f":"\"Imprimé à Limeil-Brévannes, le \"&TEXT(TODAY(),\"jjjj j mmmm aaaa\")&\".\"","v":"Imprimé à Limeil-Brévannes, le samedi 6 juillet 2024."},null,null,null,null,null,null,null,null,null,null,null,{"$f":"\"Imprimé à Limeil-Brévannes, le \"&TEXT(TODAY(),\"jjjj j mmmm aaaa\")&\".\"","v":"Imprimé à Limeil-Brévannes, le samedi 6 juillet 2024."},null,null,null,null,null,null,null,null,null,null,null,{"$f":"\"Imprimé à Limeil-Brévannes, le \"&TEXT(TODAY(),\"jjjj j mmmm aaaa\")&\".\"","v":"Imprimé à Limeil-Brévannes, le samedi 6 juillet 2024."},null,null,null,null,null,null,null,null,null,null,null,{"$f":"\"Imprimé à Limeil-Brévannes, le \"&TEXT(TODAY(),\"jjjj j mmmm aaaa\")&\".\"","v":"Imprimé à Limeil-Brévannes, le samedi 6 juillet 2024."},null,null,null,null,null,null,null,null,null,null,null,{"$f":"\"Imprimé à Limeil-Brévannes, le \"&TEXT(TODAY(),\"jjjj j mmmm aaaa\")&\".\"","v":"Imprimé à Limeil-Brévannes, le samedi 6 juillet 2024."},null,null,null,null,null,null,null,null,null,null,null,{"$f":"\"Imprimé à Limeil-Brévannes, le \"&TEXT(TODAY(),\"jjjj j mmmm aaaa\")&\".\"","v":"Imprimé à Limeil-Brévannes, le samedi 6 juillet 2024."},null,null,null,null,null,null,null,null,null,null,null,{"$f":"\"Imprimé à Limeil-Brévannes, le \"&TEXT(TODAY(),\"jjjj j mmmm aaaa\")&\".\"","v":"Imprimé à Limeil-Brévannes, le samedi 6 juillet 2024."},null,null,null,null,null,null,null,null,null,null,null,{"$f":"\"Imprimé à Limeil-Brévannes, le \"&TEXT(TODAY(),\"jjjj j mmmm aaaa\")&\".\"","v":"Imprimé à Limeil-Brévannes, le samedi 6 juillet 2024."},null,null,null,null,null,null,null,null,null,null,null,{"$f":"\"Imprimé à Limeil-Brévannes, le \"&TEXT(TODAY(),\"jjjj j mmmm aaaa\")&\".\"","v":"Imprimé à Limeil-Brévannes, le samedi 6 juillet 2024."},null,null,null,null,null,null,null,null,null,null,null,{"$f":"\"Imprimé à Limeil-Brévannes, le \"&TEXT(TODAY(),\"jjjj j mmmm aaaa\")&\".\"","v":"Imprimé à Limeil-Brévannes, le samedi 6 juillet 2024."},null,null,null,null,null,null,null,null,null,null,null,{"$f":"\"Imprimé à Limeil-Brévannes, le \"&TEXT(TODAY(),\"jjjj j mmmm aaaa\")&\".\"","v":"Imprimé à Limeil-Brévannes, le samedi 6 juillet 2024."},null,null,null,null,null,null,null,null,null,null,null,{"$f":"\"Imprimé à Limeil-Brévannes, le \"&TEXT(TODAY(),\"jjjj j mmmm aaaa\")&\".\"","v":"Imprimé à Limeil-Brévannes, le samedi 6 juillet 2024."},null,null,null,null,null,null,null,null,null,null,null,{"$f":"\"Imprimé à Limeil-Brévannes, le \"&TEXT(TODAY(),\"jjjj j mmmm aaaa\")&\".\"","v":"Imprimé à Limeil-Brévannes, le samedi 6 juillet 2024."},null,null,null,null,null,null,null,null,null,null,null,{"$f":"\"Imprimé à Limeil-Brévannes, le \"&TEXT(TODAY(),\"jjjj j mmmm aaaa\")&\".\"","v":"Imprimé à Limeil-Brévannes, le samedi 6 juillet 2024."},null,null,null,null,null,null,null,null,null,null,null,{"$f":"\"Imprimé à Limeil-Brévannes, le \"&TEXT(TODAY(),\"jjjj j mmmm aaaa\")&\".\"","v":"Imprimé à Limeil-Brévannes, le samedi 6 juillet 2024."},null,null,null,null,null,null,null,null,null,null,null,{"$f":"\"Imprimé à Limeil-Brévannes, le \"&TEXT(TODAY(),\"jjjj j mmmm aaaa\")&\".\"","v":"Imprimé à Limeil-Brévannes, le samedi 6 juillet 2024."},null,null,null,null,null,null,null,null,null,null,null,{"$f":"\"Imprimé à Limeil-Brévannes, le \"&TEXT(TODAY(),\"jjjj j mmmm aaaa\")&\".\"","v":"Imprimé à Limeil-Brévannes, le samedi 6 juillet 2024."},null,null,null,null,null,null,null,null,null,null,null,{"$f":"\"Imprimé à Limeil-Brévannes, le \"&TEXT(TODAY(),\"jjjj j mmmm aaaa\")&\".\"","v":"Imprimé à Limeil-Brévannes, le samedi 6 juillet 2024."},null,null,null,null,null,null,null,null,null,null,null,{"$f":"\"Imprimé à Limeil-Brévannes, le \"&TEXT(TODAY(),\"jjjj j mmmm aaaa\")&\".\"","v":"Imprimé à Limeil-Brévannes, le samedi 6 juillet 2024."},null,null,null,null,null,null,null,null,null,null,null,{"$f":"\"Imprimé à Limeil-Brévannes, le \"&TEXT(TODAY(),\"jjjj j mmmm aaaa\")&\".\"","v":"Imprimé à Limeil-Brévannes, le samedi 6 juillet 2024."},null,null,null,null,null,null,null,null,null,null,null,"Budget mensuel dépenses alimentaires","Apéritif","DA03",22.5,"12 juin 2024","BMDA-04","Janvier ",null,null,null,null,null,{"$f":"\"Imprimé à Limeil-Brévannes, le \"&TEXT(TODAY(),\"jjjj j mmmm aaaa\")&\".\"","v":"Imprimé à Limeil-Brévannes, le samedi 6 juillet 2024."},null,null,null,null,null,null,null,null,null,null,null,{"$f":"\"Imprimé à Limeil-Brévannes, le \"&TEXT(TODAY(),\"jjjj j mmmm aaaa\")&\".\"","v":"Imprimé à Limeil-Brévannes, le samedi 6 juillet 2024."},null,null,null,null,null,null,null,null,null,null,null,{"$f":"\"Imprimé à Limeil-Brévannes, le \"&TEXT(TODAY(),\"jjjj j mmmm aaaa\")&\".\"","v":"Imprimé à Limeil-Brévannes, le samedi 6 juillet 2024."},null,null,null,null,null,null,null,null,null,null,null,{"$f":"\"Imprimé à Limeil-Brévannes, le \"&TEXT(TODAY(),\"jjjj j mmmm aaaa\")&\".\"","v":"Imprimé à Limeil-Brévannes, le samedi 6 juillet 2024."},null,null,null,null,null,null,null,null,null,null,null,{"$f":"\"Imprimé à Limeil-Brévannes, le \"&TEXT(TODAY(),\"jjjj j mmmm aaaa\")&\".\"","v":"Imprimé à Limeil-Brévannes, le samedi 6 juillet 2024."},null,null,null,null,null,null,null,null,null,null,null,{"$f":"\"Imprimé à Limeil-Brévannes, le \"&TEXT(TODAY(),\"jjjj j mmmm aaaa\")&\".\"","v":"Imprimé à Limeil-Brévannes, le samedi 6 juillet 2024."},null,null,null,null,null,null,null,null,null,null,null,{"$f":"\"Imprimé à Limeil-Brévannes, le \"&TEXT(TODAY(),\"jjjj j mmmm aaaa\")&\".\"","v":"Imprimé à Limeil-Brévannes, le samedi 6 juillet 2024."}]
[null,null,null,null,null,null,null,null,null,null,null,null,null,null,null,null,null,null,null,null,null,null,null,null,"Budget primitif dépenses alimentaires","Yaourts matin","DA122",30,"6 juillet 2024","BPDA-03",null,null,null,null,null,null,null,null,null,null,null,null,null,null,null,null,null,null,null,null,null,null,null,null,null,null,null,null,null,null,null,null,null,null,null,null,null,null,null,null,null,null,null,null,null,null,null,null,null,null,null,null,null,null,null,null,null,null,null,null,null,null,null,null,null,null,null,null,null,null,null,null,null,null,null,null,null,null,null,null,null,null,null,null,null,null,null,null,null,null,null,null,null,null,null,null,null,null,null,null,null,null,null,null,null,null,null,null,null,null,null,null,null,null,null,null,null,null,null,null,null,null,null,null,null,null,null,null,null,null,null,null,null,null,null,null,null,null,null,null,null,null,null,null,null,null,null,null,null,null,null,null,null,null,null,null,null,null,null,null,null,null,null,null,null,null,null,null,null,null,null,null,null,null,null,null,null,null,null,null,null,null,null,null,null,null,null,null,null,null,null,null,null,null,null,null,null,null,null,null,null,null,null,null,null,null,null,null,null,null,null,null,null,null,null,null,null,null,null,null,null,null,null,null,null,null,null,null,null,null,null,null,null,null,null,null,null,null,null,null,null,null,null,null,null,null,null,null,null,null,null,null,null,null,null,null,null,null,null,null,null,null,null,null,null,null,null,null,null,null,null,null,null,null,null,null,null,null,null,null,null,null,{"$f":"\"Imprimé à Limeil-Brévannes, le \"&TEXT(TODAY(),\"jjjj j mmmm aaaa\")&\".\"","v":"Imprimé à Limeil-Brévannes, le samedi 6 juillet 2024."},null,null,null,null,null,null,null,null,null,null,null,{"$f":"\"Budget mensuel des dépenses bancaires du mois de \" &TabBDCréditsBudgétairesBudgetMensuelDépensesBancaires2[Mois BM]&\".\"","v":"Budget mensuel des dépenses bancaires du mois de Février ."},null,null,null,null,null,null,null,null,null,null,null,{"$f":"\"Budget mensuel des dépenses horticoles du mois de \" &TabBDCréditsBudgétairesBudgetMensuelDépensesHorticoles2[Mois BM]&\".\"","v":"Budget mensuel des dépenses horticoles du mois de Février ."},null,null,null,null,null,null,null,null,null,null,null,{"$f":"\"Budget mensuel des dépenses médicales du mois de \" &TabBDCréditsBudgétairesBudgetMensuelDépensesMédicales2[Mois BM]&\".\"","v":"Budget mensuel des dépenses médicales du mois de Février ."},null,null,null,null,null,null,null,null,null,null,null,{"$f":"\"Budget mensuel des dépenses non alimentaires du mois de \" &TabBDCréditsBudgétairesBudgetMensuelDépensesNonAlimentaires2[Mois BM]&\".\"","v":"Budget mensuel des dépenses non alimentaires du mois de Février ."},null,null,null,null,null,null,null,null,null,null,null,{"$f":"\"Budget mensuel des recettes bancaires du mois de \" &TabBDCréditsBudgétairesBudgetMensuelRecettesBancaires2[Mois BM]&\".\"","v":"Budget mensuel des recettes bancaires du mois de ."},null,null,null,null,null,null,null,null,null,null,null,{"$f":"\"Budget mensuel des recettes médicales du mois de \" &TabBDCréditsBudgétairesBudgetMensuelRecettesMédicales2[Mois BM]&\".\"","v":"Budget mensuel des recettes médicales du mois de Février ."},null,null,null,null,null,null,null,null,null,null,null,{"$f":"\"Budget mensuel des recettes numéraires du mois de \" &TabBDCréditsBudgétairesBudgetMensuelRecettesNuméraires2[Mois BM]&\".\"","v":"Budget mensuel des recettes numéraires du mois de Février ."}]
[null,null,null,null,null,null,null,null,null,null,null,null,null,null,null,null,null,null,null,null,null,null,null,null,{"$f":"\"Imprimé à Limeil-Brévannes, le \"&TEXT(TODAY(),\"jjjj j mmmm aaaa\")&\".\"","v":"Imprimé à Limeil-Brévannes, le samedi 6 juillet 2024."},null,null,null,null,null,null,null,null,null,null,null,null,null,null,null,null,null,null,null,null,null,null,null,null,null,null,null,null,null,null,null,null,null,null,null,null,null,null,null,null,null,null,null,null,null,null,null,null,null,null,null,null,null,null,null,null,null,null,null,null,null,null,null,null,null,null,null,null,null,null,null,null,null,null,null,null,null,null,null,null,null,null,null,null,null,null,null,null,null,null,null,null,null,null,null,null,null,null,null,null,null,null,null,null,null,null,null,null,null,null,null,null,null,null,null,null,null,null,null,null,null,null,null,null,null,null,null,null,null,null,null,null,null,null,null,null,null,null,null,null,null,null,null,null,null,null,null,null,null,null,null,null,null,null,null,null,null,null,null,null,null,null,null,null,null,null,null,null,null,null,null,null,null,null,null,null,null,null,null,null,null,null,null,null,null,null,null,null,null,null,null,null,null,null,null,null,null,null,null,null,null,null,null,null,null,null,null,null,null,null,null,null,null,null,null,null,null,null,null,null,null,null,null,null,null,null,null,null,null,null,null,null,null,null,null,null,null,null,null,null,null,null,null,null,null,null,null,null,null,null,null,null,null,null,null,null,null,null,null,null,null,null,null,null,null,null,null,null,null,null,null,null,null,null,null,null,null,null,null,null,null,null,null,null,null,null,null,{"$f":"\"Budget mensuel des dépenses alimentaires du mois de \" &TabBDCréditsBudgétairesBudgetMensuelDépensesAlimentaires2[Mois BM]&\".\"","v":"Budget mensuel des dépenses alimentaires du mois de Février ."},null,null,null,null,null,null,null,null,null,null,null,"Catégorie","Article","Code article","Total BM","Date création","Numéro création","Mois BM",null,null,null,null,null,"Catégorie","Article","Code article","Total BM","Date création","Numéro création","Mois BM",null,null,null,null,null,"Catégorie","Article","Code article","Total BM","Date création","Numéro création","Mois BM",null,null,null,null,null,"Catégorie","Article","Code article","Total BM","Date création","Numéro création","Mois BM",null,null,null,null,null,"Catégorie","Article","Code article","Total BM","Date création","Numéro création","Mois BM",null,null,null,null,null,"Catégorie","Article","Code article","Total BM","Date création","Numéro création","Mois BM",null,null,null,null,null,"Catégorie","Article","Code article","Total BM","Date création","Numéro création","Mois BM"]
[null,null,null,null,null,null,null,null,null,null,null,null,null,null,null,null,null,null,null,null,null,null,null,null,null,null,null,null,null,null,null,null,null,null,null,null,null,null,null,null,null,null,null,null,null,null,null,null,null,null,null,null,null,null,null,null,null,null,null,null,null,null,null,null,null,null,null,null,null,null,null,null,null,null,null,null,null,null,null,null,null,null,null,null,null,null,null,null,null,null,null,null,null,null,null,null,null,null,null,null,null,null,null,null,null,null,null,null,null,null,null,null,null,null,null,null,null,null,null,null,null,null,null,null,null,null,null,null,null,null,null,null,null,null,null,null,null,null,null,null,null,null,null,null,null,null,null,null,null,null,null,null,null,null,null,null,null,null,null,null,null,null,null,null,null,null,null,null,null,null,null,null,null,null,null,null,null,null,null,null,null,null,null,null,null,null,null,null,null,null,null,null,null,null,null,null,null,null,null,null,null,null,null,null,null,null,null,null,null,null,null,null,null,null,null,null,null,null,null,null,null,null,null,null,null,null,null,null,null,null,null,null,null,null,null,null,null,null,null,null,null,null,null,null,null,null,null,null,null,null,null,null,null,null,null,null,null,null,null,null,null,null,null,null,null,null,null,null,null,null,null,null,null,null,null,null,null,null,null,null,null,null,null,null,null,null,null,null,null,null,null,null,null,null,null,null,null,null,null,null,null,null,null,null,null,null,null,null,null,null,null,null,"Catégorie","Article","Code article","Total BM","Date création","Numéro création","Mois BM",null,null,null,null,null,"Budget mensuel dépenses bancaires","Abonnement Canal Satellite","DB02",0,"5 juin 2024","BMDB-02","Février ",null,null,null,null,null,"Budget mensuel dépenses horticoles","Engrais","DH03",26.5,"6 juin 2024","BMDH-03","Février ",null,null,null,null,null,"Budget mensuel dépenses médicales","Docteur dermatologue","DM04",30,"7 juin 2024","BMDM-04","Février ",null,null,null,null,null,"Budget mensuel dépenses non alimentaires","Ampoules électriques","DNA05",67.900000000000006,"8 juin 2024","BMDN1-05","Février ",null,null,null,null,null,null,null,null,null,null,null,null,null,null,null,null,null,"Budget mensuel recettes médicales","Mutuelle forfait monture des lunettes","RM07",25,"10 juin 2024","BMRM-07","Février ",null,null,null,null,null,"Budget mensuel recettes numéraires","Fidélité GEMO","RN08",15,"11 juin 2024","BMRN-08","Février "]
[null,null,null,null,null,null,null,null,null,null,null,null,null,null,null,null,null,null,null,null,null,null,null,null,null,null,null,null,null,null,null,null,null,null,null,null,null,null,null,null,null,null,null,null,null,null,null,null,null,null,null,null,null,null,null,null,null,null,null,null,null,null,null,null,null,null,null,null,null,null,null,null,null,null,null,null,null,null,null,null,null,null,null,null,null,null,null,null,null,null,null,null,null,null,null,null,null,null,null,null,null,null,null,null,null,null,null,null,null,null,null,null,null,null,null,null,null,null,null,null,null,null,null,null,null,null,null,null,null,null,null,null,null,null,null,null,null,null,null,null,null,null,null,null,null,null,null,null,null,null,null,null,null,null,null,null,null,null,null,null,null,null,null,null,null,null,null,null,null,null,null,null,null,null,null,null,null,null,null,null,null,null,null,null,null,null,null,null,null,null,null,null,null,null,null,null,null,null,null,null,null,null,null,null,null,null,null,null,null,null,null,null,null,null,null,null,null,null,null,null,null,null,null,null,null,null,null,null,null,null,null,null,null,null,null,null,null,null,null,null,null,null,null,null,null,null,null,null,null,null,null,null,null,null,null,null,null,null,null,null,null,null,null,null,null,null,null,null,null,null,null,null,null,null,null,null,null,null,null,null,null,null,null,null,null,null,null,null,null,null,null,null,null,null,null,null,null,null,null,null,null,null,null,null,null,null,null,null,null,null,null,null,"Budget mensuel dépenses alimentaires","Agneau","DA01",58,"05 juin 2024","BMDA-03","Février ",null,null,null,null,null,{"$f":"\"Imprimé à Limeil-Brévannes, le \"&TEXT(TODAY(),\"jjjj j mmmm aaaa\")&\".\"","v":"Imprimé à Limeil-Brévannes, le samedi 6 juillet 2024."},null,null,null,null,null,null,null,null,null,null,null,{"$f":"\"Imprimé à Limeil-Brévannes, le \"&TEXT(TODAY(),\"jjjj j mmmm aaaa\")&\".\"","v":"Imprimé à Limeil-Brévannes, le samedi 6 juillet 2024."},null,null,null,null,null,null,null,null,null,null,null,{"$f":"\"Imprimé à Limeil-Brévannes, le \"&TEXT(TODAY(),\"jjjj j mmmm aaaa\")&\".\"","v":"Imprimé à Limeil-Brévannes, le samedi 6 juillet 2024."},null,null,null,null,null,null,null,null,null,null,null,{"$f":"\"Imprimé à Limeil-Brévannes, le \"&TEXT(TODAY(),\"jjjj j mmmm aaaa\")&\".\"","v":"Imprimé à Limeil-Brévannes, le samedi 6 juillet 2024."},null,null,null,null,null,null,null,null,null,null,null,{"$f":"\"Imprimé à Limeil-Brévannes, le \"&TEXT(TODAY(),\"jjjj j mmmm aaaa\")&\".\"","v":"Imprimé à Limeil-Brévannes, le samedi 6 juillet 2024."},null,null,null,null,null,null,null,null,null,null,null,{"$f":"\"Imprimé à Limeil-Brévannes, le \"&TEXT(TODAY(),\"jjjj j mmmm aaaa\")&\".\"","v":"Imprimé à Limeil-Brévannes, le samedi 6 juillet 2024."},null,null,null,null,null,null,null,null,null,null,null,{"$f":"\"Imprimé à Limeil-Brévannes, le \"&TEXT(TODAY(),\"jjjj j mmmm aaaa\")&\".\"","v":"Imprimé à Limeil-Brévannes, le samedi 6 juillet 2024."}]
[null,null,null,null,null,null,null,null,null,null,null,null,null,null,null,null,null,null,null,null,null,null,null,null,null,null,null,null,null,null,null,null,null,null,null,null,null,null,null,null,null,null,null,null,null,null,null,null,null,null,null,null,null,null,null,null,null,null,null,null,null,null,null,null,null,null,null,null,null,null,null,null,null,null,null,null,null,null,null,null,null,null,null,null,null,null,null,null,null,null,null,null,null,null,null,null,null,null,null,null,null,null,null,null,null,null,null,null,null,null,null,null,null,null,null,null,null,null,null,null,null,null,null,null,null,null,null,null,null,null,null,null,null,null,null,null,null,null,null,null,null,null,null,null,null,null,null,null,null,null,null,null,null,null,null,null,null,null,null,null,null,null,null,null,null,null,null,null,null,null,null,null,null,null,null,null,null,null,null,null,null,null,null,null,null,null,null,null,null,null,null,null,null,null,null,null,null,null,null,null,null,null,null,null,null,null,null,null,null,null,null,null,null,null,null,null,null,null,null,null,null,null,null,null,null,null,null,null,null,null,null,null,null,null,null,null,null,null,null,null,null,null,null,null,null,null,null,null,null,null,null,null,null,null,null,null,null,null,null,null,null,null,null,null,null,null,null,null,null,null,null,null,null,null,null,null,null,null,null,null,null,null,null,null,null,null,null,null,null,null,null,null,null,null,null,null,null,null,null,null,null,null,null,null,null,null,null,null,null,null,null,null,{"$f":"\"Imprimé à Limeil-Brévannes, le \"&TEXT(TODAY(),\"jjjj j mmmm aaaa\")&\".\"","v":"Imprimé à Limeil-Brévannes, le samedi 6 juillet 2024."},null,null,null,null,null,null,null,null,null,null,null,{"$f":"\"Budget mensuel des dépenses bancaires du mois de \" &TabBDCréditsBudgétairesBudgetMensuelDépensesBancaires3[Mois BM]&\".\"","v":"Budget mensuel des dépenses bancaires du mois de ."},null,null,null,null,null,null,null,null,null,null,null,{"$f":"\"Budget mensuel des dépenses horticoles du mois de \" &TabBDCréditsBudgétairesBudgetMensuelDépensesHorticoles3[Mois BM]&\".\"","v":"Budget mensuel des dépenses horticoles du mois de ."},null,null,null,null,null,null,null,null,null,null,null,{"$f":"\"Budget mensuel des dépenses médicales du mois de \" &TabBDCréditsBudgétairesBudgetMensuelDépensesMédicales3[Mois BM]&\".\"","v":"Budget mensuel des dépenses médicales du mois de ."},null,null,null,null,null,null,null,null,null,null,null,{"$f":"\"Budget mensuel des dépenses non alimentaires du mois de \" &TabBDCréditsBudgétairesBudgetMensuelDépensesNonAlimentaires3[Mois BM]&\".\"","v":"Budget mensuel des dépenses non alimentaires du mois de ."},null,null,null,null,null,null,null,null,null,null,null,{"$f":"\"Budget mensuel des recettes bancaires du mois de \" &TabBDCréditsBudgétairesBudgetMensuelRecettesBancaires3[Mois BM]&\".\"","v":"Budget mensuel des recettes bancaires du mois de ."},null,null,null,null,null,null,null,null,null,null,null,{"$f":"\"Budget mensuel des recettes médicales du mois de \" &TabBDCréditsBudgétairesBudgetMensuelRecettesMédicales3[Mois BM]&\".\"","v":"Budget mensuel des recettes médicales du mois de ."},null,null,null,null,null,null,null,null,null,null,null,{"$f":"\"Budget mensuel des recettes numéraires du mois de \" &TabBDCréditsBudgétairesBudgetMensuelRecettesNuméraires3[Mois BM]&\".\"","v":"Budget mensuel des recettes numéraires du mois de ."}]
[null,null,null,null,null,null,null,null,null,null,null,null,null,null,null,null,null,null,null,null,null,null,null,null,null,null,null,null,null,null,null,null,null,null,null,null,null,null,null,null,null,null,null,null,null,null,null,null,null,null,null,null,null,null,null,null,null,null,null,null,null,null,null,null,null,null,null,null,null,null,null,null,null,null,null,null,null,null,null,null,null,null,null,null,null,null,null,null,null,null,null,null,null,null,null,null,null,null,null,null,null,null,null,null,null,null,null,null,null,null,null,null,null,null,null,null,null,null,null,null,null,null,null,null,null,null,null,null,null,null,null,null,null,null,null,null,null,null,null,null,null,null,null,null,null,null,null,null,null,null,null,null,null,null,null,null,null,null,null,null,null,null,null,null,null,null,null,null,null,null,null,null,null,null,null,null,null,null,null,null,null,null,null,null,null,null,null,null,null,null,null,null,null,null,null,null,null,null,null,null,null,null,null,null,null,null,null,null,null,null,null,null,null,null,null,null,null,null,null,null,null,null,null,null,null,null,null,null,null,null,null,null,null,null,null,null,null,null,null,null,null,null,null,null,null,null,null,null,null,null,null,null,null,null,null,null,null,null,null,null,null,null,null,null,null,null,null,null,null,null,null,null,null,null,null,null,null,null,null,null,null,null,null,null,null,null,null,null,null,null,null,null,null,null,null,null,null,null,null,null,null,null,null,null,null,null,null,null,null,null,null,null,{"$f":"\"Budget mensuel des dépenses alimentaires du mois de \" &TabBDCréditsBudgétairesBudgetMensuelDépensesAlimentaires3[Mois BM]&\".\"","v":"Budget mensuel des dépenses alimentaires du mois de Mars."},null,null,null,null,null,null,null,null,null,null,null,"Catégorie","Article","Code article","Total BM","Date création","Numéro création","Mois BM",null,null,null,null,null,"Catégorie","Article","Code article","Total BM","Date création","Numéro création","Mois BM",null,null,null,null,null,"Catégorie","Article","Code article","Total BM","Date création","Numéro création","Mois BM",null,null,null,null,null,"Catégorie","Article","Code article","Total BM","Date création","Numéro création","Mois BM",null,null,null,null,null,"Catégorie","Article","Code article","Total BM","Date création","Numéro création","Mois BM",null,null,null,null,null,"Catégorie","Article","Code article","Total BM","Date création","Numéro création","Mois BM",null,null,null,null,null,"Catégorie","Article","Code article","Total BM","Date création","Numéro création","Mois BM"]
[null,null,null,null,null,null,null,null,null,null,null,null,null,null,null,null,null,null,null,null,null,null,null,null,null,null,null,null,null,null,null,null,null,null,null,null,null,null,null,null,null,null,null,null,null,null,null,null,null,null,null,null,null,null,null,null,null,null,null,null,null,null,null,null,null,null,null,null,null,null,null,null,null,null,null,null,null,null,null,null,null,null,null,null,null,null,null,null,null,null,null,null,null,null,null,null,null,null,null,null,null,null,null,null,null,null,null,null,null,null,null,null,null,null,null,null,null,null,null,null,null,null,null,null,null,null,null,null,null,null,null,null,null,null,null,null,null,null,null,null,null,null,null,null,null,null,null,null,null,null,null,null,null,null,null,null,null,null,null,null,null,null,null,null,null,null,null,null,null,null,null,null,null,null,null,null,null,null,null,null,null,null,null,null,null,null,null,null,null,null,null,null,null,null,null,null,null,null,null,null,null,null,null,null,null,null,null,null,null,null,null,null,null,null,null,null,null,null,null,null,null,null,null,null,null,null,null,null,null,null,null,null,null,null,null,null,null,null,null,null,null,null,null,null,null,null,null,null,null,null,null,null,null,null,null,null,null,null,null,null,null,null,null,null,null,null,null,null,null,null,null,null,null,null,null,null,null,null,null,null,null,null,null,null,null,null,null,null,null,null,null,null,null,null,null,null,null,null,null,null,null,null,null,null,null,null,null,null,null,null,null,null,"Catégorie","Article","Code article","Total BM","Date création","Numéro création","Mois BM"]
[null,null,null,null,null,null,null,null,null,null,null,null,null,null,null,null,null,null,null,null,null,null,null,null,null,null,null,null,null,null,null,null,null,null,null,null,null,null,null,null,null,null,null,null,null,null,null,null,null,null,null,null,null,null,null,null,null,null,null,null,null,null,null,null,null,null,null,null,null,null,null,null,null,null,null,null,null,null,null,null,null,null,null,null,null,null,null,null,null,null,null,null,null,null,null,null,null,null,null,null,null,null,null,null,null,null,null,null,null,null,null,null,null,null,null,null,null,null,null,null,null,null,null,null,null,null,null,null,null,null,null,null,null,null,null,null,null,null,null,null,null,null,null,null,null,null,null,null,null,null,null,null,null,null,null,null,null,null,null,null,null,null,null,null,null,null,null,null,null,null,null,null,null,null,null,null,null,null,null,null,null,null,null,null,null,null,null,null,null,null,null,null,null,null,null,null,null,null,null,null,null,null,null,null,null,null,null,null,null,null,null,null,null,null,null,null,null,null,null,null,null,null,null,null,null,null,null,null,null,null,null,null,null,null,null,null,null,null,null,null,null,null,null,null,null,null,null,null,null,null,null,null,null,null,null,null,null,null,null,null,null,null,null,null,null,null,null,null,null,null,null,null,null,null,null,null,null,null,null,null,null,null,null,null,null,null,null,null,null,null,null,null,null,null,null,null,null,null,null,null,null,null,null,null,null,null,null,null,null,null,null,null,"Budget mensuel dépenses alimentaires","Agneau","DA01",45,"04 juin 2024","BMDA-02","Mars",null,null,null,null,null,{"$f":"\"Imprimé à Limeil-Brévannes, le \"&TEXT(TODAY(),\"jjjj j mmmm aaaa\")&\".\"","v":"Imprimé à Limeil-Brévannes, le samedi 6 juillet 2024."},null,null,null,null,null,null,null,null,null,null,null,{"$f":"\"Imprimé à Limeil-Brévannes, le \"&TEXT(TODAY(),\"jjjj j mmmm aaaa\")&\".\"","v":"Imprimé à Limeil-Brévannes, le samedi 6 juillet 2024."},null,null,null,null,null,null,null,null,null,null,null,{"$f":"\"Imprimé à Limeil-Brévannes, le \"&TEXT(TODAY(),\"jjjj j mmmm aaaa\")&\".\"","v":"Imprimé à Limeil-Brévannes, le samedi 6 juillet 2024."},null,null,null,null,null,null,null,null,null,null,null,{"$f":"\"Imprimé à Limeil-Brévannes, le \"&TEXT(TODAY(),\"jjjj j mmmm aaaa\")&\".\"","v":"Imprimé à Limeil-Brévannes, le samedi 6 juillet 2024."},null,null,null,null,null,null,null,null,null,null,null,{"$f":"\"Imprimé à Limeil-Brévannes, le \"&TEXT(TODAY(),\"jjjj j mmmm aaaa\")&\".\"","v":"Imprimé à Limeil-Brévannes, le samedi 6 juillet 2024."},null,null,null,null,null,null,null,null,null,null,null,{"$f":"\"Imprimé à Limeil-Brévannes, le \"&TEXT(TODAY(),\"jjjj j mmmm aaaa\")&\".\"","v":"Imprimé à Limeil-Brévannes, le samedi 6 juillet 2024."},null,null,null,null,null,null,null,null,null,null,null,{"$f":"\"Imprimé à Limeil-Brévannes, le \"&TEXT(TODAY(),\"jjjj j mmmm aaaa\")&\".\"","v":"Imprimé à Limeil-Brévannes, le samedi 6 juillet 2024."}]
[null,null,null,null,null,null,null,null,null,null,null,null,null,null,null,null,null,null,null,null,null,null,null,null,null,null,null,null,null,null,null,null,null,null,null,null,null,null,null,null,null,null,null,null,null,null,null,null,null,null,null,null,null,null,null,null,null,null,null,null,null,null,null,null,null,null,null,null,null,null,null,null,null,null,null,null,null,null,null,null,null,null,null,null,null,null,null,null,null,null,null,null,null,null,null,null,null,null,null,null,null,null,null,null,null,null,null,null,null,null,null,null,null,null,null,null,null,null,null,null,null,null,null,null,null,null,null,null,null,null,null,null,null,null,null,null,null,null,null,null,null,null,null,null,null,null,null,null,null,null,null,null,null,null,null,null,null,null,null,null,null,null,null,null,null,null,null,null,null,null,null,null,null,null,null,null,null,null,null,null,null,null,null,null,null,null,null,null,null,null,null,null,null,null,null,null,null,null,null,null,null,null,null,null,null,null,null,null,null,null,null,null,null,null,null,null,null,null,null,null,null,null,null,null,null,null,null,null,null,null,null,null,null,null,null,null,null,null,null,null,null,null,null,null,null,null,null,null,null,null,null,null,null,null,null,null,null,null,null,null,null,null,null,null,null,null,null,null,null,null,null,null,null,null,null,null,null,null,null,null,null,null,null,null,null,null,null,null,null,null,null,null,null,null,null,null,null,null,null,null,null,null,null,null,null,null,null,null,null,null,null,null,{"$f":"\"Imprimé à Limeil-Brévannes, le \"&TEXT(TODAY(),\"jjjj j mmmm aaaa\")&\".\"","v":"Imprimé à Limeil-Brévannes, le samedi 6 juillet 2024."},null,null,null,null,null,null,null,null,null,null,null,{"$f":"\"Budget mensuel des dépenses bancaires du mois d'\" &TabBDCréditsBudgétairesBudgetMensuelDépensesBancaires4[Mois BM]&\".\"","v":"Budget mensuel des dépenses bancaires du mois d'."},null,null,null,null,null,null,null,null,null,null,null,{"$f":"\"Budget mensuel des dépenses horticoles du mois d'\" &TabBDCréditsBudgétairesBudgetMensuelDépensesHorticoles4[Mois BM]&\".\"","v":"Budget mensuel des dépenses horticoles du mois d'."},null,null,null,null,null,null,null,null,null,null,null,{"$f":"\"Budget mensuel des dépenses médicales du mois d'\" &TabBDCréditsBudgétairesBudgetMensuelDépensesMédicales4[Mois BM]&\".\"","v":"Budget mensuel des dépenses médicales du mois d'."},null,null,null,null,null,null,null,null,null,null,null,{"$f":"\"Budget mensuel des dépenses non alimentaires du mois d'\" &TabBDCréditsBudgétairesBudgetMensuelDépensesNonAlimentaires4[Mois BM]&\".\"","v":"Budget mensuel des dépenses non alimentaires du mois d'."},null,null,null,null,null,null,null,null,null,null,null,{"$f":"\"Budget mensuel des recettes bancaires du mois d'\" &TabBDCréditsBudgétairesBudgetMensuelRecettesBancaires4[Mois BM]&\".\"","v":"Budget mensuel des recettes bancaires du mois d'."},null,null,null,null,null,null,null,null,null,null,null,{"$f":"\"Budget mensuel des recettes médicales du mois d'\" &TabBDCréditsBudgétairesBudgetMensuelRecettesMédicales4[Mois BM]&\".\"","v":"Budget mensuel des recettes médicales du mois d'."},null,null,null,null,null,null,null,null,null,null,null,{"$f":"\"Budget mensuel des recettes numéraires du mois d'\" &TabBDCréditsBudgétairesBudgetMensuelRecettesNuméraires4[Mois BM]&\".\"","v":"Budget mensuel des recettes numéraires du mois d'."}]
[null,null,null,null,null,null,null,null,null,null,null,null,null,null,null,null,null,null,null,null,null,null,null,null,null,null,null,null,null,null,null,null,null,null,null,null,null,null,null,null,null,null,null,null,null,null,null,null,null,null,null,null,null,null,null,null,null,null,null,null,null,null,null,null,null,null,null,null,null,null,null,null,null,null,null,null,null,null,null,null,null,null,null,null,null,null,null,null,null,null,null,null,null,null,null,null,null,null,null,null,null,null,null,null,null,null,null,null,null,null,null,null,null,null,null,null,null,null,null,null,null,null,null,null,null,null,null,null,null,null,null,null,null,null,null,null,null,null,null,null,null,null,null,null,null,null,null,null,null,null,null,null,null,null,null,null,null,null,null,null,null,null,null,null,null,null,null,null,null,null,null,null,null,null,null,null,null,null,null,null,null,null,null,null,null,null,null,null,null,null,null,null,null,null,null,null,null,null,null,null,null,null,null,null,null,null,null,null,null,null,null,null,null,null,null,null,null,null,null,null,null,null,null,null,null,null,null,null,null,null,null,null,null,null,null,null,null,null,null,null,null,null,null,null,null,null,null,null,null,null,null,null,null,null,null,null,null,null,null,null,null,null,null,null,null,null,null,null,null,null,null,null,null,null,null,null,null,null,null,null,null,null,null,null,null,null,null,null,null,null,null,null,null,null,null,null,null,null,null,null,null,null,null,null,null,null,null,null,null,null,null,null,{"$f":"\"Budget mensuel des dépenses alimentaires du mois d'\" &TabBDCréditsBudgétairesBudgetMensuelDépensesAlimentaires4[Mois BM]&\".\"","v":"Budget mensuel des dépenses alimentaires du mois d'."},null,null,null,null,null,null,null,null,null,null,null,"Catégorie","Article","Code article","Total BM","Date création","Numéro création","Mois BM",null,null,null,null,null,"Catégorie","Article","Code article","Total BM","Date création","Numéro création","Mois BM",null,null,null,null,null,"Catégorie","Article","Code article","Total BM","Date création","Numéro création","Mois BM",null,null,null,null,null,"Catégorie","Article","Code article","Total BM","Date création","Numéro création","Mois BM",null,null,null,null,null,"Catégorie","Article","Code article","Total BM","Date création","Numéro création","Mois BM",null,null,null,null,null,"Catégorie","Article","Code article","Total BM","Date création","Numéro création","Mois BM",null,null,null,null,null,"Catégorie","Article","Code article","Total BM","Date création","Numéro création","Mois BM"]
[null,null,null,null,null,null,null,null,null,null,null,null,null,null,null,null,null,null,null,null,null,null,null,null,null,null,null,null,null,null,null,null,null,null,null,null,null,null,null,null,null,null,null,null,null,null,null,null,null,null,null,null,null,null,null,null,null,null,null,null,null,null,null,null,null,null,null,null,null,null,null,null,null,null,null,null,null,null,null,null,null,null,null,null,null,null,null,null,null,null,null,null,null,null,null,null,null,null,null,null,null,null,null,null,null,null,null,null,null,null,null,null,null,null,null,null,null,null,null,null,null,null,null,null,null,null,null,null,null,null,null,null,null,null,null,null,null,null,null,null,null,null,null,null,null,null,null,null,null,null,null,null,null,null,null,null,null,null,null,null,null,null,null,null,null,null,null,null,null,null,null,null,null,null,null,null,null,null,null,null,null,null,null,null,null,null,null,null,null,null,null,null,null,null,null,null,null,null,null,null,null,null,null,null,null,null,null,null,null,null,null,null,null,null,null,null,null,null,null,null,null,null,null,null,null,null,null,null,null,null,null,null,null,null,null,null,null,null,null,null,null,null,null,null,null,null,null,null,null,null,null,null,null,null,null,null,null,null,null,null,null,null,null,null,null,null,null,null,null,null,null,null,null,null,null,null,null,null,null,null,null,null,null,null,null,null,null,null,null,null,null,null,null,null,null,null,null,null,null,null,null,null,null,null,null,null,null,null,null,null,null,null,"Catégorie","Article","Code article","Total BM","Date création","Numéro création","Mois BM"]
[null,null,null,null,null,null,null,null,null,null,null,null,null,null,null,null,null,null,null,null,null,null,null,null,null,null,null,null,null,null,null,null,null,null,null,null,null,null,null,null,null,null,null,null,null,null,null,null,null,null,null,null,null,null,null,null,null,null,null,null,null,null,null,null,null,null,null,null,null,null,null,null,null,null,null,null,null,null,null,null,null,null,null,null,null,null,null,null,null,null,null,null,null,null,null,null,null,null,null,null,null,null,null,null,null,null,null,null,null,null,null,null,null,null,null,null,null,null,null,null,null,null,null,null,null,null,null,null,null,null,null,null,null,null,null,null,null,null,null,null,null,null,null,null,null,null,null,null,null,null,null,null,null,null,null,null,null,null,null,null,null,null,null,null,null,null,null,null,null,null,null,null,null,null,null,null,null,null,null,null,null,null,null,null,null,null,null,null,null,null,null,null,null,null,null,null,null,null,null,null,null,null,null,null,null,null,null,null,null,null,null,null,null,null,null,null,null,null,null,null,null,null,null,null,null,null,null,null,null,null,null,null,null,null,null,null,null,null,null,null,null,null,null,null,null,null,null,null,null,null,null,null,null,null,null,null,null,null,null,null,null,null,null,null,null,null,null,null,null,null,null,null,null,null,null,null,null,null,null,null,null,null,null,null,null,null,null,null,null,null,null,null,null,null,null,null,null,null,null,null,null,null,null,null,null,null,null,null,null,null,null,null,null,null,null,null,null,null,null,null,null,null,null,null,{"$f":"\"Imprimé à Limeil-Brévannes, le \"&TEXT(TODAY(),\"jjjj j mmmm aaaa\")&\".\"","v":"Imprimé à Limeil-Brévannes, le samedi 6 juillet 2024."},null,null,null,null,null,null,null,null,null,null,null,{"$f":"\"Imprimé à Limeil-Brévannes, le \"&TEXT(TODAY(),\"jjjj j mmmm aaaa\")&\".\"","v":"Imprimé à Limeil-Brévannes, le samedi 6 juillet 2024."},null,null,null,null,null,null,null,null,null,null,null,{"$f":"\"Imprimé à Limeil-Brévannes, le \"&TEXT(TODAY(),\"jjjj j mmmm aaaa\")&\".\"","v":"Imprimé à Limeil-Brévannes, le samedi 6 juillet 2024."},null,null,null,null,null,null,null,null,null,null,null,{"$f":"\"Imprimé à Limeil-Brévannes, le \"&TEXT(TODAY(),\"jjjj j mmmm aaaa\")&\".\"","v":"Imprimé à Limeil-Brévannes, le samedi 6 juillet 2024."},null,null,null,null,null,null,null,null,null,null,null,{"$f":"\"Imprimé à Limeil-Brévannes, le \"&TEXT(TODAY(),\"jjjj j mmmm aaaa\")&\".\"","v":"Imprimé à Limeil-Brévannes, le samedi 6 juillet 2024."},null,null,null,null,null,null,null,null,null,null,null,{"$f":"\"Imprimé à Limeil-Brévannes, le \"&TEXT(TODAY(),\"jjjj j mmmm aaaa\")&\".\"","v":"Imprimé à Limeil-Brévannes, le samedi 6 juillet 2024."},null,null,null,null,null,null,null,null,null,null,null,{"$f":"\"Imprimé à Limeil-Brévannes, le \"&TEXT(TODAY(),\"jjjj j mmmm aaaa\")&\".\"","v":"Imprimé à Limeil-Brévannes, le samedi 6 juillet 2024."}]
[null,null,null,null,null,null,null,null,null,null,null,null,null,null,null,null,null,null,null,null,null,null,null,null,null,null,null,null,null,null,null,null,null,null,null,null,null,null,null,null,null,null,null,null,null,null,null,null,null,null,null,null,null,null,null,null,null,null,null,null,null,null,null,null,null,null,null,null,null,null,null,null,null,null,null,null,null,null,null,null,null,null,null,null,null,null,null,null,null,null,null,null,null,null,null,null,null,null,null,null,null,null,null,null,null,null,null,null,null,null,null,null,null,null,null,null,null,null,null,null,null,null,null,null,null,null,null,null,null,null,null,null,null,null,null,null,null,null,null,null,null,null,null,null,null,null,null,null,null,null,null,null,null,null,null,null,null,null,null,null,null,null,null,null,null,null,null,null,null,null,null,null,null,null,null,null,null,null,null,null,null,null,null,null,null,null,null,null,null,null,null,null,null,null,null,null,null,null,null,null,null,null,null,null,null,null,null,null,null,null,null,null,null,null,null,null,null,null,null,null,null,null,null,null,null,null,null,null,null,null,null,null,null,null,null,null,null,null,null,null,null,null,null,null,null,null,null,null,null,null,null,null,null,null,null,null,null,null,null,null,null,null,null,null,null,null,null,null,null,null,null,null,null,null,null,null,null,null,null,null,null,null,null,null,null,null,null,null,null,null,null,null,null,null,null,null,null,null,null,null,null,null,null,null,null,null,null,null,null,null,null,null,{"$f":"\"Imprimé à Limeil-Brévannes, le \"&TEXT(TODAY(),\"jjjj j mmmm aaaa\")&\".\"","v":"Imprimé à Limeil-Brévannes, le samedi 6 juillet 2024."},null,null,null,null,null,null,null,null,null,null,null,{"$f":"\"Budget mensuel des dépenses bancaires du mois de \" &TabBDCréditsBudgétairesBudgetMensuelDépensesBancaires5[Mois BM]&\".\"","v":"Budget mensuel des dépenses bancaires du mois de ."},null,null,null,null,null,null,null,null,null,null,null,{"$f":"\"Budget mensuel des dépenses horticoles du mois de \" &TabBDCréditsBudgétairesBudgetMensuelDépensesHorticoles5[Mois BM]&\".\"","v":"Budget mensuel des dépenses horticoles du mois de ."},null,null,null,null,null,null,null,null,null,null,null,{"$f":"\"Budget mensuel des dépenses médicales du mois de \" &TabBDCréditsBudgétairesBudgetMensuelDépensesMédicales5[Mois BM]&\".\"","v":"Budget mensuel des dépenses médicales du mois de ."},null,null,null,null,null,null,null,null,null,null,null,{"$f":"\"Budget mensuel des dépenses non alimentaires du mois de \" &TabBDCréditsBudgétairesBudgetMensuelDépensesNonAlimentaires5[Mois BM]&\".\"","v":"Budget mensuel des dépenses non alimentaires du mois de ."},null,null,null,null,null,null,null,null,null,null,null,{"$f":"\"Budget mensuel des recettes bancaires du mois de \" &TabBDCréditsBudgétairesBudgetMensuelRecettesBancaires5[Mois BM]&\".\"","v":"Budget mensuel des recettes bancaires du mois de ."},null,null,null,null,null,null,null,null,null,null,null,{"$f":"\"Budget mensuel des recettes médicales du mois de \" &TabBDCréditsBudgétairesBudgetMensuelRecettesMédicales5[Mois BM]&\".\"","v":"Budget mensuel des recettes médicales du mois de ."},null,null,null,null,null,null,null,null,null,null,null,{"$f":"\"Budget mensuel des recettes numéraires du mois de \" &TabBDCréditsBudgétairesBudgetMensuelRecettesNuméraires5[Mois BM]&\".\"","v":"Budget mensuel des recettes numéraires du mois de ."}]
[null,null,null,null,null,null,null,null,null,null,null,null,null,null,null,null,null,null,null,null,null,null,null,null,null,null,null,null,null,null,null,null,null,null,null,null,null,null,null,null,null,null,null,null,null,null,null,null,null,null,null,null,null,null,null,null,null,null,null,null,null,null,null,null,null,null,null,null,null,null,null,null,null,null,null,null,null,null,null,null,null,null,null,null,null,null,null,null,null,null,null,null,null,null,null,null,null,null,null,null,null,null,null,null,null,null,null,null,null,null,null,null,null,null,null,null,null,null,null,null,null,null,null,null,null,null,null,null,null,null,null,null,null,null,null,null,null,null,null,null,null,null,null,null,null,null,null,null,null,null,null,null,null,null,null,null,null,null,null,null,null,null,null,null,null,null,null,null,null,null,null,null,null,null,null,null,null,null,null,null,null,null,null,null,null,null,null,null,null,null,null,null,null,null,null,null,null,null,null,null,null,null,null,null,null,null,null,null,null,null,null,null,null,null,null,null,null,null,null,null,null,null,null,null,null,null,null,null,null,null,null,null,null,null,null,null,null,null,null,null,null,null,null,null,null,null,null,null,null,null,null,null,null,null,null,null,null,null,null,null,null,null,null,null,null,null,null,null,null,null,null,null,null,null,null,null,null,null,null,null,null,null,null,null,null,null,null,null,null,null,null,null,null,null,null,null,null,null,null,null,null,null,null,null,null,null,null,null,null,null,null,null,{"$f":"\"Budget mensuel des dépenses alimentaires du mois de \" &TabBDCréditsBudgétairesBudgetMensuelDépensesAlimentaires5[Mois BM]&\".\"","v":"Budget mensuel des dépenses alimentaires du mois de ."},null,null,null,null,null,null,null,null,null,null,null,"Catégorie","Article","Code article","Total BM","Date création","Numéro création","Mois BM",null,null,null,null,null,"Catégorie","Article","Code article","Total BM","Date création","Numéro création","Mois BM",null,null,null,null,null,"Catégorie","Article","Code article","Total BM","Date création","Numéro création","Mois BM",null,null,null,null,null,"Catégorie","Article","Code article","Total BM","Date création","Numéro création","Mois BM",null,null,null,null,null,"Catégorie","Article","Code article","Total BM","Date création","Numéro création","Mois BM",null,null,null,null,null,"Catégorie","Article","Code article","Total BM","Date création","Numéro création","Mois BM",null,null,null,null,null,"Catégorie","Article","Code article","Total BM","Date création","Numéro création","Mois BM"]
[null,null,null,null,null,null,null,null,null,null,null,null,null,null,null,null,null,null,null,null,null,null,null,null,null,null,null,null,null,null,null,null,null,null,null,null,null,null,null,null,null,null,null,null,null,null,null,null,null,null,null,null,null,null,null,null,null,null,null,null,null,null,null,null,null,null,null,null,null,null,null,null,null,null,null,null,null,null,null,null,null,null,null,null,null,null,null,null,null,null,null,null,null,null,null,null,null,null,null,null,null,null,null,null,null,null,null,null,null,null,null,null,null,null,null,null,null,null,null,null,null,null,null,null,null,null,null,null,null,null,null,null,null,null,null,null,null,null,null,null,null,null,null,null,null,null,null,null,null,null,null,null,null,null,null,null,null,null,null,null,null,null,null,null,null,null,null,null,null,null,null,null,null,null,null,null,null,null,null,null,null,null,null,null,null,null,null,null,null,null,null,null,null,null,null,null,null,null,null,null,null,null,null,null,null,null,null,null,null,null,null,null,null,null,null,null,null,null,null,null,null,null,null,null,null,null,null,null,null,null,null,null,null,null,null,null,null,null,null,null,null,null,null,null,null,null,null,null,null,null,null,null,null,null,null,null,null,null,null,null,null,null,null,null,null,null,null,null,null,null,null,null,null,null,null,null,null,null,null,null,null,null,null,null,null,null,null,null,null,null,null,null,null,null,null,null,null,null,null,null,null,null,null,null,null,null,null,null,null,null,null,null,"Catégorie","Article","Code article","Total BM","Date création","Numéro création","Mois BM"]
[null,null,null,null,null,null,null,null,null,null,null,null,null,null,null,null,null,null,null,null,null,null,null,null,null,null,null,null,null,null,null,null,null,null,null,null,null,null,null,null,null,null,null,null,null,null,null,null,null,null,null,null,null,null,null,null,null,null,null,null,null,null,null,null,null,null,null,null,null,null,null,null,null,null,null,null,null,null,null,null,null,null,null,null,null,null,null,null,null,null,null,null,null,null,null,null,null,null,null,null,null,null,null,null,null,null,null,null,null,null,null,null,null,null,null,null,null,null,null,null,null,null,null,null,null,null,null,null,null,null,null,null,null,null,null,null,null,null,null,null,null,null,null,null,null,null,null,null,null,null,null,null,null,null,null,null,null,null,null,null,null,null,null,null,null,null,null,null,null,null,null,null,null,null,null,null,null,null,null,null,null,null,null,null,null,null,null,null,null,null,null,null,null,null,null,null,null,null,null,null,null,null,null,null,null,null,null,null,null,null,null,null,null,null,null,null,null,null,null,null,null,null,null,null,null,null,null,null,null,null,null,null,null,null,null,null,null,null,null,null,null,null,null,null,null,null,null,null,null,null,null,null,null,null,null,null,null,null,null,null,null,null,null,null,null,null,null,null,null,null,null,null,null,null,null,null,null,null,null,null,null,null,null,null,null,null,null,null,null,null,null,null,null,null,null,null,null,null,null,null,null,null,null,null,null,null,null,null,null,null,null,null,null,null,null,null,null,null,null,null,null,null,null,null,{"$f":"\"Imprimé à Limeil-Brévannes, le \"&TEXT(TODAY(),\"jjjj j mmmm aaaa\")&\".\"","v":"Imprimé à Limeil-Brévannes, le samedi 6 juillet 2024."},null,null,null,null,null,null,null,null,null,null,null,{"$f":"\"Imprimé à Limeil-Brévannes, le \"&TEXT(TODAY(),\"jjjj j mmmm aaaa\")&\".\"","v":"Imprimé à Limeil-Brévannes, le samedi 6 juillet 2024."},null,null,null,null,null,null,null,null,null,null,null,{"$f":"\"Imprimé à Limeil-Brévannes, le \"&TEXT(TODAY(),\"jjjj j mmmm aaaa\")&\".\"","v":"Imprimé à Limeil-Brévannes, le samedi 6 juillet 2024."},null,null,null,null,null,null,null,null,null,null,null,{"$f":"\"Imprimé à Limeil-Brévannes, le \"&TEXT(TODAY(),\"jjjj j mmmm aaaa\")&\".\"","v":"Imprimé à Limeil-Brévannes, le samedi 6 juillet 2024."},null,null,null,null,null,null,null,null,null,null,null,{"$f":"\"Imprimé à Limeil-Brévannes, le \"&TEXT(TODAY(),\"jjjj j mmmm aaaa\")&\".\"","v":"Imprimé à Limeil-Brévannes, le samedi 6 juillet 2024."},null,null,null,null,null,null,null,null,null,null,null,{"$f":"\"Imprimé à Limeil-Brévannes, le \"&TEXT(TODAY(),\"jjjj j mmmm aaaa\")&\".\"","v":"Imprimé à Limeil-Brévannes, le samedi 6 juillet 2024."},null,null,null,null,null,null,null,null,null,null,null,{"$f":"\"Imprimé à Limeil-Brévannes, le \"&TEXT(TODAY(),\"jjjj j mmmm aaaa\")&\".\"","v":"Imprimé à Limeil-Brévannes, le samedi 6 juillet 2024."}]
[null,null,null,null,null,null,null,null,null,null,null,null,null,null,null,null,null,null,null,null,null,null,null,null,null,null,null,null,null,null,null,null,null,null,null,null,null,null,null,null,null,null,null,null,null,null,null,null,null,null,null,null,null,null,null,null,null,null,null,null,null,null,null,null,null,null,null,null,null,null,null,null,null,null,null,null,null,null,null,null,null,null,null,null,null,null,null,null,null,null,null,null,null,null,null,null,null,null,null,null,null,null,null,null,null,null,null,null,null,null,null,null,null,null,null,null,null,null,null,null,null,null,null,null,null,null,null,null,null,null,null,null,null,null,null,null,null,null,null,null,null,null,null,null,null,null,null,null,null,null,null,null,null,null,null,null,null,null,null,null,null,null,null,null,null,null,null,null,null,null,null,null,null,null,null,null,null,null,null,null,null,null,null,null,null,null,null,null,null,null,null,null,null,null,null,null,null,null,null,null,null,null,null,null,null,null,null,null,null,null,null,null,null,null,null,null,null,null,null,null,null,null,null,null,null,null,null,null,null,null,null,null,null,null,null,null,null,null,null,null,null,null,null,null,null,null,null,null,null,null,null,null,null,null,null,null,null,null,null,null,null,null,null,null,null,null,null,null,null,null,null,null,null,null,null,null,null,null,null,null,null,null,null,null,null,null,null,null,null,null,null,null,null,null,null,null,null,null,null,null,null,null,null,null,null,null,null,null,null,null,null,null,{"$f":"\"Imprimé à Limeil-Brévannes, le \"&TEXT(TODAY(),\"jjjj j mmmm aaaa\")&\".\"","v":"Imprimé à Limeil-Brévannes, le samedi 6 juillet 2024."},null,null,null,null,null,null,null,null,null,null,null,{"$f":"\"Budget mensuel des dépenses bancaires du mois de \" &TabBDCréditsBudgétairesBudgetMensuelDépensesBancaires6[Mois BM]&\".\"","v":"Budget mensuel des dépenses bancaires du mois de ."},null,null,null,null,null,null,null,null,null,null,null,{"$f":"\"Budget mensuel des dépenses horticoles du mois de \" &TabBDCréditsBudgétairesBudgetMensuelDépensesHorticoles6[Mois BM]&\".\"","v":"Budget mensuel des dépenses horticoles du mois de ."},null,null,null,null,null,null,null,null,null,null,null,{"$f":"\"Budget mensuel des dépenses médicales du mois de \" &TabBDCréditsBudgétairesBudgetMensuelDépensesMédicales6[Mois BM]&\".\"","v":"Budget mensuel des dépenses médicales du mois de ."},null,null,null,null,null,null,null,null,null,null,null,{"$f":"\"Budget mensuel des dépenses non alimentaires du mois de \" &TabBDCréditsBudgétairesBudgetMensuelDépensesNonAlimentaires6[Mois BM]&\".\"","v":"Budget mensuel des dépenses non alimentaires du mois de ."},null,null,null,null,null,null,null,null,null,null,null,{"$f":"\"Budget mensuel des recettes bancaires du mois de \" &TabBDCréditsBudgétairesBudgetMensuelRecettesBancaires6[Mois BM]&\".\"","v":"Budget mensuel des recettes bancaires du mois de ."},null,null,null,null,null,null,null,null,null,null,null,{"$f":"\"Budget mensuel des recettes médicales du mois de \" &TabBDCréditsBudgétairesBudgetMensuelRecettesMédicales6[Mois BM]&\".\"","v":"Budget mensuel des recettes médicales du mois de ."},null,null,null,null,null,null,null,null,null,null,null,{"$f":"\"Budget mensuel des recettes numéraires du mois de \" &TabBDCréditsBudgétairesBudgetMensuelRecettesNuméraires6[Mois BM]&\".\"","v":"Budget mensuel des recettes numéraires du mois de ."}]
[null,null,null,null,null,null,null,null,null,null,null,null,null,null,null,null,null,null,null,null,null,null,null,null,null,null,null,null,null,null,null,null,null,null,null,null,null,null,null,null,null,null,null,null,null,null,null,null,null,null,null,null,null,null,null,null,null,null,null,null,null,null,null,null,null,null,null,null,null,null,null,null,null,null,null,null,null,null,null,null,null,null,null,null,null,null,null,null,null,null,null,null,null,null,null,null,null,null,null,null,null,null,null,null,null,null,null,null,null,null,null,null,null,null,null,null,null,null,null,null,null,null,null,null,null,null,null,null,null,null,null,null,null,null,null,null,null,null,null,null,null,null,null,null,null,null,null,null,null,null,null,null,null,null,null,null,null,null,null,null,null,null,null,null,null,null,null,null,null,null,null,null,null,null,null,null,null,null,null,null,null,null,null,null,null,null,null,null,null,null,null,null,null,null,null,null,null,null,null,null,null,null,null,null,null,null,null,null,null,null,null,null,null,null,null,null,null,null,null,null,null,null,null,null,null,null,null,null,null,null,null,null,null,null,null,null,null,null,null,null,null,null,null,null,null,null,null,null,null,null,null,null,null,null,null,null,null,null,null,null,null,null,null,null,null,null,null,null,null,null,null,null,null,null,null,null,null,null,null,null,null,null,null,null,null,null,null,null,null,null,null,null,null,null,null,null,null,null,null,null,null,null,null,null,null,null,null,null,null,null,null,null,{"$f":"\"Budget mensuel des dépenses alimentaires du mois de \" &TabBDCréditsBudgétairesBudgetMensuelDépensesAlimentaires6[Mois BM]&\".\"","v":"Budget mensuel des dépenses alimentaires du mois de ."},null,null,null,null,null,null,null,null,null,null,null,"Catégorie","Article","Code article","Total BM","Date création","Numéro création","Mois BM",null,null,null,null,null,"Catégorie","Article","Code article","Total BM","Date création","Numéro création","Mois BM",null,null,null,null,null,"Catégorie","Article","Code article","Total BM","Date création","Numéro création","Mois BM",null,null,null,null,null,"Catégorie","Article","Code article","Total BM","Date création","Numéro création","Mois BM",null,null,null,null,null,"Catégorie","Article","Code article","Total BM","Date création","Numéro création","Mois BM",null,null,null,null,null,"Catégorie","Article","Code article","Total BM","Date création","Numéro création","Mois BM",null,null,null,null,null,"Catégorie","Article","Code article","Total BM","Date création","Numéro création","Mois BM"]
[null,null,null,null,null,null,null,null,null,null,null,null,null,null,null,null,null,null,null,null,null,null,null,null,null,null,null,null,null,null,null,null,null,null,null,null,null,null,null,null,null,null,null,null,null,null,null,null,null,null,null,null,null,null,null,null,null,null,null,null,null,null,null,null,null,null,null,null,null,null,null,null,null,null,null,null,null,null,null,null,null,null,null,null,null,null,null,null,null,null,null,null,null,null,null,null,null,null,null,null,null,null,null,null,null,null,null,null,null,null,null,null,null,null,null,null,null,null,null,null,null,null,null,null,null,null,null,null,null,null,null,null,null,null,null,null,null,null,null,null,null,null,null,null,null,null,null,null,null,null,null,null,null,null,null,null,null,null,null,null,null,null,null,null,null,null,null,null,null,null,null,null,null,null,null,null,null,null,null,null,null,null,null,null,null,null,null,null,null,null,null,null,null,null,null,null,null,null,null,null,null,null,null,null,null,null,null,null,null,null,null,null,null,null,null,null,null,null,null,null,null,null,null,null,null,null,null,null,null,null,null,null,null,null,null,null,null,null,null,null,null,null,null,null,null,null,null,null,null,null,null,null,null,null,null,null,null,null,null,null,null,null,null,null,null,null,null,null,null,null,null,null,null,null,null,null,null,null,null,null,null,null,null,null,null,null,null,null,null,null,null,null,null,null,null,null,null,null,null,null,null,null,null,null,null,null,null,null,null,null,null,null,"Catégorie","Article","Code article","Total BM","Date création","Numéro création","Mois BM"]
[null,null,null,null,null,null,null,null,null,null,null,null,null,null,null,null,null,null,null,null,null,null,null,null,null,null,null,null,null,null,null,null,null,null,null,null,null,null,null,null,null,null,null,null,null,null,null,null,null,null,null,null,null,null,null,null,null,null,null,null,null,null,null,null,null,null,null,null,null,null,null,null,null,null,null,null,null,null,null,null,null,null,null,null,null,null,null,null,null,null,null,null,null,null,null,null,null,null,null,null,null,null,null,null,null,null,null,null,null,null,null,null,null,null,null,null,null,null,null,null,null,null,null,null,null,null,null,null,null,null,null,null,null,null,null,null,null,null,null,null,null,null,null,null,null,null,null,null,null,null,null,null,null,null,null,null,null,null,null,null,null,null,null,null,null,null,null,null,null,null,null,null,null,null,null,null,null,null,null,null,null,null,null,null,null,null,null,null,null,null,null,null,null,null,null,null,null,null,null,null,null,null,null,null,null,null,null,null,null,null,null,null,null,null,null,null,null,null,null,null,null,null,null,null,null,null,null,null,null,null,null,null,null,null,null,null,null,null,null,null,null,null,null,null,null,null,null,null,null,null,null,null,null,null,null,null,null,null,null,null,null,null,null,null,null,null,null,null,null,null,null,null,null,null,null,null,null,null,null,null,null,null,null,null,null,null,null,null,null,null,null,null,null,null,null,null,null,null,null,null,null,null,null,null,null,null,null,null,null,null,null,null,null,null,null,null,null,null,null,null,null,null,null,null,{"$f":"\"Imprimé à Limeil-Brévannes, le \"&TEXT(TODAY(),\"jjjj j mmmm aaaa\")&\".\"","v":"Imprimé à Limeil-Brévannes, le samedi 6 juillet 2024."},null,null,null,null,null,null,null,null,null,null,null,{"$f":"\"Imprimé à Limeil-Brévannes, le \"&TEXT(TODAY(),\"jjjj j mmmm aaaa\")&\".\"","v":"Imprimé à Limeil-Brévannes, le samedi 6 juillet 2024."},null,null,null,null,null,null,null,null,null,null,null,{"$f":"\"Imprimé à Limeil-Brévannes, le \"&TEXT(TODAY(),\"jjjj j mmmm aaaa\")&\".\"","v":"Imprimé à Limeil-Brévannes, le samedi 6 juillet 2024."},null,null,null,null,null,null,null,null,null,null,null,{"$f":"\"Imprimé à Limeil-Brévannes, le \"&TEXT(TODAY(),\"jjjj j mmmm aaaa\")&\".\"","v":"Imprimé à Limeil-Brévannes, le samedi 6 juillet 2024."},null,null,null,null,null,null,null,null,null,null,null,{"$f":"\"Imprimé à Limeil-Brévannes, le \"&TEXT(TODAY(),\"jjjj j mmmm aaaa\")&\".\"","v":"Imprimé à Limeil-Brévannes, le samedi 6 juillet 2024."},null,null,null,null,null,null,null,null,null,null,null,{"$f":"\"Imprimé à Limeil-Brévannes, le \"&TEXT(TODAY(),\"jjjj j mmmm aaaa\")&\".\"","v":"Imprimé à Limeil-Brévannes, le samedi 6 juillet 2024."},null,null,null,null,null,null,null,null,null,null,null,{"$f":"\"Imprimé à Limeil-Brévannes, le \"&TEXT(TODAY(),\"jjjj j mmmm aaaa\")&\".\"","v":"Imprimé à Limeil-Brévannes, le samedi 6 juillet 2024."}]
[null,null,null,null,null,null,null,null,null,null,null,null,null,null,null,null,null,null,null,null,null,null,null,null,null,null,null,null,null,null,null,null,null,null,null,null,null,null,null,null,null,null,null,null,null,null,null,null,null,null,null,null,null,null,null,null,null,null,null,null,null,null,null,null,null,null,null,null,null,null,null,null,null,null,null,null,null,null,null,null,null,null,null,null,null,null,null,null,null,null,null,null,null,null,null,null,null,null,null,null,null,null,null,null,null,null,null,null,null,null,null,null,null,null,null,null,null,null,null,null,null,null,null,null,null,null,null,null,null,null,null,null,null,null,null,null,null,null,null,null,null,null,null,null,null,null,null,null,null,null,null,null,null,null,null,null,null,null,null,null,null,null,null,null,null,null,null,null,null,null,null,null,null,null,null,null,null,null,null,null,null,null,null,null,null,null,null,null,null,null,null,null,null,null,null,null,null,null,null,null,null,null,null,null,null,null,null,null,null,null,null,null,null,null,null,null,null,null,null,null,null,null,null,null,null,null,null,null,null,null,null,null,null,null,null,null,null,null,null,null,null,null,null,null,null,null,null,null,null,null,null,null,null,null,null,null,null,null,null,null,null,null,null,null,null,null,null,null,null,null,null,null,null,null,null,null,null,null,null,null,null,null,null,null,null,null,null,null,null,null,null,null,null,null,null,null,null,null,null,null,null,null,null,null,null,null,null,null,null,null,null,null,{"$f":"\"Imprimé à Limeil-Brévannes, le \"&TEXT(TODAY(),\"jjjj j mmmm aaaa\")&\".\"","v":"Imprimé à Limeil-Brévannes, le samedi 6 juillet 2024."},null,null,null,null,null,null,null,null,null,null,null,{"$f":"\"Budget mensuel des dépenses bancaires du mois de \" &TabBDCréditsBudgétairesBudgetMensuelDépensesBancaires7[Mois BM]&\".\"","v":"Budget mensuel des dépenses bancaires du mois de ."},null,null,null,null,null,null,null,null,null,null,null,{"$f":"\"Budget mensuel des dépenses horticoles du mois de \" &TabBDCréditsBudgétairesBudgetMensuelDépensesHorticoles7[Mois BM]&\".\"","v":"Budget mensuel des dépenses horticoles du mois de ."},null,null,null,null,null,null,null,null,null,null,null,{"$f":"\"Budget mensuel des dépenses médicales du mois de \" &TabBDCréditsBudgétairesBudgetMensuelDépensesMédicales7[Mois BM]&\".\"","v":"Budget mensuel des dépenses médicales du mois de ."},null,null,null,null,null,null,null,null,null,null,null,{"$f":"\"Budget mensuel des dépenses non alimentaires du mois de \" &TabBDCréditsBudgétairesBudgetMensuelDépensesNonAlimentaires7[Mois BM]&\".\"","v":"Budget mensuel des dépenses non alimentaires du mois de ."},null,null,null,null,null,null,null,null,null,null,null,{"$f":"\"Budget mensuel des recettes bancaires du mois de \" &TabBDCréditsBudgétairesBudgetMensuelRecettesBancaires7[Mois BM]&\".\"","v":"Budget mensuel des recettes bancaires du mois de ."},null,null,null,null,null,null,null,null,null,null,null,{"$f":"\"Budget mensuel des recettes médicales du mois de \" &TabBDCréditsBudgétairesBudgetMensuelRecettesMédicales7[Mois BM]&\".\"","v":"Budget mensuel des recettes médicales du mois de ."},null,null,null,null,null,null,null,null,null,null,null,{"$f":"\"Budget mensuel des recettes numéraires du mois de \" &TabBDCréditsBudgétairesBudgetMensuelRecettesNuméraires7[Mois BM]&\".\"","v":"Budget mensuel des recettes numéraires du mois de ."}]
[null,null,null,null,null,null,null,null,null,null,null,null,null,null,null,null,null,null,null,null,null,null,null,null,null,null,null,null,null,null,null,null,null,null,null,null,null,null,null,null,null,null,null,null,null,null,null,null,null,null,null,null,null,null,null,null,null,null,null,null,null,null,null,null,null,null,null,null,null,null,null,null,null,null,null,null,null,null,null,null,null,null,null,null,null,null,null,null,null,null,null,null,null,null,null,null,null,null,null,null,null,null,null,null,null,null,null,null,null,null,null,null,null,null,null,null,null,null,null,null,null,null,null,null,null,null,null,null,null,null,null,null,null,null,null,null,null,null,null,null,null,null,null,null,null,null,null,null,null,null,null,null,null,null,null,null,null,null,null,null,null,null,null,null,null,null,null,null,null,null,null,null,null,null,null,null,null,null,null,null,null,null,null,null,null,null,null,null,null,null,null,null,null,null,null,null,null,null,null,null,null,null,null,null,null,null,null,null,null,null,null,null,null,null,null,null,null,null,null,null,null,null,null,null,null,null,null,null,null,null,null,null,null,null,null,null,null,null,null,null,null,null,null,null,null,null,null,null,null,null,null,null,null,null,null,null,null,null,null,null,null,null,null,null,null,null,null,null,null,null,null,null,null,null,null,null,null,null,null,null,null,null,null,null,null,null,null,null,null,null,null,null,null,null,null,null,null,null,null,null,null,null,null,null,null,null,null,null,null,null,null,null,{"$f":"\"Budget mensuel des dépenses alimentaires du mois de \" &TabBDCréditsBudgétairesBudgetMensuelDépensesAlimentaires7[Mois BM]&\".\"","v":"Budget mensuel des dépenses alimentaires du mois de ."},null,null,null,null,null,null,null,null,null,null,null,"Catégorie","Article","Code article","Total BM","Date création","Numéro création","Mois BM",null,null,null,null,null,"Catégorie","Article","Code article","Total BM","Date création","Numéro création","Mois BM",null,null,null,null,null,"Catégorie","Article","Code article","Total BM","Date création","Numéro création","Mois BM",null,null,null,null,null,"Catégorie","Article","Code article","Total BM","Date création","Numéro création","Mois BM",null,null,null,null,null,"Catégorie","Article","Code article","Total BM","Date création","Numéro création","Mois BM",null,null,null,null,null,"Catégorie","Article","Code article","Total BM","Date création","Numéro création","Mois BM",null,null,null,null,null,"Catégorie","Article","Code article","Total BM","Date création","Numéro création","Mois BM"]
[null,null,null,null,null,null,null,null,null,null,null,null,null,null,null,null,null,null,null,null,null,null,null,null,null,null,null,null,null,null,null,null,null,null,null,null,null,null,null,null,null,null,null,null,null,null,null,null,null,null,null,null,null,null,null,null,null,null,null,null,null,null,null,null,null,null,null,null,null,null,null,null,null,null,null,null,null,null,null,null,null,null,null,null,null,null,null,null,null,null,null,null,null,null,null,null,null,null,null,null,null,null,null,null,null,null,null,null,null,null,null,null,null,null,null,null,null,null,null,null,null,null,null,null,null,null,null,null,null,null,null,null,null,null,null,null,null,null,null,null,null,null,null,null,null,null,null,null,null,null,null,null,null,null,null,null,null,null,null,null,null,null,null,null,null,null,null,null,null,null,null,null,null,null,null,null,null,null,null,null,null,null,null,null,null,null,null,null,null,null,null,null,null,null,null,null,null,null,null,null,null,null,null,null,null,null,null,null,null,null,null,null,null,null,null,null,null,null,null,null,null,null,null,null,null,null,null,null,null,null,null,null,null,null,null,null,null,null,null,null,null,null,null,null,null,null,null,null,null,null,null,null,null,null,null,null,null,null,null,null,null,null,null,null,null,null,null,null,null,null,null,null,null,null,null,null,null,null,null,null,null,null,null,null,null,null,null,null,null,null,null,null,null,null,null,null,null,null,null,null,null,null,null,null,null,null,null,null,null,null,null,null,"Catégorie","Article","Code article","Total BM","Date création","Numéro création","Mois BM"]
[null,null,null,null,null,null,null,null,null,null,null,null,null,null,null,null,null,null,null,null,null,null,null,null,null,null,null,null,null,null,null,null,null,null,null,null,null,null,null,null,null,null,null,null,null,null,null,null,null,null,null,null,null,null,null,null,null,null,null,null,null,null,null,null,null,null,null,null,null,null,null,null,null,null,null,null,null,null,null,null,null,null,null,null,null,null,null,null,null,null,null,null,null,null,null,null,null,null,null,null,null,null,null,null,null,null,null,null,null,null,null,null,null,null,null,null,null,null,null,null,null,null,null,null,null,null,null,null,null,null,null,null,null,null,null,null,null,null,null,null,null,null,null,null,null,null,null,null,null,null,null,null,null,null,null,null,null,null,null,null,null,null,null,null,null,null,null,null,null,null,null,null,null,null,null,null,null,null,null,null,null,null,null,null,null,null,null,null,null,null,null,null,null,null,null,null,null,null,null,null,null,null,null,null,null,null,null,null,null,null,null,null,null,null,null,null,null,null,null,null,null,null,null,null,null,null,null,null,null,null,null,null,null,null,null,null,null,null,null,null,null,null,null,null,null,null,null,null,null,null,null,null,null,null,null,null,null,null,null,null,null,null,null,null,null,null,null,null,null,null,null,null,null,null,null,null,null,null,null,null,null,null,null,null,null,null,null,null,null,null,null,null,null,null,null,null,null,null,null,null,null,null,null,null,null,null,null,null,null,null,null,null,null,null,null,null,null,null,null,null,null,null,null,null,{"$f":"\"Imprimé à Limeil-Brévannes, le \"&TEXT(TODAY(),\"jjjj j mmmm aaaa\")&\".\"","v":"Imprimé à Limeil-Brévannes, le samedi 6 juillet 2024."},null,null,null,null,null,null,null,null,null,null,null,{"$f":"\"Imprimé à Limeil-Brévannes, le \"&TEXT(TODAY(),\"jjjj j mmmm aaaa\")&\".\"","v":"Imprimé à Limeil-Brévannes, le samedi 6 juillet 2024."},null,null,null,null,null,null,null,null,null,null,null,{"$f":"\"Imprimé à Limeil-Brévannes, le \"&TEXT(TODAY(),\"jjjj j mmmm aaaa\")&\".\"","v":"Imprimé à Limeil-Brévannes, le samedi 6 juillet 2024."},null,null,null,null,null,null,null,null,null,null,null,{"$f":"\"Imprimé à Limeil-Brévannes, le \"&TEXT(TODAY(),\"jjjj j mmmm aaaa\")&\".\"","v":"Imprimé à Limeil-Brévannes, le samedi 6 juillet 2024."},null,null,null,null,null,null,null,null,null,null,null,{"$f":"\"Imprimé à Limeil-Brévannes, le \"&TEXT(TODAY(),\"jjjj j mmmm aaaa\")&\".\"","v":"Imprimé à Limeil-Brévannes, le samedi 6 juillet 2024."},null,null,null,null,null,null,null,null,null,null,null,{"$f":"\"Imprimé à Limeil-Brévannes, le \"&TEXT(TODAY(),\"jjjj j mmmm aaaa\")&\".\"","v":"Imprimé à Limeil-Brévannes, le samedi 6 juillet 2024."},null,null,null,null,null,null,null,null,null,null,null,{"$f":"\"Imprimé à Limeil-Brévannes, le \"&TEXT(TODAY(),\"jjjj j mmmm aaaa\")&\".\"","v":"Imprimé à Limeil-Brévannes, le samedi 6 juillet 2024."}]
[null,null,null,null,null,null,null,null,null,null,null,null,null,null,null,null,null,null,null,null,null,null,null,null,null,null,null,null,null,null,null,null,null,null,null,null,null,null,null,null,null,null,null,null,null,null,null,null,null,null,null,null,null,null,null,null,null,null,null,null,null,null,null,null,null,null,null,null,null,null,null,null,null,null,null,null,null,null,null,null,null,null,null,null,null,null,null,null,null,null,null,null,null,null,null,null,null,null,null,null,null,null,null,null,null,null,null,null,null,null,null,null,null,null,null,null,null,null,null,null,null,null,null,null,null,null,null,null,null,null,null,null,null,null,null,null,null,null,null,null,null,null,null,null,null,null,null,null,null,null,null,null,null,null,null,null,null,null,null,null,null,null,null,null,null,null,null,null,null,null,null,null,null,null,null,null,null,null,null,null,null,null,null,null,null,null,null,null,null,null,null,null,null,null,null,null,null,null,null,null,null,null,null,null,null,null,null,null,null,null,null,null,null,null,null,null,null,null,null,null,null,null,null,null,null,null,null,null,null,null,null,null,null,null,null,null,null,null,null,null,null,null,null,null,null,null,null,null,null,null,null,null,null,null,null,null,null,null,null,null,null,null,null,null,null,null,null,null,null,null,null,null,null,null,null,null,null,null,null,null,null,null,null,null,null,null,null,null,null,null,null,null,null,null,null,null,null,null,null,null,null,null,null,null,null,null,null,null,null,null,null,null,{"$f":"\"Imprimé à Limeil-Brévannes, le \"&TEXT(TODAY(),\"jjjj j mmmm aaaa\")&\".\"","v":"Imprimé à Limeil-Brévannes, le samedi 6 juillet 2024."},null,null,null,null,null,null,null,null,null,null,null,{"$f":"\"Budget mensuel des dépenses bancaires du mois d'\" &TabBDCréditsBudgétairesBudgetMensuelDépensesBancaires8[Mois BM]&\".\"","v":"Budget mensuel des dépenses bancaires du mois d'."},null,null,null,null,null,null,null,null,null,null,null,{"$f":"\"Budget mensuel des dépenses horticoles du mois d'\" &TabBDCréditsBudgétairesBudgetMensuelDépensesHorticoles8[Mois BM]&\".\"","v":"Budget mensuel des dépenses horticoles du mois d'."},null,null,null,null,null,null,null,null,null,null,null,{"$f":"\"Budget mensuel des dépenses médicales du mois d'\" &TabBDCréditsBudgétairesBudgetMensuelDépensesMédicales8[Mois BM]&\".\"","v":"Budget mensuel des dépenses médicales du mois d'."},null,null,null,null,null,null,null,null,null,null,null,{"$f":"\"Budget mensuel des dépenses non alimentaires du mois d'\" &TabBDCréditsBudgétairesBudgetMensuelDépensesNonAlimentaires8[Mois BM]&\".\"","v":"Budget mensuel des dépenses non alimentaires du mois d'."},null,null,null,null,null,null,null,null,null,null,null,{"$f":"\"Budget mensuel des recettes bancaires du mois d'\" &TabBDCréditsBudgétairesBudgetMensuelRecettesBancaires8[Mois BM]&\".\"","v":"Budget mensuel des recettes bancaires du mois d'."},null,null,null,null,null,null,null,null,null,null,null,{"$f":"\"Budget mensuel des recettes médicales du mois d'\" &TabBDCréditsBudgétairesBudgetMensuelRecettesMédicales8[Mois BM]&\".\"","v":"Budget mensuel des recettes médicales du mois d'."},null,null,null,null,null,null,null,null,null,null,null,{"$f":"\"Budget mensuel des recettes numéraires du mois d'\" &TabBDCréditsBudgétairesBudgetMensuelRecettesNuméraires8[Mois BM]&\".\"","v":"Budget mensuel des recettes numéraires du mois d'."}]
[null,null,null,null,null,null,null,null,null,null,null,null,null,null,null,null,null,null,null,null,null,null,null,null,null,null,null,null,null,null,null,null,null,null,null,null,null,null,null,null,null,null,null,null,null,null,null,null,null,null,null,null,null,null,null,null,null,null,null,null,null,null,null,null,null,null,null,null,null,null,null,null,null,null,null,null,null,null,null,null,null,null,null,null,null,null,null,null,null,null,null,null,null,null,null,null,null,null,null,null,null,null,null,null,null,null,null,null,null,null,null,null,null,null,null,null,null,null,null,null,null,null,null,null,null,null,null,null,null,null,null,null,null,null,null,null,null,null,null,null,null,null,null,null,null,null,null,null,null,null,null,null,null,null,null,null,null,null,null,null,null,null,null,null,null,null,null,null,null,null,null,null,null,null,null,null,null,null,null,null,null,null,null,null,null,null,null,null,null,null,null,null,null,null,null,null,null,null,null,null,null,null,null,null,null,null,null,null,null,null,null,null,null,null,null,null,null,null,null,null,null,null,null,null,null,null,null,null,null,null,null,null,null,null,null,null,null,null,null,null,null,null,null,null,null,null,null,null,null,null,null,null,null,null,null,null,null,null,null,null,null,null,null,null,null,null,null,null,null,null,null,null,null,null,null,null,null,null,null,null,null,null,null,null,null,null,null,null,null,null,null,null,null,null,null,null,null,null,null,null,null,null,null,null,null,null,null,null,null,null,null,null,{"$f":"\"Budget mensuel des dépenses alimentaires du mois d'\" &TabBDCréditsBudgétairesBudgetMensuelDépensesAlimentaires8[Mois BM]&\".\"","v":"Budget mensuel des dépenses alimentaires du mois d'."},null,null,null,null,null,null,null,null,null,null,null,"Catégorie","Article","Code article","Total BM","Date création","Numéro création","Mois BM",null,null,null,null,null,"Catégorie","Article","Code article","Total BM","Date création","Numéro création","Mois BM",null,null,null,null,null,"Catégorie","Article","Code article","Total BM","Date création","Numéro création","Mois BM",null,null,null,null,null,"Catégorie","Article","Code article","Total BM","Date création","Numéro création","Mois BM",null,null,null,null,null,"Catégorie","Article","Code article","Total BM","Date création","Numéro création","Mois BM",null,null,null,null,null,"Catégorie","Article","Code article","Total BM","Date création","Numéro création","Mois BM",null,null,null,null,null,"Catégorie","Article","Code article","Total BM","Date création","Numéro création","Mois BM"]
[null,null,null,null,null,null,null,null,null,null,null,null,null,null,null,null,null,null,null,null,null,null,null,null,null,null,null,null,null,null,null,null,null,null,null,null,null,null,null,null,null,null,null,null,null,null,null,null,null,null,null,null,null,null,null,null,null,null,null,null,null,null,null,null,null,null,null,null,null,null,null,null,null,null,null,null,null,null,null,null,null,null,null,null,null,null,null,null,null,null,null,null,null,null,null,null,null,null,null,null,null,null,null,null,null,null,null,null,null,null,null,null,null,null,null,null,null,null,null,null,null,null,null,null,null,null,null,null,null,null,null,null,null,null,null,null,null,null,null,null,null,null,null,null,null,null,null,null,null,null,null,null,null,null,null,null,null,null,null,null,null,null,null,null,null,null,null,null,null,null,null,null,null,null,null,null,null,null,null,null,null,null,null,null,null,null,null,null,null,null,null,null,null,null,null,null,null,null,null,null,null,null,null,null,null,null,null,null,null,null,null,null,null,null,null,null,null,null,null,null,null,null,null,null,null,null,null,null,null,null,null,null,null,null,null,null,null,null,null,null,null,null,null,null,null,null,null,null,null,null,null,null,null,null,null,null,null,null,null,null,null,null,null,null,null,null,null,null,null,null,null,null,null,null,null,null,null,null,null,null,null,null,null,null,null,null,null,null,null,null,null,null,null,null,null,null,null,null,null,null,null,null,null,null,null,null,null,null,null,null,null,null,"Catégorie","Article","Code article","Total BM","Date création","Numéro création","Mois BM"]
[null,null,null,null,null,null,null,null,null,null,null,null,null,null,null,null,null,null,null,null,null,null,null,null,null,null,null,null,null,null,null,null,null,null,null,null,null,null,null,null,null,null,null,null,null,null,null,null,null,null,null,null,null,null,null,null,null,null,null,null,null,null,null,null,null,null,null,null,null,null,null,null,null,null,null,null,null,null,null,null,null,null,null,null,null,null,null,null,null,null,null,null,null,null,null,null,null,null,null,null,null,null,null,null,null,null,null,null,null,null,null,null,null,null,null,null,null,null,null,null,null,null,null,null,null,null,null,null,null,null,null,null,null,null,null,null,null,null,null,null,null,null,null,null,null,null,null,null,null,null,null,null,null,null,null,null,null,null,null,null,null,null,null,null,null,null,null,null,null,null,null,null,null,null,null,null,null,null,null,null,null,null,null,null,null,null,null,null,null,null,null,null,null,null,null,null,null,null,null,null,null,null,null,null,null,null,null,null,null,null,null,null,null,null,null,null,null,null,null,null,null,null,null,null,null,null,null,null,null,null,null,null,null,null,null,null,null,null,null,null,null,null,null,null,null,null,null,null,null,null,null,null,null,null,null,null,null,null,null,null,null,null,null,null,null,null,null,null,null,null,null,null,null,null,null,null,null,null,null,null,null,null,null,null,null,null,null,null,null,null,null,null,null,null,null,null,null,null,null,null,null,null,null,null,null,null,null,null,null,null,null,null,null,null,null,null,null,null,null,null,null,null,null,null,{"$f":"\"Imprimé à Limeil-Brévannes, le \"&TEXT(TODAY(),\"jjjj j mmmm aaaa\")&\".\"","v":"Imprimé à Limeil-Brévannes, le samedi 6 juillet 2024."},null,null,null,null,null,null,null,null,null,null,null,{"$f":"\"Imprimé à Limeil-Brévannes, le \"&TEXT(TODAY(),\"jjjj j mmmm aaaa\")&\".\"","v":"Imprimé à Limeil-Brévannes, le samedi 6 juillet 2024."},null,null,null,null,null,null,null,null,null,null,null,{"$f":"\"Imprimé à Limeil-Brévannes, le \"&TEXT(TODAY(),\"jjjj j mmmm aaaa\")&\".\"","v":"Imprimé à Limeil-Brévannes, le samedi 6 juillet 2024."},null,null,null,null,null,null,null,null,null,null,null,{"$f":"\"Imprimé à Limeil-Brévannes, le \"&TEXT(TODAY(),\"jjjj j mmmm aaaa\")&\".\"","v":"Imprimé à Limeil-Brévannes, le samedi 6 juillet 2024."},null,null,null,null,null,null,null,null,null,null,null,{"$f":"\"Imprimé à Limeil-Brévannes, le \"&TEXT(TODAY(),\"jjjj j mmmm aaaa\")&\".\"","v":"Imprimé à Limeil-Brévannes, le samedi 6 juillet 2024."},null,null,null,null,null,null,null,null,null,null,null,{"$f":"\"Imprimé à Limeil-Brévannes, le \"&TEXT(TODAY(),\"jjjj j mmmm aaaa\")&\".\"","v":"Imprimé à Limeil-Brévannes, le samedi 6 juillet 2024."},null,null,null,null,null,null,null,null,null,null,null,{"$f":"\"Imprimé à Limeil-Brévannes, le \"&TEXT(TODAY(),\"jjjj j mmmm aaaa\")&\".\"","v":"Imprimé à Limeil-Brévannes, le samedi 6 juillet 2024."}]
[null,null,null,null,null,null,null,null,null,null,null,null,null,null,null,null,null,null,null,null,null,null,null,null,null,null,null,null,null,null,null,null,null,null,null,null,null,null,null,null,null,null,null,null,null,null,null,null,null,null,null,null,null,null,null,null,null,null,null,null,null,null,null,null,null,null,null,null,null,null,null,null,null,null,null,null,null,null,null,null,null,null,null,null,null,null,null,null,null,null,null,null,null,null,null,null,null,null,null,null,null,null,null,null,null,null,null,null,null,null,null,null,null,null,null,null,null,null,null,null,null,null,null,null,null,null,null,null,null,null,null,null,null,null,null,null,null,null,null,null,null,null,null,null,null,null,null,null,null,null,null,null,null,null,null,null,null,null,null,null,null,null,null,null,null,null,null,null,null,null,null,null,null,null,null,null,null,null,null,null,null,null,null,null,null,null,null,null,null,null,null,null,null,null,null,null,null,null,null,null,null,null,null,null,null,null,null,null,null,null,null,null,null,null,null,null,null,null,null,null,null,null,null,null,null,null,null,null,null,null,null,null,null,null,null,null,null,null,null,null,null,null,null,null,null,null,null,null,null,null,null,null,null,null,null,null,null,null,null,null,null,null,null,null,null,null,null,null,null,null,null,null,null,null,null,null,null,null,null,null,null,null,null,null,null,null,null,null,null,null,null,null,null,null,null,null,null,null,null,null,null,null,null,null,null,null,null,null,null,null,null,null,{"$f":"\"Imprimé à Limeil-Brévannes, le \"&TEXT(TODAY(),\"jjjj j mmmm aaaa\")&\".\"","v":"Imprimé à Limeil-Brévannes, le samedi 6 juillet 2024."},null,null,null,null,null,null,null,null,null,null,null,{"$f":"\"Budget mensuel des dépenses bancaires du mois de \" &TabBDCréditsBudgétairesBudgetMensuelDépensesBancaires9[Mois BM]&\".\"","v":"Budget mensuel des dépenses bancaires du mois de ."},null,null,null,null,null,null,null,null,null,null,null,{"$f":"\"Budget mensuel des dépenses horticoles du mois de \" &TabBDCréditsBudgétairesBudgetMensuelDépensesHorticoles9[Mois BM]&\".\"","v":"Budget mensuel des dépenses horticoles du mois de ."},null,null,null,null,null,null,null,null,null,null,null,{"$f":"\"Budget mensuel des dépenses médicales du mois de \" &TabBDCréditsBudgétairesBudgetMensuelDépensesMédicales9[Mois BM]&\".\"","v":"Budget mensuel des dépenses médicales du mois de ."},null,null,null,null,null,null,null,null,null,null,null,{"$f":"\"Budget mensuel des dépenses non alimentaires du mois de \" &TabBDCréditsBudgétairesBudgetMensuelDépensesNonAlimentaires9[Mois BM]&\".\"","v":"Budget mensuel des dépenses non alimentaires du mois de ."},null,null,null,null,null,null,null,null,null,null,null,{"$f":"\"Budget mensuel des recettes bancaires du mois de \" &TabBDCréditsBudgétairesBudgetMensuelRecettesBancaires9[Mois BM]&\".\"","v":"Budget mensuel des recettes bancaires du mois de ."},null,null,null,null,null,null,null,null,null,null,null,{"$f":"\"Budget mensuel des recettes médicales du mois de \" &TabBDCréditsBudgétairesBudgetMensuelRecettesMédicales9[Mois BM]&\".\"","v":"Budget mensuel des recettes médicales du mois de ."},null,null,null,null,null,null,null,null,null,null,null,{"$f":"\"Budget mensuel des recettes numéraires du mois de \" &TabBDCréditsBudgétairesBudgetMensuelRecettesNuméraires9[Mois BM]&\".\"","v":"Budget mensuel des recettes numéraires du mois de ."}]
[null,null,null,null,null,null,null,null,null,null,null,null,null,null,null,null,null,null,null,null,null,null,null,null,null,null,null,null,null,null,null,null,null,null,null,null,null,null,null,null,null,null,null,null,null,null,null,null,null,null,null,null,null,null,null,null,null,null,null,null,null,null,null,null,null,null,null,null,null,null,null,null,null,null,null,null,null,null,null,null,null,null,null,null,null,null,null,null,null,null,null,null,null,null,null,null,null,null,null,null,null,null,null,null,null,null,null,null,null,null,null,null,null,null,null,null,null,null,null,null,null,null,null,null,null,null,null,null,null,null,null,null,null,null,null,null,null,null,null,null,null,null,null,null,null,null,null,null,null,null,null,null,null,null,null,null,null,null,null,null,null,null,null,null,null,null,null,null,null,null,null,null,null,null,null,null,null,null,null,null,null,null,null,null,null,null,null,null,null,null,null,null,null,null,null,null,null,null,null,null,null,null,null,null,null,null,null,null,null,null,null,null,null,null,null,null,null,null,null,null,null,null,null,null,null,null,null,null,null,null,null,null,null,null,null,null,null,null,null,null,null,null,null,null,null,null,null,null,null,null,null,null,null,null,null,null,null,null,null,null,null,null,null,null,null,null,null,null,null,null,null,null,null,null,null,null,null,null,null,null,null,null,null,null,null,null,null,null,null,null,null,null,null,null,null,null,null,null,null,null,null,null,null,null,null,null,null,null,null,null,null,null,{"$f":"\"Budget mensuel des dépenses alimentaires du mois de \" &TabBDCréditsBudgétairesBudgetMensuelDépensesAlimentaires9[Mois BM]&\".\"","v":"Budget mensuel des dépenses alimentaires du mois de ."},null,null,null,null,null,null,null,null,null,null,null,"Catégorie","Article","Code article","Total BM","Date création","Numéro création","Mois BM",null,null,null,null,null,"Catégorie","Article","Code article","Total BM","Date création","Numéro création","Mois BM",null,null,null,null,null,"Catégorie","Article","Code article","Total BM","Date création","Numéro création","Mois BM",null,null,null,null,null,"Catégorie","Article","Code article","Total BM","Date création","Numéro création","Mois BM",null,null,null,null,null,"Catégorie","Article","Code article","Total BM","Date création","Numéro création","Mois BM",null,null,null,null,null,"Catégorie","Article","Code article","Total BM","Date création","Numéro création","Mois BM",null,null,null,null,null,"Catégorie","Article","Code article","Total BM","Date création","Numéro création","Mois BM"]
[null,null,null,null,null,null,null,null,null,null,null,null,null,null,null,null,null,null,null,null,null,null,null,null,null,null,null,null,null,null,null,null,null,null,null,null,null,null,null,null,null,null,null,null,null,null,null,null,null,null,null,null,null,null,null,null,null,null,null,null,null,null,null,null,null,null,null,null,null,null,null,null,null,null,null,null,null,null,null,null,null,null,null,null,null,null,null,null,null,null,null,null,null,null,null,null,null,null,null,null,null,null,null,null,null,null,null,null,null,null,null,null,null,null,null,null,null,null,null,null,null,null,null,null,null,null,null,null,null,null,null,null,null,null,null,null,null,null,null,null,null,null,null,null,null,null,null,null,null,null,null,null,null,null,null,null,null,null,null,null,null,null,null,null,null,null,null,null,null,null,null,null,null,null,null,null,null,null,null,null,null,null,null,null,null,null,null,null,null,null,null,null,null,null,null,null,null,null,null,null,null,null,null,null,null,null,null,null,null,null,null,null,null,null,null,null,null,null,null,null,null,null,null,null,null,null,null,null,null,null,null,null,null,null,null,null,null,null,null,null,null,null,null,null,null,null,null,null,null,null,null,null,null,null,null,null,null,null,null,null,null,null,null,null,null,null,null,null,null,null,null,null,null,null,null,null,null,null,null,null,null,null,null,null,null,null,null,null,null,null,null,null,null,null,null,null,null,null,null,null,null,null,null,null,null,null,null,null,null,null,null,null,"Catégorie","Article","Code article","Total BM","Date création","Numéro création","Mois BM"]
[null,null,null,null,null,null,null,null,null,null,null,null,null,null,null,null,null,null,null,null,null,null,null,null,null,null,null,null,null,null,null,null,null,null,null,null,null,null,null,null,null,null,null,null,null,null,null,null,null,null,null,null,null,null,null,null,null,null,null,null,null,null,null,null,null,null,null,null,null,null,null,null,null,null,null,null,null,null,null,null,null,null,null,null,null,null,null,null,null,null,null,null,null,null,null,null,null,null,null,null,null,null,null,null,null,null,null,null,null,null,null,null,null,null,null,null,null,null,null,null,null,null,null,null,null,null,null,null,null,null,null,null,null,null,null,null,null,null,null,null,null,null,null,null,null,null,null,null,null,null,null,null,null,null,null,null,null,null,null,null,null,null,null,null,null,null,null,null,null,null,null,null,null,null,null,null,null,null,null,null,null,null,null,null,null,null,null,null,null,null,null,null,null,null,null,null,null,null,null,null,null,null,null,null,null,null,null,null,null,null,null,null,null,null,null,null,null,null,null,null,null,null,null,null,null,null,null,null,null,null,null,null,null,null,null,null,null,null,null,null,null,null,null,null,null,null,null,null,null,null,null,null,null,null,null,null,null,null,null,null,null,null,null,null,null,null,null,null,null,null,null,null,null,null,null,null,null,null,null,null,null,null,null,null,null,null,null,null,null,null,null,null,null,null,null,null,null,null,null,null,null,null,null,null,null,null,null,null,null,null,null,null,null,null,null,null,null,null,null,null,null,null,null,null,{"$f":"\"Imprimé à Limeil-Brévannes, le \"&TEXT(TODAY(),\"jjjj j mmmm aaaa\")&\".\"","v":"Imprimé à Limeil-Brévannes, le samedi 6 juillet 2024."},null,null,null,null,null,null,null,null,null,null,null,{"$f":"\"Imprimé à Limeil-Brévannes, le \"&TEXT(TODAY(),\"jjjj j mmmm aaaa\")&\".\"","v":"Imprimé à Limeil-Brévannes, le samedi 6 juillet 2024."},null,null,null,null,null,null,null,null,null,null,null,{"$f":"\"Imprimé à Limeil-Brévannes, le \"&TEXT(TODAY(),\"jjjj j mmmm aaaa\")&\".\"","v":"Imprimé à Limeil-Brévannes, le samedi 6 juillet 2024."},null,null,null,null,null,null,null,null,null,null,null,{"$f":"\"Imprimé à Limeil-Brévannes, le \"&TEXT(TODAY(),\"jjjj j mmmm aaaa\")&\".\"","v":"Imprimé à Limeil-Brévannes, le samedi 6 juillet 2024."},null,null,null,null,null,null,null,null,null,null,null,{"$f":"\"Imprimé à Limeil-Brévannes, le \"&TEXT(TODAY(),\"jjjj j mmmm aaaa\")&\".\"","v":"Imprimé à Limeil-Brévannes, le samedi 6 juillet 2024."},null,null,null,null,null,null,null,null,null,null,null,{"$f":"\"Imprimé à Limeil-Brévannes, le \"&TEXT(TODAY(),\"jjjj j mmmm aaaa\")&\".\"","v":"Imprimé à Limeil-Brévannes, le samedi 6 juillet 2024."},null,null,null,null,null,null,null,null,null,null,null,{"$f":"\"Imprimé à Limeil-Brévannes, le \"&TEXT(TODAY(),\"jjjj j mmmm aaaa\")&\".\"","v":"Imprimé à Limeil-Brévannes, le samedi 6 juillet 2024."}]
[null,null,null,null,null,null,null,null,null,null,null,null,null,null,null,null,null,null,null,null,null,null,null,null,null,null,null,null,null,null,null,null,null,null,null,null,null,null,null,null,null,null,null,null,null,null,null,null,null,null,null,null,null,null,null,null,null,null,null,null,null,null,null,null,null,null,null,null,null,null,null,null,null,null,null,null,null,null,null,null,null,null,null,null,null,null,null,null,null,null,null,null,null,null,null,null,null,null,null,null,null,null,null,null,null,null,null,null,null,null,null,null,null,null,null,null,null,null,null,null,null,null,null,null,null,null,null,null,null,null,null,null,null,null,null,null,null,null,null,null,null,null,null,null,null,null,null,null,null,null,null,null,null,null,null,null,null,null,null,null,null,null,null,null,null,null,null,null,null,null,null,null,null,null,null,null,null,null,null,null,null,null,null,null,null,null,null,null,null,null,null,null,null,null,null,null,null,null,null,null,null,null,null,null,null,null,null,null,null,null,null,null,null,null,null,null,null,null,null,null,null,null,null,null,null,null,null,null,null,null,null,null,null,null,null,null,null,null,null,null,null,null,null,null,null,null,null,null,null,null,null,null,null,null,null,null,null,null,null,null,null,null,null,null,null,null,null,null,null,null,null,null,null,null,null,null,null,null,null,null,null,null,null,null,null,null,null,null,null,null,null,null,null,null,null,null,null,null,null,null,null,null,null,null,null,null,null,null,null,null,null,null,{"$f":"\"Imprimé à Limeil-Brévannes, le \"&TEXT(TODAY(),\"jjjj j mmmm aaaa\")&\".\"","v":"Imprimé à Limeil-Brévannes, le samedi 6 juillet 2024."},null,null,null,null,null,null,null,null,null,null,null,{"$f":"\"Budget mensuel des dépenses bancaires du mois d'\" &TabBDCréditsBudgétairesBudgetMensuelDépensesBancaires10[Mois BM]&\".\"","v":"Budget mensuel des dépenses bancaires du mois d'."},null,null,null,null,null,null,null,null,null,null,null,{"$f":"\"Budget mensuel des dépenses horticoles du mois d'\" &TabBDCréditsBudgétairesBudgetMensuelDépensesHorticoles10[Mois BM]&\".\"","v":"Budget mensuel des dépenses horticoles du mois d'."},null,null,null,null,null,null,null,null,null,null,null,{"$f":"\"Budget mensuel des dépenses médicales du mois d'\" &TabBDCréditsBudgétairesBudgetMensuelDépensesMédicales10[Mois BM]&\".\"","v":"Budget mensuel des dépenses médicales du mois d'."},null,null,null,null,null,null,null,null,null,null,null,{"$f":"\"Budget mensuel des dépenses non alimentaires du mois d'\" &TabBDCréditsBudgétairesBudgetMensuelDépensesNonAlimentaires10[Mois BM]&\".\"","v":"Budget mensuel des dépenses non alimentaires du mois d'."},null,null,null,null,null,null,null,null,null,null,null,{"$f":"\"Budget mensuel des recettes bancaires du mois d'\" &TabBDCréditsBudgétairesBudgetMensuelrecettesBancaires10[Mois BM]&\".\"","v":"Budget mensuel des recettes bancaires du mois d'."},null,null,null,null,null,null,null,null,null,null,null,{"$f":"\"Budget mensuel des recettes médicales du mois d'\" &TabBDCréditsBudgétairesBudgetMensuelrecettesMédicales10[Mois BM]&\".\"","v":"Budget mensuel des recettes médicales du mois d'."},null,null,null,null,null,null,null,null,null,null,null,{"$f":"\"Budget mensuel des recettes numéraires du mois d'\" &TabBDCréditsBudgétairesBudgetMensuelrecettesNuméraires10[Mois BM]&\".\"","v":"Budget mensuel des recettes numéraires du mois d'."}]
[null,null,null,null,null,null,null,null,null,null,null,null,null,null,null,null,null,null,null,null,null,null,null,null,null,null,null,null,null,null,null,null,null,null,null,null,null,null,null,null,null,null,null,null,null,null,null,null,null,null,null,null,null,null,null,null,null,null,null,null,null,null,null,null,null,null,null,null,null,null,null,null,null,null,null,null,null,null,null,null,null,null,null,null,null,null,null,null,null,null,null,null,null,null,null,null,null,null,null,null,null,null,null,null,null,null,null,null,null,null,null,null,null,null,null,null,null,null,null,null,null,null,null,null,null,null,null,null,null,null,null,null,null,null,null,null,null,null,null,null,null,null,null,null,null,null,null,null,null,null,null,null,null,null,null,null,null,null,null,null,null,null,null,null,null,null,null,null,null,null,null,null,null,null,null,null,null,null,null,null,null,null,null,null,null,null,null,null,null,null,null,null,null,null,null,null,null,null,null,null,null,null,null,null,null,null,null,null,null,null,null,null,null,null,null,null,null,null,null,null,null,null,null,null,null,null,null,null,null,null,null,null,null,null,null,null,null,null,null,null,null,null,null,null,null,null,null,null,null,null,null,null,null,null,null,null,null,null,null,null,null,null,null,null,null,null,null,null,null,null,null,null,null,null,null,null,null,null,null,null,null,null,null,null,null,null,null,null,null,null,null,null,null,null,null,null,null,null,null,null,null,null,null,null,null,null,null,null,null,null,null,null,{"$f":"\"Budget mensuel des dépenses alimentaires du mois d'\" &TabBDCréditsBudgétairesBudgetMensuelDépensesAlimentaires10[Mois BM]&\".\"","v":"Budget mensuel des dépenses alimentaires du mois d'."},null,null,null,null,null,null,null,null,null,null,null,"Catégorie","Article","Code article","Total BM","Date création","Numéro création","Mois BM",null,null,null,null,null,"Catégorie","Article","Code article","Total BM","Date création","Numéro création","Mois BM",null,null,null,null,null,"Catégorie","Article","Code article","Total BM","Date création","Numéro création","Mois BM",null,null,null,null,null,"Catégorie","Article","Code article","Total BM","Date création","Numéro création","Mois BM",null,null,null,null,null,"Catégorie","Article","Code article","Total BM","Date création","Numéro création","Mois BM",null,null,null,null,null,"Catégorie","Article","Code article","Total BM","Date création","Numéro création","Mois BM",null,null,null,null,null,"Catégorie","Article","Code article","Total BM","Date création","Numéro création","Mois BM"]
[null,null,null,null,null,null,null,null,null,null,null,null,null,null,null,null,null,null,null,null,null,null,null,null,null,null,null,null,null,null,null,null,null,null,null,null,null,null,null,null,null,null,null,null,null,null,null,null,null,null,null,null,null,null,null,null,null,null,null,null,null,null,null,null,null,null,null,null,null,null,null,null,null,null,null,null,null,null,null,null,null,null,null,null,null,null,null,null,null,null,null,null,null,null,null,null,null,null,null,null,null,null,null,null,null,null,null,null,null,null,null,null,null,null,null,null,null,null,null,null,null,null,null,null,null,null,null,null,null,null,null,null,null,null,null,null,null,null,null,null,null,null,null,null,null,null,null,null,null,null,null,null,null,null,null,null,null,null,null,null,null,null,null,null,null,null,null,null,null,null,null,null,null,null,null,null,null,null,null,null,null,null,null,null,null,null,null,null,null,null,null,null,null,null,null,null,null,null,null,null,null,null,null,null,null,null,null,null,null,null,null,null,null,null,null,null,null,null,null,null,null,null,null,null,null,null,null,null,null,null,null,null,null,null,null,null,null,null,null,null,null,null,null,null,null,null,null,null,null,null,null,null,null,null,null,null,null,null,null,null,null,null,null,null,null,null,null,null,null,null,null,null,null,null,null,null,null,null,null,null,null,null,null,null,null,null,null,null,null,null,null,null,null,null,null,null,null,null,null,null,null,null,null,null,null,null,null,null,null,null,null,null,"Catégorie","Article","Code article","Total BM","Date création","Numéro création","Mois BM"]
[null,null,null,null,null,null,null,null,null,null,null,null,null,null,null,null,null,null,null,null,null,null,null,null,null,null,null,null,null,null,null,null,null,null,null,null,null,null,null,null,null,null,null,null,null,null,null,null,null,null,null,null,null,null,null,null,null,null,null,null,null,null,null,null,null,null,null,null,null,null,null,null,null,null,null,null,null,null,null,null,null,null,null,null,null,null,null,null,null,null,null,null,null,null,null,null,null,null,null,null,null,null,null,null,null,null,null,null,null,null,null,null,null,null,null,null,null,null,null,null,null,null,null,null,null,null,null,null,null,null,null,null,null,null,null,null,null,null,null,null,null,null,null,null,null,null,null,null,null,null,null,null,null,null,null,null,null,null,null,null,null,null,null,null,null,null,null,null,null,null,null,null,null,null,null,null,null,null,null,null,null,null,null,null,null,null,null,null,null,null,null,null,null,null,null,null,null,null,null,null,null,null,null,null,null,null,null,null,null,null,null,null,null,null,null,null,null,null,null,null,null,null,null,null,null,null,null,null,null,null,null,null,null,null,null,null,null,null,null,null,null,null,null,null,null,null,null,null,null,null,null,null,null,null,null,null,null,null,null,null,null,null,null,null,null,null,null,null,null,null,null,null,null,null,null,null,null,null,null,null,null,null,null,null,null,null,null,null,null,null,null,null,null,null,null,null,null,null,null,null,null,null,null,null,null,null,null,null,null,null,null,null,null,null,null,null,null,null,null,null,null,null,null,null,{"$f":"\"Imprimé à Limeil-Brévannes, le \"&TEXT(TODAY(),\"jjjj j mmmm aaaa\")&\".\"","v":"Imprimé à Limeil-Brévannes, le samedi 6 juillet 2024."},null,null,null,null,null,null,null,null,null,null,null,{"$f":"\"Imprimé à Limeil-Brévannes, le \"&TEXT(TODAY(),\"jjjj j mmmm aaaa\")&\".\"","v":"Imprimé à Limeil-Brévannes, le samedi 6 juillet 2024."},null,null,null,null,null,null,null,null,null,null,null,{"$f":"\"Imprimé à Limeil-Brévannes, le \"&TEXT(TODAY(),\"jjjj j mmmm aaaa\")&\".\"","v":"Imprimé à Limeil-Brévannes, le samedi 6 juillet 2024."},null,null,null,null,null,null,null,null,null,null,null,{"$f":"\"Imprimé à Limeil-Brévannes, le \"&TEXT(TODAY(),\"jjjj j mmmm aaaa\")&\".\"","v":"Imprimé à Limeil-Brévannes, le samedi 6 juillet 2024."},null,null,null,null,null,null,null,null,null,null,null,{"$f":"\"Imprimé à Limeil-Brévannes, le \"&TEXT(TODAY(),\"jjjj j mmmm aaaa\")&\".\"","v":"Imprimé à Limeil-Brévannes, le samedi 6 juillet 2024."},null,null,null,null,null,null,null,null,null,null,null,{"$f":"\"Imprimé à Limeil-Brévannes, le \"&TEXT(TODAY(),\"jjjj j mmmm aaaa\")&\".\"","v":"Imprimé à Limeil-Brévannes, le samedi 6 juillet 2024."},null,null,null,null,null,null,null,null,null,null,null,{"$f":"\"Imprimé à Limeil-Brévannes, le \"&TEXT(TODAY(),\"jjjj j mmmm aaaa\")&\".\"","v":"Imprimé à Limeil-Brévannes, le samedi 6 juillet 2024."}]
[null,null,null,null,null,null,null,null,null,null,null,null,null,null,null,null,null,null,null,null,null,null,null,null,null,null,null,null,null,null,null,null,null,null,null,null,null,null,null,null,null,null,null,null,null,null,null,null,null,null,null,null,null,null,null,null,null,null,null,null,null,null,null,null,null,null,null,null,null,null,null,null,null,null,null,null,null,null,null,null,null,null,null,null,null,null,null,null,null,null,null,null,null,null,null,null,null,null,null,null,null,null,null,null,null,null,null,null,null,null,null,null,null,null,null,null,null,null,null,null,null,null,null,null,null,null,null,null,null,null,null,null,null,null,null,null,null,null,null,null,null,null,null,null,null,null,null,null,null,null,null,null,null,null,null,null,null,null,null,null,null,null,null,null,null,null,null,null,null,null,null,null,null,null,null,null,null,null,null,null,null,null,null,null,null,null,null,null,null,null,null,null,null,null,null,null,null,null,null,null,null,null,null,null,null,null,null,null,null,null,null,null,null,null,null,null,null,null,null,null,null,null,null,null,null,null,null,null,null,null,null,null,null,null,null,null,null,null,null,null,null,null,null,null,null,null,null,null,null,null,null,null,null,null,null,null,null,null,null,null,null,null,null,null,null,null,null,null,null,null,null,null,null,null,null,null,null,null,null,null,null,null,null,null,null,null,null,null,null,null,null,null,null,null,null,null,null,null,null,null,null,null,null,null,null,null,null,null,null,null,null,null,{"$f":"\"Imprimé à Limeil-Brévannes, le \"&TEXT(TODAY(),\"jjjj j mmmm aaaa\")&\".\"","v":"Imprimé à Limeil-Brévannes, le samedi 6 juillet 2024."},null,null,null,null,null,null,null,null,null,null,null,{"$f":"\"Budget mensuel des dépenses bancaires du mois de \" &TabBDCréditsBudgétairesBudgetMensuelDépensesBancaires11[Mois BM]&\".\"","v":"Budget mensuel des dépenses bancaires du mois de ."},null,null,null,null,null,null,null,null,null,null,null,{"$f":"\"Budget mensuel des dépenses horticoles du mois de \" &TabBDCréditsBudgétairesBudgetMensuelDépensesHorticoles11[Mois BM]&\".\"","v":"Budget mensuel des dépenses horticoles du mois de ."},null,null,null,null,null,null,null,null,null,null,null,{"$f":"\"Budget mensuel des dépenses médicales du mois de \" &TabBDCréditsBudgétairesBudgetMensuelDépensesMédicales11[Mois BM]&\".\"","v":"Budget mensuel des dépenses médicales du mois de ."},null,null,null,null,null,null,null,null,null,null,null,{"$f":"\"Budget mensuel des dépenses non alimentaires du mois de \" &TabBDCréditsBudgétairesBudgetMensuelDépensesNonAlimentaires11[Mois BM]&\".\"","v":"Budget mensuel des dépenses non alimentaires du mois de ."},null,null,null,null,null,null,null,null,null,null,null,{"$f":"\"Budget mensuel des recettes bancaires du mois de \" &TabBDCréditsBudgétairesBudgetMensuelRecettesBancaires11[Mois BM]&\".\"","v":"Budget mensuel des recettes bancaires du mois de ."},null,null,null,null,null,null,null,null,null,null,null,{"$f":"\"Budget mensuel des recettes médicales du mois de \" &TabBDCréditsBudgétairesBudgetMensuelRecettesMédicales11[Mois BM]&\".\"","v":"Budget mensuel des recettes médicales du mois de ."},null,null,null,null,null,null,null,null,null,null,null,{"$f":"\"Budget mensuel des recettes numéraires du mois de \" &TabBDCréditsBudgétairesBudgetMensuelRecettesNuméraires11[Mois BM]&\".\"","v":"Budget mensuel des recettes numéraires du mois de ."}]
[null,null,null,null,null,null,null,null,null,null,null,null,null,null,null,null,null,null,null,null,null,null,null,null,null,null,null,null,null,null,null,null,null,null,null,null,null,null,null,null,null,null,null,null,null,null,null,null,null,null,null,null,null,null,null,null,null,null,null,null,null,null,null,null,null,null,null,null,null,null,null,null,null,null,null,null,null,null,null,null,null,null,null,null,null,null,null,null,null,null,null,null,null,null,null,null,null,null,null,null,null,null,null,null,null,null,null,null,null,null,null,null,null,null,null,null,null,null,null,null,null,null,null,null,null,null,null,null,null,null,null,null,null,null,null,null,null,null,null,null,null,null,null,null,null,null,null,null,null,null,null,null,null,null,null,null,null,null,null,null,null,null,null,null,null,null,null,null,null,null,null,null,null,null,null,null,null,null,null,null,null,null,null,null,null,null,null,null,null,null,null,null,null,null,null,null,null,null,null,null,null,null,null,null,null,null,null,null,null,null,null,null,null,null,null,null,null,null,null,null,null,null,null,null,null,null,null,null,null,null,null,null,null,null,null,null,null,null,null,null,null,null,null,null,null,null,null,null,null,null,null,null,null,null,null,null,null,null,null,null,null,null,null,null,null,null,null,null,null,null,null,null,null,null,null,null,null,null,null,null,null,null,null,null,null,null,null,null,null,null,null,null,null,null,null,null,null,null,null,null,null,null,null,null,null,null,null,null,null,null,null,null,{"$f":"\"Budget mensuel des dépenses alimentaires du mois de \" &TabBDCréditsBudgétairesBudgetMensuelDépensesAlimentaires11[Mois BM]&\".\"","v":"Budget mensuel des dépenses alimentaires du mois de ."},null,null,null,null,null,null,null,null,null,null,null,"Catégorie","Article","Code article","Total BM","Date création","Numéro création","Mois BM",null,null,null,null,null,"Catégorie","Article","Code article","Total BM","Date création","Numéro création","Mois BM",null,null,null,null,null,"Catégorie","Article","Code article","Total BM","Date création","Numéro création","Mois BM",null,null,null,null,null,"Catégorie","Article","Code article","Total BM","Date création","Numéro création","Mois BM",null,null,null,null,null,"Catégorie","Article","Code article","Total BM","Date création","Numéro création","Mois BM",null,null,null,null,null,"Catégorie","Article","Code article","Total BM","Date création","Numéro création","Mois BM",null,null,null,null,null,"Catégorie","Article","Code article","Total BM","Date création","Numéro création","Mois BM"]
[null,null,null,null,null,null,null,null,null,null,null,null,null,null,null,null,null,null,null,null,null,null,null,null,null,null,null,null,null,null,null,null,null,null,null,null,null,null,null,null,null,null,null,null,null,null,null,null,null,null,null,null,null,null,null,null,null,null,null,null,null,null,null,null,null,null,null,null,null,null,null,null,null,null,null,null,null,null,null,null,null,null,null,null,null,null,null,null,null,null,null,null,null,null,null,null,null,null,null,null,null,null,null,null,null,null,null,null,null,null,null,null,null,null,null,null,null,null,null,null,null,null,null,null,null,null,null,null,null,null,null,null,null,null,null,null,null,null,null,null,null,null,null,null,null,null,null,null,null,null,null,null,null,null,null,null,null,null,null,null,null,null,null,null,null,null,null,null,null,null,null,null,null,null,null,null,null,null,null,null,null,null,null,null,null,null,null,null,null,null,null,null,null,null,null,null,null,null,null,null,null,null,null,null,null,null,null,null,null,null,null,null,null,null,null,null,null,null,null,null,null,null,null,null,null,null,null,null,null,null,null,null,null,null,null,null,null,null,null,null,null,null,null,null,null,null,null,null,null,null,null,null,null,null,null,null,null,null,null,null,null,null,null,null,null,null,null,null,null,null,null,null,null,null,null,null,null,null,null,null,null,null,null,null,null,null,null,null,null,null,null,null,null,null,null,null,null,null,null,null,null,null,null,null,null,null,null,null,null,null,null,null,"Catégorie","Article","Code article","Total BM","Date création","Numéro création","Mois BM"]
[null,null,null,null,null,null,null,null,null,null,null,null,null,null,null,null,null,null,null,null,null,null,null,null,null,null,null,null,null,null,null,null,null,null,null,null,null,null,null,null,null,null,null,null,null,null,null,null,null,null,null,null,null,null,null,null,null,null,null,null,null,null,null,null,null,null,null,null,null,null,null,null,null,null,null,null,null,null,null,null,null,null,null,null,null,null,null,null,null,null,null,null,null,null,null,null,null,null,null,null,null,null,null,null,null,null,null,null,null,null,null,null,null,null,null,null,null,null,null,null,null,null,null,null,null,null,null,null,null,null,null,null,null,null,null,null,null,null,null,null,null,null,null,null,null,null,null,null,null,null,null,null,null,null,null,null,null,null,null,null,null,null,null,null,null,null,null,null,null,null,null,null,null,null,null,null,null,null,null,null,null,null,null,null,null,null,null,null,null,null,null,null,null,null,null,null,null,null,null,null,null,null,null,null,null,null,null,null,null,null,null,null,null,null,null,null,null,null,null,null,null,null,null,null,null,null,null,null,null,null,null,null,null,null,null,null,null,null,null,null,null,null,null,null,null,null,null,null,null,null,null,null,null,null,null,null,null,null,null,null,null,null,null,null,null,null,null,null,null,null,null,null,null,null,null,null,null,null,null,null,null,null,null,null,null,null,null,null,null,null,null,null,null,null,null,null,null,null,null,null,null,null,null,null,null,null,null,null,null,null,null,null,null,null,null,null,null,null,null,null,null,null,null,null,{"$f":"\"Imprimé à Limeil-Brévannes, le \"&TEXT(TODAY(),\"jjjj j mmmm aaaa\")&\".\"","v":"Imprimé à Limeil-Brévannes, le samedi 6 juillet 2024."},null,null,null,null,null,null,null,null,null,null,null,{"$f":"\"Imprimé à Limeil-Brévannes, le \"&TEXT(TODAY(),\"jjjj j mmmm aaaa\")&\".\"","v":"Imprimé à Limeil-Brévannes, le samedi 6 juillet 2024."},null,null,null,null,null,null,null,null,null,null,null,{"$f":"\"Imprimé à Limeil-Brévannes, le \"&TEXT(TODAY(),\"jjjj j mmmm aaaa\")&\".\"","v":"Imprimé à Limeil-Brévannes, le samedi 6 juillet 2024."},null,null,null,null,null,null,null,null,null,null,null,{"$f":"\"Imprimé à Limeil-Brévannes, le \"&TEXT(TODAY(),\"jjjj j mmmm aaaa\")&\".\"","v":"Imprimé à Limeil-Brévannes, le samedi 6 juillet 2024."},null,null,null,null,null,null,null,null,null,null,null,{"$f":"\"Imprimé à Limeil-Brévannes, le \"&TEXT(TODAY(),\"jjjj j mmmm aaaa\")&\".\"","v":"Imprimé à Limeil-Brévannes, le samedi 6 juillet 2024."},null,null,null,null,null,null,null,null,null,null,null,{"$f":"\"Imprimé à Limeil-Brévannes, le \"&TEXT(TODAY(),\"jjjj j mmmm aaaa\")&\".\"","v":"Imprimé à Limeil-Brévannes, le samedi 6 juillet 2024."},null,null,null,null,null,null,null,null,null,null,null,{"$f":"\"Imprimé à Limeil-Brévannes, le \"&TEXT(TODAY(),\"jjjj j mmmm aaaa\")&\".\"","v":"Imprimé à Limeil-Brévannes, le samedi 6 juillet 2024."}]
[null,null,null,null,null,null,null,null,null,null,null,null,null,null,null,null,null,null,null,null,null,null,null,null,null,null,null,null,null,null,null,null,null,null,null,null,null,null,null,null,null,null,null,null,null,null,null,null,null,null,null,null,null,null,null,null,null,null,null,null,null,null,null,null,null,null,null,null,null,null,null,null,null,null,null,null,null,null,null,null,null,null,null,null,null,null,null,null,null,null,null,null,null,null,null,null,null,null,null,null,null,null,null,null,null,null,null,null,null,null,null,null,null,null,null,null,null,null,null,null,null,null,null,null,null,null,null,null,null,null,null,null,null,null,null,null,null,null,null,null,null,null,null,null,null,null,null,null,null,null,null,null,null,null,null,null,null,null,null,null,null,null,null,null,null,null,null,null,null,null,null,null,null,null,null,null,null,null,null,null,null,null,null,null,null,null,null,null,null,null,null,null,null,null,null,null,null,null,null,null,null,null,null,null,null,null,null,null,null,null,null,null,null,null,null,null,null,null,null,null,null,null,null,null,null,null,null,null,null,null,null,null,null,null,null,null,null,null,null,null,null,null,null,null,null,null,null,null,null,null,null,null,null,null,null,null,null,null,null,null,null,null,null,null,null,null,null,null,null,null,null,null,null,null,null,null,null,null,null,null,null,null,null,null,null,null,null,null,null,null,null,null,null,null,null,null,null,null,null,null,null,null,null,null,null,null,null,null,null,null,null,null,{"$f":"\"Imprimé à Limeil-Brévannes, le \"&TEXT(TODAY(),\"jjjj j mmmm aaaa\")&\".\"","v":"Imprimé à Limeil-Brévannes, le samedi 6 juillet 2024."},null,null,null,null,null,null,null,null,null,null,null,{"$f":"\"Budget mensuel des dépenses bancaires du mois de \" &TabBDCréditsBudgétairesBudgetMensuelDépensesBancaires12[Mois BM]&\".\"","v":"Budget mensuel des dépenses bancaires du mois de ."},null,null,null,null,null,null,null,null,null,null,null,{"$f":"\"Budget mensuel des dépenses horticoles du mois de \" &TabBDCréditsBudgétairesBudgetMensuelDépensesHorticoles12[Mois BM]&\".\"","v":"Budget mensuel des dépenses horticoles du mois de ."},null,null,null,null,null,null,null,null,null,null,null,{"$f":"\"Budget mensuel des dépenses médicales du mois de \" &TabBDCréditsBudgétairesBudgetMensuelDépensesMédicales12[Mois BM]&\".\"","v":"Budget mensuel des dépenses médicales du mois de ."},null,null,null,null,null,null,null,null,null,null,null,{"$f":"\"Budget mensuel des dépenses non alimentaires du mois de \" &TabBDCréditsBudgétairesBudgetMensuelDépensesNonAlimentaires12[Mois BM]&\".\"","v":"Budget mensuel des dépenses non alimentaires du mois de ."},null,null,null,null,null,null,null,null,null,null,null,{"$f":"\"Budget mensuel des recettes bancaires du mois de \" &TabBDCréditsBudgétairesBudgetMensuelRecettesBancaires12[Mois BM]&\".\"","v":"Budget mensuel des recettes bancaires du mois de ."},null,null,null,null,null,null,null,null,null,null,null,{"$f":"\"Budget mensuel des recettes médicales du mois de \" &TabBDCréditsBudgétairesBudgetMensuelRecettesMédicales12[Mois BM]&\".\"","v":"Budget mensuel des recettes médicales du mois de ."},null,null,null,null,null,null,null,null,null,null,null,{"$f":"\"Budget mensuel des recettes numéraires du mois de \" &TabBDCréditsBudgétairesBudgetMensuelRecettesNuméraires12[Mois BM]&\".\"","v":"Budget mensuel des recettes numéraires du mois de ."}]
[null,null,null,null,null,null,null,null,null,null,null,null,null,null,null,null,null,null,null,null,null,null,null,null,null,null,null,null,null,null,null,null,null,null,null,null,null,null,null,null,null,null,null,null,null,null,null,null,null,null,null,null,null,null,null,null,null,null,null,null,null,null,null,null,null,null,null,null,null,null,null,null,null,null,null,null,null,null,null,null,null,null,null,null,null,null,null,null,null,null,null,null,null,null,null,null,null,null,null,null,null,null,null,null,null,null,null,null,null,null,null,null,null,null,null,null,null,null,null,null,null,null,null,null,null,null,null,null,null,null,null,null,null,null,null,null,null,null,null,null,null,null,null,null,null,null,null,null,null,null,null,null,null,null,null,null,null,null,null,null,null,null,null,null,null,null,null,null,null,null,null,null,null,null,null,null,null,null,null,null,null,null,null,null,null,null,null,null,null,null,null,null,null,null,null,null,null,null,null,null,null,null,null,null,null,null,null,null,null,null,null,null,null,null,null,null,null,null,null,null,null,null,null,null,null,null,null,null,null,null,null,null,null,null,null,null,null,null,null,null,null,null,null,null,null,null,null,null,null,null,null,null,null,null,null,null,null,null,null,null,null,null,null,null,null,null,null,null,null,null,null,null,null,null,null,null,null,null,null,null,null,null,null,null,null,null,null,null,null,null,null,null,null,null,null,null,null,null,null,null,null,null,null,null,null,null,null,null,null,null,null,null,{"$f":"\"Budget mensuel des dépenses alimentaires du mois de \" &TabBDCréditsBudgétairesBudgetMensuelDépensesAlimentaires12[Mois BM]&\".\"","v":"Budget mensuel des dépenses alimentaires du mois de ."},null,null,null,null,null,null,null,null,null,null,null,"Catégorie","Article","Code article","Total BM","Date création","Numéro création","Mois BM",null,null,null,null,null,"Catégorie","Article","Code article","Total BM","Date création","Numéro création","Mois BM",null,null,null,null,null,"Catégorie","Article","Code article","Total BM","Date création","Numéro création","Mois BM",null,null,null,null,null,"Catégorie","Article","Code article","Total BM","Date création","Numéro création","Mois BM",null,null,null,null,null,"Catégorie","Article","Code article","Total BM","Date création","Numéro création","Mois BM",null,null,null,null,null,"Catégorie","Article","Code article","Total BM","Date création","Numéro création","Mois BM",null,null,null,null,null,"Catégorie","Article","Code article","Total BM","Date création","Numéro création","Mois BM"]
[null,null,null,null,null,null,null,null,null,null,null,null,null,null,null,null,null,null,null,null,null,null,null,null,null,null,null,null,null,null,null,null,null,null,null,null,null,null,null,null,null,null,null,null,null,null,null,null,null,null,null,null,null,null,null,null,null,null,null,null,null,null,null,null,null,null,null,null,null,null,null,null,null,null,null,null,null,null,null,null,null,null,null,null,null,null,null,null,null,null,null,null,null,null,null,null,null,null,null,null,null,null,null,null,null,null,null,null,null,null,null,null,null,null,null,null,null,null,null,null,null,null,null,null,null,null,null,null,null,null,null,null,null,null,null,null,null,null,null,null,null,null,null,null,null,null,null,null,null,null,null,null,null,null,null,null,null,null,null,null,null,null,null,null,null,null,null,null,null,null,null,null,null,null,null,null,null,null,null,null,null,null,null,null,null,null,null,null,null,null,null,null,null,null,null,null,null,null,null,null,null,null,null,null,null,null,null,null,null,null,null,null,null,null,null,null,null,null,null,null,null,null,null,null,null,null,null,null,null,null,null,null,null,null,null,null,null,null,null,null,null,null,null,null,null,null,null,null,null,null,null,null,null,null,null,null,null,null,null,null,null,null,null,null,null,null,null,null,null,null,null,null,null,null,null,null,null,null,null,null,null,null,null,null,null,null,null,null,null,null,null,null,null,null,null,null,null,null,null,null,null,null,null,null,null,null,null,null,null,null,null,null,"Catégorie","Article","Code article","Total BM","Date création","Numéro création","Mois BM"]
[null,null,null,null,null,null,null,null,null,null,null,null,null,null,null,null,null,null,null,null,null,null,null,null,null,null,null,null,null,null,null,null,null,null,null,null,null,null,null,null,null,null,null,null,null,null,null,null,null,null,null,null,null,null,null,null,null,null,null,null,null,null,null,null,null,null,null,null,null,null,null,null,null,null,null,null,null,null,null,null,null,null,null,null,null,null,null,null,null,null,null,null,null,null,null,null,null,null,null,null,null,null,null,null,null,null,null,null,null,null,null,null,null,null,null,null,null,null,null,null,null,null,null,null,null,null,null,null,null,null,null,null,null,null,null,null,null,null,null,null,null,null,null,null,null,null,null,null,null,null,null,null,null,null,null,null,null,null,null,null,null,null,null,null,null,null,null,null,null,null,null,null,null,null,null,null,null,null,null,null,null,null,null,null,null,null,null,null,null,null,null,null,null,null,null,null,null,null,null,null,null,null,null,null,null,null,null,null,null,null,null,null,null,null,null,null,null,null,null,null,null,null,null,null,null,null,null,null,null,null,null,null,null,null,null,null,null,null,null,null,null,null,null,null,null,null,null,null,null,null,null,null,null,null,null,null,null,null,null,null,null,null,null,null,null,null,null,null,null,null,null,null,null,null,null,null,null,null,null,null,null,null,null,null,null,null,null,null,null,null,null,null,null,null,null,null,null,null,null,null,null,null,null,null,null,null,null,null,null,null,null,null,null,null,null,null,null,null,null,null,null,null,null,null,{"$f":"\"Imprimé à Limeil-Brévannes, le \"&TEXT(TODAY(),\"jjjj j mmmm aaaa\")&\".\"","v":"Imprimé à Limeil-Brévannes, le samedi 6 juillet 2024."},null,null,null,null,null,null,null,null,null,null,null,{"$f":"\"Imprimé à Limeil-Brévannes, le \"&TEXT(TODAY(),\"jjjj j mmmm aaaa\")&\".\"","v":"Imprimé à Limeil-Brévannes, le samedi 6 juillet 2024."},null,null,null,null,null,null,null,null,null,null,null,{"$f":"\"Imprimé à Limeil-Brévannes, le \"&TEXT(TODAY(),\"jjjj j mmmm aaaa\")&\".\"","v":"Imprimé à Limeil-Brévannes, le samedi 6 juillet 2024."},null,null,null,null,null,null,null,null,null,null,null,{"$f":"\"Imprimé à Limeil-Brévannes, le \"&TEXT(TODAY(),\"jjjj j mmmm aaaa\")&\".\"","v":"Imprimé à Limeil-Brévannes, le samedi 6 juillet 2024."},null,null,null,null,null,null,null,null,null,null,null,{"$f":"\"Imprimé à Limeil-Brévannes, le \"&TEXT(TODAY(),\"jjjj j mmmm aaaa\")&\".\"","v":"Imprimé à Limeil-Brévannes, le samedi 6 juillet 2024."},null,null,null,null,null,null,null,null,null,null,null,{"$f":"\"Imprimé à Limeil-Brévannes, le \"&TEXT(TODAY(),\"jjjj j mmmm aaaa\")&\".\"","v":"Imprimé à Limeil-Brévannes, le samedi 6 juillet 2024."},null,null,null,null,null,null,null,null,null,null,null,{"$f":"\"Imprimé à Limeil-Brévannes, le \"&TEXT(TODAY(),\"jjjj j mmmm aaaa\")&\".\"","v":"Imprimé à Limeil-Brévannes, le samedi 6 juillet 2024."}]
[null,null,null,null,null,null,null,null,null,null,null,null,null,null,null,null,null,null,null,null,null,null,null,null,null,null,null,null,null,null,null,null,null,null,null,null,null,null,null,null,null,null,null,null,null,null,null,null,null,null,null,null,null,null,null,null,null,null,null,null,null,null,null,null,null,null,null,null,null,null,null,null,null,null,null,null,null,null,null,null,null,null,null,null,null,null,null,null,null,null,null,null,null,null,null,null,null,null,null,null,null,null,null,null,null,null,null,null,null,null,null,null,null,null,null,null,null,null,null,null,null,null,null,null,null,null,null,null,null,null,null,null,null,null,null,null,null,null,null,null,null,null,null,null,null,null,null,null,null,null,null,null,null,null,null,null,null,null,null,null,null,null,null,null,null,null,null,null,null,null,null,null,null,null,null,null,null,null,null,null,null,null,null,null,null,null,null,null,null,null,null,null,null,null,null,null,null,null,null,null,null,null,null,null,null,null,null,null,null,null,null,null,null,null,null,null,null,null,null,null,null,null,null,null,null,null,null,null,null,null,null,null,null,null,null,null,null,null,null,null,null,null,null,null,null,null,null,null,null,null,null,null,null,null,null,null,null,null,null,null,null,null,null,null,null,null,null,null,null,null,null,null,null,null,null,null,null,null,null,null,null,null,null,null,null,null,null,null,null,null,null,null,null,null,null,null,null,null,null,null,null,null,null,null,null,null,null,null,null,null,null,null,{"$f":"\"Imprimé à Limeil-Brévannes, le \"&TEXT(TODAY(),\"jjjj j mmmm aaaa\")&\".\"","v":"Imprimé à Limeil-Brévannes, le samedi 6 juillet 2024."}]